Workbook

Sheet 
A1: If for some reason you see this screen, and the tool is not calculating, hit the button below.

Sheet base data
B2: Location Data | D2: Route | E2: County | F2: Length (mi) | H2: Direction | J2: From | N2: To | AF2: Note: All data on this sheet are for non-holiday weekdays
D3: I-35 | E3: Johnson | F3: 0.6 | H3: NB | J3: 95th Street | N3: 87th Street | S3: not a user input
B5: Geometric Data | D5: Terrain | E5: Urban/Rural | F5: # Lanes | G5: Lane Width (ft) | H5: Rt Lateral Clearance (ft) | J5: Grade | K5: Interchanges per Mile (6 mi. total) | N5: Measured FFS | P5: FFS (measured) | S5: FFS (estimated) | U5: HCM FFS | X5: Capacity Per lane | AE5: left shoulder | AG5: Lat | AH5: Lon | AI5: Location | CI5: 0.4166666667 | CJ5: =CI5+1 -> 1.416666667 | CK5: =ISERROR(CJ5) -> FALSE
D6: Level | E6: Urban | F6: 6 | G6: 14 | H6: 4 | J6: =tbx1_grd/100 -> 0 | K6: 0.7 | N6: =IF(optm_spd="mea", "Yes", "No") -> Yes | P6: 56 | S6: ='Gen. Data'!B31 -> 72.81362756 | U6: =IF(N6="Yes", MROUND(tbx1_FFS,5),MROUND(S6,5)) -> 55 | X6: 2250 | AE6: 6 | AG6: 17.7 | AH6: -64.8 | AI6: ='rain lookup'!$I$10 -> 0 | AJ6: ='rain lookup'!I9 -> CHRISTIANSTED
B8: Volume Data | I8: Weekday Special Event Data % volume increase | AB8: Lane Data | AE8: Work Zone Data (9 allowed) | AX8: Weather Data | BC8: Incident Data | CE8: Data Validation Lists
AE9: Resurfacing | AG9: Lane Closure | AI9: Shoulder Work | AK9: WZ 4 | AM9: WZ 5 | AO9: WZ 6 | AQ9: WZ 7 | AS9: WZ 8 | AU9: WZ 9 | AX9: Hours per year (250 max) during which precipitation exceeds given minimum: | CI9: Event % | CS9: Work zones
I10: Event Title | K10: Event 1 | L10: Event 2 | N10: Event 3 | O10: Event 4 | R10: Event 5 | S10: Event 6 | T10: Event 7 | U10: Event 8 | X10: Event 9 | AE10: Days active: | AF10: 1 | AG10: Days active: | AH10: 0 | AI10: Days active: | AJ10: 0 | AK10: Days active: | AL10: 0 | AM10: Days active: | AN10: 0 | AO10: Days active: | AP10: 0 | AQ10: Days active: | AR10: 0 | AS10: Days active: | AT10: 0 | AU10: Days active: | AV10: 0 | BQ10: tbx1_lbp | BR10: 35 | CE10: Measured FFS? | CI10: 1 | CJ10: 2 | CK10: 3 | CL10: 4 | CM10: 5 | CN10: 6 | CO10: 7 | CP10: 8 | CQ10: 9 | CS10: 1 | CT10: 2 | CU10: 3 | CV10: 4 | CW10: 5 | CX10: 6 | CY10: 7 | CZ10: 8 | DA10: 9 | DC10: 1 | DD10: 2 | DE10: 3 | DF10: 4 | DG10: 5 | DH10: 6 | DI10: 7 | DJ10: 8 | DK10: 9
AE11: # Lanes Closed | AF11: Lateral Clearance | AG11: # Lanes Closed | AH11: Lateral Clearance | AI11: # Lanes Closed | AJ11: Lateral Clearance | AK11: # Lanes Closed | AL11: Lateral Clearance | AM11: # Lanes Closed | AN11: Lateral Clearance | AO11: # Lanes Closed | AP11: Lateral Clearance | AQ11: # Lanes Closed | AR11: Lateral Clearance | AS11: # Lanes Closed | AT11: Lateral Clearance | AU11: # Lanes Closed | AV11: Lateral Clearance | BC11: Reported Crashes/year | BF11: Num | BG11: Avg Dur | BH11: % of all inc | CE11: Yes | CI11: =IF(cbx1_ev1=TRUE, tbx1_e1f, 0) -> 1 | CJ11: =IF(cbx1_ev2=TRUE, tbx1_e2f, 0) -> 0 | CK11: =IF(cbx1_ev3=TRUE, tbx1_e3f, 0) -> 0 | CL11: =IF(cbx1_ev4=TRUE, tbx1_e4f, 0) -> 0 | CM11: =IF(cbx1_ev5=TRUE, tbx1_e5f, 0) -> 0 | CN11: =IF(cbx1_ev6=TRUE, tbx1_e6f, 0) -> 0 | CO11: =IF(cbx1_ev7=TRUE, tbx1_e7f, 0) -> 0 | CP11: =IF(cbx1_ev8=TRUE, tbx1_e8f, 0) -> 0 | CQ11: =IF(cbx1_ev9=TRUE, tbx1_e9f, 0) -> 0 | CS11: =IF(cbx1_wz1=TRUE, tbx1_w1d, 0) -> 1 | CT11: =IF(cbx1_wz2=TRUE, tbx1_w2d, 0) -> 0 | CU11: =IF(cbx1_wz3=TRUE, tbx1_w3d, 0) -> 0 | CV11: =IF(cbx1_wz4=TRUE, tbx1_w4d, 0) -> 0 | CW11: =IF(cbx1_wz5=TRUE, tbx1_w5d, 0) -> 0 | CX11: =IF(cbx1_wz6=TRUE, tbx1_w6d, 0) -> 0 | CY11: =IF(cbx1_wz7=TRUE, tbx1_w7d, 0) -> 0 | CZ11: =IF(cbx1_wz8=TRUE, tbx1_w8d, 0) -> 0 | DA11: =IF(cbx1_wz9=TRUE, tbx1_w9d, 0) -> 0 | DC11: 1600 | DD11: 1600 | DE11: 1600 | DF11: 1600 | DG11: 1600 | DH11: 1600 | DI11: 1600 | DJ11: 1600 | DK11: 1600
B12: Hour | D12: Volume | E12: PHF | F12: % Trucks | G12: % RV's | I12: Freq (days/yr) | K12: 1 | L12: 0 | N12: 0 | O12: 0 | R12: 0 | S12: 0 | T12: 0 | U12: 0 | X12: 0 | AB12: Hour | AC12: Lanes | AX12: Rain | AY12: Snow | BZ12: vol (pcph) | CE12: No | CI12: TRUE | CJ12: FALSE | CK12: FALSE | CL12: FALSE | CM12: FALSE | CN12: FALSE | CO12: FALSE | CP12: FALSE | CQ12: FALSE | CS12: TRUE | CT12: FALSE | CU12: FALSE | CV12: FALSE | CW12: FALSE | CX12: FALSE | CY12: FALSE | CZ12: FALSE | DA12: FALSE
B13: 00:00:00 | D13: 947 | E13: 1 | F13: 2 | G13: 1 | K13: 5 | L13: 5 | N13: 5 | O13: 5 | R13: 5 | S13: 5 | T13: 5 | U13: 5 | X13: 5 | AB13: 00:00:00 | AC13: =comb_lan_val -> 6 | AE13: 1 | AF13: 0 | AG13: 5 | AH13: 0 | AI13: 1 | AJ13: 0 | AK13: 1 | AL13: 0 | AM13: 1 | AN13: 0 | AO13: 1 | AP13: 0 | AQ13: 1 | AR13: 0 | AS13: 1 | AT13: 0 | AU13: 1 | AV13: 0 | AX13: 7.9 | AY13: 0 | BB13: 0 | BZ13: =ROUND('Gen. Data'!P7,0) -> 958 | CI13: =IF(cbx1_ev1=TRUE, K13/100, NA()) -> 0.05 | CJ13: =IF(cbx1_ev2=TRUE, L13/100, NA()) ->  | CK13: =IF(cbx1_ev3=TRUE, N13/100, NA()) ->  | CL13: =IF(cbx1_ev4=TRUE, O13/ 100, NA()) ->  | CM13: =IF(cbx1_ev5=TRUE, R13/100, NA()) ->  | CN13: =IF(cbx1_ev6=TRUE, S13/100, NA()) ->  | CO13: =IF(cbx1_ev7=TRUE, T13/100, NA()) ->  | CP13: =IF(cbx1_ev8=TRUE, U13/100, NA()) ->  | CQ13: =IF(cbx1_ev9=TRUE, X13/100, NA()) ->  | CS13: =IF(cbx1_wz1=TRUE, 'Untreated L07 bd'!BK13, NA()) -> 0.4074074074 | CT13: =IF(cbx1_wz2=TRUE, 'Untreated L07 bd'!BU13, NA()) ->  | CU13: =IF(cbx1_wz3=TRUE, 'Untreated L07 bd'!CE13, NA()) ->  | CV13: =IF(cbx1_wz4=TRUE, 'Untreated L07 bd'!CO13, NA()) ->  | CW13: =IF(cbx1_wz5=TRUE, 'Untreated L07 bd'!CY13, NA()) ->  | CX13: =IF(cbx1_wz6=TRUE, 'Untreated L07 bd'!DI13, NA()) ->  | CY13: =IF(cbx1_wz7=TRUE, 'Untreated L07 bd'!DS13, NA()) ->  | CZ13: =IF(cbx1_wz8=TRUE, 'Untreated L07 bd'!EC13, NA()) ->  | DA13: =IF(cbx1_wz9=TRUE, 'Untreated L07 bd'!EM13, NA()) -> 
B14: 01:00:00 | D14: 632 | E14: 1 | F14: 2 | G14: 1 | K14: 5 | L14: 5 | N14: 5 | O14: 5 | R14: 5 | S14: 5 | T14: 5 | U14: 5 | X14: 5 | AB14: 01:00:00 | AC14: 6 | AE14: 1 | AF14: 0 | AG14: 5 | AH14: 0 | AI14: 1 | AJ14: 0 | AK14: 1 | AL14: 0 | AM14: 1 | AN14: 0 | AO14: 1 | AP14: 0 | AQ14: 1 | AR14: 0 | AS14: 1 | AT14: 0 | AU14: 1 | AV14: 0 | AX14: 8.2 | AY14: 0 | BB14: 1 | BE14: Property Damage Only | BF14: 31 | BG14: 28 | BH14: =BF14/$BG$22 -> 0.124 | BQ14: =ROUND(BH14*100,1) -> 12.4 | BZ14: =ROUND('Gen. Data'!P8,0) -> 640 | CE14: NB | CI14: 0.05 | CL14: =IF(cbx1_ev4=TRUE, O14/ 100, NA()) ->  | CS14: =IF(cbx1_wz1=TRUE, 'Untreated L07 bd'!BK14, NA()) -> 0.4074074074 | CT14: =IF(cbx1_wz2=TRUE, 'Untreated L07 bd'!BU14, NA()) ->  | CU14: =IF(cbx1_wz3=TRUE, 'Untreated L07 bd'!CE14, NA()) ->  | CV14: =IF(cbx1_wz4=TRUE, 'Untreated L07 bd'!CO14, NA()) ->  | CW14: =IF(cbx1_wz5=TRUE, 'Untreated L07 bd'!CY14, NA()) ->  | CX14: =IF(cbx1_wz6=TRUE, 'Untreated L07 bd'!DI14, NA()) ->  | CY14: =IF(cbx1_wz7=TRUE, 'Untreated L07 bd'!DS14, NA()) ->  | CZ14: =IF(cbx1_wz8=TRUE, 'Untreated L07 bd'!EC14, NA()) ->  | DA14: =IF(cbx1_wz9=TRUE, 'Untreated L07 bd'!EM14, NA()) -> 
B15: 02:00:00 | D15: 473 | E15: 1 | F15: 2 | G15: 1 | K15: 5 | L15: 5 | N15: 5 | O15: 5 | R15: 5 | S15: 5 | T15: 5 | U15: 5 | X15: 5 | AB15: 02:00:00 | AC15: 6 | AE15: 1 | AF15: 0 | AG15: 5 | AH15: 0 | AI15: 1 | AJ15: 0 | AK15: 1 | AL15: 0 | AM15: 1 | AN15: 0 | AO15: 1 | AP15: 0 | AQ15: 1 | AR15: 0 | AS15: 1 | AT15: 0 | AU15: 1 | AV15: 0 | AX15: 7.4 | AY15: 0 | BB15: 2 | BE15: Minor Injury | BF15: 17 | BG15: 40 | BH15: =BF15/$BG$22 -> 0.068 | BQ15: =ROUND(BH15*100,1) -> 6.8 | BZ15: =ROUND('Gen. Data'!P9,0) -> 479 | CE15: SB | CI15: 0.05 | CS15: =IF(cbx1_wz1=TRUE, 'Untreated L07 bd'!BK15, NA()) -> 0.4074074074 | CT15: =IF(cbx1_wz2=TRUE, 'Untreated L07 bd'!BU15, NA()) ->  | CU15: =IF(cbx1_wz3=TRUE, 'Untreated L07 bd'!CE15, NA()) ->  | CV15: =IF(cbx1_wz4=TRUE, 'Untreated L07 bd'!CO15, NA()) ->  | CW15: =IF(cbx1_wz5=TRUE, 'Untreated L07 bd'!CY15, NA()) ->  | CX15: =IF(cbx1_wz6=TRUE, 'Untreated L07 bd'!DI15, NA()) ->  | CY15: =IF(cbx1_wz7=TRUE, 'Untreated L07 bd'!DS15, NA()) ->  | CZ15: =IF(cbx1_wz8=TRUE, 'Untreated L07 bd'!EC15, NA()) ->  | DA15: =IF(cbx1_wz9=TRUE, 'Untreated L07 bd'!EM15, NA()) -> 
B16: 03:00:00 | D16: 632 | E16: 1 | F16: 2 | G16: 1 | K16: 5 | L16: 5 | N16: 5 | O16: 5 | R16: 5 | S16: 5 | T16: 5 | U16: 5 | X16: 5 | AB16: 03:00:00 | AC16: 6 | AE16: 1 | AF16: 0 | AG16: 5 | AH16: 0 | AI16: 1 | AJ16: 0 | AK16: 1 | AL16: 0 | AM16: 1 | AN16: 0 | AO16: 1 | AP16: 0 | AQ16: 1 | AR16: 0 | AS16: 1 | AT16: 0 | AU16: 1 | AV16: 0 | AX16: 7.8 | AY16: 0 | BB16: 3 | BE16: Major Injury & Fatal | BF16: 7 | BG16: 45 | BH16: =BF16/$BG$22 -> 0.028 | BQ16: =ROUND(BH16*100,1) -> 2.8 | BZ16: =ROUND('Gen. Data'!P10,0) -> 640 | CE16: EB | CI16: 0.05 | CS16: =IF(cbx1_wz1=TRUE, 'Untreated L07 bd'!BK16, NA()) -> 0.4074074074 | CT16: =IF(cbx1_wz2=TRUE, 'Untreated L07 bd'!BU16, NA()) ->  | CU16: =IF(cbx1_wz3=TRUE, 'Untreated L07 bd'!CE16, NA()) ->  | CV16: =IF(cbx1_wz4=TRUE, 'Untreated L07 bd'!CO16, NA()) ->  | CW16: =IF(cbx1_wz5=TRUE, 'Untreated L07 bd'!CY16, NA()) ->  | CX16: =IF(cbx1_wz6=TRUE, 'Untreated L07 bd'!DI16, NA()) ->  | CY16: =IF(cbx1_wz7=TRUE, 'Untreated L07 bd'!DS16, NA()) ->  | CZ16: =IF(cbx1_wz8=TRUE, 'Untreated L07 bd'!EC16, NA()) ->  | DA16: =IF(cbx1_wz9=TRUE, 'Untreated L07 bd'!EM16, NA()) -> 
B17: 04:00:00 | D17: 1578 | E17: 1 | F17: 2 | G17: 1 | K17: 5 | L17: 5 | N17: 5 | O17: 5 | R17: 5 | S17: 5 | T17: 5 | U17: 5 | X17: 5 | AB17: 04:00:00 | AC17: 6 | AE17: 1 | AF17: 0 | AG17: 5 | AH17: 0 | AI17: 1 | AJ17: 0 | AK17: 1 | AL17: 0 | AM17: 1 | AN17: 0 | AO17: 1 | AP17: 0 | AQ17: 1 | AR17: 0 | AS17: 1 | AT17: 0 | AU17: 1 | AV17: 0 | AX17: 8.2 | AY17: 1 | BB17: 4 | BE17: Total Crashes | BF17: =SUM(BF14:BF16) -> 55 | BH17: =SUM(BH14:BH16) -> 0.22 | BL17: For drop-downs: | BW17: Sugg | BZ17: =ROUND('Gen. Data'!P11,0) -> 1597 | CE17: WB | CI17: 0.05 | CS17: =IF(cbx1_wz1=TRUE, 'Untreated L07 bd'!BK17, NA()) -> 0.4074074074 | CT17: =IF(cbx1_wz2=TRUE, 'Untreated L07 bd'!BU17, NA()) ->  | CU17: =IF(cbx1_wz3=TRUE, 'Untreated L07 bd'!CE17, NA()) ->  | CV17: =IF(cbx1_wz4=TRUE, 'Untreated L07 bd'!CO17, NA()) ->  | CW17: =IF(cbx1_wz5=TRUE, 'Untreated L07 bd'!CY17, NA()) ->  | CX17: =IF(cbx1_wz6=TRUE, 'Untreated L07 bd'!DI17, NA()) ->  | CY17: =IF(cbx1_wz7=TRUE, 'Untreated L07 bd'!DS17, NA()) ->  | CZ17: =IF(cbx1_wz8=TRUE, 'Untreated L07 bd'!EC17, NA()) ->  | DA17: =IF(cbx1_wz9=TRUE, 'Untreated L07 bd'!EM17, NA()) -> 
B18: 05:00:00 | D18: 5523 | E18: 1 | F18: 2 | G18: 1 | K18: 5 | L18: 5 | N18: 5 | O18: 5 | R18: 5 | S18: 5 | T18: 5 | U18: 5 | X18: 5 | AB18: 05:00:00 | AC18: 6 | AE18: 1 | AF18: 0 | AG18: 5 | AH18: 0 | AI18: 1 | AJ18: 0 | AK18: 1 | AL18: 0 | AM18: 1 | AN18: 0 | AO18: 1 | AP18: 0 | AQ18: 1 | AR18: 0 | AS18: 1 | AT18: 0 | AU18: 1 | AV18: 0 | AX18: 9 | AY18: 0 | BB18: 5 | BT18: =(lbl1_pdP/tbx1_cpt)*BT21 -> 0 | BU18: =(lbl1_pdP/tbx1_cpt)*BU21 -> 0.5636363636 | BV18: =lbl1_pdo -> 31 | BW18: =SUM(BT18:BU18)/100 -> 0.005636363636 | BX18: =lbl1_pdo -> 31 | BY18: =(lbl1_pdP/tbx1_cpt)*BY21/100 -> 0 | BZ18: =ROUND('Gen. Data'!P12,0) -> 5589 | CI18: 0.05 | CS18: =IF(cbx1_wz1=TRUE, 'Untreated L07 bd'!BK18, NA()) -> 0.4074074074 | CT18: =IF(cbx1_wz2=TRUE, 'Untreated L07 bd'!BU18, NA()) ->  | CU18: =IF(cbx1_wz3=TRUE, 'Untreated L07 bd'!CE18, NA()) ->  | CV18: =IF(cbx1_wz4=TRUE, 'Untreated L07 bd'!CO18, NA()) ->  | CW18: =IF(cbx1_wz5=TRUE, 'Untreated L07 bd'!CY18, NA()) ->  | CX18: =IF(cbx1_wz6=TRUE, 'Untreated L07 bd'!DI18, NA()) ->  | CY18: =IF(cbx1_wz7=TRUE, 'Untreated L07 bd'!DS18, NA()) ->  | CZ18: =IF(cbx1_wz8=TRUE, 'Untreated L07 bd'!EC18, NA()) ->  | DA18: =IF(cbx1_wz9=TRUE, 'Untreated L07 bd'!EM18, NA()) -> 
B19: 06:00:00 | D19: 8678 | E19: 1 | F19: 2 | G19: 1 | K19: 5 | L19: 5 | N19: 5 | O19: 5 | R19: 5 | S19: 5 | T19: 5 | U19: 5 | X19: 5 | AB19: 06:00:00 | AC19: 6 | AE19: 1 | AF19: 0 | AG19: 5 | AH19: 0 | AI19: 1 | AJ19: 0 | AK19: 1 | AL19: 0 | AM19: 1 | AN19: 0 | AO19: 1 | AP19: 0 | AQ19: 1 | AR19: 0 | AS19: 1 | AT19: 0 | AU19: 1 | AV19: 0 | AX19: 8.9 | AY19: 0 | BB19: 6 | BC19: Non-Crash Incidents/Year | BL19: Urban | BT19: =(lbl1_miP/tbx1_cpt)*BT21 -> 0 | BU19: =(lbl1_miP/tbx1_cpt)*BU21 -> 0.3090909091 | BV19: =lbl1_min -> 17 | BW19: =SUM(BT19:BU19)/100 -> 0.003090909091 | BX19: =lbl1_min -> 17 | BY19: =(lbl1_miP/tbx1_cpt)*BY21/100 -> 0 | BZ19: =ROUND('Gen. Data'!P13,0) -> 8782 | CC19: grade | CI19: 0.05 | CS19: =IF(cbx1_wz1=TRUE, 'Untreated L07 bd'!BK19, NA()) -> 0.4074074074 | CT19: =IF(cbx1_wz2=TRUE, 'Untreated L07 bd'!BU19, NA()) ->  | CU19: =IF(cbx1_wz3=TRUE, 'Untreated L07 bd'!CE19, NA()) ->  | CV19: =IF(cbx1_wz4=TRUE, 'Untreated L07 bd'!CO19, NA()) ->  | CW19: =IF(cbx1_wz5=TRUE, 'Untreated L07 bd'!CY19, NA()) ->  | CX19: =IF(cbx1_wz6=TRUE, 'Untreated L07 bd'!DI19, NA()) ->  | CY19: =IF(cbx1_wz7=TRUE, 'Untreated L07 bd'!DS19, NA()) ->  | CZ19: =IF(cbx1_wz8=TRUE, 'Untreated L07 bd'!EC19, NA()) ->  | DA19: =IF(cbx1_wz9=TRUE, 'Untreated L07 bd'!EM19, NA()) -> 
B20: 07:00:00 | D20: 12150 | E20: 1 | F20: 2 | G20: 1 | K20: 5 | L20: 5 | N20: 5 | O20: 5 | R20: 5 | S20: 5 | T20: 5 | U20: 5 | X20: 5 | AB20: 07:00:00 | AC20: 6 | AE20: 1 | AF20: 0 | AG20: 5 | AH20: 0 | AI20: 1 | AJ20: 0 | AK20: 1 | AL20: 0 | AM20: 1 | AN20: 0 | AO20: 1 | AP20: 0 | AQ20: 1 | AR20: 0 | AS20: 1 | AT20: 0 | AU20: 1 | AV20: 0 | AX20: 8.4 | AY20: 0 | BB20: 7 | BL20: Rural | BT20: =lbl1_faP/tbx1_cpt*BT21 -> 0 | BU20: =lbl1_faP/tbx1_cpt*BU21 -> 0.1272727273 | BV20: =lbl1_mft -> 7 | BW20: =SUM(BT20:BU20)/100 -> 0.001272727273 | BX20: =lbl1_mft -> 7 | BY20: =lbl1_faP/tbx1_cpt*BY21/100 -> 0 | BZ20: =ROUND('Gen. Data'!P14,0) -> 12296 | CC20: 0 | CI20: 0.05 | CS20: =IF(cbx1_wz1=TRUE, 'Untreated L07 bd'!BK20, NA()) -> 0.4074074074 | CT20: =IF(cbx1_wz2=TRUE, 'Untreated L07 bd'!BU20, NA()) ->  | CU20: =IF(cbx1_wz3=TRUE, 'Untreated L07 bd'!CE20, NA()) ->  | CV20: =IF(cbx1_wz4=TRUE, 'Untreated L07 bd'!CO20, NA()) ->  | CW20: =IF(cbx1_wz5=TRUE, 'Untreated L07 bd'!CY20, NA()) ->  | CX20: =IF(cbx1_wz6=TRUE, 'Untreated L07 bd'!DI20, NA()) ->  | CY20: =IF(cbx1_wz7=TRUE, 'Untreated L07 bd'!DS20, NA()) ->  | CZ20: =IF(cbx1_wz8=TRUE, 'Untreated L07 bd'!EC20, NA()) ->  | DA20: =IF(cbx1_wz9=TRUE, 'Untreated L07 bd'!EM20, NA()) -> 
B21: 08:00:00 | D21: 11362 | E21: 1 | F21: 2 | G21: 1 | K21: 5 | L21: 5 | N21: 5 | O21: 5 | R21: 5 | S21: 5 | T21: 5 | U21: 5 | X21: 5 | AB21: 08:00:00 | AC21: 6 | AE21: 1 | AF21: 0 | AG21: 5 | AH21: 0 | AI21: 1 | AJ21: 0 | AK21: 1 | AL21: 0 | AM21: 1 | AN21: 0 | AO21: 1 | AP21: 0 | AQ21: 1 | AR21: 0 | AS21: 1 | AT21: 0 | AU21: 1 | AV21: 0 | AX21: 5.3 | AY21: 0 | BB21: 8 | BF21: % incidents that are crashes | BG21: =BQ21/100 -> 0.22 | BQ21: 22 | BS21: =IF(RIGHT(BQ10, 3)="cpt", BR10, 0) -> 0 | BT21: =BS21 -> 0 | BU21: =IF(BS21<>0,10,100-BU32) -> 1 | BV21: =lbl1_crt -> 55 | BW21: =SUM(BT21:BU21)/100 -> 0.01 | BX21: =lbl1_crt -> 55 | BY21: 0 | BZ21: =ROUND('Gen. Data'!P15,0) -> 11498 | CE21: Level | CI21: 0.05 | CS21: =IF(cbx1_wz1=TRUE, 'Untreated L07 bd'!BK21, NA()) -> 0.4074074074 | CT21: =IF(cbx1_wz2=TRUE, 'Untreated L07 bd'!BU21, NA()) ->  | CU21: =IF(cbx1_wz3=TRUE, 'Untreated L07 bd'!CE21, NA()) ->  | CV21: =IF(cbx1_wz4=TRUE, 'Untreated L07 bd'!CO21, NA()) ->  | CW21: =IF(cbx1_wz5=TRUE, 'Untreated L07 bd'!CY21, NA()) ->  | CX21: =IF(cbx1_wz6=TRUE, 'Untreated L07 bd'!DI21, NA()) ->  | CY21: =IF(cbx1_wz7=TRUE, 'Untreated L07 bd'!DS21, NA()) ->  | CZ21: =IF(cbx1_wz8=TRUE, 'Untreated L07 bd'!EC21, NA()) ->  | DA21: =IF(cbx1_wz9=TRUE, 'Untreated L07 bd'!EM21, NA()) -> 
B22: 09:00:00 | D22: 8678 | E22: 1 | F22: 2 | G22: 1 | K22: 5 | L22: 5 | N22: 5 | O22: 5 | R22: 5 | S22: 5 | T22: 5 | U22: 5 | X22: 5 | AB22: 09:00:00 | AC22: 6 | AE22: 1 | AF22: 0 | AG22: 5 | AH22: 0 | AI22: 1 | AJ22: 0 | AK22: 1 | AL22: 0 | AM22: 1 | AN22: 0 | AO22: 1 | AP22: 0 | AQ22: 1 | AR22: 0 | AS22: 1 | AT22: 0 | AU22: 1 | AV22: 0 | AX22: 6.1 | AY22: 0 | BB22: 9 | BF22: Total Est Incidents/Yr | BG22: =ROUND(BF17/BG21,0) -> 250 | BL22: Level | BP22: =lbl1_crt/(BS21/100) ->  | BW22: =lbl1_sgc*100 -> 1 | BY22: =tbx1_sgc/100 -> 0 | BZ22: =ROUND('Gen. Data'!P16,0) -> 8782 | CE22: Rolling | CI22: 0.05 | CS22: =IF(cbx1_wz1=TRUE, 'Untreated L07 bd'!BK22, NA()) -> 0.4074074074 | CT22: =IF(cbx1_wz2=TRUE, 'Untreated L07 bd'!BU22, NA()) ->  | CU22: =IF(cbx1_wz3=TRUE, 'Untreated L07 bd'!CE22, NA()) ->  | CV22: =IF(cbx1_wz4=TRUE, 'Untreated L07 bd'!CO22, NA()) ->  | CW22: =IF(cbx1_wz5=TRUE, 'Untreated L07 bd'!CY22, NA()) ->  | CX22: =IF(cbx1_wz6=TRUE, 'Untreated L07 bd'!DI22, NA()) ->  | CY22: =IF(cbx1_wz7=TRUE, 'Untreated L07 bd'!DS22, NA()) ->  | CZ22: =IF(cbx1_wz8=TRUE, 'Untreated L07 bd'!EC22, NA()) ->  | DA22: =IF(cbx1_wz9=TRUE, 'Untreated L07 bd'!EM22, NA()) -> 
B23: 10:00:00 | D23: 7417 | E23: 1 | F23: 2 | G23: 1 | K23: 5 | L23: 5 | N23: 5 | O23: 5 | R23: 5 | S23: 5 | T23: 5 | U23: 5 | X23: 5 | AB23: 10:00:00 | AC23: 6 | AE23: 1 | AF23: 0 | AG23: 5 | AH23: 0 | AI23: 1 | AJ23: 0 | AK23: 1 | AL23: 0 | AM23: 1 | AN23: 0 | AO23: 1 | AP23: 0 | AQ23: 1 | AR23: 0 | AS23: 1 | AT23: 0 | AU23: 1 | AV23: 0 | AX23: 8 | AY23: 0 | BB23: 10 | BF23: Tot Est Non-Crash Incidents/Yr | BG23: =IF(opt1_nci="per", BG22-BF17, SUM(BF29:BF31)) -> 195 | BL23: Rolling | BZ23: =ROUND('Gen. Data'!P17,0) -> 7506 | CE23: Mountainous | CI23: 0.05 | CS23: =IF(cbx1_wz1=TRUE, 'Untreated L07 bd'!BK23, NA()) -> 0.4074074074 | CT23: =IF(cbx1_wz2=TRUE, 'Untreated L07 bd'!BU23, NA()) ->  | CU23: =IF(cbx1_wz3=TRUE, 'Untreated L07 bd'!CE23, NA()) ->  | CV23: =IF(cbx1_wz4=TRUE, 'Untreated L07 bd'!CO23, NA()) ->  | CW23: =IF(cbx1_wz5=TRUE, 'Untreated L07 bd'!CY23, NA()) ->  | CX23: =IF(cbx1_wz6=TRUE, 'Untreated L07 bd'!DI23, NA()) ->  | CY23: =IF(cbx1_wz7=TRUE, 'Untreated L07 bd'!DS23, NA()) ->  | CZ23: =IF(cbx1_wz8=TRUE, 'Untreated L07 bd'!EC23, NA()) ->  | DA23: =IF(cbx1_wz9=TRUE, 'Untreated L07 bd'!EM23, NA()) -> 
B24: 11:00:00 | D24: 8363 | E24: 1 | F24: 2 | G24: 1 | K24: 5 | L24: 5 | N24: 5 | O24: 5 | R24: 5 | S24: 5 | T24: 5 | U24: 5 | X24: 5 | AB24: 11:00:00 | AC24: 6 | AE24: 1 | AF24: 0 | AG24: 5 | AH24: 0 | AI24: 1 | AJ24: 0 | AK24: 1 | AL24: 0 | AM24: 1 | AN24: 0 | AO24: 1 | AP24: 0 | AQ24: 1 | AR24: 0 | AS24: 1 | AT24: 0 | AU24: 1 | AV24: 0 | AX24: 8 | AY24: 0 | BB24: 11 | BL24: Mountainous | BV24: =ROUND(BV21/lbl1_sgc, 0) -> 5500 | BX24: =IF(tbx1_sgc=0, BV24, ROUND(BX21/BY22, 0)) -> 5500 | BZ24: =ROUND('Gen. Data'!P18,0) -> 8463 | CI24: 0.05 | CS24: =IF(cbx1_wz1=TRUE, 'Untreated L07 bd'!BK24, NA()) -> 0.4074074074 | CT24: =IF(cbx1_wz2=TRUE, 'Untreated L07 bd'!BU24, NA()) ->  | CU24: =IF(cbx1_wz3=TRUE, 'Untreated L07 bd'!CE24, NA()) ->  | CV24: =IF(cbx1_wz4=TRUE, 'Untreated L07 bd'!CO24, NA()) ->  | CW24: =IF(cbx1_wz5=TRUE, 'Untreated L07 bd'!CY24, NA()) ->  | CX24: =IF(cbx1_wz6=TRUE, 'Untreated L07 bd'!DI24, NA()) ->  | CY24: =IF(cbx1_wz7=TRUE, 'Untreated L07 bd'!DS24, NA()) ->  | CZ24: =IF(cbx1_wz8=TRUE, 'Untreated L07 bd'!EC24, NA()) ->  | DA24: =IF(cbx1_wz9=TRUE, 'Untreated L07 bd'!EM24, NA()) -> 
B25: 12:00:00 | D25: 8363 | E25: 1 | F25: 2 | G25: 1 | K25: 5 | L25: 5 | N25: 5 | O25: 5 | R25: 5 | S25: 5 | T25: 5 | U25: 5 | X25: 5 | AB25: 12:00:00 | AC25: 6 | AE25: 1 | AF25: 0 | AG25: 5 | AH25: 0 | AI25: 1 | AJ25: 0 | AK25: 1 | AL25: 0 | AM25: 1 | AN25: 0 | AO25: 1 | AP25: 0 | AQ25: 1 | AR25: 0 | AS25: 1 | AT25: 0 | AU25: 1 | AV25: 0 | AX25: 8.5 | AY25: 0 | BB25: 12 | BF25: Num | BG25: Avg Dur | BH25: % of all inc | BZ25: =ROUND('Gen. Data'!P19,0) -> 8463 | CI25: 0.05 | CS25: =IF(cbx1_wz1=TRUE, 'Untreated L07 bd'!BK25, NA()) -> 0.4074074074 | CT25: =IF(cbx1_wz2=TRUE, 'Untreated L07 bd'!BU25, NA()) ->  | CU25: =IF(cbx1_wz3=TRUE, 'Untreated L07 bd'!CE25, NA()) ->  | CV25: =IF(cbx1_wz4=TRUE, 'Untreated L07 bd'!CO25, NA()) ->  | CW25: =IF(cbx1_wz5=TRUE, 'Untreated L07 bd'!CY25, NA()) ->  | CX25: =IF(cbx1_wz6=TRUE, 'Untreated L07 bd'!DI25, NA()) ->  | CY25: =IF(cbx1_wz7=TRUE, 'Untreated L07 bd'!DS25, NA()) ->  | CZ25: =IF(cbx1_wz8=TRUE, 'Untreated L07 bd'!EC25, NA()) ->  | DA25: =IF(cbx1_wz9=TRUE, 'Untreated L07 bd'!EM25, NA()) -> 
B26: 13:00:00 | D26: 8994 | E26: 1 | F26: 2 | G26: 1 | K26: 5 | L26: 5 | N26: 5 | O26: 5 | R26: 5 | S26: 5 | T26: 5 | U26: 5 | X26: 5 | AB26: 13:00:00 | AC26: 6 | AE26: 1 | AF26: 0 | AG26: 5 | AH26: 0 | AI26: 1 | AJ26: 0 | AK26: 1 | AL26: 0 | AM26: 1 | AN26: 0 | AO26: 1 | AP26: 0 | AQ26: 1 | AR26: 0 | AS26: 1 | AT26: 0 | AU26: 1 | AV26: 0 | AX26: 9.1 | AY26: 0 | BB26: 13 | BZ26: =ROUND('Gen. Data'!P20,0) -> 9102 | CE26: Urban | CI26: 0.05 | CS26: =IF(cbx1_wz1=TRUE, 'Untreated L07 bd'!BK26, NA()) -> 0.4074074074 | CT26: =IF(cbx1_wz2=TRUE, 'Untreated L07 bd'!BU26, NA()) ->  | CU26: =IF(cbx1_wz3=TRUE, 'Untreated L07 bd'!CE26, NA()) ->  | CV26: =IF(cbx1_wz4=TRUE, 'Untreated L07 bd'!CO26, NA()) ->  | CW26: =IF(cbx1_wz5=TRUE, 'Untreated L07 bd'!CY26, NA()) ->  | CX26: =IF(cbx1_wz6=TRUE, 'Untreated L07 bd'!DI26, NA()) ->  | CY26: =IF(cbx1_wz7=TRUE, 'Untreated L07 bd'!DS26, NA()) ->  | CZ26: =IF(cbx1_wz8=TRUE, 'Untreated L07 bd'!EC26, NA()) ->  | DA26: =IF(cbx1_wz9=TRUE, 'Untreated L07 bd'!EM26, NA()) -> 
B27: 14:00:00 | D27: 9310 | E27: 1 | F27: 2 | G27: 1 | K27: 5 | L27: 5 | N27: 5 | O27: 5 | R27: 5 | S27: 5 | T27: 5 | U27: 5 | X27: 5 | AB27: 14:00:00 | AC27: 6 | AE27: 1 | AF27: 0 | AG27: 5 | AH27: 0 | AI27: 1 | AJ27: 0 | AK27: 1 | AL27: 0 | AM27: 1 | AN27: 0 | AO27: 1 | AP27: 0 | AQ27: 1 | AR27: 0 | AS27: 1 | AT27: 0 | AU27: 1 | AV27: 0 | AX27: 7.8 | AY27: 0 | BB27: 14 | BW27: =lbl1_snl*100 -> 69.80769231 | BY27: =tbx1_sgn/100 -> 0 | BZ27: =ROUND('Gen. Data'!P21,0) -> 9422 | CE27: Rural | CI27: 0.05 | CS27: =IF(cbx1_wz1=TRUE, 'Untreated L07 bd'!BK27, NA()) -> 0.4074074074 | CT27: =IF(cbx1_wz2=TRUE, 'Untreated L07 bd'!BU27, NA()) ->  | CU27: =IF(cbx1_wz3=TRUE, 'Untreated L07 bd'!CE27, NA()) ->  | CV27: =IF(cbx1_wz4=TRUE, 'Untreated L07 bd'!CO27, NA()) ->  | CW27: =IF(cbx1_wz5=TRUE, 'Untreated L07 bd'!CY27, NA()) ->  | CX27: =IF(cbx1_wz6=TRUE, 'Untreated L07 bd'!DI27, NA()) ->  | CY27: =IF(cbx1_wz7=TRUE, 'Untreated L07 bd'!DS27, NA()) ->  | CZ27: =IF(cbx1_wz8=TRUE, 'Untreated L07 bd'!EC27, NA()) ->  | DA27: =IF(cbx1_wz9=TRUE, 'Untreated L07 bd'!EM27, NA()) -> 
B28: 15:00:00 | D28: 10730 | E28: 1 | F28: 2 | G28: 1 | K28: 5 | L28: 5 | N28: 5 | O28: 5 | R28: 5 | S28: 5 | T28: 5 | U28: 5 | X28: 5 | AB28: 15:00:00 | AC28: 6 | AE28: 1 | AF28: 0 | AG28: 5 | AH28: 0 | AI28: 1 | AJ28: 0 | AK28: 1 | AL28: 0 | AM28: 1 | AN28: 0 | AO28: 1 | AP28: 0 | AQ28: 1 | AR28: 0 | AS28: 1 | AT28: 0 | AU28: 1 | AV28: 0 | AX28: 8.3 | AY28: 0 | BB28: 15 | BW28: =lbl1_slb*100 -> 16.5 | BY28: =tbx1_sgl/100 -> 0 | BZ28: =ROUND('Gen. Data'!P22,0) -> 10859 | CI28: 0.05 | CS28: =IF(cbx1_wz1=TRUE, 'Untreated L07 bd'!BK28, NA()) -> 0.4074074074 | CT28: =IF(cbx1_wz2=TRUE, 'Untreated L07 bd'!BU28, NA()) ->  | CU28: =IF(cbx1_wz3=TRUE, 'Untreated L07 bd'!CE28, NA()) ->  | CV28: =IF(cbx1_wz4=TRUE, 'Untreated L07 bd'!CO28, NA()) ->  | CW28: =IF(cbx1_wz5=TRUE, 'Untreated L07 bd'!CY28, NA()) ->  | CX28: =IF(cbx1_wz6=TRUE, 'Untreated L07 bd'!DI28, NA()) ->  | CY28: =IF(cbx1_wz7=TRUE, 'Untreated L07 bd'!DS28, NA()) ->  | CZ28: =IF(cbx1_wz8=TRUE, 'Untreated L07 bd'!EC28, NA()) ->  | DA28: =IF(cbx1_wz9=TRUE, 'Untreated L07 bd'!EM28, NA()) -> 
B29: 16:00:00 | D29: 11677 | E29: 1 | F29: 2 | G29: 1 | K29: 5 | L29: 5 | N29: 5 | O29: 5 | R29: 5 | S29: 5 | T29: 5 | U29: 5 | X29: 5 | AB29: 16:00:00 | AC29: 6 | AE29: 1 | AF29: 0 | AG29: 5 | AH29: 0 | AI29: 1 | AJ29: 0 | AK29: 1 | AL29: 0 | AM29: 1 | AN29: 0 | AO29: 1 | AP29: 0 | AQ29: 1 | AR29: 0 | AS29: 1 | AT29: 0 | AU29: 1 | AV29: 0 | AX29: 6.4 | AY29: 0 | BB29: 16 | BE29: Non-Lane Blocking | BF29: =IF(opt1_nci="ipt", tbx1_dnN, ROUND($BG$22*BH29,0)) -> 138 | BG29: 26 | BH29: =BQ29/100 -> 0.55 | BQ29: 55 | BS29: =IF(RIGHT(BQ10, 3)="nlP", BR10, 0) -> 0 | BT29: =(tbx1_nlP/BO32)*BT32 -> 0 | BU29: =BQ36 -> 69.80769231 | BV29: =ROUND(lbl1_snl*BV24, 0) -> 3839 | BW29: =SUM(BT29:BU29)/100 -> 0.6980769231 | BX29: =BY27*BX24 -> 0 | BY29: 0 | BZ29: =ROUND('Gen. Data'!P23,0) -> 11817 | CE29: lanes | CF29: wid | CG29: rsh | CH29: lsh | CI29: 0.05 | CS29: =IF(cbx1_wz1=TRUE, 'Untreated L07 bd'!BK29, NA()) -> 0.4074074074 | CT29: =IF(cbx1_wz2=TRUE, 'Untreated L07 bd'!BU29, NA()) ->  | CU29: =IF(cbx1_wz3=TRUE, 'Untreated L07 bd'!CE29, NA()) ->  | CV29: =IF(cbx1_wz4=TRUE, 'Untreated L07 bd'!CO29, NA()) ->  | CW29: =IF(cbx1_wz5=TRUE, 'Untreated L07 bd'!CY29, NA()) ->  | CX29: =IF(cbx1_wz6=TRUE, 'Untreated L07 bd'!DI29, NA()) ->  | CY29: =IF(cbx1_wz7=TRUE, 'Untreated L07 bd'!DS29, NA()) ->  | CZ29: =IF(cbx1_wz8=TRUE, 'Untreated L07 bd'!EC29, NA()) ->  | DA29: =IF(cbx1_wz9=TRUE, 'Untreated L07 bd'!EM29, NA()) -> 
B30: 17:00:00 | D30: 11835 | E30: 1 | F30: 2 | G30: 1 | K30: 5 | L30: 5 | N30: 5 | O30: 5 | R30: 5 | S30: 5 | T30: 5 | U30: 5 | X30: 5 | AB30: 17:00:00 | AC30: 6 | AE30: 1 | AF30: 0 | AG30: 5 | AH30: 0 | AI30: 1 | AJ30: 0 | AK30: 1 | AL30: 0 | AM30: 1 | AN30: 0 | AO30: 1 | AP30: 0 | AQ30: 1 | AR30: 0 | AS30: 1 | AT30: 0 | AU30: 1 | AV30: 0 | AX30: 6.3 | AY30: 0 | BB30: 17 | BE30: Lane Blocking | BF30: =IF(opt1_nci="ipt",tbx1_dlN,ROUND($BG$22*BH30,0)) -> 33 | BG30: 20 | BH30: =BQ30/100 -> 0.13 | BQ30: 13 | BS30: =IF(RIGHT(BQ10, 3)="lbP", BR10, 0) -> 35 | BT30: =(tbx1_lbP/BO32)*BT32 -> 0 | BU30: =BQ37 -> 16.5 | BV30: =ROUND(lbl1_slb*BV24, 0) -> 908 | BW30: =SUM(BT30:BU30)/100 -> 0.165 | BX30: =BY28*BX24 -> 0 | BY30: 0 | BZ30: =ROUND('Gen. Data'!P24,0) -> 11977 | CE30: 1 | CF30: 10 | CG30: 0 | CH30: 0 | CI30: 0.05 | CS30: =IF(cbx1_wz1=TRUE, 'Untreated L07 bd'!BK30, NA()) -> 0.4074074074 | CT30: =IF(cbx1_wz2=TRUE, 'Untreated L07 bd'!BU30, NA()) ->  | CU30: =IF(cbx1_wz3=TRUE, 'Untreated L07 bd'!CE30, NA()) ->  | CV30: =IF(cbx1_wz4=TRUE, 'Untreated L07 bd'!CO30, NA()) ->  | CW30: =IF(cbx1_wz5=TRUE, 'Untreated L07 bd'!CY30, NA()) ->  | CX30: =IF(cbx1_wz6=TRUE, 'Untreated L07 bd'!DI30, NA()) ->  | CY30: =IF(cbx1_wz7=TRUE, 'Untreated L07 bd'!DS30, NA()) ->  | CZ30: =IF(cbx1_wz8=TRUE, 'Untreated L07 bd'!EC30, NA()) ->  | DA30: =IF(cbx1_wz9=TRUE, 'Untreated L07 bd'!EM30, NA()) -> 
B31: 18:00:00 | D31: 8678 | E31: 1 | F31: 2 | G31: 1 | K31: 5 | L31: 5 | N31: 5 | O31: 5 | R31: 5 | S31: 5 | T31: 5 | U31: 5 | X31: 5 | AB31: 18:00:00 | AC31: 6 | AE31: 1 | AF31: 0 | AG31: 5 | AH31: 0 | AI31: 1 | AJ31: 0 | AK31: 1 | AL31: 0 | AM31: 1 | AN31: 0 | AO31: 1 | AP31: 0 | AQ31: 1 | AR31: 0 | AS31: 1 | AT31: 0 | AU31: 1 | AV31: 0 | AX31: 5.4 | AY31: 0 | BB31: 18 | BE31: Other | BF31: =IF(opt1_nci="ipt", tbx1_otN, ROUND($BG$22*BH31,0)) -> 25 | BG31: 23 | BH31: =BQ31/100 -> 0.1 | BP31: 10 | BQ31: =100-BQ21-BQ29-BQ30 -> 10 | BT31: =BP31/BO32*BT32 -> 0 | BU31: =BQ38 -> 12.69230769 | BV31: =ROUND(lbl1_sot*BV24, 0) -> 698 | BW31: =SUM(BT31:BU31)/100 -> 0.1269230769 | BX31: =lbl1_sgo*BX24 -> 5500 | BY31: =IF(1-BY27-BY28-BY22< 0, 0, 1-BY27-BY28-BY22) -> 1 | BZ31: =ROUND('Gen. Data'!P25,0) -> 8782 | CD31: 2 | CE31: 2 | CF31: 11 | CG31: 1 | CH31: 1 | CI31: 0.05 | CS31: =IF(cbx1_wz1=TRUE, 'Untreated L07 bd'!BK31, NA()) -> 0.4074074074 | CT31: =IF(cbx1_wz2=TRUE, 'Untreated L07 bd'!BU31, NA()) ->  | CU31: =IF(cbx1_wz3=TRUE, 'Untreated L07 bd'!CE31, NA()) ->  | CV31: =IF(cbx1_wz4=TRUE, 'Untreated L07 bd'!CO31, NA()) ->  | CW31: =IF(cbx1_wz5=TRUE, 'Untreated L07 bd'!CY31, NA()) ->  | CX31: =IF(cbx1_wz6=TRUE, 'Untreated L07 bd'!DI31, NA()) ->  | CY31: =IF(cbx1_wz7=TRUE, 'Untreated L07 bd'!DS31, NA()) ->  | CZ31: =IF(cbx1_wz8=TRUE, 'Untreated L07 bd'!EC31, NA()) ->  | DA31: =IF(cbx1_wz9=TRUE, 'Untreated L07 bd'!EM31, NA()) -> 
B32: 19:00:00 | D32: 6153 | E32: 1 | F32: 2 | G32: 1 | K32: 5 | L32: 5 | N32: 5 | O32: 5 | R32: 5 | S32: 5 | T32: 5 | U32: 5 | X32: 5 | AB32: 19:00:00 | AC32: 6 | AE32: 1 | AF32: 0 | AG32: 5 | AH32: 0 | AI32: 1 | AJ32: 0 | AK32: 1 | AL32: 0 | AM32: 1 | AN32: 0 | AO32: 1 | AP32: 0 | AQ32: 1 | AR32: 0 | AS32: 1 | AT32: 0 | AU32: 1 | AV32: 0 | AX32: 5.2 | AY32: 0 | BB32: 19 | BE32: Tot Non-Crash Incidents | BF32: =SUM(BF29:BF31) -> 196 | BH32: =SUM(BH29:BH31) -> 0.78 | BO32: 78 | BQ32: =ROUND(BH32*100,1) -> 78 | BS32: =IF(SUM(BS29:BS30) = 0, "", SUM(BS29:BS30)) -> 35 | BT32: =IF(BS32="", 100-BS21, 0) -> 0 | BU32: =BP39 -> 99 | BV32: =SUM(BV29:BV31) -> 5445 | BW32: =SUM(BT32:BU32)/100 -> 0.99 | BX32: =lbl1_cnl+lbl1_clb+lbl1_cso -> 5500 | BY32: =lbl1_sgo+BY28+BY27 -> 1 | BZ32: =ROUND('Gen. Data'!P26,0) -> 6227 | CD32: 3 | CE32: 3 | CF32: 12 | CG32: 2 | CH32: 2 | CI32: 0.05 | CS32: =IF(cbx1_wz1=TRUE, 'Untreated L07 bd'!BK32, NA()) -> 0.4074074074 | CT32: =IF(cbx1_wz2=TRUE, 'Untreated L07 bd'!BU32, NA()) ->  | CU32: =IF(cbx1_wz3=TRUE, 'Untreated L07 bd'!CE32, NA()) ->  | CV32: =IF(cbx1_wz4=TRUE, 'Untreated L07 bd'!CO32, NA()) ->  | CW32: =IF(cbx1_wz5=TRUE, 'Untreated L07 bd'!CY32, NA()) ->  | CX32: =IF(cbx1_wz6=TRUE, 'Untreated L07 bd'!DI32, NA()) ->  | CY32: =IF(cbx1_wz7=TRUE, 'Untreated L07 bd'!DS32, NA()) ->  | CZ32: =IF(cbx1_wz8=TRUE, 'Untreated L07 bd'!EC32, NA()) ->  | DA32: =IF(cbx1_wz9=TRUE, 'Untreated L07 bd'!EM32, NA()) -> 
B33: 20:00:00 | D33: 5207 | E33: 1 | F33: 2 | G33: 1 | K33: 5 | L33: 5 | N33: 5 | O33: 5 | R33: 5 | S33: 5 | T33: 5 | U33: 5 | X33: 5 | AB33: 20:00:00 | AC33: 6 | AE33: 1 | AF33: 0 | AG33: 5 | AH33: 0 | AI33: 1 | AJ33: 0 | AK33: 1 | AL33: 0 | AM33: 1 | AN33: 0 | AO33: 1 | AP33: 0 | AQ33: 1 | AR33: 0 | AS33: 1 | AT33: 0 | AU33: 1 | AV33: 0 | AX33: 6.2 | AY33: 0 | BB33: 20 | BV33: =BV21+BV32 -> 5500 | BW33: =lbl1_snc+lbl1_sgc -> 1 | BX33: =IF(tbx1_sgc=0, BX24, BX21+BX32) -> 5500 | BY33: =BY22+BY27+BY28+lbl1_sgo -> 1 | BZ33: =ROUND('Gen. Data'!P27,0) -> 5269 | CD33: 4 | CE33: 4 | CF33: 13 | CG33: 3 | CH33: 3 | CI33: 0.05 | CS33: =IF(cbx1_wz1=TRUE, 'Untreated L07 bd'!BK33, NA()) -> 0.4074074074 | CT33: =IF(cbx1_wz2=TRUE, 'Untreated L07 bd'!BU33, NA()) ->  | CU33: =IF(cbx1_wz3=TRUE, 'Untreated L07 bd'!CE33, NA()) ->  | CV33: =IF(cbx1_wz4=TRUE, 'Untreated L07 bd'!CO33, NA()) ->  | CW33: =IF(cbx1_wz5=TRUE, 'Untreated L07 bd'!CY33, NA()) ->  | CX33: =IF(cbx1_wz6=TRUE, 'Untreated L07 bd'!DI33, NA()) ->  | CY33: =IF(cbx1_wz7=TRUE, 'Untreated L07 bd'!DS33, NA()) ->  | CZ33: =IF(cbx1_wz8=TRUE, 'Untreated L07 bd'!EC33, NA()) ->  | DA33: =IF(cbx1_wz9=TRUE, 'Untreated L07 bd'!EM33, NA()) -> 
B34: 21:00:00 | D34: 4892 | E34: 1 | F34: 2 | G34: 1 | K34: 5 | L34: 5 | N34: 5 | O34: 5 | R34: 5 | S34: 5 | T34: 5 | U34: 5 | X34: 5 | AB34: 21:00:00 | AC34: 6 | AE34: 1 | AF34: 0 | AG34: 5 | AH34: 0 | AI34: 1 | AJ34: 0 | AK34: 1 | AL34: 0 | AM34: 1 | AN34: 0 | AO34: 1 | AP34: 0 | AQ34: 1 | AR34: 0 | AS34: 1 | AT34: 0 | AU34: 1 | AV34: 0 | AX34: 5.7 | AY34: 0 | BB34: 21 | BE34: TOTAL | BF34: =BF32+lbl1_crt -> 251 | BH34: =BH32+BH17 -> 1 | BZ34: =ROUND('Gen. Data'!P28,0) -> 4951 | CD34: 5 | CE34: 5 | CF34: 14 | CG34: 4 | CH34: 4 | CI34: 0.05 | CS34: =IF(cbx1_wz1=TRUE, 'Untreated L07 bd'!BK34, NA()) -> 0.4074074074 | CT34: =IF(cbx1_wz2=TRUE, 'Untreated L07 bd'!BU34, NA()) ->  | CU34: =IF(cbx1_wz3=TRUE, 'Untreated L07 bd'!CE34, NA()) ->  | CV34: =IF(cbx1_wz4=TRUE, 'Untreated L07 bd'!CO34, NA()) ->  | CW34: =IF(cbx1_wz5=TRUE, 'Untreated L07 bd'!CY34, NA()) ->  | CX34: =IF(cbx1_wz6=TRUE, 'Untreated L07 bd'!DI34, NA()) ->  | CY34: =IF(cbx1_wz7=TRUE, 'Untreated L07 bd'!DS34, NA()) ->  | CZ34: =IF(cbx1_wz8=TRUE, 'Untreated L07 bd'!EC34, NA()) ->  | DA34: =IF(cbx1_wz9=TRUE, 'Untreated L07 bd'!EM34, NA()) -> 
B35: 22:00:00 | D35: 3472 | E35: 1 | F35: 2 | G35: 1 | K35: 5 | L35: 5 | N35: 5 | O35: 5 | R35: 5 | S35: 5 | T35: 5 | U35: 5 | X35: 5 | AB35: 22:00:00 | AC35: 6 | AE35: 1 | AF35: 0 | AG35: 5 | AH35: 0 | AI35: 1 | AJ35: 0 | AK35: 1 | AL35: 0 | AM35: 1 | AN35: 0 | AO35: 1 | AP35: 0 | AQ35: 1 | AR35: 0 | AS35: 1 | AT35: 0 | AU35: 1 | AV35: 0 | AX35: 5.5 | AY35: 0 | BB35: 22 | BZ35: =ROUND('Gen. Data'!P29,0) -> 3514 | CD35: 6 | CE35: 6 | CF35: 15 | CG35: 5 | CH35: 5 | CI35: 0.05 | CS35: =IF(cbx1_wz1=TRUE, 'Untreated L07 bd'!BK35, NA()) -> 0.4074074074 | CT35: =IF(cbx1_wz2=TRUE, 'Untreated L07 bd'!BU35, NA()) ->  | CU35: =IF(cbx1_wz3=TRUE, 'Untreated L07 bd'!CE35, NA()) ->  | CV35: =IF(cbx1_wz4=TRUE, 'Untreated L07 bd'!CO35, NA()) ->  | CW35: =IF(cbx1_wz5=TRUE, 'Untreated L07 bd'!CY35, NA()) ->  | CX35: =IF(cbx1_wz6=TRUE, 'Untreated L07 bd'!DI35, NA()) ->  | CY35: =IF(cbx1_wz7=TRUE, 'Untreated L07 bd'!DS35, NA()) ->  | CZ35: =IF(cbx1_wz8=TRUE, 'Untreated L07 bd'!EC35, NA()) ->  | DA35: =IF(cbx1_wz9=TRUE, 'Untreated L07 bd'!EM35, NA()) -> 
B36: 23:00:00 | D36: 2052 | E36: 1 | F36: 2 | G36: 1 | K36: 5 | L36: 5 | N36: 5 | O36: 5 | R36: 5 | S36: 5 | T36: 5 | U36: 5 | X36: 5 | AB36: 23:00:00 | AC36: 6 | AE36: 1 | AF36: 0 | AG36: 5 | AH36: 0 | AI36: 1 | AJ36: 0 | AK36: 1 | AL36: 0 | AM36: 1 | AN36: 0 | AO36: 1 | AP36: 0 | AQ36: 1 | AR36: 0 | AS36: 1 | AT36: 0 | AU36: 1 | AV36: 0 | AX36: 4.9 | AY36: 0 | BB36: 23 | BC36: crash rate/mvm | BH36: =ROUND(BF17/(D38*365*F3/1000000),3) -> 1.592 | BN36: =tbx1_nlP/lbl1_npt -> 0.7051282051 | BO36: 0.7051282051 | BP36: =BS29/BO36 -> 0 | BQ36: =BO36*BP39 -> 69.80769231 | BZ36: =ROUND('Gen. Data'!P30,0) -> 2077 | CD36: 7 | CE36: 7 | CG36: 6 | CH36: 6 | CI36: 0.05 | CS36: =IF(cbx1_wz1=TRUE, 'Untreated L07 bd'!BK36, NA()) -> 0.4074074074 | CT36: =IF(cbx1_wz2=TRUE, 'Untreated L07 bd'!BU36, NA()) ->  | CU36: =IF(cbx1_wz3=TRUE, 'Untreated L07 bd'!CE36, NA()) ->  | CV36: =IF(cbx1_wz4=TRUE, 'Untreated L07 bd'!CO36, NA()) ->  | CW36: =IF(cbx1_wz5=TRUE, 'Untreated L07 bd'!CY36, NA()) ->  | CX36: =IF(cbx1_wz6=TRUE, 'Untreated L07 bd'!DI36, NA()) ->  | CY36: =IF(cbx1_wz7=TRUE, 'Untreated L07 bd'!DS36, NA()) ->  | CZ36: =IF(cbx1_wz8=TRUE, 'Untreated L07 bd'!EC36, NA()) ->  | DA36: =IF(cbx1_wz9=TRUE, 'Untreated L07 bd'!EM36, NA()) -> 
K37: The above numbers must be decimal/percent numbers | BC37: incident rate/mvm | BH37: =ROUND(BG22/(D38*365*F3/1000000),3) -> 7.234 | BN37: =tbx1_lbP/lbl1_npt -> 0.1666666667 | BO37: 0.1666666667 | BP37: =BS30/BO37 -> 210 | BQ37: =BO37*BP39 -> 16.5 | CD37: 8 | CE37: 8 | CG37: 7 | CH37: 7
B38: TOT | D38: =SUM(D13:D36) -> 157796 | K38: events 4 through 9 do not appear to be in use | BP38: =IF(BO38=0, "", BS31/BO38) ->  | BQ38: =BP39-BQ36-BQ37 -> 12.69230769 | BZ38: 159690 | CE38: 9 | CG38: 8 | CH38: 8
K39: are the graphs below being used?? | BP39: =IF(SUM(BP36:BP37)>100, 99, SUM(BP36:BP37)) -> 99 | BQ39: =IF(BS32=0, "", BS29/BO36 + BS30/BO37) -> 210 | CE39: 10 | CG39: 9 | CH39: 9
CE40: 10 | CF40: 10 | CG40: 10
CE41: 11 | CF41: 11 | CG41: 11
BJ42: per | CE42: 12 | CF42: 12 | CG42: 12
BJ43: 138 | CG43: 13+
BJ44: 33
BJ45: 25
CD46: weather opt
CD47: prx
CD48: speed opt
CD49: mea
CD54: Fatal/Major Injury | CE54: 1000000
CD55: Minor Injury | CE55: 50000
CD56: PDO | CE56: 5000
CD57: Annual Crash Cost | CE57: =tbx1_ccf*lbl1_mft+tbx1_cci*lbl1_min+tbx1_ccp*lbl1_pdo -> 8005000

Sheet new normal
B2: Location Data | C2: LTWZ? | D2: Route | E2: County | F2: Length (mi) | H2: Direction | J2: From | N2: To | Q2: 1 | AF2: Note: All data on this sheet are for non-holiday weekdays
C3: No | D3: I-35 | E3: Johnson | F3: 0.6 | H3: NB | J3: 95th Street | N3: 87th Street | S3: not a user input
B5: Geometric Data | C5: Days Of WZ | D5: Terrain | E5: Urban/Rural | F5: # Lanes | G5: Lane Width (ft) | H5: Rt Lateral Clearance (ft) | J5: Grade | K5: Interchanges per Mile (6 mi. total) | N5: Measured FFS | P5: FFS (measured) | S5: FFS (estimated) | U5: HCM FFS | X5: Capacity Per lane | AE5: left shoulder | AG5: Lat | AH5: Lon | AI5: Location
C6: 90 | D6: Mountainous | E6: Urban | F6: ='base data'!comb_lan_val-tbx1_nnl -> 5 | G6: 10 | H6: 4 | J6: =BX20/100 -> 0.023 | K6: 0.7 | N6: ='base data'!N6:O6 -> Yes | P6: 55 | S6: ='base data'!S6:T6 -> 72.81362756 | U6: =lbl1_aff -> 55 | X6: 1600 | AE6: 6 | AG6: 55.21 | AH6: -162.72 | AI6: ='rain lookup'!$I$10 -> 0 | AJ6: ='rain lookup'!I9 -> CHRISTIANSTED
B8: Volume Data | I8: Weekday Special Event Data % volume increase | AB8: Lane Data | AE8: Work Zone Data (9 allowed) | AX8: Weather Data | BC8: Incident Data | BZ8: Data Validation Lists
AE9: Resurfacing | AG9: Lane Closure | AI9: Shoulder Work | AK9: WZ 4 | AM9: WZ 5 | AO9: WZ 6 | AQ9: WZ 7 | AS9: WZ 8 | AU9: WZ 9 | AX9: Hours per year (250 max) during which precipitation exceeds given minimum: | CD9: Event %
I10: Event Title | K10: Event 1 | L10: Event 2 | N10: Event 3 | O10: Event 4 | R10: Event 5 | S10: Event 6 | T10: Event 7 | U10: Event 8 | X10: Event 9 | AE10: Days active: | AG10: Days active: | AI10: Days active: | AK10: Days active: | AM10: Days active: | AO10: Days active: | AQ10: Days active: | AS10: Days active: | AU10: Days active: | BZ10: Measured FFS? | CD10: 1 | CE10: 2 | CF10: 3 | CG10: 4 | CH10: 5 | CI10: 6 | CJ10: 7 | CK10: 8 | CL10: 9
AE11: # Lanes Closed | AF11: Lateral Clearance | AG11: # Lanes Closed | AH11: Lateral Clearance | AI11: # Lanes Closed | AJ11: Lateral Clearance | AK11: # Lanes Closed | AL11: Lateral Clearance | AM11: # Lanes Closed | AN11: Lateral Clearance | AO11: # Lanes Closed | AP11: Lateral Clearance | AQ11: # Lanes Closed | AR11: Lateral Clearance | AS11: # Lanes Closed | AT11: Lateral Clearance | AU11: # Lanes Closed | AV11: Lateral Clearance | BZ11: Yes | CD11: =IF(cbx1_ev1=TRUE, K12, 0) -> 1 | CE11: =IF(cbx1_ev2=TRUE,L12, 0) -> 0 | CF11: =IF(cbx1_ev3=TRUE,N12, 0) -> 0 | CG11: =IF(cbx1_ev4=TRUE,O12, 0) -> 0 | CH11: =IF(cbx1_ev5=TRUE, R12, 0) -> 0 | CI11: =IF(cbx1_ev6=TRUE, S12, 0) -> 0 | CJ11: =IF(cbx1_ev7=TRUE, T12, 0) -> 0 | CK11: =IF(cbx1_ev8=TRUE, U12, 0) -> 0 | CL11: =IF(cbx1_ev9=TRUE, X12, 0) -> 0
B12: Hour | C12: % Volume Diverted | D12: Volume | E12: PHF | F12: % Trucks | G12: % RV's | I12: Freq (days/yr) | K12: ='base data'!K12 -> 1 | L12: ='base data'!L12 -> 0 | N12: ='base data'!N12 -> 0 | O12: ='base data'!O12 -> 0 | P12: ='base data'!P12 -> 0 | Q12: ='base data'!Q12 -> 0 | R12: ='base data'!R12 -> 0 | S12: ='base data'!S12 -> 0 | T12: ='base data'!T12 -> 0 | U12: ='base data'!U12 -> 0 | V12: ='base data'!V12 -> 0 | W12: ='base data'!W12 -> 0 | X12: ='base data'!X12 -> 0 | Y12: ='base data'!Y12 -> 0 | Z12: ='base data'!Z12 -> 0 | AB12: Hour | AC12: Lanes | AX12: Rain | AY12: Snow | BU12: vol (pcph) | BZ12: No | CD12: TRUE | CE12: FALSE | CF12: FALSE | CG12: FALSE | CH12: FALSE | CI12: FALSE | CJ12: FALSE | CK12: FALSE | CL12: FALSE
B13: 00:00:00 | C13: 0 | D13: 947 | E13: ='base data'!E13 -> 1 | F13: ='base data'!F13 -> 2 | G13: ='base data'!G13 -> 1 | K13: ='base data'!K13 -> 5 | L13: ='base data'!L13 -> 5 | N13: ='base data'!N13 -> 5 | O13: ='base data'!O13 -> 5 | P13: ='base data'!P13 -> 0 | Q13: ='base data'!Q13 -> 0 | R13: ='base data'!R13 -> 5 | S13: ='base data'!S13 -> 5 | T13: ='base data'!T13 -> 5 | U13: ='base data'!U13 -> 5 | V13: ='base data'!V13 -> 0 | W13: ='base data'!W13 -> 0 | X13: ='base data'!X13 -> 5 | Y13: ='base data'!Y13 -> 0 | Z13: ='base data'!Z13 -> 0 | AB13: 00:00:00 | AC13: =$F$6 -> 5 | BB13: 0 | BU13: =ROUND('Gen. Data'!P7,0) -> 958 | CD13: =IF(cbx1_ev1=TRUE, K13/100, NA()) -> 0.05 | CE13: =IF(cbx1_ev2=TRUE, L13/100, NA()) ->  | CF13: =IF(cbx1_ev3=TRUE, N13/100, NA()) ->  | CG13: =IF(cbx1_ev4=TRUE, O13/100, NA()) ->  | CH13: =IF(cbx1_ev5=TRUE, R13/100, NA()) ->  | CI13: =IF(cbx1_ev6=TRUE, S13/100, NA()) ->  | CJ13: =IF(cbx1_ev7=TRUE, T13/100, NA()) ->  | CK13: =IF(cbx1_ev8=TRUE, U13/100, NA()) ->  | CL13: =IF(cbx1_ev9=TRUE, X13/100, NA()) -> 
B14: 01:00:00 | C14: 0 | D14: 632 | E14: ='base data'!E14 -> 1 | F14: ='base data'!F14 -> 2 | G14: ='base data'!G14 -> 1 | K14: ='base data'!K14 -> 5 | L14: ='base data'!L14 -> 5 | N14: ='base data'!N14 -> 5 | O14: ='base data'!O14 -> 5 | P14: ='base data'!P14 -> 0 | Q14: ='base data'!Q14 -> 0 | R14: ='base data'!R14 -> 5 | S14: ='base data'!S14 -> 5 | T14: ='base data'!T14 -> 5 | U14: ='base data'!U14 -> 5 | V14: ='base data'!V14 -> 0 | W14: ='base data'!W14 -> 0 | X14: ='base data'!X14 -> 5 | Y14: ='base data'!Y14 -> 0 | Z14: ='base data'!Z14 -> 0 | AB14: 01:00:00 | AC14: =$F$6 -> 5 | BB14: 1 | BQ14: =ROUND(BH14*100,1) -> 0 | BU14: =ROUND('Gen. Data'!P8,0) -> 640 | BZ14: NB | CD14: =IF(cbx1_ev1=TRUE, K14/100, NA()) -> 0.05
B15: 02:00:00 | C15: 0 | D15: 473 | E15: ='base data'!E15 -> 1 | F15: ='base data'!F15 -> 2 | G15: ='base data'!G15 -> 1 | K15: ='base data'!K15 -> 5 | L15: ='base data'!L15 -> 5 | N15: ='base data'!N15 -> 5 | O15: ='base data'!O15 -> 5 | P15: ='base data'!P15 -> 0 | Q15: ='base data'!Q15 -> 0 | R15: ='base data'!R15 -> 5 | S15: ='base data'!S15 -> 5 | T15: ='base data'!T15 -> 5 | U15: ='base data'!U15 -> 5 | V15: ='base data'!V15 -> 0 | W15: ='base data'!W15 -> 0 | X15: ='base data'!X15 -> 5 | Y15: ='base data'!Y15 -> 0 | Z15: ='base data'!Z15 -> 0 | AB15: 02:00:00 | AC15: 5 | BB15: 2 | BQ15: =ROUND(BH15*100,1) -> 0 | BU15: =ROUND('Gen. Data'!P9,0) -> 479 | BZ15: SB | CD15: 0.05
B16: 03:00:00 | C16: 0 | D16: 632 | E16: ='base data'!E16 -> 1 | F16: ='base data'!F16 -> 2 | G16: ='base data'!G16 -> 1 | K16: ='base data'!K16 -> 5 | L16: ='base data'!L16 -> 5 | N16: ='base data'!N16 -> 5 | O16: ='base data'!O16 -> 5 | P16: ='base data'!P16 -> 0 | Q16: ='base data'!Q16 -> 0 | R16: ='base data'!R16 -> 5 | S16: ='base data'!S16 -> 5 | T16: ='base data'!T16 -> 5 | U16: ='base data'!U16 -> 5 | V16: ='base data'!V16 -> 0 | W16: ='base data'!W16 -> 0 | X16: ='base data'!X16 -> 5 | Y16: ='base data'!Y16 -> 0 | Z16: ='base data'!Z16 -> 0 | AB16: 03:00:00 | AC16: 5 | BB16: 3 | BQ16: =ROUND(BH16*100,1) -> 0 | BU16: =ROUND('Gen. Data'!P10,0) -> 640 | BZ16: EB | CD16: 0.05
B17: 04:00:00 | C17: 0 | D17: 1578 | E17: ='base data'!E17 -> 1 | F17: ='base data'!F17 -> 2 | G17: ='base data'!G17 -> 1 | K17: ='base data'!K17 -> 5 | L17: ='base data'!L17 -> 5 | N17: ='base data'!N17 -> 5 | O17: ='base data'!O17 -> 5 | P17: ='base data'!P17 -> 0 | Q17: ='base data'!Q17 -> 0 | R17: ='base data'!R17 -> 5 | S17: ='base data'!S17 -> 5 | T17: ='base data'!T17 -> 5 | U17: ='base data'!U17 -> 5 | V17: ='base data'!V17 -> 0 | W17: ='base data'!W17 -> 0 | X17: ='base data'!X17 -> 5 | Y17: ='base data'!Y17 -> 0 | Z17: ='base data'!Z17 -> 0 | AB17: 04:00:00 | AC17: 5 | BB17: 4 | BL17: For drop-downs: | BU17: =ROUND('Gen. Data'!P11,0) -> 1597 | BZ17: WB | CD17: 0.05
B18: 05:00:00 | C18: 0 | D18: 5523 | E18: ='base data'!E18 -> 1 | F18: ='base data'!F18 -> 2 | G18: ='base data'!G18 -> 1 | K18: ='base data'!K18 -> 5 | L18: ='base data'!L18 -> 5 | N18: ='base data'!N18 -> 5 | O18: ='base data'!O18 -> 5 | P18: ='base data'!P18 -> 0 | Q18: ='base data'!Q18 -> 0 | R18: ='base data'!R18 -> 5 | S18: ='base data'!S18 -> 5 | T18: ='base data'!T18 -> 5 | U18: ='base data'!U18 -> 5 | V18: ='base data'!V18 -> 0 | W18: ='base data'!W18 -> 0 | X18: ='base data'!X18 -> 5 | Y18: ='base data'!Y18 -> 0 | Z18: ='base data'!Z18 -> 0 | AB18: 05:00:00 | AC18: 5 | BB18: 5 | BU18: =ROUND('Gen. Data'!P12,0) -> 5589 | CD18: 0.05
B19: 06:00:00 | C19: 0 | D19: 8678 | E19: ='base data'!E19 -> 1 | F19: ='base data'!F19 -> 2 | G19: ='base data'!G19 -> 1 | K19: ='base data'!K19 -> 5 | L19: ='base data'!L19 -> 5 | N19: ='base data'!N19 -> 5 | O19: ='base data'!O19 -> 5 | P19: ='base data'!P19 -> 0 | Q19: ='base data'!Q19 -> 0 | R19: ='base data'!R19 -> 5 | S19: ='base data'!S19 -> 5 | T19: ='base data'!T19 -> 5 | U19: ='base data'!U19 -> 5 | V19: ='base data'!V19 -> 0 | W19: ='base data'!W19 -> 0 | X19: ='base data'!X19 -> 5 | Y19: ='base data'!Y19 -> 0 | Z19: ='base data'!Z19 -> 0 | AB19: 06:00:00 | AC19: 5 | BB19: 6 | BL19: Urban | BU19: =ROUND('Gen. Data'!P13,0) -> 8782 | BX19: grade | CD19: 0.05
B20: 07:00:00 | C20: 0 | D20: 12150 | E20: ='base data'!E20 -> 1 | F20: ='base data'!F20 -> 2 | G20: ='base data'!G20 -> 1 | K20: ='base data'!K20 -> 5 | L20: ='base data'!L20 -> 5 | N20: ='base data'!N20 -> 5 | O20: ='base data'!O20 -> 5 | P20: ='base data'!P20 -> 0 | Q20: ='base data'!Q20 -> 0 | R20: ='base data'!R20 -> 5 | S20: ='base data'!S20 -> 5 | T20: ='base data'!T20 -> 5 | U20: ='base data'!U20 -> 5 | V20: ='base data'!V20 -> 0 | W20: ='base data'!W20 -> 0 | X20: ='base data'!X20 -> 5 | Y20: ='base data'!Y20 -> 0 | Z20: ='base data'!Z20 -> 0 | AB20: 07:00:00 | AC20: 5 | BB20: 7 | BL20: Rural | BU20: =ROUND('Gen. Data'!P14,0) -> 12296 | BX20: 2.3 | CD20: 0.05
B21: 08:00:00 | C21: 0 | D21: 11362 | E21: ='base data'!E21 -> 1 | F21: ='base data'!F21 -> 2 | G21: ='base data'!G21 -> 1 | K21: ='base data'!K21 -> 5 | L21: ='base data'!L21 -> 5 | N21: ='base data'!N21 -> 5 | O21: ='base data'!O21 -> 5 | P21: ='base data'!P21 -> 0 | Q21: ='base data'!Q21 -> 0 | R21: ='base data'!R21 -> 5 | S21: ='base data'!S21 -> 5 | T21: ='base data'!T21 -> 5 | U21: ='base data'!U21 -> 5 | V21: ='base data'!V21 -> 0 | W21: ='base data'!W21 -> 0 | X21: ='base data'!X21 -> 5 | Y21: ='base data'!Y21 -> 0 | Z21: ='base data'!Z21 -> 0 | AB21: 08:00:00 | AC21: 5 | BB21: 8 | BQ21: 22 | BU21: =ROUND('Gen. Data'!P15,0) -> 11498 | BZ21: Level | CD21: 0.05
B22: 09:00:00 | C22: 0 | D22: 8678 | E22: ='base data'!E22 -> 1 | F22: ='base data'!F22 -> 2 | G22: ='base data'!G22 -> 1 | K22: ='base data'!K22 -> 5 | L22: ='base data'!L22 -> 5 | N22: ='base data'!N22 -> 5 | O22: ='base data'!O22 -> 5 | P22: ='base data'!P22 -> 0 | Q22: ='base data'!Q22 -> 0 | R22: ='base data'!R22 -> 5 | S22: ='base data'!S22 -> 5 | T22: ='base data'!T22 -> 5 | U22: ='base data'!U22 -> 5 | V22: ='base data'!V22 -> 0 | W22: ='base data'!W22 -> 0 | X22: ='base data'!X22 -> 5 | Y22: ='base data'!Y22 -> 0 | Z22: ='base data'!Z22 -> 0 | AB22: 09:00:00 | AC22: 5 | BB22: 9 | BL22: Level | BU22: =ROUND('Gen. Data'!P16,0) -> 8782 | BZ22: Rolling | CD22: 0.05
B23: 10:00:00 | C23: 0 | D23: 7417 | E23: ='base data'!E23 -> 1 | F23: ='base data'!F23 -> 2 | G23: ='base data'!G23 -> 1 | K23: ='base data'!K23 -> 5 | L23: ='base data'!L23 -> 5 | N23: ='base data'!N23 -> 5 | O23: ='base data'!O23 -> 5 | P23: ='base data'!P23 -> 0 | Q23: ='base data'!Q23 -> 0 | R23: ='base data'!R23 -> 5 | S23: ='base data'!S23 -> 5 | T23: ='base data'!T23 -> 5 | U23: ='base data'!U23 -> 5 | V23: ='base data'!V23 -> 0 | W23: ='base data'!W23 -> 0 | X23: ='base data'!X23 -> 5 | Y23: ='base data'!Y23 -> 0 | Z23: ='base data'!Z23 -> 0 | AB23: 10:00:00 | AC23: 5 | BB23: 10 | BL23: Rolling | BU23: =ROUND('Gen. Data'!P17,0) -> 7506 | BZ23: Mountainous | CD23: 0.05
B24: 11:00:00 | C24: 0 | D24: 8363 | E24: ='base data'!E24 -> 1 | F24: ='base data'!F24 -> 2 | G24: ='base data'!G24 -> 1 | K24: ='base data'!K24 -> 5 | L24: ='base data'!L24 -> 5 | N24: ='base data'!N24 -> 5 | O24: ='base data'!O24 -> 5 | P24: ='base data'!P24 -> 0 | Q24: ='base data'!Q24 -> 0 | R24: ='base data'!R24 -> 5 | S24: ='base data'!S24 -> 5 | T24: ='base data'!T24 -> 5 | U24: ='base data'!U24 -> 5 | V24: ='base data'!V24 -> 0 | W24: ='base data'!W24 -> 0 | X24: ='base data'!X24 -> 5 | Y24: ='base data'!Y24 -> 0 | Z24: ='base data'!Z24 -> 0 | AB24: 11:00:00 | AC24: 5 | BB24: 11 | BL24: Mountainous | BU24: =ROUND('Gen. Data'!P18,0) -> 8463 | CD24: 0.05
B25: 12:00:00 | C25: 0 | D25: 8363 | E25: ='base data'!E25 -> 1 | F25: ='base data'!F25 -> 2 | G25: ='base data'!G25 -> 1 | K25: ='base data'!K25 -> 5 | L25: ='base data'!L25 -> 5 | N25: ='base data'!N25 -> 5 | O25: ='base data'!O25 -> 5 | P25: ='base data'!P25 -> 0 | Q25: ='base data'!Q25 -> 0 | R25: ='base data'!R25 -> 5 | S25: ='base data'!S25 -> 5 | T25: ='base data'!T25 -> 5 | U25: ='base data'!U25 -> 5 | V25: ='base data'!V25 -> 0 | W25: ='base data'!W25 -> 0 | X25: ='base data'!X25 -> 5 | Y25: ='base data'!Y25 -> 0 | Z25: ='base data'!Z25 -> 0 | AB25: 12:00:00 | AC25: 5 | BB25: 12 | BU25: =ROUND('Gen. Data'!P19,0) -> 8463 | CD25: 0.05
B26: 13:00:00 | C26: 0 | D26: 8994 | E26: ='base data'!E26 -> 1 | F26: ='base data'!F26 -> 2 | G26: ='base data'!G26 -> 1 | K26: ='base data'!K26 -> 5 | L26: ='base data'!L26 -> 5 | N26: ='base data'!N26 -> 5 | O26: ='base data'!O26 -> 5 | P26: ='base data'!P26 -> 0 | Q26: ='base data'!Q26 -> 0 | R26: ='base data'!R26 -> 5 | S26: ='base data'!S26 -> 5 | T26: ='base data'!T26 -> 5 | U26: ='base data'!U26 -> 5 | V26: ='base data'!V26 -> 0 | W26: ='base data'!W26 -> 0 | X26: ='base data'!X26 -> 5 | Y26: ='base data'!Y26 -> 0 | Z26: ='base data'!Z26 -> 0 | AB26: 13:00:00 | AC26: 5 | BB26: 13 | BU26: =ROUND('Gen. Data'!P20,0) -> 9102 | BZ26: Urban | CD26: 0.05
B27: 14:00:00 | C27: 0 | D27: 9310 | E27: ='base data'!E27 -> 1 | F27: ='base data'!F27 -> 2 | G27: ='base data'!G27 -> 1 | K27: ='base data'!K27 -> 5 | L27: ='base data'!L27 -> 5 | N27: ='base data'!N27 -> 5 | O27: ='base data'!O27 -> 5 | P27: ='base data'!P27 -> 0 | Q27: ='base data'!Q27 -> 0 | R27: ='base data'!R27 -> 5 | S27: ='base data'!S27 -> 5 | T27: ='base data'!T27 -> 5 | U27: ='base data'!U27 -> 5 | V27: ='base data'!V27 -> 0 | W27: ='base data'!W27 -> 0 | X27: ='base data'!X27 -> 5 | Y27: ='base data'!Y27 -> 0 | Z27: ='base data'!Z27 -> 0 | AB27: 14:00:00 | AC27: 5 | BB27: 14 | BU27: =ROUND('Gen. Data'!P21,0) -> 9422 | BZ27: Rural | CD27: 0.05
B28: 15:00:00 | C28: 0 | D28: 10730 | E28: ='base data'!E28 -> 1 | F28: ='base data'!F28 -> 2 | G28: ='base data'!G28 -> 1 | K28: ='base data'!K28 -> 5 | L28: ='base data'!L28 -> 5 | N28: ='base data'!N28 -> 5 | O28: ='base data'!O28 -> 5 | P28: ='base data'!P28 -> 0 | Q28: ='base data'!Q28 -> 0 | R28: ='base data'!R28 -> 5 | S28: ='base data'!S28 -> 5 | T28: ='base data'!T28 -> 5 | U28: ='base data'!U28 -> 5 | V28: ='base data'!V28 -> 0 | W28: ='base data'!W28 -> 0 | X28: ='base data'!X28 -> 5 | Y28: ='base data'!Y28 -> 0 | Z28: ='base data'!Z28 -> 0 | AB28: 15:00:00 | AC28: 5 | BB28: 15 | BU28: =ROUND('Gen. Data'!P22,0) -> 10859 | CD28: 0.05
B29: 16:00:00 | C29: 0 | D29: 11677 | E29: ='base data'!E29 -> 1 | F29: ='base data'!F29 -> 2 | G29: ='base data'!G29 -> 1 | K29: ='base data'!K29 -> 5 | L29: ='base data'!L29 -> 5 | N29: ='base data'!N29 -> 5 | O29: ='base data'!O29 -> 5 | P29: ='base data'!P29 -> 0 | Q29: ='base data'!Q29 -> 0 | R29: ='base data'!R29 -> 5 | S29: ='base data'!S29 -> 5 | T29: ='base data'!T29 -> 5 | U29: ='base data'!U29 -> 5 | V29: ='base data'!V29 -> 0 | W29: ='base data'!W29 -> 0 | X29: ='base data'!X29 -> 5 | Y29: ='base data'!Y29 -> 0 | Z29: ='base data'!Z29 -> 0 | AB29: 16:00:00 | AC29: 5 | BB29: 16 | BQ29: 55 | BU29: =ROUND('Gen. Data'!P23,0) -> 11817 | BZ29: lanes | CA29: wid | CB29: rsh | CC29: lsh | CD29: 0.05
B30: 17:00:00 | C30: 0 | D30: 11835 | E30: ='base data'!E30 -> 1 | F30: ='base data'!F30 -> 2 | G30: ='base data'!G30 -> 1 | K30: ='base data'!K30 -> 5 | L30: ='base data'!L30 -> 5 | N30: ='base data'!N30 -> 5 | O30: ='base data'!O30 -> 5 | P30: ='base data'!P30 -> 0 | Q30: ='base data'!Q30 -> 0 | R30: ='base data'!R30 -> 5 | S30: ='base data'!S30 -> 5 | T30: ='base data'!T30 -> 5 | U30: ='base data'!U30 -> 5 | V30: ='base data'!V30 -> 0 | W30: ='base data'!W30 -> 0 | X30: ='base data'!X30 -> 5 | Y30: ='base data'!Y30 -> 0 | Z30: ='base data'!Z30 -> 0 | AB30: 17:00:00 | AC30: 5 | BB30: 17 | BQ30: 13 | BU30: =ROUND('Gen. Data'!P24,0) -> 11977 | BY30: 1 | BZ30: 1 | CA30: 10 | CB30: 0 | CC30: 0 | CD30: 0.05
B31: 18:00:00 | C31: 0 | D31: 8678 | E31: ='base data'!E31 -> 1 | F31: ='base data'!F31 -> 2 | G31: ='base data'!G31 -> 1 | K31: ='base data'!K31 -> 5 | L31: ='base data'!L31 -> 5 | N31: ='base data'!N31 -> 5 | O31: ='base data'!O31 -> 5 | P31: ='base data'!P31 -> 0 | Q31: ='base data'!Q31 -> 0 | R31: ='base data'!R31 -> 5 | S31: ='base data'!S31 -> 5 | T31: ='base data'!T31 -> 5 | U31: ='base data'!U31 -> 5 | V31: ='base data'!V31 -> 0 | W31: ='base data'!W31 -> 0 | X31: ='base data'!X31 -> 5 | Y31: ='base data'!Y31 -> 0 | Z31: ='base data'!Z31 -> 0 | AB31: 18:00:00 | AC31: 5 | BB31: 18 | BQ31: =100-BQ21-BQ29-BQ30 -> 10 | BU31: =ROUND('Gen. Data'!P25,0) -> 8782 | BY31: 2 | BZ31: 2 | CA31: 11 | CB31: 1 | CC31: 1 | CD31: 0.05
B32: 19:00:00 | C32: 0 | D32: 6153 | E32: ='base data'!E32 -> 1 | F32: ='base data'!F32 -> 2 | G32: ='base data'!G32 -> 1 | K32: ='base data'!K32 -> 5 | L32: ='base data'!L32 -> 5 | N32: ='base data'!N32 -> 5 | O32: ='base data'!O32 -> 5 | P32: ='base data'!P32 -> 0 | Q32: ='base data'!Q32 -> 0 | R32: ='base data'!R32 -> 5 | S32: ='base data'!S32 -> 5 | T32: ='base data'!T32 -> 5 | U32: ='base data'!U32 -> 5 | V32: ='base data'!V32 -> 0 | W32: ='base data'!W32 -> 0 | X32: ='base data'!X32 -> 5 | Y32: ='base data'!Y32 -> 0 | Z32: ='base data'!Z32 -> 0 | AB32: 19:00:00 | AC32: 5 | BB32: 19 | BQ32: =ROUND(BH32*100,1) -> 0 | BU32: =ROUND('Gen. Data'!P26,0) -> 6227 | BY32: 3 | BZ32: 3 | CA32: 12 | CB32: 2 | CC32: 2 | CD32: 0.05
B33: 20:00:00 | C33: 0 | D33: 5207 | E33: ='base data'!E33 -> 1 | F33: ='base data'!F33 -> 2 | G33: ='base data'!G33 -> 1 | K33: ='base data'!K33 -> 5 | L33: ='base data'!L33 -> 5 | N33: ='base data'!N33 -> 5 | O33: ='base data'!O33 -> 5 | P33: ='base data'!P33 -> 0 | Q33: ='base data'!Q33 -> 0 | R33: ='base data'!R33 -> 5 | S33: ='base data'!S33 -> 5 | T33: ='base data'!T33 -> 5 | U33: ='base data'!U33 -> 5 | V33: ='base data'!V33 -> 0 | W33: ='base data'!W33 -> 0 | X33: ='base data'!X33 -> 5 | Y33: ='base data'!Y33 -> 0 | Z33: ='base data'!Z33 -> 0 | AB33: 20:00:00 | AC33: 5 | BB33: 20 | BU33: =ROUND('Gen. Data'!P27,0) -> 5269 | BY33: 4 | BZ33: 4 | CA33: 13 | CB33: 3 | CC33: 3 | CD33: 0.05
B34: 21:00:00 | C34: 0 | D34: 4892 | E34: ='base data'!E34 -> 1 | F34: ='base data'!F34 -> 2 | G34: ='base data'!G34 -> 1 | K34: ='base data'!K34 -> 5 | L34: ='base data'!L34 -> 5 | N34: ='base data'!N34 -> 5 | O34: ='base data'!O34 -> 5 | P34: ='base data'!P34 -> 0 | Q34: ='base data'!Q34 -> 0 | R34: ='base data'!R34 -> 5 | S34: ='base data'!S34 -> 5 | T34: ='base data'!T34 -> 5 | U34: ='base data'!U34 -> 5 | V34: ='base data'!V34 -> 0 | W34: ='base data'!W34 -> 0 | X34: ='base data'!X34 -> 5 | Y34: ='base data'!Y34 -> 0 | Z34: ='base data'!Z34 -> 0 | AB34: 21:00:00 | AC34: 5 | BB34: 21 | BU34: =ROUND('Gen. Data'!P28,0) -> 4951 | BY34: 5 | BZ34: 5 | CA34: 14 | CB34: 4 | CC34: 4 | CD34: 0.05
B35: 22:00:00 | C35: 0 | D35: 3472 | E35: ='base data'!E35 -> 1 | F35: ='base data'!F35 -> 2 | G35: ='base data'!G35 -> 1 | K35: ='base data'!K35 -> 5 | L35: ='base data'!L35 -> 5 | N35: ='base data'!N35 -> 5 | O35: ='base data'!O35 -> 5 | P35: ='base data'!P35 -> 0 | Q35: ='base data'!Q35 -> 0 | R35: ='base data'!R35 -> 5 | S35: ='base data'!S35 -> 5 | T35: ='base data'!T35 -> 5 | U35: ='base data'!U35 -> 5 | V35: ='base data'!V35 -> 0 | W35: ='base data'!W35 -> 0 | X35: ='base data'!X35 -> 5 | Y35: ='base data'!Y35 -> 0 | Z35: ='base data'!Z35 -> 0 | AB35: 22:00:00 | AC35: 5 | BB35: 22 | BU35: =ROUND('Gen. Data'!P29,0) -> 3514 | BY35: 6 | BZ35: 6 | CA35: 15 | CB35: 5 | CC35: 5 | CD35: 0.05
B36: 23:00:00 | C36: 0 | D36: 2052 | E36: ='base data'!E36 -> 1 | F36: ='base data'!F36 -> 2 | G36: ='base data'!G36 -> 1 | K36: ='base data'!K36 -> 5 | L36: ='base data'!L36 -> 5 | N36: ='base data'!N36 -> 5 | O36: ='base data'!O36 -> 5 | P36: ='base data'!P36 -> 0 | Q36: ='base data'!Q36 -> 0 | R36: ='base data'!R36 -> 5 | S36: ='base data'!S36 -> 5 | T36: ='base data'!T36 -> 5 | U36: ='base data'!U36 -> 5 | V36: ='base data'!V36 -> 0 | W36: ='base data'!W36 -> 0 | X36: ='base data'!X36 -> 5 | Y36: ='base data'!Y36 -> 0 | Z36: ='base data'!Z36 -> 0 | AB36: 23:00:00 | AC36: 5 | BB36: 23 | BU36: =ROUND('Gen. Data'!P30,0) -> 2077 | BY36: 7 | BZ36: 7 | CB36: 6 | CC36: 6 | CD36: 0.05
K37: The above numbers must be decimal/percent numbers | BY37: 8 | BZ37: 8 | CB37: 7 | CC37: 7
B38: TOT | D38: =SUM(D13:D36) -> 157796 | K38: events 4 through 9 do not appear to be in use | BU38: =SUM(BU13:BU37) -> 159690 | BY38: 9 | BZ38: 9 | CB38: 8 | CC38: 8
K39: are the graphs below being used?? | BY39: 10 | BZ39: 10 | CB39: 9 | CC39: 9
BY40: 11 | BZ40: 10 | CA40: 10
BY41: 12 | BZ41: 11 | CA41: 11
BZ42: 12 | CA42: 12
BY46: weather opt
BY47: prx
BY48: speed opt
BY49: mea

Sheet treatment effects - single
B2: Hour to Graph: | E2: 10:00:00
B4: Accessible Shoulder | J4: Crash Investigation Site | R4: Runaway Truck Ramp | Z4: Drivable Shoulder | AH4: Emergency Pull-off | AP4: Extra High Median Barrier | AX4: Incident Screens | BF4: Wildlife-Vehicle Collision Reduction | BN4: Emergency Crossovers | BV4: Controlled or Gated Turnarounds | CD4: Moveable Cable Median Barrier | CL4: Moveable Traffic Barriers | CT4: Emergency Access Between Interchanges | DB4: Anti-icing Systems | DJ4: Snow Fence | DR4: Blowing Sand | DZ4: Alternating Shoulder | EH4: Custom Treatment | EP4: Custom Treatment: Flow | EX4: Custom Treatment Incidents | FF4: Reduced Work Zone | FN4: Detour Roadway Improvements | FT4: Ramp Metering | FY4: Ramp Closures | GD4: Detour Roadway Improvements | HB4: 0 | HC4: 4 | HD4: 0
HB6: Check Box Selections
C7: Crashes | F7: Non-Crash Incidents (Disabled Vehicle) | K7: Crashes | N7: Non-Crash Incidents (Disabled Vehicle) | S7: Crashes | V7: Non-Crash Incidents (Disabled Vehicle) | AA7: Crashes | AD7: Non-Crash Incidents (Disabled Vehicle) | AI7: Crashes | AL7: Non-Crash Incidents (Disabled Vehicle) | AQ7: Crashes | AT7: Non-Crash Incidents (Disabled Vehicle) | AY7: Crashes | BB7: Non-Crash Incidents (Disabled Vehicle) | BG7: Crashes | BJ7: Non-Crash Incidents (Disabled Vehicle) | BO7: Crashes | BR7: Non-Crash Incidents (Disabled Vehicle) | BW7: Crashes | BZ7: Non-Crash Incidents (Disabled Vehicle) | CE7: Crashes | CH7: Non-Crash Incidents (Disabled Vehicle) | CM7: Crashes | CP7: Non-Crash Incidents (Disabled Vehicle) | CU7: Crashes | CX7: Non-Crash Incidents (Disabled Vehicle) | DC7: Crashes | DF7: Non-Crash Incidents (Disabled Vehicle) | DK7: Crashes | DN7: Non-Crash Incidents (Disabled Vehicle) | DS7: Crashes | DV7: Non-Crash Incidents (Disabled Vehicle) | EA7: Crashes | ED7: Non-Crash Incidents (Disabled Vehicle) | EH7: Time | EI7: LHL | EJ7: R05 | EK7: S01 | EL7: D/Ccrit | EP7: Time | EQ7: 15-min Flow | ER7: Capacity | EY7: Crashes | FB7: Non-Crash Incidents (Disabled Vehicle) | FG7: Crashes | FJ7: Non-Crash Incidents (Disabled Vehicle) | FT7: Do peak period speeds on freeway drop below 30 mph? | FW7: Occasionally | FY7: Upstream Ramps Closed? | GD7: Type of Road Improvemtent | GG7: Widen Unpaved Shoulder | GJ7: 12:00 AM | GK7: 00:00:00 | GL7: Standard warning signs | GQ7: Widen Unpaved Shoulder | HB7: TRUE
EH8: 00:00:00 | EI8: 8.4 | EJ8: 3 | EK8: 0.6 | EL8: 0.09 | EP8: 00:00:00 | EQ8: 1667 | ER8: 15120 | FT8: Are vehicle flows between 1200 and 1500 vehicles per lane per hour? | FW8: Yes | FZ8: WZ 1 | GA8: WZ 2 | GB8: WZ 3 | GG8: Widen and Pave Unpaved Shoulder | GJ8: 1:00 AM | GK8: 01:00:00 | GL8: Seasonal wildlife warning signs | GQ8: Widen and Pave Unpaved Shoulder | HB8: FALSE
EH9: 01:00:00 | EI9: 8.4 | EJ9: 3 | EK9: 0.6 | EL9: 0.09 | EP9: 01:00:00 | EQ9: 1667 | ER9: 15120 | FZ9: Yes | GA9: Yes | GB9: Yes | GD9: Number of Lanes | GE9: 6 | GG9: Widen Paved Shoulder | GJ9: 2:00 AM | GK9: 02:00:00 | GL9: Animal detection systems (ADS) | GQ9: Widen Paved Shoulder | HB9: FALSE
C10: PDO | D10: Minor inj | E10: Major Inj & Fat | F10: Non-Lane Blocking | G10: Lane Blocking | H10: other | K10: PDO | L10: Minor inj | M10: Major Inj & Fat | N10: Non-Lane Blocking | O10: Lane Blocking | P10: other | S10: PDO | T10: Minor inj | U10: Major Inj & Fat | V10: Non-Lane Blocking | W10: Lane Blocking | X10: other | AA10: PDO | AB10: Minor inj | AC10: Major Inj & Fat | AD10: Non-Lane Blocking | AE10: Lane Blocking | AF10: other | AI10: PDO | AJ10: Minor inj | AK10: Major Inj & Fat | AL10: Non-Lane Blocking | AM10: Lane Blocking | AN10: other | AQ10: PDO | AR10: Minor inj | AS10: Major Inj & Fat | AT10: Non-Lane Blocking | AU10: Lane Blocking | AV10: other | AY10: PDO | AZ10: Minor inj | BA10: Major Inj & Fat | BB10: Non-Lane Blocking | BC10: Lane Blocking | BD10: other | BG10: PDO | BH10: Minor inj | BI10: Major Inj & Fat | BJ10: Non-Lane Blocking | BK10: Lane Blocking | BL10: other | BO10: PDO | BP10: Minor inj | BQ10: Major Inj & Fat | BR10: Non-Lane Blocking | BS10: Lane Blocking | BT10: other | BW10: PDO | BX10: Minor inj | BY10: Major Inj & Fat | BZ10: Non-Lane Blocking | CA10: Lane Blocking | CB10: other | CE10: PDO | CF10: Minor inj | CG10: Major Inj & Fat | CH10: Non-Lane Blocking | CI10: Lane Blocking | CJ10: other | CM10: PDO | CN10: Minor inj | CO10: Major Inj & Fat | CP10: Non-Lane Blocking | CQ10: Lane Blocking | CR10: other | CU10: PDO | CV10: Minor inj | CW10: Major Inj & Fat | CX10: Non-Lane Blocking | CY10: Lane Blocking | CZ10: other | DC10: PDO | DD10: Minor inj | DE10: Major Inj & Fat | DF10: Non-Lane Blocking | DG10: Lane Blocking | DH10: other | DK10: PDO | DL10: Minor inj | DM10: Major Inj & Fat | DN10: Non-Lane Blocking | DO10: Lane Blocking | DP10: other | DS10: PDO | DT10: Minor inj | DU10: Major Inj & Fat | DV10: Non-Lane Blocking | DW10: Lane Blocking | DX10: other | EA10: PDO | EB10: Minor inj | EC10: Major Inj & Fat | ED10: Non-Lane Blocking | EE10: Lane Blocking | EF10: other | EH10: 02:00:00 | EI10: 8.4 | EJ10: 3 | EK10: 0.6 | EL10: 0.09 | EP10: 02:00:00 | EQ10: 1667 | ER10: 15120 | EY10: PDO | EZ10: Minor inj | FA10: Major Inj & Fat | FB10: Non-Lane Blocking | FC10: Lane Blocking | FD10: other | FG10: PDO | FH10: Minor inj | FI10: Major Inj & Fat | FJ10: Non-Lane Blocking | FK10: Lane Blocking | FL10: other | FT10: Are accident rates high? | FW10: Yes | FY10: Closed From | FZ10: 07:00:00 | GA10: 00:00:00 | GB10: 00:00:00 | GD10: Lane Width (ft) | GE10: 11 | GG10: None | GJ10: 3:00 AM | GK10: 03:00:00 | GL10: ADS linked to on-board computer | GQ10: None | HB10: FALSE
EH11: 03:00:00 | EI11: 8.4 | EJ11: 3 | EK11: 0.6 | EL11: 0.09 | EP11: 03:00:00 | EQ11: 1667 | ER11: 15120 | FT11: Does this segment experience significant merging problems? | FW11: Yes | FY11: To | FZ11: 10:00:00 | GA11: 23:00:00 | GB11: 23:00:00 | GD11: Width of Right Shoulder (ft) | GE11: 2 | GJ11: 4:00 AM | GK11: 04:00:00 | GL11: Vegetation removal | HB11: FALSE
EH12: 04:00:00 | EI12: 8.4 | EJ12: 3 | EK12: 0.6 | EL12: 0.09 | EP12: 04:00:00 | EQ12: 1667 | ER12: 15120 | FY12: And From | FZ12: 15:00:00 | GD12: Interchanges Per Mile | GE12: 0.7 | GJ12: 5:00 AM | GK12: 05:00:00 | GL12: Deer reflectors and mirrors | HB12: FALSE
B13: User Inputs | J13: User Inputs | R13: User Inputs | Z13: User Inputs | AH13: User Inputs | AP13: User Inputs | AX13: User Inputs | BF13: User Inputs | BN13: User Inputs | BV13: User Inputs | CD13: User Inputs | CL13: User Inputs | CT13: User Inputs | DB13: User Inputs | DJ13: User Inputs | DR13: User Inputs | DZ13: User Inputs | EH13: 05:00:00 | EI13: 8.4 | EJ13: 3 | EK13: 0.6 | EL13: 0.09 | EP13: 05:00:00 | EQ13: 1667 | ER13: 15120 | EX13: User Inputs | FF13: User Inputs | FT13: If the answers to these questions are Always, Yes, Yes, and Yes, ramp metering is more likely to result in improvement to the study segment. | FY13: To | FZ13: 19:00:00 | GG13: OHV | GJ13: 6:00 AM | GK13: 06:00:00 | GL13: Deer whistles | HB13: FALSE
B14: Percent Incidents that use Treatment | C14: 50 | D14: 30 | E14: 10 | G14: 60 | H14: 25 | J14: Percent Incidents that use treatment | K14: 40 | L14: 20 | M14: 0 | O14: 40 | P14: 10 | R14: Percent Incidents that use Treatment | S14: 0.1 | T14: 0.1 | U14: 0.1 | Z14: Percent Incidents that use Treatment | AA14: 0 | AB14: 1 | AC14: 5 | AE14: 0 | AF14: 0 | AH14: Percent Incidents that use Treatment | AI14: 40 | AJ14: 20 | AK14: 0 | AM14: 15 | AN14: 10 | AP14: Gawk Inducing Incidents (Opposite Direction) | AQ14: 2 | AR14: 5 | AS14: 5 | AT14: 0 | AU14: 1 | AV14: 1 | AX14: Percent Incidents that use Treatment | AY14: 0 | AZ14: 5 | BA14: 10 | BF14: % eliminated by treatment | BG14: 1 | BH14: 1 | BI14: 0 | BL14: 1 | BN14: Percent Incidents that use treatment | BO14: 0 | BP14: 1 | BQ14: 5 | BV14: Percent Incidents that use treatment | BW14: 0 | BX14: 1 | BY14: 5 | CD14: Percent Incidents that use treatment | CE14: 0 | CF14: 1 | CG14: 5 | CL14: Percent Incidents that use treatment | CM14: 0 | CN14: 0 | CO14: 0 | CT14: Percent Incidents that use Treatment | CU14: 5 | CV14: 10 | CW14: 20 | DB14: Percent eliminated by treatment | DC14: 1 | DD14: 1 | DE14: 0 | DH14: 0 | DJ14: Percent eliminated by treatment | DK14: 5 | DL14: 1 | DM14: 1 | DP14: 0 | DR14: Percent eliminated by treatment | DS14: 0 | DT14: 0 | DU14: 0 | DX14: 0 | DZ14: % of incidents expected to relocate to shoulder | EA14: 35 | EB14: 25 | EC14: 5 | EE14: 50 | EF14: 20 | EH14: 06:00:00 | EI14: 8.4 | EJ14: 3 | EK14: 0.6 | EL14: 0.09 | EP14: 06:00:00 | EQ14: 1667 | ER14: 15120 | EX14: Number of Incidents per year | EY14: 0 | EZ14: 0 | FA14: 0 | FB14: 0 | FC14: 0 | FD14: 0 | GD14: Type of Shoulder improvement | GG14: Fog | GJ14: 7:00 AM | GK14: 07:00:00 | GL14: Population culling | HB14: FALSE
Z15: Shoulder capacity (vph) | AA15: 1700 | AP15: % of Incidents Eliminated by Barrier | AQ15: 100 | AR15: 75 | AS15: 75 | AT15: 75 | AU15: 75 | AV15: 75 | AX15: Typical Deployment Time (min) | AY15: 20 | CT15: Avg Reduction in Incident Response Time (min) | CU15: 5 | CV15: 5 | CW15: 5 | EH15: 07:00:00 | EI15: 8.4 | EJ15: 3 | EK15: 0.6 | EL15: 0.09 | EP15: 07:00:00 | EQ15: 1667 | ER15: 15120 | EX15: Average Duration | EY15: 28 | EZ15: 40 | FA15: 45 | FB15: 26 | FC15: 20 | FD15: 23 | FY15: Upstream Ramps Closed? | GD15: None | GG15: Wind | GJ15: 8:00 AM | GK15: 08:00:00 | GL15: Relocation | HB15: FALSE
B16: Assumptions | J16: Assumptions | R16: Assumptions | AH16: Assumptions | BF16: Assumptions | BN16: Assumptions | BV16: Assumptions | CD16: Assumptions | CL16: Assumptions | DZ16: Assumptions | EH16: 08:00:00 | EI16: 8.4 | EJ16: 3 | EK16: 0.6 | EL16: 0.09 | EP16: 08:00:00 | EQ16: 1667 | ER16: 15120 | GA16: Non-Crash | GB16: Crash | GG16: Ice | GJ16: 9:00 AM | GK16: 09:00:00 | GL16: Anti-fertility treatment | HB16: FALSE
B17: Incident duration with treatment (min) | C17: 25 | D17: 35 | E17: 45 | G17: 20 | H17: 20 | J17: Incident duration with treatment (min) | K17: 25 | L17: 35 | M17: 45 | O17: 20 | P17: 20 | R17: Factor x avg incident = treatment incident | S17: 4 | T17: 4 | U17: 4 | Z17: Assumptions | AH17: Incident duration with treatment (min) | AI17: 25 | AJ17: 35 | AK17: 45 | AL17: 15 | AM17: 20 | AN17: 20 | AP17: Assumptions | AX17: Assumptions | BN17: v/c threshold | BO17: 1 | BP17: 1 | BQ17: 1 | BV17: v/c threshold | BW17: 1 | BX17: 1 | BY17: 1 | CD17: v/c threshold | CE17: 1 | CF17: 1 | CG17: 1 | DB17: Assumptions | DJ17: Assumptions | DR17: Assumptions | DZ17: Incident duration with treatment (min) | EA17: 25 | EB17: 35 | EC17: 45 | ED17: 15 | EE17: 20 | EF17: 20 | EH17: 09:00:00 | EI17: 8.4 | EJ17: 3 | EK17: 0.6 | EL17: 0.09 | EP17: 09:00:00 | EQ17: 1667 | ER17: 15120 | EX17: Subtotal of Crashes | EY17: =SUM(EY14:FA14) -> 0 | FF17: Assumptions | FV17: Treated Speed Increase (%) | FW17: 0.15 | GA17: Yes | GB17: Yes | GJ17: 10:00 AM | GK17: 10:00:00 | GL17: Fence (including dig barrier) | HB17: TRUE
Z18: v/c threshold | AA18: 1 | AB18: 1 | AC18: 1 | AX18: Factor x avg incident = treatment incident | AY18: 2 | AZ18: 2 | BA18: 2 | BN18: throughput (pc/ln/hr) | BO18: 800 | BP18: 800 | BQ18: 800 | BV18: throughput (pc/ln/hr) | BW18: 1400 | BX18: 1400 | BY18: 1400 | CD18: throughput (pc/ln/hr) | CE18: 1200 | CF18: 1200 | CG18: 1200 | CT18: Assumptions | EH18: 10:00:00 | EI18: 8.4 | EJ18: 3 | EK18: 0.6 | EL18: 0.09 | EP18: 10:00:00 | EQ18: 1667 | ER18: 15120 | EX18: Subtotal of Incidents | EY18: =SUM(FB14:FD14) -> 0 | FV18: Treated Crash Reduction (%) | FW18: 0.1 | FY18: Predicated Hours of Closure per year | GJ18: 11:00 AM | GK18: 11:00:00 | GL18: Long bridges | HB18: TRUE
Z19: duration (hours) | AA19: 1 | AB19: 1.5 | AC19: 2 | AX19: Percent untreated duration eliminated by treatment | AY19: 0.1 | AZ19: 0.1 | BA19: 0.1 | BN19: duration (hours) | BO19: 1 | BP19: 1.5 | BQ19: 2 | BV19: duration (hours) | BW19: 1 | BX19: 1.5 | BY19: 2 | CD19: duration (hours) | CE19: 1 | CF19: 1.5 | CG19: 2 | CT19: % resp. time reduction that reduces incident duration | CU19: 1 | CV19: 1 | CW19: 1 | EH19: 11:00:00 | EI19: 8.4 | EJ19: 3 | EK19: 0.6 | EL19: 0.09 | EP19: 11:00:00 | EQ19: 1667 | ER19: 15120 | GA19: 5 | GB19: 10 | GJ19: 12:00 PM | GK19: 12:00:00 | GL19: Long tunnels or long bridges | HB19: TRUE
EH20: 12:00:00 | EI20: 8.4 | EJ20: 3 | EK20: 0.6 | EL20: 0.09 | EP20: 12:00:00 | EQ20: 1667 | ER20: 15120 | GJ20: 1:00 PM | GK20: 13:00:00 | GL20: Fence with gap and warning signs | HB20: FALSE
EH21: 13:00:00 | EI21: 8.4 | EJ21: 3 | EK21: 0.6 | EL21: 0.09 | EP21: 13:00:00 | EQ21: 1667 | ER21: 15120 | GJ21: 2:00 PM | GK21: 14:00:00 | GL21: Fence with gap and crosswalk | HB21: TRUE
EH22: 14:00:00 | EI22: 8.4 | EJ22: 3 | EK22: 0.6 | EL22: 0.09 | EP22: 14:00:00 | EQ22: 1667 | ER22: 15120 | FZ22: Time | GA22: Ramp Volume | GG22: Blowing Sand | GJ22: 3:00 PM | GK22: 15:00:00 | GL22: Fence with gap and ADS | HB22: FALSE
EH23: 15:00:00 | EI23: 8.4 | EJ23: 3 | EK23: 0.6 | EL23: 0.09 | EP23: 15:00:00 | EQ23: 1667 | ER23: 15120 | FZ23: 00:00:00 | GA23: 428.2105263 | GG23: =trt_compare -> Blowing Sand | GJ23: 4:00 PM | GK23: 16:00:00 | GL23: Fence with underpasses | HB23: FALSE
EH24: 16:00:00 | EI24: 8.4 | EJ24: 3 | EK24: 0.6 | EL24: 0.09 | EP24: 16:00:00 | EQ24: 1667 | ER24: 15120 | FZ24: 01:00:00 | GA24: 385.3894737 | GJ24: 5:00 PM | GK24: 17:00:00 | GL24: Fence with overpasses | HB24: FALSE
EH25: 17:00:00 | EI25: 8.4 | EJ25: 3 | EK25: 0.6 | EL25: 0.09 | EP25: 17:00:00 | EQ25: 1667 | ER25: 15120 | FZ25: 02:00:00 | GA25: 385.8056943 | GJ25: 6:00 PM | GK25: 18:00:00 | GL25: Fence with under- and overpasses | HB25: FALSE
EH26: 18:00:00 | EI26: 8.4 | EJ26: 3 | EK26: 0.6 | EL26: 0.09 | EP26: 18:00:00 | EQ26: 1667 | ER26: 15120 | FZ26: 03:00:00 | GA26: 386.7768758 | GJ26: 7:00 PM | GK26: 19:00:00
EH27: 19:00:00 | EI27: 8.4 | EJ27: 3 | EK27: 0.6 | EL27: 0.09 | EP27: 19:00:00 | EQ27: 1667 | ER27: 15120 | FZ27: 04:00:00 | GA27: 453.8295057 | GJ27: 8:00 PM | GK27: 20:00:00
B28: Notes: | J28: Notes: | R28: Notes: | Z28: Notes: | AH28: Notes: | AP28: Notes: | AX28: Notes: | BF28: Notes: | BN28: Notes: | BV28: Notes: | CD28: Notes: | CL28: Notes: | CT28: Notes: | DB28: Notes: | DJ28: Notes: | DR28: Notes: | DZ28: Notes: | EH28: 20:00:00 | EI28: 8.4 | EJ28: 3 | EK28: 0.6 | EL28: 0.09 | EP28: 20:00:00 | EQ28: 1667 | ER28: 15120 | EX28: Notes: | FF28: Notes: | FZ28: 05:00:00 | GA28: 498.5286897 | GJ28: 9:00 PM | GK28: 21:00:00
B29: Construction Cost/Unit Cost | C29: 5000 | J29: Construction Cost/Unit Cost | K29: 50000 | R29: Construction Cost/Unit Cost | S29: 50000 | Z29: Construction Cost/Unit Cost | AA29: 5000 | AH29: Construction Cost/Unit Cost | AI29: 10000 | AP29: Construction Cost/Unit Cost | AQ29: 30000 | AX29: Construction Cost/Unit Cost | AY29: 10000 | BF29: Construction Cost/Unit Cost | BG29: 45000 | BN29: Construction Cost/Unit Cost | BO29: 5000 | BV29: Construction Cost/Unit Cost | BW29: 10000 | CD29: Construction Cost/Unit Cost | CE29: 50000 | CL29: Construction Cost/Unit Cost | CM29: 0 | CT29: Construction Cost/Unit Cost | CU29: 5000 | DB29: Construction Cost/Unit Cost | DC29: 50000 | DJ29: Construction Cost/Unit Cost | DK29: 80000 | DR29: Construction Cost/Unit Cost | DS29: 5000 | DZ29: Construction Cost/Unit Cost | EA29: 150000 | EH29: 21:00:00 | EI29: 8.4 | EJ29: 3 | EK29: 0.6 | EL29: 0.09 | EP29: 21:00:00 | EQ29: 1667 | ER29: 15120 | FZ29: 06:00:00 | GA29: 1550.580104 | GG29: 1 | GJ29: 10:00 PM | GK29: 22:00:00 | GQ29: 1
B30: Annual Maintenance/Op Cost | C30: 3000 | J30: Annual Maintenance/Op Cost | K30: 2000 | R30: Annual Maintenance/Op Cost | S30: 2000 | Z30: Annual Maintenance/Op Cost | AA30: 3000 | AH30: Annual Maintenance/Op Cost | AI30: 500 | AP30: Annual Maintenance/Op Cost | AQ30: 3000 | AX30: Annual Maintenance/Op Cost | AY30: 5000 | BF30: Annual Maintenance/Op Cost | BG30: 1000 | BN30: Annual Maintenance/Op Cost | BO30: 500 | BV30: Annual Maintenance/Op Cost | BW30: 3000 | CD30: Annual Maintenance/Op Cost | CE30: 3000 | CL30: Annual Maintenance/Op Cost | CM30: 0 | CT30: Annual Maintenance/Op Cost | CU30: 3000 | DB30: Annual Maintenance/Op Cost | DC30: 5000 | DJ30: Annual Maintenance/Op Cost | DK30: 4000 | DR30: Annual Maintenance/Op Cost | DS30: 3000 | DZ30: Annual Maintenance/Op Cost | EA30: 2000 | EH30: 22:00:00 | EI30: 8.4 | EJ30: 3 | EK30: 0.6 | EL30: 0.09 | EP30: 22:00:00 | EQ30: 1667 | ER30: 15120 | FZ30: 07:00:00 | GA30: 2220.420522 | GG30: 2 | GJ30: 11:00 PM | GK30: 23:00:00 | GQ30: 2
B31: Service Life | C31: 20 | J31: Service Life | K31: 20 | R31: Service Life | S31: 20 | Z31: Service Life | AA31: 20 | AH31: Service Life | AI31: 20 | AP31: Service Life | AQ31: 20 | AX31: Service Life | AY31: 20 | BF31: Service Life | BG31: 20 | BN31: Service Life | BO31: 30 | BV31: Service Life | BW31: 20 | CD31: Service Life | CE31: 20 | CL31: Service Life | CM31: 0 | CT31: Service Life | CU31: 20 | DB31: Service Life | DC31: 10 | DJ31: Service Life | DK31: 10 | DR31: Service Life | DS31: 20 | DZ31: Service Life | EA31: 20 | EH31: 23:00:00 | EI31: 8.4 | EJ31: 3 | EK31: 0.6 | EL31: 0.09 | EP31: 23:00:00 | EQ31: 1667 | ER31: 15120 | FZ31: 08:00:00 | GA31: 2438.668722 | GG31: 3 | GQ31: 3
B32: Other Annual Benefits | C32: 5000 | J32: Other Annual Benefits | K32: 0 | R32: Other Annual Benefits | S32: 0 | Z32: Other Annual Benefits | AA32: 5000 | AH32: Other Annual Benefits | AI32: 0 | AP32: Other Annual Benefits | AQ32: 0 | AX32: Other Annual Benefits | AY32: 0 | BF32: Other Annual Benefits | BG32: 0 | BN32: Other Annual Benefits | BO32: 0 | BV32: Other Annual Benefits | BW32: 0 | CD32: Other Annual Benefits | CE32: 0 | CT32: Other Annual Benefits | CU32: 5000 | DB32: Other Annual Benefits | DC32: 0 | DJ32: Other Annual Benefits | DK32: 0 | DR32: Other Annual Benefits | DS32: 5000 | DZ32: Other Annual Benefits | EA32: 0 | FZ32: 09:00:00 | GA32: 1939.896455 | GG32: 4 | GQ32: 4
R33: Per PennDOT data, 0.102% of crashes are runaway truck crashes | EH33: Notes: | EP33: Notes: | FZ33: 10:00:00 | GA33: 1737.918114 | GG33: 5 | GQ33: 5
R34: Per PennDOT data, runaway truck crash duration is approx. 2.5 hours | FZ34: 11:00:00 | GA34: 1526.433499 | GG34: 6 | GQ34: 6
FZ35: 12:00:00 | GA35: 1521.577592 | GG35: 7 | GJ35: 9:00 PM | GQ35: 7
FZ36: 13:00:00 | GA36: 1521.577592 | GG36: 8 | GQ36: 8
FZ37: 14:00:00 | GA37: 1939.896455 | GG37: 9 | GQ37: 9
EI38: Construction Cost/Unit Cost | EJ38: 0 | EQ38: Construction Cost/Unit Cost | ER38: 0 | EX38: Construction Cost/Unit Cost | EY38: 0 | FZ38: 15:00:00 | GA38: 2272.5656 | GG38: 10 | GQ38: 10
EI39: Annual Maintenance/Op Cost | EJ39: 0 | EQ39: Annual Maintenance/Op Cost | ER39: 0 | EX39: Annual Maintenance/Op Cost | EY39: 0 | FZ39: 16:00:00 | GA39: 2497.9328 | GG39: 11 | GQ39: 11
EI40: Service Life | EJ40: 5 | EQ40: Service Life | ER40: 5 | EX40: Service Life | EY40: 5 | FZ40: 17:00:00 | GA40: 2499.9216 | GG40: 12 | GQ40: 12
EI41: Other Annual Benefits | EJ41: 0 | EQ41: Other Annual Benefits | ER41: 0 | EX41: Other Annual Benefits | EY41: 0 | FZ41: 18:00:00 | GA41: 2152.528674
FZ42: 19:00:00 | GA42: 1716.952926
FZ43: 20:00:00 | GA43: 1288.485474
FZ44: 21:00:00 | GA44: 1074.508674
FZ45: 22:00:00 | GA45: 860.5318737
FZ46: 23:00:00 | GA46: 646.6321516
B80: Accessible Shoulder | J80: Crash Investigation Site | R80: Runaway Truck Ramp | Z80: Drivable Shoulder | AH80: Emergency Pull-off | AP80: Extra High Median Barrier | AX80: Incident Screens | BF80: Wildlife-Vehicle Collision Mitigation | BN80: Emergency Crossovers | BV80: Controlled or Gated Turnarounds | CD80: Moveable Cable Median Barrier | CL80: Moveable Traffic Barriers | CT80: Emergency Response Facilitation | DB80: Anti-icing Systems, Overheight Vehicle Detection Systems, Fog Detection, Wind Detection | DJ80: Snow Fence | DR80: Contraflow for Workzones | DZ80: Reversible Lane | EH80: Custom Treatment | EP80: Reversible Lane | EX80: Reversible Lane | FF80: Reduced Work Zone | FN80: Detour Roadway Improvements | FT80: Ramp Metering | FY80: Ramp Closures | GD80: Detour Roadway Improvements

Sheet defaults val
B2: Site Inputs - Incident | P2: Acccessible Shoulder | W2: Crash Investigation Site | AD2: Runaway Truck Ramp | AK2: Driveable Shoulder | AR2: Emergency Pull-off | AY2: Extra High Median Barrier | BF2: Incident Screen | BM2: Wildlife Crash Reduction | BT2: Emergency Crossovers | CA2: Emergency Access | CH2: Anti-Icing Systems | CO2: Snow Fence | CV2: Alternating Shoulder | DC2: Custom Treatment Incidents | DJ2: Control(Gated) Turnarounds | DQ2: Blowing Sand
B4: values | F4: override default | P4: values | T4: override default | W4: values | AA4: override default | AD4: values | AH4: override default | AK4: values | AO4: override default | AR4: values | AV4: override default | AY4: values | BC4: override default | BF4: values | BJ4: override default | BM4: values | BQ4: override default | BT4: values | BX4: override default | CA4: values | CE4: override default | CH4: values | CL4: override default | CO4: values | CS4: override default | CV4: values | CZ4: override default | DC4: values | DG4: override default | DJ4: values | DN4: override default | DQ4: values | DU4: override default
B5: Crashes - Avg Duration | F5: Crashes - Avg Duration | P5: Crashes - Percent Use Treatment | T5: Crashes - Percent Use Treatment | W5: Crashes - Percent Use Treatment | AA5: Crashes - Percent Use Treatment | AD5: Crashes - Percent Use Treatment | AH5: Crashes - Percent Use Treatment | AK5: Crashes - Percent Use Treatment | AO5: Crashes - Percent Use Treatment | AR5: Crashes - Percent Use Treatment | AV5: Crashes - Percent Use Treatment | AY5: Crashes - Percent Use Treatment | BC5: Crashes - Percent Use Treatment | BF5: Crashes - Percent Use Treatment | BJ5: Crashes - Percent Use Treatment | BM5: Crashes - Percent Use Treatment | BQ5: Crashes - Percent Use Treatment | BT5: Crashes - Percent Use Treatment | BX5: Crashes - Percent Use Treatment | CA5: Crashes - Percent Use Treatment | CE5: Crashes - Percent Use Treatment | CH5: Crashes - Percent Use Treatment | CL5: Crashes - Percent Use Treatment | CO5: Crashes - Percent Use Treatment | CS5: Crashes - Percent Use Treatment | CV5: Crashes - Percent Use Treatment | CZ5: Crashes - Percent Use Treatment | DC5: Crashes - Average Duration | DG5: Crashes - Average Duration | DJ5: Crashes - Percent Use Treatment | DN5: Crashes - Percent Use Treatment | DQ5: Crashes - Percent Use Treatment | DU5: Crashes - Percent Use Treatment
B6: PDO | C6: 28 | F6: PDO | G6: FALSE | P6: PDO | Q6: 50 | T6: PDO | U6: FALSE | W6: PDO | X6: 40 | AA6: PDO | AB6: FALSE | AD6: PDO | AE6: 0 | AH6: PDO | AI6: FALSE | AK6: PDO | AL6: 0 | AO6: PDO | AP6: FALSE | AR6: PDO | AS6: 40 | AV6: PDO | AW6: FALSE | AY6: PDO | AZ6: 100 | BC6: PDO | BD6: FALSE | BF6: PDO | BG6: 0 | BJ6: PDO | BK6: FALSE | BM6: PDO | BN6: 5 | BQ6: PDO | BR6: FALSE | BT6: PDO | BU6: 0 | BX6: PDO | BY6: FALSE | CA6: PDO | CB6: 5 | CE6: PDO | CF6: FALSE | CH6: PDO | CI6: 1 | CL6: PDO | CM6: FALSE | CO6: PDO | CP6: 1 | CS6: PDO | CT6: TRUE | CV6: PDO | CW6: 35 | CZ6: PDO | DA6: FALSE | DC6: PDO | DD6: 28 | DG6: PDO | DH6: FALSE | DJ6: PDO | DK6: 0 | DN6: PDO | DO6: FALSE | DQ6: PDO | DR6: 0 | DU6: PDO | DV6: TRUE
B7: Min Inj | C7: 40 | F7: Min Inj | G7: FALSE | P7: Min Inj | Q7: 30 | T7: Min Inj | U7: FALSE | W7: Min Inj | X7: 20 | AA7: Min Inj | AB7: FALSE | AD7: Min Inj | AE7: 0 | AH7: Min Inj | AI7: FALSE | AK7: Min Inj | AL7: 1 | AO7: Min Inj | AP7: FALSE | AR7: Min Inj | AS7: 20 | AV7: Min Inj | AW7: FALSE | AY7: Min Inj | AZ7: 75 | BC7: Min Inj | BD7: FALSE | BF7: Min Inj | BG7: 5 | BJ7: Min Inj | BK7: FALSE | BM7: Min Inj | BN7: 5 | BQ7: Min Inj | BR7: FALSE | BT7: Min Inj | BU7: 1 | BX7: Min Inj | BY7: FALSE | CA7: Min Inj | CB7: 10 | CE7: Min Inj | CF7: FALSE | CH7: Min Inj | CI7: 1 | CL7: Min Inj | CM7: FALSE | CO7: Min Inj | CP7: 1 | CS7: Min Inj | CT7: FALSE | CV7: Min Inj | CW7: 25 | CZ7: Min Inj | DA7: FALSE | DC7: Min Inj | DD7: 40 | DG7: Min Inj | DH7: FALSE | DJ7: Min Inj | DK7: 1 | DN7: Min Inj | DO7: FALSE | DQ7: Min Inj | DR7: 0 | DU7: Min Inj | DV7: FALSE
B8: Maj Inj/Fat | C8: 45 | F8: Maj Inj/Fat | G8: FALSE | P8: Maj Inj/Fat | Q8: 10 | T8: Maj Inj/Fat | U8: FALSE | W8: Maj Inj/Fat | X8: 0 | AA8: Maj Inj/Fat | AB8: FALSE | AD8: Maj Inj/Fat | AE8: 0 | AH8: Maj Inj/Fat | AI8: FALSE | AK8: Maj Inj/Fat | AL8: 5 | AO8: Maj Inj/Fat | AP8: FALSE | AR8: Maj Inj/Fat | AS8: 0 | AV8: Maj Inj/Fat | AW8: FALSE | AY8: Maj Inj/Fat | AZ8: 75 | BC8: Maj Inj/Fat | BD8: FALSE | BF8: Maj Inj/Fat | BG8: 10 | BJ8: Maj Inj/Fat | BK8: FALSE | BM8: Maj Inj/Fat | BN8: 5 | BQ8: Maj Inj/Fat | BR8: FALSE | BT8: Maj Inj/Fat | BU8: 5 | BX8: Maj Inj/Fat | BY8: FALSE | CA8: Maj Inj/Fat | CB8: 20 | CE8: Maj Inj/Fat | CF8: FALSE | CH8: Maj Inj/Fat | CI8: 1 | CL8: Maj Inj/Fat | CM8: FALSE | CO8: Maj Inj/Fat | CP8: 1 | CS8: Maj Inj/Fat | CT8: FALSE | CV8: Maj Inj/Fat | CW8: 5 | CZ8: Maj Inj/Fat | DA8: FALSE | DC8: Maj Inj/Fat | DD8: 45 | DG8: Maj Inj/Fat | DH8: FALSE | DJ8: Maj Inj/Fat | DK8: 5 | DN8: Maj Inj/Fat | DO8: FALSE | DQ8: Maj Inj/Fat | DR8: 0 | DU8: Maj Inj/Fat | DV8: FALSE
CA9: Crashes - Average Reduction in Incident Response Time | CE9: Crashes - Average Reduction in Incident Response Time
B10: Crashes - % of All Incidents | F10: Crashes - % of All Incidents | CA10: PDO | CB10: 5 | CE10: PDO | CF10: FALSE
C11: 22 | G11: FALSE | CA11: Min Inj | CB11: 5 | CE11: Min Inj | CF11: FALSE
CA12: Maj Inj/Fat | CB12: 5 | CE12: Maj Inj/Fat | CF12: FALSE
B14: Non-Crash | C14: avg dur | D14: % of all | F14: Non-Crash | G14: avg dur | H14: % of all | P14: Non-Crashes - Percent Used Treatment | T14: Non-Crashes - Percent Used Treatment | W14: Non-Crashes - Percent Used Treatment | AA14: Non-Crashes - Percent Used Treatment | AK14: Non-Crashes - Percent Used Treatment | AO14: Non-Crashes - Percent Used Treatment | AR14: Non-Crashes - Percent Used Treatment | AV14: Non-Crashes - Percent Used Treatment | AY14: Non-Crashes - Percent Used Treatment | BC14: Non-Crashes - Percent Used Treatment | BF14: Typical time between start and deployment | BM14: Non-Crashes - Percent Used Treatment | BQ14: Non-Crashes - Percent Used Treatment | CH14: Non-Crashes - Percent Used Treatment | CL14: Non-Crashes - Percent Used Treatment | CO14: Non-Crashes - Percent Used Treatment | CS14: Non-Crashes - Percent Used Treatment | CV14: Non-Crashes - Percent Used Treatment | CZ14: Non-Crashes - Percent Used Treatment | DC14: Non-Crashes - Average Duration | DG14: Non-Crashes - Average Duration | DQ14: Non-Crashes - Percent Used Treatment | DU14: Non-Crashes - Percent Used Treatment
B15: NLB | C15: 26 | D15: 55 | F15: NLB | G15: FALSE | H15: FALSE | W15: NLB | X15: 20 | AA15: NLB | AB15: FALSE | AY15: NLB | AZ15: 75 | BC15: NLB | BD15: FALSE | BG15: 20 | BK15: FALSE | DC15: NLB | DD15: 26 | DG15: NLB | DH15: FALSE
B16: LB | C16: 20 | D16: 13 | F16: LB | G16: FALSE | H16: FALSE | P16: LB | Q16: 60 | T16: LB | U16: FALSE | W16: LB | X16: 40 | AA16: LB | AB16: FALSE | AK16: LB | AL16: 0 | AO16: LB | AP16: FALSE | AR16: LB | AS16: 15 | AV16: LB | AW16: FALSE | AY16: LB | AZ16: 75 | BC16: LB | BD16: FALSE | CV16: LB | CW16: 50 | CZ16: LB | DA16: FALSE | DC16: LB | DD16: 20 | DG16: LB | DH16: FALSE
B17: Other | C17: 23 | F17: Other | G17: FALSE | P17: Other | Q17: 25 | T17: Other | U17: FALSE | W17: Other | X17: 10 | AA17: Other | AB17: FALSE | AK17: Other | AL17: 0 | AO17: Other | AP17: FALSE | AR17: Other | AS17: 10 | AV17: Other | AW17: FALSE | AY17: Other | AZ17: 75 | BC17: Other | BD17: FALSE | BM17: Other | BN17: 5 | BQ17: Other | BR17: FALSE | CH17: Other | CI17: 0 | CL17: Other | CM17: FALSE | CO17: Other | CP17: 0 | CS17: Other | CT17: FALSE | CV17: Other | CW17: 20 | CZ17: Other | DA17: FALSE | DC17: Other | DD17: 23 | DG17: Other | DH17: FALSE | DQ17: Other | DR17: 0 | DU17: Other | DV17: FALSE
AK19: Other Parameters | AO19: Other Parameters | BM19: Not Used Anymore
B20: Value of Time ($/hr) | D20: 15.68 | G20: FALSE | AK20: Shoulder Cap | AL20: 1600 | AO20: Shoulder Cap | AP20: TRUE
B21: Reliability Ratio | D21: 0.793 | G21: FALSE
B22: Value of Reliability | D22: =D20*D21 -> 12.43424
B23: Discount Rate | D23: 7 | G23: FALSE
B25: Short Term WZ
B26: 1600 | C26: 1600 | D26: 1600 | E26: 1600 | F26: 1600 | G26: 1600 | H26: 1600 | I26: 1600 | J26: 1600
B27: FALSE | C27: FALSE | D27: FALSE | E27: FALSE | F27: FALSE | G27: FALSE | H27: FALSE | I27: FALSE | J27: FALSE
B29: Capacity of LTWZ | D29: 1600 | G29: FALSE
C30: Long Term WZ Speed: | D30: 55 | G30: FALSE
C32: HCM Capacity | D32: =VLOOKUP(lbl1_aff, 'Gen. Data'!$U$15:$V$19, 2, FALSE) -> 2250 | G32: FALSE

Sheet Untreated L07 bd
B2: L07 Calculations - Untreated (Base Conditions)
O3: Daily ILHL
B4: Primary Direction Relevant Treatment Parameters | N4: % Non-Lane Blocking (Disabled Vehicle) | O4: ='Primary Graph Data'!N10 -> 3.575
N5: % Lane Blocking (Disabled Vehicle) | O5: ='Primary Graph Data'!O10 -> 19.5585
N6: Other | O6: ='Primary Graph Data'!P10 -> 9.4645
N7: % Property Damage Only | O7: ='Primary Graph Data'!K10 -> 14.28728
N8: % Minor Injury | O8: ='Primary Graph Data'!L10 -> 14.8648
N9: % Major Injury & Fatal | O9: ='Primary Graph Data'!M10 -> 14.00175 | P9: =SUM(O4:O9) -> 75.75183
N10: Tot | O10: =SUM(O4:O9) -> 75.75183
B11: Hourly Volume Adjustments | Z11: Speed and Capacity | BB11: WZ 1 | BL11: WZ 2 | BO11: WZ 2 | BV11: WZ 3 | BY11: WZ 2 | CF11: WZ 4 | CI11: WZ 2 | CP11: WZ 5 | CS11: WZ 2 | CZ11: WZ 6 | DC11: WZ 2 | DJ11: WZ 7 | DM11: WZ 2 | DT11: WZ 8 | DW11: WZ 2 | ED11: WZ 9 | EG11: WZ 2 | EN11: Special Events 1 | EQ11: Special Events 2 | ET11: Special Events 3 | EW11: Special Events 4 | EZ11: Special Events 5 | FC11: Special Events 6 | FF11: Special Events 7 | FI11: Special Events 8 | FL11: Special Events 9 | FO11: Total
B12: Start Time | C12: Vol (veh) | D12: PHF | E12: % Trucks | F12: % RV's | G12: ET | H12: ER | I12: fHV | J12: Vol (PCE) | K12: Vol Adjustments for Special Events | L12: Probablility of Crash | M12: Probablility of Incident | N12: ILHL | O12: WZ 1 | P12: WZ 2 | Q12: WZ 3 | R12: WZ 4 | S12: WZ 5 | T12: WZ 6 | U12: WZ 7 | V12: WZ 8 | W12: WZ 9 | X12: Total WZLHL | Z12: Start Time | AA12: FFS Measured (Yes/No) | AB12: FFS (Measured) | AC12: Base FFS | AD12: Lanes | AE12: Lane Width | AF12: Right-side Lateral Clearance | AG12: TRD | AH12: Lane Width Adj. (fLW) | AI12: Lateral Clearance Adj. (fLC) | AJ12: Total Ramp Density Adj. | AK12: Estimated FFS | AL12: Unrounded FFS for Capacity | AM12: Rounded FFS for Capacity (per HCM) | AN12: Per Lane Capacity | AO12: Total Capacity | AP12: Volume (pc/ln) | AQ12: Vp | AR12: HCM 2010 Speed | AS12: Free Flow Travel Time on link(min) | AT12: Alpha | AU12: Beta | AV12: BPR v/c term | AW12: Travel Time(min) | AX12: NCHRP Speed (mph) | AY12: Speed Used(mph) | AZ12: Capacity | BB12: Lanes | BC12: Lanes for Table | BD12: LT Clear | BE12: WZ fLC | BF12: Speed | BG12: Rounded Speed | BH12: Capacity per Lane | BI12: Capacity | BJ12: Adjustment Factor | BK12: % Capacity Reduction( ie. Capacity lost) | BL12: Lanes | BM12: Lanes for Table | BN12: LT Clear | BO12: WZ fLC | BP12: Speed | BQ12: Rounded Speed | BR12: Capacity per Lane | BS12: Capacity | BT12: Adjustment Factor | BU12: % Capacity Reduction | BV12: Lanes | BW12: Lanes for Table | BX12: LT Clear | BY12: WZ fLC | BZ12: Speed | CA12: Rounded Speed | CB12: Capacity per Lane | CC12: Capacity | CD12: Adjustment Factor | CE12: % Capacity Reduction | CF12: Lanes | CG12: Lanes for Table | CH12: LT Clear | CI12: WZ fLC | CJ12: Speed | CK12: Rounded Speed | CL12: Capacity per Lane | CM12: Capacity | CN12: Adjustment Factor | CO12: % Capacity Reduction | CP12: Lanes | CQ12: Lanes for Table | CR12: LT Clear | CS12: WZ fLC | CT12: Speed | CU12: Rounded Speed | CV12: Capacity per Lane | CW12: Capacity | CX12: Adjustment Factor | CY12: % Capacity Reduction | CZ12: Lanes | DA12: Lanes for Table | DB12: LT Clear | DC12: WZ fLC | DD12: Speed | DE12: Rounded Speed | DF12: Capacity per Lane | DG12: Capacity | DH12: Adjustment Factor | DI12: % Capacity Reduction | DJ12: Lanes | DK12: Lanes for Table | DL12: LT Clear | DM12: WZ fLC | DN12: Speed | DO12: Rounded Speed | DP12: Capacity per Lane | DQ12: Capacity | DR12: Adjustment Factor | DS12: % Capacity Reduction | DT12: Lanes | DU12: Lanes for Table | DV12: LT Clear | DW12: WZ fLC | DX12: Speed | DY12: Rounded Speed | DZ12: Capacity per Lane | EA12: Capacity | EB12: Adjustment Factor | EC12: % Capacity Reduction | ED12: Lanes | EE12: Lanes for Table | EF12: LT Clear | EG12: WZ fLC | EH12: Speed | EI12: Rounded Speed | EJ12: Capacity per Lane | EK12: Capacity | EL12: Adjustment Factor | EM12: % Capacity Reduction | EN12: % Increase | EO12: Number of Days | EP12: Volume Increase | EQ12: % Increase | ER12: Number of Days | ES12: Volume Increase | ET12: % Increase | EU12: Number of Days | EV12: Volume Increase | EW12: % Increase | EX12: Number of Days | EY12: Volume Increase | EZ12: % Increase | FA12: Number of Days | FB12: Volume Increase | FC12: % Increase | FD12: Number of Days | FE12: Volume Increase | FF12: % Increase | FG12: Number of Days | FH12: Volume Increase | FI12: % Increase | FJ12: Number of Days | FK12: Volume Increase | FL12: % Increase | FM12: Number of Days | FN12: Volume Increase | FO12: Volume Increase
B13: 00:00:00 | C13: ='base data'!D13 -> 947 | D13: ='base data'!E13 -> 1 | E13: ='base data'!F13/100 -> 0.02 | F13: ='base data'!G13/100 -> 0.01 | G13: =VLOOKUP('base data'!$D$6,'Gen. Data'!$U$8:$V$10,2,FALSE) -> 1.5 | H13: =VLOOKUP('base data'!$D$6,'Gen. Data'!$U$8:$W$10,3,FALSE) -> 1.2 | I13: =1/(1+E13*(G13-1)+F13*(H13-1)) -> 0.9881422925 | J13: =C13/(D13*I13) -> 958.364 | K13: =J13+FO13 -> 958.5556728 | L13: ='Crash Dist'!O9 -> 0.0012937493 | M13: ='Crash Dist'!P9 -> 0.006001419554 | N13: =L13*SUM(O$7:O$9)+M13*SUM(O$4:O$6) -> 0.251464512 | O13: =IF(cbx1_wz1=TRUE, BK13*'base data'!$CS$11*'base data'!$F$6, "") -> 2.444444444 | P13: =IF(cbx1_wz2=TRUE, BU13*'base data'!$CT$11*'base data'!$F$6, "") ->  | Q13: =IF(cbx1_wz3=TRUE, CE13*'base data'!$CU$11*'base data'!$F$6, "") ->  | R13: =IF(cbx1_wz4=TRUE, CO13*'base data'!$CV$11*'base data'!$F$6, "") ->  | S13: =IF(cbx1_wz5=TRUE, CY13*'base data'!$CX$11*'base data'!$F$6, "") ->  | T13: =IF(cbx1_wz6=TRUE, DI13*'base data'!$CY$11*'base data'!$F$6, "") ->  | U13: =IF(cbx1_wz7=TRUE, DS13*'base data'!$CZ$11*'base data'!$F$6, "") ->  | V13: =IF(cbx1_wz8=TRUE, EC13*'base data'!$DA$11*'base data'!$F$6, "") ->  | W13: =IF(cbx1_wz9=TRUE, EM13*'base data'!$DB$11*'base data'!$F$6, "") ->  | X13: =SUM(O13:V13) -> 2.444444444 | Z13: 00:00:00 | AA13: ='base data'!$N$6 -> Yes | AB13: =IF('base data'!tbx1_FFS<55, 55, 'base data'!tbx1_FFS) -> 56 | AC13: 75.4 | AD13: ='base data'!AC13 -> 6 | AE13: ='base data'!comb_wid_val -> 14 | AF13: =ROUND(LEFT('base data'!comb_rsh_val, 1),0) -> 4 | AG13: ='base data'!tbx1_ipm -> 0.7 | AH13: =IF(AE13>=12,0,IF(AND(AE13>=11,AE13<12),1.9,IF(AND(AE13<11,AE13>=10),6.6,"ERROR"))) -> 0 | AI13: =IF($AF13>=6,0,VLOOKUP($AF13&"ft,"&MIN($AD13,5)&"lns",'Gen. Data'!$R$7:$S$41,2,FALSE)) -> 0.2 | AJ13: =3.22*AG13^0.84 -> 2.386372443 | AK13: =IF(AC13-AH13-AI13-AJ13<55, 55, AC13-AH13-AI13-AJ13) -> 72.81362756 | AL13: 72.81362756 | AM13: =IF(AA13="Yes",MROUND(AB13,5),MROUND(AK13,5)) -> 55 | AN13: =tbx1_hcp -> 2250 | AO13: =AN13*AD13 -> 13500 | AP13: =K13/AD13 -> 159.7592788 | AQ13: =AP13 -> 159.7592788 | AR13: =IF(AQ13<VLOOKUP(AM13,$AO$42:$AP$46,2,FALSE),AM13,AM13-(VLOOKUP(AM13,$AO$42:$AS$46,3,FALSE)*(AQ13-VLOOKUP(AM13,$AO$42:$AS$46,2,FALSE))^2)) -> 55 | AS13: =('base data'!tbx1_len/AM13)*60 -> 0.6545454545 | AT13: =VLOOKUP(AM13, $AU$42:$AW$46, 2, FALSE) -> 0.1 | AU13: =VLOOKUP(AM13, $AU$42:$AW$46, 3, FALSE) -> 9.4 | AV13: =1+(AT13*((AQ13/AN13)^(AU13))) -> 1 | AW13: =AS13*AV13 -> 0.6545454545 | AX13: ='base data'!tbx1_len/(AW13/60) -> 55 | AY13: =IF(AQ13/AN13>1, AX13, AR13) -> 55 | AZ13: =AN13 -> 2250 | BA13: 13500 | BB13: =AD13-'base data'!AE13 -> 5 | BC13: =IF(BB13>5, 5, BB13) -> 5 | BD13: ='base data'!AF13 -> 0 | BE13: =IF(BC13>=6,0,VLOOKUP(BD13&"ft," & BC13 & "lns",'Gen. Data'!$R$7:$S$41,2,FALSE)) -> 0.6 | BF13: =$AR13+$AI13-BE13 -> 54.6 | BG13: =MROUND(BF13, 5) -> 55 | BH13: =tbx1_cw1 -> 1600 | BI13: =BH13*BB13 -> 8000 | BJ13: 1 | BK13: =1-((BI13*BJ13)/BA13) -> 0.4074074074 | BL13: =AD13-'base data'!AG13 -> 1 | BM13: =IF(BL13>5, 5, BL13) -> 1 | BN13: ='base data'!AH13 -> 0 | BO13: =IF(BM13>=6,0,VLOOKUP(BN13&"ft," & BM13 & "lns",'Gen. Data'!$R$7:$S$41,2,FALSE)) -> 3.6 | BP13: =$AR13+$AI13-BO13 -> 51.6 | BQ13: =MROUND(BP13, 5) -> 50 | BR13: =tbx1_cw2 -> 1600 | BS13: =BR13*BL13 -> 1600 | BT13: 1 | BU13: =1-((BS13*BT13)/BA13) -> 0.8814814815 | BV13: =AD13-'base data'!AI13 -> 5 | BW13: =IF(BV13>5, 5, BV13) -> 5 | BX13: ='base data'!AJ13 -> 0 | BY13: =IF(BW13>=6,0,VLOOKUP(BX13&"ft," & BW13 & "lns",'Gen. Data'!$R$7:$S$41,2,FALSE)) -> 0.6 | BZ13: =$AR13+$AI13-BY13 -> 54.6 | CA13: =MROUND(BZ13, 5) -> 55 | CB13: =tbx1_cw3 -> 1600 | CC13: =CB13*BV13 -> 8000 | CD13: 1 | CE13: =1-((CC13*CD13)/BA13) -> 0.4074074074 | CF13: =AD13-'base data'!AK13 -> 5 | CG13: =IF(CF13>5, 5, CF13) -> 5 | CH13: ='base data'!AL13 -> 0 | CI13: =IF(CG13>=6,0,VLOOKUP(CH13&"ft," & CG13 & "lns",'Gen. Data'!$R$7:$S$41,2,FALSE)) -> 0.6 | CJ13: =$AR13+$AI13-CI13 -> 54.6 | CK13: =MROUND(CJ13, 5) -> 55 | CL13: =tbx1_cw4 -> 1600 | CM13: =CL13*CF13 -> 8000 | CN13: 1 | CO13: =1-((CM13*CN13)/$BA13) -> 0.4074074074 | CP13: =AD13-'base data'!AM13 -> 5 | CQ13: =IF(CP13>5, 5, CP13) -> 5 | CR13: ='base data'!AN13 -> 0 | CS13: =IF(CQ13>=6,0,VLOOKUP(CR13&"ft," & CQ13 & "lns",'Gen. Data'!$R$7:$S$41,2,FALSE)) -> 0.6 | CT13: =$AR13+$AI13-CS13 -> 54.6 | CU13: =MROUND(CT13, 5) -> 55 | CV13: =tbx1_cw5 -> 1600 | CW13: =CV13*CP13 -> 8000 | CX13: 1 | CY13: =1-((CW13*CX13)/$BA13) -> 0.4074074074 | CZ13: =AD13-'base data'!AO13 -> 5 | DA13: =IF(CZ13>5, 5, CZ13) -> 5 | DB13: ='base data'!AP13 -> 0 | DC13: =IF(DA13>=6,0,VLOOKUP(DB13&"ft," & DA13 & "lns",'Gen. Data'!$R$7:$S$41,2,FALSE)) -> 0.6 | DD13: =$AR13+$AI13-DC13 -> 54.6 | DE13: =MROUND(DD13, 5) -> 55 | DF13: =tbx1_cw6 -> 1600 | DG13: =DF13*CZ13 -> 8000 | DH13: 1 | DI13: =1-((DG13*DH13)/$BA13) -> 0.4074074074 | DJ13: =AD13-'base data'!AQ13 -> 5 | DK13: =IF(DJ13>5, 5, DJ13) -> 5 | DL13: ='base data'!AR13 -> 0 | DM13: =IF(DK13>=6,0,VLOOKUP(DL13&"ft," & DK13 & "lns",'Gen. Data'!$R$7:$S$41,2,FALSE)) -> 0.6 | DN13: =$AR13+$AI13-DM13 -> 54.6 | DO13: =MROUND(DN13, 5) -> 55 | DP13: =tbx1_cw7 -> 1600 | DQ13: =DP13*DJ13 -> 8000 | DR13: 1 | DS13: =1-((DQ13*DR13)/$BA13) -> 0.4074074074 | DT13: =AD13-'base data'!AS13 -> 5 | DU13: =IF(DT13>5, 5, DT13) -> 5 | DV13: ='base data'!AT13 -> 0 | DW13: =IF(DU13>=6,0,VLOOKUP(DV13&"ft," & DU13 & "lns",'Gen. Data'!$R$7:$S$41,2,FALSE)) -> 0.6 | DX13: =$AR13+$AI13-DW13 -> 54.6 | DY13: =MROUND(DX13, 5) -> 55 | DZ13: =tbx1_cw8 -> 1600 | EA13: =DZ13*DT13 -> 8000 | EB13: 1 | EC13: =1-((EA13*EB13)/$BA13) -> 0.4074074074 | ED13: =AD13-'base data'!AU13 -> 5 | EE13: =IF(ED13>5, 5, ED13) -> 5 | EF13: ='base data'!AV13 -> 0 | EG13: =IF(EE13>=6,0,VLOOKUP(EF13&"ft," & EE13 & "lns",'Gen. Data'!$R$7:$S$41,2,FALSE)) -> 0.6 | EH13: =$AR13+$AI13-EG13 -> 54.6 | EI13: =MROUND(EH13, 5) -> 55 | EJ13: =tbx1_cw9 -> 1600 | EK13: =EJ13*ED13 -> 8000 | EL13: 1 | EM13: =1-((EK13*EL13)/$BA13) -> 0.4074074074 | EN13: ='base data'!K13/100 -> 0.05 | EO13: ='base data'!$CI$11 -> 1 | EP13: =$J13*EN13*(EO13/250) -> 0.1916728 | EQ13: ='base data'!L13/100 -> 0.05 | ER13: ='base data'!$CJ$11 -> 0 | ES13: =$J13*((EQ13*ER13)/250) -> 0 | ET13: ='base data'!N13/100 -> 0.05 | EU13: ='base data'!$CK$11 -> 0 | EV13: =$J13*((ET13*EU13)/250) -> 0 | EW13: ='base data'!O13/100 -> 0.05 | EX13: ='base data'!$CL$11 -> 0 | EY13: =$J13*((EW13*EX13)/250) -> 0 | EZ13: ='base data'!R13/100 -> 0.05 | FA13: ='base data'!$CM$11 -> 0 | FB13: =$J13*((EZ13*FA13)/250) -> 0 | FC13: ='base data'!S13/100 -> 0.05 | FD13: ='base data'!$CN$11 -> 0 | FE13: =$J13*((FC13*FD13)/250) -> 0 | FF13: ='base data'!T13/100 -> 0.05 | FG13: ='base data'!$CO$11 -> 0 | FH13: =$J13*((FF13*FG13)/250) -> 0 | FI13: ='base data'!U13/100 -> 0.05 | FJ13: ='base data'!$CP$11 -> 0 | FK13: =$J13*((FI13*FJ13)/250) -> 0 | FL13: ='base data'!X13/100 -> 0.05 | FM13: ='base data'!$CQ$11 -> 0 | FN13: =$J13*((FL13*FM13)/250) -> 0 | FO13: =EP13+ES13+EV13+EY13+FB13+FE13+FH13+FK13+FN13 -> 0.1916728
B14: 01:00:00 | C14: ='base data'!D14 -> 632 | D14: ='base data'!E14 -> 1 | E14: ='base data'!F14/100 -> 0.02 | F14: ='base data'!G14/100 -> 0.01 | G14: =VLOOKUP('base data'!$D$6,'Gen. Data'!$U$8:$V$10,2,FALSE) -> 1.5 | H14: =VLOOKUP('base data'!$D$6,'Gen. Data'!$U$8:$W$10,3,FALSE) -> 1.2 | I14: =1/(1+E14*(G14-1)+F14*(H14-1)) -> 0.9881422925 | J14: =C14/(D14*I14) -> 639.584 | K14: =J14+FO14 -> 639.7119168 | L14: ='Crash Dist'!O10 -> 0.0008634103039 | M14: ='Crash Dist'!P10 -> 0.004005171234 | N14: =L14*SUM(O$7:O$9)+M14*SUM(O$4:O$6) -> 0.1678200334 | O14: =IF(cbx1_wz1=TRUE, BK14*'base data'!$CS$11*'base data'!$F$6, "") -> 2.444444444 | P14: =IF(cbx1_wz2=TRUE, BU14*'base data'!$CT$11*'base data'!$F$6, "") ->  | Q14: =IF(cbx1_wz3=TRUE, CE14*'base data'!$CU$11*'base data'!$F$6, "") ->  | R14: =IF(cbx1_wz4=TRUE, CO14*'base data'!$CV$11*'base data'!$F$6, "") ->  | S14: =IF(cbx1_wz5=TRUE, CY14*'base data'!$CX$11*'base data'!$F$6, "") ->  | T14: =IF(cbx1_wz6=TRUE, DI14*'base data'!$CY$11*'base data'!$F$6, "") ->  | U14: =IF(cbx1_wz7=TRUE, DS14*'base data'!$CZ$11*'base data'!$F$6, "") ->  | V14: =IF(cbx1_wz8=TRUE, EC14*'base data'!$DA$11*'base data'!$F$6, "") ->  | W14: =IF(cbx1_wz9=TRUE, EM14*'base data'!$DB$11*'base data'!$F$6, "") ->  | X14: =SUM(O14:W14) -> 2.444444444 | Z14: 01:00:00 | AA14: ='base data'!$N$6 -> Yes | AB14: =IF('base data'!tbx1_FFS<55, 55, 'base data'!tbx1_FFS) -> 56 | AC14: 75.4 | AD14: ='base data'!AC14 -> 6 | AE14: ='base data'!comb_wid_val -> 14 | AF14: =ROUND(LEFT('base data'!comb_rsh_val, 1),0) -> 4 | AG14: ='base data'!tbx1_ipm -> 0.7 | AH14: =IF(AE14>=12,0,IF(AND(AE14>=11,AE14<12),1.9,IF(AND(AE14<11,AE14>=10),6.6,"ERROR"))) -> 0 | AI14: =IF($AF14>=6,0,VLOOKUP($AF14&"ft,"&MIN($AD14,5)&"lns",'Gen. Data'!$R$7:$S$41,2,FALSE)) -> 0.2 | AJ14: =3.22*AG14^0.84 -> 2.386372443 | AK14: =IF(AC14-AH14-AI14-AJ14<55, 55, AC14-AH14-AI14-AJ14) -> 72.81362756 | AL14: 72.81362756 | AM14: =IF(AA14="Yes",MROUND(AB14,5),MROUND(AK14,5)) -> 55 | AN14: 2250 | AO14: =AN14*AD14 -> 13500 | AP14: =K14/AD14 -> 106.6186528 | AQ14: =AP14 -> 106.6186528 | AR14: =IF(AQ14<VLOOKUP(AM14,$AO$42:$AP$46,2,FALSE),AM14,AM14-(VLOOKUP(AM14,$AO$42:$AS$46,3,FALSE)*(AQ14-VLOOKUP(AM14,$AO$42:$AS$46,2,FALSE))^2)) -> 55 | AS14: =('base data'!tbx1_len/AM14)*60 -> 0.6545454545 | AT14: =VLOOKUP(AM14, $AU$42:$AW$46, 2, FALSE) -> 0.1 | AU14: =VLOOKUP(AM14, $AU$42:$AW$46, 3, FALSE) -> 9.4 | AV14: =1+(AT14*((AQ14/AN14)^(AU14))) -> 1 | AW14: =AS14*AV14 -> 0.6545454545 | AX14: ='base data'!tbx1_len/(AW14/60) -> 55 | AY14: =IF(AQ14/AN14>1, AX14, AR14) -> 55 | AZ14: 2250 | BA14: 13500 | BB14: =AD14-'base data'!AE14 -> 5 | BC14: =IF(BB14>5, 5, BB14) -> 5 | BD14: ='base data'!AF14 -> 0 | BE14: =IF(BC14>=6,0,VLOOKUP(BD14&"ft," & BC14 & "lns",'Gen. Data'!$R$7:$S$41,2,FALSE)) -> 0.6 | BF14: =$AR14+$AI14-BE14 -> 54.6 | BG14: =MROUND(BF14, 5) -> 55 | BH14: 1600 | BI14: =BH14*BB14 -> 8000 | BJ14: 1 | BK14: =1-((BI14*BJ14)/BA14) -> 0.4074074074 | BL14: =AD14-'base data'!AG14 -> 1 | BM14: =IF(BL14>5, 5, BL14) -> 1 | BN14: ='base data'!AH14 -> 0 | BO14: =IF(BM14>=6,0,VLOOKUP(BN14&"ft," & BM14 & "lns",'Gen. Data'!$R$7:$S$41,2,FALSE)) -> 3.6 | BP14: 51.6 | BQ14: =MROUND(BP14, 5) -> 50 | BR14: 1600 | BS14: =BR14*BL14 -> 1600 | BT14: 1 | BU14: =1-((BS14*BT14)/BA14) -> 0.8814814815 | BV14: =AD14-'base data'!AI14 -> 5 | BW14: =IF(BV14>5, 5, BV14) -> 5 | BX14: ='base data'!AJ14 -> 0 | BY14: =IF(BW14>=6,0,VLOOKUP(BX14&"ft," & BW14 & "lns",'Gen. Data'!$R$7:$S$41,2,FALSE)) -> 0.6 | BZ14: 54.6 | CA14: =MROUND(BZ14, 5) -> 55 | CB14: 1600 | CC14: =CB14*BV14 -> 8000 | CD14: 1 | CE14: 0.4074074074 | CF14: =AD14-'base data'!AK14 -> 5 | CG14: =IF(CF14>5, 5, CF14) -> 5 | CH14: ='base data'!AL14 -> 0 | CI14: =IF(CG14>=6,0,VLOOKUP(CH14&"ft," & CG14 & "lns",'Gen. Data'!$R$7:$S$41,2,FALSE)) -> 0.6 | CJ14: 54.6 | CK14: =MROUND(CJ14, 5) -> 55 | CL14: 1600 | CM14: =CL14*CF14 -> 8000 | CN14: 1 | CO14: 0.4074074074 | CP14: =AD14-'base data'!AM14 -> 5 | CQ14: =IF(CP14>5, 5, CP14) -> 5 | CR14: ='base data'!AN14 -> 0 | CS14: =IF(CQ14>=6,0,VLOOKUP(CR14&"ft," & CQ14 & "lns",'Gen. Data'!$R$7:$S$41,2,FALSE)) -> 0.6 | CT14: 54.6 | CU14: =MROUND(CT14, 5) -> 55 | CV14: 1600 | CW14: =CV14*CP14 -> 8000 | CX14: 1 | CY14: 0.4074074074 | CZ14: =AD14-'base data'!AO14 -> 5 | DA14: =IF(CZ14>5, 5, CZ14) -> 5 | DB14: ='base data'!AP14 -> 0 | DC14: =IF(DA14>=6,0,VLOOKUP(DB14&"ft," & DA14 & "lns",'Gen. Data'!$R$7:$S$41,2,FALSE)) -> 0.6 | DD14: 54.6 | DE14: =MROUND(DD14, 5) -> 55 | DF14: 1600 | DG14: =DF14*CZ14 -> 8000 | DH14: 1 | DI14: 0.4074074074 | DJ14: =AD14-'base data'!AQ14 -> 5 | DK14: =IF(DJ14>5, 5, DJ14) -> 5 | DL14: ='base data'!AR14 -> 0 | DM14: =IF(DK14>=6,0,VLOOKUP(DL14&"ft," & DK14 & "lns",'Gen. Data'!$R$7:$S$41,2,FALSE)) -> 0.6 | DN14: 54.6 | DO14: =MROUND(DN14, 5) -> 55 | DP14: 1600 | DQ14: =DP14*DJ14 -> 8000 | DR14: 1 | DS14: 0.4074074074 | DT14: =AD14-'base data'!AS14 -> 5 | DU14: =IF(DT14>5, 5, DT14) -> 5 | DV14: ='base data'!AT14 -> 0 | DW14: =IF(DU14>=6,0,VLOOKUP(DV14&"ft," & DU14 & "lns",'Gen. Data'!$R$7:$S$41,2,FALSE)) -> 0.6 | DX14: 54.6 | DY14: =MROUND(DX14, 5) -> 55 | DZ14: 1600 | EA14: =DZ14*DT14 -> 8000 | EB14: 1 | EC14: 0.4074074074 | ED14: =AD14-'base data'!AU14 -> 5 | EE14: =IF(ED14>5, 5, ED14) -> 5 | EF14: ='base data'!AV14 -> 0 | EG14: =IF(EE14>=6,0,VLOOKUP(EF14&"ft," & EE14 & "lns",'Gen. Data'!$R$7:$S$41,2,FALSE)) -> 0.6 | EH14: 54.6 | EI14: =MROUND(EH14, 5) -> 55 | EJ14: 1600 | EK14: =EJ14*ED14 -> 8000 | EL14: 1 | EM14: 0.4074074074 | EN14: ='base data'!K14/100 -> 0.05 | EO14: ='base data'!$CI$11 -> 1 | EP14: =$J14*((EN14*EO14)/250) -> 0.1279168 | EQ14: ='base data'!L14/100 -> 0.05 | ER14: ='base data'!$CJ$11 -> 0 | ES14: 0 | ET14: ='base data'!N14/100 -> 0.05 | EU14: ='base data'!$CK$11 -> 0 | EV14: 0 | EW14: ='base data'!O14/100 -> 0.05 | EX14: ='base data'!$CL$11 -> 0 | EY14: 0 | EZ14: ='base data'!R14/100 -> 0.05 | FA14: ='base data'!$CM$11 -> 0 | FB14: 0 | FC14: ='base data'!S14/100 -> 0.05 | FD14: ='base data'!$CN$11 -> 0 | FE14: 0 | FF14: ='base data'!T14/100 -> 0.05 | FG14: ='base data'!$CO$11 -> 0 | FH14: 0 | FI14: ='base data'!U14/100 -> 0.05 | FJ14: ='base data'!$CP$11 -> 0 | FK14: 0 | FL14: ='base data'!X14/100 -> 0.05 | FM14: ='base data'!$CQ$11 -> 0 | FN14: 0 | FO14: =EP14+ES14+EV14+EY14+FB14+FE14+FH14+FK14+FN14 -> 0.1279168
B15: 02:00:00 | C15: ='base data'!D15 -> 473 | D15: ='base data'!E15 -> 1 | E15: ='base data'!F15/100 -> 0.02 | F15: ='base data'!G15/100 -> 0.01 | G15: =VLOOKUP('base data'!$D$6,'Gen. Data'!$U$8:$V$10,2,FALSE) -> 1.5 | H15: =VLOOKUP('base data'!$D$6,'Gen. Data'!$U$8:$W$10,3,FALSE) -> 1.2 | I15: 0.9881422925 | J15: =C15/(D15*I15) -> 478.676 | K15: 478.7717352 | L15: ='Crash Dist'!O11 -> 0.0006461915724 | M15: ='Crash Dist'!P11 -> 0.002997541129 | N15: 0.125599487 | O15: =IF(cbx1_wz1=TRUE, BK15*'base data'!$CS$11*'base data'!$F$6, "") -> 2.444444444 | P15: =IF(cbx1_wz2=TRUE, BU15*'base data'!$CT$11*'base data'!$F$6, "") ->  | Q15: =IF(cbx1_wz3=TRUE, CE15*'base data'!$CU$11*'base data'!$F$6, "") ->  | R15: =IF(cbx1_wz4=TRUE, CO15*'base data'!$CV$11*'base data'!$F$6, "") ->  | S15: =IF(cbx1_wz5=TRUE, CY15*'base data'!$CX$11*'base data'!$F$6, "") ->  | T15: =IF(cbx1_wz6=TRUE, DI15*'base data'!$CY$11*'base data'!$F$6, "") ->  | U15: =IF(cbx1_wz7=TRUE, DS15*'base data'!$CZ$11*'base data'!$F$6, "") ->  | V15: =IF(cbx1_wz8=TRUE, EC15*'base data'!$DA$11*'base data'!$F$6, "") ->  | W15: =IF(cbx1_wz9=TRUE, EM15*'base data'!$DB$11*'base data'!$F$6, "") ->  | X15: 2.444444444 | Z15: 02:00:00 | AA15: ='base data'!$N$6 -> Yes | AB15: =IF('base data'!tbx1_FFS<55, 55, 'base data'!tbx1_FFS) -> 56 | AC15: 75.4 | AD15: ='base data'!AC15 -> 6 | AE15: ='base data'!comb_wid_val -> 14 | AF15: =ROUND(LEFT('base data'!comb_rsh_val, 1),0) -> 4 | AG15: ='base data'!tbx1_ipm -> 0.7 | AH15: 0 | AI15: =IF($AF15>=6,0,VLOOKUP($AF15&"ft,"&MIN($AD15,5)&"lns",'Gen. Data'!$R$7:$S$41,2,FALSE)) -> 0.2 | AJ15: 2.386372443 | AK15: =IF(AC15-AH15-AI15-AJ15<55, 55, AC15-AH15-AI15-AJ15) -> 72.81362756 | AL15: 72.81362756 | AM15: 55 | AN15: 2250 | AO15: 13500 | AP15: 79.7952892 | AQ15: 79.7952892 | AR15: 55 | AS15: =('base data'!tbx1_len/AM15)*60 -> 0.6545454545 | AT15: 0.1 | AU15: 9.4 | AV15: 1 | AW15: 0.6545454545 | AX15: ='base data'!tbx1_len/(AW15/60) -> 55 | AY15: 55 | AZ15: 2250 | BA15: 13500 | BB15: =AD15-'base data'!AE15 -> 5 | BC15: 5 | BD15: ='base data'!AF15 -> 0 | BE15: =IF(BC15>=6,0,VLOOKUP(BD15&"ft," & BC15 & "lns",'Gen. Data'!$R$7:$S$41,2,FALSE)) -> 0.6 | BF15: 54.6 | BG15: 55 | BH15: 1600 | BI15: 8000 | BJ15: 1 | BK15: 0.4074074074 | BL15: =AD15-'base data'!AG15 -> 1 | BM15: 1 | BN15: ='base data'!AH15 -> 0 | BO15: =IF(BM15>=6,0,VLOOKUP(BN15&"ft," & BM15 & "lns",'Gen. Data'!$R$7:$S$41,2,FALSE)) -> 3.6 | BP15: 51.6 | BQ15: 50 | BR15: 1600 | BS15: 1600 | BT15: 1 | BU15: 0.8814814815 | BV15: =AD15-'base data'!AI15 -> 5 | BW15: 5 | BX15: ='base data'!AJ15 -> 0 | BY15: =IF(BW15>=6,0,VLOOKUP(BX15&"ft," & BW15 & "lns",'Gen. Data'!$R$7:$S$41,2,FALSE)) -> 0.6 | BZ15: 54.6 | CA15: 55 | CB15: 1600 | CC15: 8000 | CD15: 1 | CE15: 0.4074074074 | CF15: =AD15-'base data'!AK15 -> 5 | CG15: 5 | CH15: ='base data'!AL15 -> 0 | CI15: =IF(CG15>=6,0,VLOOKUP(CH15&"ft," & CG15 & "lns",'Gen. Data'!$R$7:$S$41,2,FALSE)) -> 0.6 | CJ15: 54.6 | CK15: 55 | CL15: 1600 | CM15: 8000 | CN15: 1 | CO15: 0.4074074074 | CP15: =AD15-'base data'!AM15 -> 5 | CQ15: 5 | CR15: ='base data'!AN15 -> 0 | CS15: =IF(CQ15>=6,0,VLOOKUP(CR15&"ft," & CQ15 & "lns",'Gen. Data'!$R$7:$S$41,2,FALSE)) -> 0.6 | CT15: 54.6 | CU15: 55 | CV15: 1600 | CW15: 8000 | CX15: 1 | CY15: 0.4074074074 | CZ15: =AD15-'base data'!AO15 -> 5 | DA15: 5 | DB15: ='base data'!AP15 -> 0 | DC15: =IF(DA15>=6,0,VLOOKUP(DB15&"ft," & DA15 & "lns",'Gen. Data'!$R$7:$S$41,2,FALSE)) -> 0.6 | DD15: 54.6 | DE15: 55 | DF15: 1600 | DG15: 8000 | DH15: 1 | DI15: 0.4074074074 | DJ15: =AD15-'base data'!AQ15 -> 5 | DK15: 5 | DL15: ='base data'!AR15 -> 0 | DM15: =IF(DK15>=6,0,VLOOKUP(DL15&"ft," & DK15 & "lns",'Gen. Data'!$R$7:$S$41,2,FALSE)) -> 0.6 | DN15: 54.6 | DO15: 55 | DP15: 1600 | DQ15: 8000 | DR15: 1 | DS15: 0.4074074074 | DT15: =AD15-'base data'!AS15 -> 5 | DU15: 5 | DV15: ='base data'!AT15 -> 0 | DW15: =IF(DU15>=6,0,VLOOKUP(DV15&"ft," & DU15 & "lns",'Gen. Data'!$R$7:$S$41,2,FALSE)) -> 0.6 | DX15: 54.6 | DY15: 55 | DZ15: 1600 | EA15: 8000 | EB15: 1 | EC15: 0.4074074074 | ED15: =AD15-'base data'!AU15 -> 5 | EE15: 5 | EF15: ='base data'!AV15 -> 0 | EG15: =IF(EE15>=6,0,VLOOKUP(EF15&"ft," & EE15 & "lns",'Gen. Data'!$R$7:$S$41,2,FALSE)) -> 0.6 | EH15: 54.6 | EI15: 55 | EJ15: 1600 | EK15: 8000 | EL15: 1 | EM15: 0.4074074074 | EN15: ='base data'!K15/100 -> 0.05 | EO15: ='base data'!$CI$11 -> 1 | EP15: 0.0957352 | EQ15: ='base data'!L15/100 -> 0.05 | ER15: ='base data'!$CJ$11 -> 0 | ES15: 0 | ET15: ='base data'!N15/100 -> 0.05 | EU15: ='base data'!$CK$11 -> 0 | EV15: 0 | EW15: ='base data'!O15/100 -> 0.05 | EX15: ='base data'!$CL$11 -> 0 | EY15: 0 | EZ15: ='base data'!R15/100 -> 0.05 | FA15: ='base data'!$CM$11 -> 0 | FB15: 0 | FC15: ='base data'!S15/100 -> 0.05 | FD15: ='base data'!$CN$11 -> 0 | FE15: 0 | FF15: ='base data'!T15/100 -> 0.05 | FG15: ='base data'!$CO$11 -> 0 | FH15: 0 | FI15: ='base data'!U15/100 -> 0.05 | FJ15: ='base data'!$CP$11 -> 0 | FK15: 0 | FL15: ='base data'!X15/100 -> 0.05 | FM15: ='base data'!$CQ$11 -> 0 | FN15: 0 | FO15: 0.0957352
B16: 03:00:00 | C16: ='base data'!D16 -> 632 | D16: ='base data'!E16 -> 1 | E16: ='base data'!F16/100 -> 0.02 | F16: ='base data'!G16/100 -> 0.01 | G16: =VLOOKUP('base data'!$D$6,'Gen. Data'!$U$8:$V$10,2,FALSE) -> 1.5 | H16: =VLOOKUP('base data'!$D$6,'Gen. Data'!$U$8:$W$10,3,FALSE) -> 1.2 | I16: 0.9881422925 | J16: 639.584 | K16: 639.7119168 | L16: ='Crash Dist'!O12 -> 0.0008634103039 | M16: ='Crash Dist'!P12 -> 0.004005171234 | N16: 0.1678200334 | O16: =IF(cbx1_wz1=TRUE, BK16*'base data'!$CS$11*'base data'!$F$6, "") -> 2.444444444 | P16: =IF(cbx1_wz2=TRUE, BU16*'base data'!$CT$11*'base data'!$F$6, "") ->  | Q16: =IF(cbx1_wz3=TRUE, CE16*'base data'!$CU$11*'base data'!$F$6, "") ->  | R16: =IF(cbx1_wz4=TRUE, CO16*'base data'!$CV$11*'base data'!$F$6, "") ->  | S16: =IF(cbx1_wz5=TRUE, CY16*'base data'!$CX$11*'base data'!$F$6, "") ->  | T16: =IF(cbx1_wz6=TRUE, DI16*'base data'!$CY$11*'base data'!$F$6, "") ->  | U16: =IF(cbx1_wz7=TRUE, DS16*'base data'!$CZ$11*'base data'!$F$6, "") ->  | V16: =IF(cbx1_wz8=TRUE, EC16*'base data'!$DA$11*'base data'!$F$6, "") ->  | W16: =IF(cbx1_wz9=TRUE, EM16*'base data'!$DB$11*'base data'!$F$6, "") ->  | X16: 2.444444444 | Z16: 03:00:00 | AA16: ='base data'!$N$6 -> Yes | AB16: =IF('base data'!tbx1_FFS<55, 55, 'base data'!tbx1_FFS) -> 56 | AC16: 75.4 | AD16: ='base data'!AC16 -> 6 | AE16: ='base data'!comb_wid_val -> 14 | AF16: =ROUND(LEFT('base data'!comb_rsh_val, 1),0) -> 4 | AG16: ='base data'!tbx1_ipm -> 0.7 | AH16: 0 | AI16: =IF($AF16>=6,0,VLOOKUP($AF16&"ft,"&MIN($AD16,5)&"lns",'Gen. Data'!$R$7:$S$41,2,FALSE)) -> 0.2 | AJ16: 2.386372443 | AK16: 72.81362756 | AL16: 72.81362756 | AM16: 55 | AN16: 2250 | AO16: 13500 | AP16: 106.6186528 | AQ16: 106.6186528 | AR16: 55 | AS16: =('base data'!tbx1_len/AM16)*60 -> 0.6545454545 | AT16: 0.1 | AU16: 9.4 | AV16: 1 | AW16: 0.6545454545 | AX16: ='base data'!tbx1_len/(AW16/60) -> 55 | AY16: 55 | AZ16: 2250 | BA16: 13500 | BB16: =AD16-'base data'!AE16 -> 5 | BC16: 5 | BD16: ='base data'!AF16 -> 0 | BE16: =IF(BC16>=6,0,VLOOKUP(BD16&"ft," & BC16 & "lns",'Gen. Data'!$R$7:$S$41,2,FALSE)) -> 0.6 | BF16: 54.6 | BG16: 55 | BH16: 1600 | BI16: 8000 | BJ16: 1 | BK16: 0.4074074074 | BL16: =AD16-'base data'!AG16 -> 1 | BM16: 1 | BN16: ='base data'!AH16 -> 0 | BO16: =IF(BM16>=6,0,VLOOKUP(BN16&"ft," & BM16 & "lns",'Gen. Data'!$R$7:$S$41,2,FALSE)) -> 3.6 | BP16: 51.6 | BQ16: 50 | BR16: 1600 | BS16: 1600 | BT16: 1 | BU16: 0.8814814815 | BV16: =AD16-'base data'!AI16 -> 5 | BW16: 5 | BX16: ='base data'!AJ16 -> 0 | BY16: =IF(BW16>=6,0,VLOOKUP(BX16&"ft," & BW16 & "lns",'Gen. Data'!$R$7:$S$41,2,FALSE)) -> 0.6 | BZ16: 54.6 | CA16: 55 | CB16: 1600 | CC16: 8000 | CD16: 1 | CE16: 0.4074074074 | CF16: =AD16-'base data'!AK16 -> 5 | CG16: 5 | CH16: ='base data'!AL16 -> 0 | CI16: =IF(CG16>=6,0,VLOOKUP(CH16&"ft," & CG16 & "lns",'Gen. Data'!$R$7:$S$41,2,FALSE)) -> 0.6 | CJ16: 54.6 | CK16: 55 | CL16: 1600 | CM16: 8000 | CN16: 1 | CO16: 0.4074074074 | CP16: =AD16-'base data'!AM16 -> 5 | CQ16: 5 | CR16: ='base data'!AN16 -> 0 | CS16: =IF(CQ16>=6,0,VLOOKUP(CR16&"ft," & CQ16 & "lns",'Gen. Data'!$R$7:$S$41,2,FALSE)) -> 0.6 | CT16: 54.6 | CU16: 55 | CV16: 1600 | CW16: 8000 | CX16: 1 | CY16: 0.4074074074 | CZ16: =AD16-'base data'!AO16 -> 5 | DA16: 5 | DB16: ='base data'!AP16 -> 0 | DC16: =IF(DA16>=6,0,VLOOKUP(DB16&"ft," & DA16 & "lns",'Gen. Data'!$R$7:$S$41,2,FALSE)) -> 0.6 | DD16: 54.6 | DE16: 55 | DF16: 1600 | DG16: 8000 | DH16: 1 | DI16: 0.4074074074 | DJ16: =AD16-'base data'!AQ16 -> 5 | DK16: 5 | DL16: ='base data'!AR16 -> 0 | DM16: =IF(DK16>=6,0,VLOOKUP(DL16&"ft," & DK16 & "lns",'Gen. Data'!$R$7:$S$41,2,FALSE)) -> 0.6 | DN16: 54.6 | DO16: 55 | DP16: 1600 | DQ16: 8000 | DR16: 1 | DS16: 0.4074074074 | DT16: =AD16-'base data'!AS16 -> 5 | DU16: 5 | DV16: ='base data'!AT16 -> 0 | DW16: =IF(DU16>=6,0,VLOOKUP(DV16&"ft," & DU16 & "lns",'Gen. Data'!$R$7:$S$41,2,FALSE)) -> 0.6 | DX16: 54.6 | DY16: 55 | DZ16: 1600 | EA16: 8000 | EB16: 1 | EC16: 0.4074074074 | ED16: =AD16-'base data'!AU16 -> 5 | EE16: 5 | EF16: ='base data'!AV16 -> 0 | EG16: =IF(EE16>=6,0,VLOOKUP(EF16&"ft," & EE16 & "lns",'Gen. Data'!$R$7:$S$41,2,FALSE)) -> 0.6 | EH16: 54.6 | EI16: 55 | EJ16: 1600 | EK16: 8000 | EL16: 1 | EM16: 0.4074074074 | EN16: ='base data'!K16/100 -> 0.05 | EO16: ='base data'!$CI$11 -> 1 | EP16: 0.1279168 | EQ16: ='base data'!L16/100 -> 0.05 | ER16: ='base data'!$CJ$11 -> 0 | ES16: 0 | ET16: ='base data'!N16/100 -> 0.05 | EU16: ='base data'!$CK$11 -> 0 | EV16: 0 | EW16: ='base data'!O16/100 -> 0.05 | EX16: ='base data'!$CL$11 -> 0 | EY16: 0 | EZ16: ='base data'!R16/100 -> 0.05 | FA16: ='base data'!$CM$11 -> 0 | FB16: 0 | FC16: ='base data'!S16/100 -> 0.05 | FD16: ='base data'!$CN$11 -> 0 | FE16: 0 | FF16: ='base data'!T16/100 -> 0.05 | FG16: ='base data'!$CO$11 -> 0 | FH16: 0 | FI16: ='base data'!U16/100 -> 0.05 | FJ16: ='base data'!$CP$11 -> 0 | FK16: 0 | FL16: ='base data'!X16/100 -> 0.05 | FM16: ='base data'!$CQ$11 -> 0 | FN16: 0 | FO16: 0.1279168
B17: 04:00:00 | C17: ='base data'!D17 -> 1578 | D17: ='base data'!E17 -> 1 | E17: ='base data'!F17/100 -> 0.02 | F17: ='base data'!G17/100 -> 0.01 | G17: =VLOOKUP('base data'!$D$6,'Gen. Data'!$U$8:$V$10,2,FALSE) -> 1.5 | H17: =VLOOKUP('base data'!$D$6,'Gen. Data'!$U$8:$W$10,3,FALSE) -> 1.2 | I17: 0.9881422925 | J17: 1596.936 | K17: 1597.255387 | L17: ='Crash Dist'!O13 -> 0.002155793449 | M17: ='Crash Dist'!P13 -> 0.01000025349 | N17: 0.4190190073 | O17: =IF(cbx1_wz1=TRUE, BK17*'base data'!$CS$11*'base data'!$F$6, "") -> 2.444444444 | P17: =IF(cbx1_wz2=TRUE, BU17*'base data'!$CT$11*'base data'!$F$6, "") ->  | Q17: =IF(cbx1_wz3=TRUE, CE17*'base data'!$CU$11*'base data'!$F$6, "") ->  | R17: =IF(cbx1_wz4=TRUE, CO17*'base data'!$CV$11*'base data'!$F$6, "") ->  | S17: =IF(cbx1_wz5=TRUE, CY17*'base data'!$CX$11*'base data'!$F$6, "") ->  | T17: =IF(cbx1_wz6=TRUE, DI17*'base data'!$CY$11*'base data'!$F$6, "") ->  | U17: =IF(cbx1_wz7=TRUE, DS17*'base data'!$CZ$11*'base data'!$F$6, "") ->  | V17: =IF(cbx1_wz8=TRUE, EC17*'base data'!$DA$11*'base data'!$F$6, "") ->  | W17: =IF(cbx1_wz9=TRUE, EM17*'base data'!$DB$11*'base data'!$F$6, "") ->  | X17: 2.444444444 | Z17: 04:00:00 | AA17: ='base data'!$N$6 -> Yes | AB17: =IF('base data'!tbx1_FFS<55, 55, 'base data'!tbx1_FFS) -> 56 | AC17: 75.4 | AD17: ='base data'!AC17 -> 6 | AE17: ='base data'!comb_wid_val -> 14 | AF17: =ROUND(LEFT('base data'!comb_rsh_val, 1),0) -> 4 | AG17: ='base data'!tbx1_ipm -> 0.7 | AH17: 0 | AI17: =IF($AF17>=6,0,VLOOKUP($AF17&"ft,"&MIN($AD17,5)&"lns",'Gen. Data'!$R$7:$S$41,2,FALSE)) -> 0.2 | AJ17: 2.386372443 | AK17: 72.81362756 | AL17: 72.81362756 | AM17: 55 | AN17: 2250 | AO17: 13500 | AP17: 266.2092312 | AQ17: =AP17 -> 266.2092312 | AR17: =IF(AQ17<VLOOKUP(AM17,$AO$42:$AP$46,2,FALSE),AM17,AM17-(VLOOKUP(AM17,$AO$42:$AS$46,3,FALSE)*(AQ17-VLOOKUP(AM17,$AO$42:$AS$46,2,FALSE))^2)) -> 55 | AS17: =('base data'!tbx1_len/AM17)*60 -> 0.6545454545 | AT17: 0.1 | AU17: 9.4 | AV17: 1 | AW17: 0.6545454547 | AX17: ='base data'!tbx1_len/(AW17/60) -> 54.99999999 | AY17: 55 | AZ17: 2250 | BA17: 13500 | BB17: =AD17-'base data'!AE17 -> 5 | BC17: 5 | BD17: ='base data'!AF17 -> 0 | BE17: =IF(BC17>=6,0,VLOOKUP(BD17&"ft," & BC17 & "lns",'Gen. Data'!$R$7:$S$41,2,FALSE)) -> 0.6 | BF17: 54.6 | BG17: 55 | BH17: 1600 | BI17: 8000 | BJ17: 1 | BK17: 0.4074074074 | BL17: =AD17-'base data'!AG17 -> 1 | BM17: 1 | BN17: ='base data'!AH17 -> 0 | BO17: =IF(BM17>=6,0,VLOOKUP(BN17&"ft," & BM17 & "lns",'Gen. Data'!$R$7:$S$41,2,FALSE)) -> 3.6 | BP17: 51.6 | BQ17: 50 | BR17: 1600 | BS17: 1600 | BT17: 1 | BU17: 0.8814814815 | BV17: =AD17-'base data'!AI17 -> 5 | BW17: 5 | BX17: ='base data'!AJ17 -> 0 | BY17: =IF(BW17>=6,0,VLOOKUP(BX17&"ft," & BW17 & "lns",'Gen. Data'!$R$7:$S$41,2,FALSE)) -> 0.6 | BZ17: 54.6 | CA17: 55 | CB17: 1600 | CC17: 8000 | CD17: 1 | CE17: 0.4074074074 | CF17: =AD17-'base data'!AK17 -> 5 | CG17: 5 | CH17: ='base data'!AL17 -> 0 | CI17: =IF(CG17>=6,0,VLOOKUP(CH17&"ft," & CG17 & "lns",'Gen. Data'!$R$7:$S$41,2,FALSE)) -> 0.6 | CJ17: 54.6 | CK17: 55 | CL17: 1600 | CM17: 8000 | CN17: 1 | CO17: 0.4074074074 | CP17: =AD17-'base data'!AM17 -> 5 | CQ17: 5 | CR17: ='base data'!AN17 -> 0 | CS17: =IF(CQ17>=6,0,VLOOKUP(CR17&"ft," & CQ17 & "lns",'Gen. Data'!$R$7:$S$41,2,FALSE)) -> 0.6 | CT17: 54.6 | CU17: 55 | CV17: 1600 | CW17: 8000 | CX17: 1 | CY17: 0.4074074074 | CZ17: =AD17-'base data'!AO17 -> 5 | DA17: 5 | DB17: ='base data'!AP17 -> 0 | DC17: =IF(DA17>=6,0,VLOOKUP(DB17&"ft," & DA17 & "lns",'Gen. Data'!$R$7:$S$41,2,FALSE)) -> 0.6 | DD17: 54.6 | DE17: 55 | DF17: 1600 | DG17: 8000 | DH17: 1 | DI17: 0.4074074074 | DJ17: =AD17-'base data'!AQ17 -> 5 | DK17: 5 | DL17: ='base data'!AR17 -> 0 | DM17: =IF(DK17>=6,0,VLOOKUP(DL17&"ft," & DK17 & "lns",'Gen. Data'!$R$7:$S$41,2,FALSE)) -> 0.6 | DN17: 54.6 | DO17: 55 | DP17: 1600 | DQ17: 8000 | DR17: 1 | DS17: 0.4074074074 | DT17: =AD17-'base data'!AS17 -> 5 | DU17: 5 | DV17: ='base data'!AT17 -> 0 | DW17: =IF(DU17>=6,0,VLOOKUP(DV17&"ft," & DU17 & "lns",'Gen. Data'!$R$7:$S$41,2,FALSE)) -> 0.6 | DX17: 54.6 | DY17: 55 | DZ17: 1600 | EA17: 8000 | EB17: 1 | EC17: 0.4074074074 | ED17: =AD17-'base data'!AU17 -> 5 | EE17: 5 | EF17: ='base data'!AV17 -> 0 | EG17: =IF(EE17>=6,0,VLOOKUP(EF17&"ft," & EE17 & "lns",'Gen. Data'!$R$7:$S$41,2,FALSE)) -> 0.6 | EH17: 54.6 | EI17: 55 | EJ17: 1600 | EK17: 8000 | EL17: 1 | EM17: 0.4074074074 | EN17: ='base data'!K17/100 -> 0.05 | EO17: ='base data'!$CI$11 -> 1 | EP17: 0.3193872 | EQ17: ='base data'!L17/100 -> 0.05 | ER17: ='base data'!$CJ$11 -> 0 | ES17: 0 | ET17: ='base data'!N17/100 -> 0.05 | EU17: ='base data'!$CK$11 -> 0 | EV17: 0 | EW17: ='base data'!O17/100 -> 0.05 | EX17: ='base data'!$CL$11 -> 0 | EY17: 0 | EZ17: ='base data'!R17/100 -> 0.05 | FA17: ='base data'!$CM$11 -> 0 | FB17: 0 | FC17: ='base data'!S17/100 -> 0.05 | FD17: ='base data'!$CN$11 -> 0 | FE17: 0 | FF17: ='base data'!T17/100 -> 0.05 | FG17: ='base data'!$CO$11 -> 0 | FH17: 0 | FI17: ='base data'!U17/100 -> 0.05 | FJ17: ='base data'!$CP$11 -> 0 | FK17: 0 | FL17: ='base data'!X17/100 -> 0.05 | FM17: ='base data'!$CQ$11 -> 0 | FN17: 0 | FO17: 0.3193872
B18: 05:00:00 | C18: ='base data'!D18 -> 5523 | D18: ='base data'!E18 -> 1 | E18: ='base data'!F18/100 -> 0.02 | F18: ='base data'!G18/100 -> 0.01 | G18: =VLOOKUP('base data'!$D$6,'Gen. Data'!$U$8:$V$10,2,FALSE) -> 1.5 | H18: =VLOOKUP('base data'!$D$6,'Gen. Data'!$U$8:$W$10,3,FALSE) -> 1.2 | I18: 0.9881422925 | J18: 5589.276 | K18: 5590.393855 | L18: ='Crash Dist'!O14 -> 0.00754527707 | M18: ='Crash Dist'!P14 -> 0.03500088722 | N18: 1.466566526 | O18: =IF(cbx1_wz1=TRUE, BK18*'base data'!$CS$11*'base data'!$F$6, "") -> 2.444444444 | P18: =IF(cbx1_wz2=TRUE, BU18*'base data'!$CT$11*'base data'!$F$6, "") ->  | Q18: =IF(cbx1_wz3=TRUE, CE18*'base data'!$CU$11*'base data'!$F$6, "") ->  | R18: =IF(cbx1_wz4=TRUE, CO18*'base data'!$CV$11*'base data'!$F$6, "") ->  | S18: =IF(cbx1_wz5=TRUE, CY18*'base data'!$CX$11*'base data'!$F$6, "") ->  | T18: =IF(cbx1_wz6=TRUE, DI18*'base data'!$CY$11*'base data'!$F$6, "") ->  | U18: =IF(cbx1_wz7=TRUE, DS18*'base data'!$CZ$11*'base data'!$F$6, "") ->  | V18: =IF(cbx1_wz8=TRUE, EC18*'base data'!$DA$11*'base data'!$F$6, "") ->  | W18: =IF(cbx1_wz9=TRUE, EM18*'base data'!$DB$11*'base data'!$F$6, "") ->  | X18: 2.444444444 | Z18: 05:00:00 | AA18: ='base data'!$N$6 -> Yes | AB18: =IF('base data'!tbx1_FFS<55, 55, 'base data'!tbx1_FFS) -> 56 | AC18: 75.4 | AD18: ='base data'!AC18 -> 6 | AE18: ='base data'!comb_wid_val -> 14 | AF18: =ROUND(LEFT('base data'!comb_rsh_val, 1),0) -> 4 | AG18: ='base data'!tbx1_ipm -> 0.7 | AH18: 0 | AI18: =IF($AF18>=6,0,VLOOKUP($AF18&"ft,"&MIN($AD18,5)&"lns",'Gen. Data'!$R$7:$S$41,2,FALSE)) -> 0.2 | AJ18: 2.386372443 | AK18: 72.81362756 | AL18: 72.81362756 | AM18: 55 | AN18: 2250 | AO18: 13500 | AP18: 931.7323092 | AQ18: 931.7323092 | AR18: 55 | AS18: =('base data'!tbx1_len/AM18)*60 -> 0.6545454545 | AT18: 0.1 | AU18: 9.4 | AV18: 1.000025166 | AW18: 0.6545619271 | AX18: ='base data'!tbx1_len/(AW18/60) -> 54.99861588 | AY18: 55 | AZ18: 2250 | BA18: 13500 | BB18: =AD18-'base data'!AE18 -> 5 | BC18: 5 | BD18: ='base data'!AF18 -> 0 | BE18: =IF(BC18>=6,0,VLOOKUP(BD18&"ft," & BC18 & "lns",'Gen. Data'!$R$7:$S$41,2,FALSE)) -> 0.6 | BF18: 54.6 | BG18: 55 | BH18: 1600 | BI18: 8000 | BJ18: 1 | BK18: 0.4074074074 | BL18: =AD18-'base data'!AG18 -> 1 | BM18: 1 | BN18: ='base data'!AH18 -> 0 | BO18: =IF(BM18>=6,0,VLOOKUP(BN18&"ft," & BM18 & "lns",'Gen. Data'!$R$7:$S$41,2,FALSE)) -> 3.6 | BP18: 51.6 | BQ18: 50 | BR18: 1600 | BS18: 1600 | BT18: 1 | BU18: 0.8814814815 | BV18: =AD18-'base data'!AI18 -> 5 | BW18: 5 | BX18: ='base data'!AJ18 -> 0 | BY18: =IF(BW18>=6,0,VLOOKUP(BX18&"ft," & BW18 & "lns",'Gen. Data'!$R$7:$S$41,2,FALSE)) -> 0.6 | BZ18: 54.6 | CA18: 55 | CB18: 1600 | CC18: 8000 | CD18: 1 | CE18: 0.4074074074 | CF18: =AD18-'base data'!AK18 -> 5 | CG18: 5 | CH18: ='base data'!AL18 -> 0 | CI18: =IF(CG18>=6,0,VLOOKUP(CH18&"ft," & CG18 & "lns",'Gen. Data'!$R$7:$S$41,2,FALSE)) -> 0.6 | CJ18: 54.6 | CK18: 55 | CL18: 1600 | CM18: 8000 | CN18: 1 | CO18: 0.4074074074 | CP18: =AD18-'base data'!AM18 -> 5 | CQ18: 5 | CR18: ='base data'!AN18 -> 0 | CS18: =IF(CQ18>=6,0,VLOOKUP(CR18&"ft," & CQ18 & "lns",'Gen. Data'!$R$7:$S$41,2,FALSE)) -> 0.6 | CT18: 54.6 | CU18: 55 | CV18: 1600 | CW18: 8000 | CX18: 1 | CY18: 0.4074074074 | CZ18: =AD18-'base data'!AO18 -> 5 | DA18: 5 | DB18: ='base data'!AP18 -> 0 | DC18: =IF(DA18>=6,0,VLOOKUP(DB18&"ft," & DA18 & "lns",'Gen. Data'!$R$7:$S$41,2,FALSE)) -> 0.6 | DD18: 54.6 | DE18: 55 | DF18: 1600 | DG18: 8000 | DH18: 1 | DI18: 0.4074074074 | DJ18: =AD18-'base data'!AQ18 -> 5 | DK18: 5 | DL18: ='base data'!AR18 -> 0 | DM18: =IF(DK18>=6,0,VLOOKUP(DL18&"ft," & DK18 & "lns",'Gen. Data'!$R$7:$S$41,2,FALSE)) -> 0.6 | DN18: 54.6 | DO18: 55 | DP18: 1600 | DQ18: 8000 | DR18: 1 | DS18: 0.4074074074 | DT18: =AD18-'base data'!AS18 -> 5 | DU18: 5 | DV18: ='base data'!AT18 -> 0 | DW18: =IF(DU18>=6,0,VLOOKUP(DV18&"ft," & DU18 & "lns",'Gen. Data'!$R$7:$S$41,2,FALSE)) -> 0.6 | DX18: 54.6 | DY18: 55 | DZ18: 1600 | EA18: 8000 | EB18: 1 | EC18: 0.4074074074 | ED18: =AD18-'base data'!AU18 -> 5 | EE18: 5 | EF18: ='base data'!AV18 -> 0 | EG18: =IF(EE18>=6,0,VLOOKUP(EF18&"ft," & EE18 & "lns",'Gen. Data'!$R$7:$S$41,2,FALSE)) -> 0.6 | EH18: 54.6 | EI18: 55 | EJ18: 1600 | EK18: 8000 | EL18: 1 | EM18: 0.4074074074 | EN18: ='base data'!K18/100 -> 0.05 | EO18: ='base data'!$CI$11 -> 1 | EP18: 1.1178552 | EQ18: ='base data'!L18/100 -> 0.05 | ER18: ='base data'!$CJ$11 -> 0 | ES18: 0 | ET18: ='base data'!N18/100 -> 0.05 | EU18: ='base data'!$CK$11 -> 0 | EV18: 0 | EW18: ='base data'!O18/100 -> 0.05 | EX18: ='base data'!$CL$11 -> 0 | EY18: 0 | EZ18: ='base data'!R18/100 -> 0.05 | FA18: ='base data'!$CM$11 -> 0 | FB18: 0 | FC18: ='base data'!S18/100 -> 0.05 | FD18: ='base data'!$CN$11 -> 0 | FE18: 0 | FF18: ='base data'!T18/100 -> 0.05 | FG18: ='base data'!$CO$11 -> 0 | FH18: 0 | FI18: ='base data'!U18/100 -> 0.05 | FJ18: ='base data'!$CP$11 -> 0 | FK18: 0 | FL18: ='base data'!X18/100 -> 0.05 | FM18: ='base data'!$CQ$11 -> 0 | FN18: 0 | FO18: 1.1178552
B19: 06:00:00 | C19: ='base data'!D19 -> 8678 | D19: ='base data'!E19 -> 1 | E19: ='base data'!F19/100 -> 0.02 | F19: ='base data'!G19/100 -> 0.01 | G19: =VLOOKUP('base data'!$D$6,'Gen. Data'!$U$8:$V$10,2,FALSE) -> 1.5 | H19: =VLOOKUP('base data'!$D$6,'Gen. Data'!$U$8:$W$10,3,FALSE) -> 1.2 | I19: 0.9881422925 | J19: 8782.136 | K19: 8783.892427 | L19: ='Crash Dist'!O15 -> 0.04228380659 | M19: ='Crash Dist'!P15 -> 0.05499505691 | N19: 3.617437067 | O19: =IF(cbx1_wz1=TRUE, BK19*'base data'!$CS$11*'base data'!$F$6, "") -> 2.444444444 | P19: =IF(cbx1_wz2=TRUE, BU19*'base data'!$CT$11*'base data'!$F$6, "") ->  | Q19: =IF(cbx1_wz3=TRUE, CE19*'base data'!$CU$11*'base data'!$F$6, "") ->  | R19: =IF(cbx1_wz4=TRUE, CO19*'base data'!$CV$11*'base data'!$F$6, "") ->  | S19: =IF(cbx1_wz5=TRUE, CY19*'base data'!$CX$11*'base data'!$F$6, "") ->  | T19: =IF(cbx1_wz6=TRUE, DI19*'base data'!$CY$11*'base data'!$F$6, "") ->  | U19: =IF(cbx1_wz7=TRUE, DS19*'base data'!$CZ$11*'base data'!$F$6, "") ->  | V19: =IF(cbx1_wz8=TRUE, EC19*'base data'!$DA$11*'base data'!$F$6, "") ->  | W19: =IF(cbx1_wz9=TRUE, EM19*'base data'!$DB$11*'base data'!$F$6, "") ->  | X19: 2.444444444 | Z19: 06:00:00 | AA19: ='base data'!$N$6 -> Yes | AB19: =IF('base data'!tbx1_FFS<55, 55, 'base data'!tbx1_FFS) -> 56 | AC19: 75.4 | AD19: ='base data'!AC19 -> 6 | AE19: ='base data'!comb_wid_val -> 14 | AF19: =ROUND(LEFT('base data'!comb_rsh_val, 1),0) -> 4 | AG19: ='base data'!tbx1_ipm -> 0.7 | AH19: 0 | AI19: =IF($AF19>=6,0,VLOOKUP($AF19&"ft,"&MIN($AD19,5)&"lns",'Gen. Data'!$R$7:$S$41,2,FALSE)) -> 0.2 | AJ19: 2.386372443 | AK19: 72.81362756 | AL19: 72.81362756 | AM19: 55 | AN19: 2250 | AO19: 13500 | AP19: 1463.982071 | AQ19: 1463.982071 | AR19: 55 | AS19: =('base data'!tbx1_len/AM19)*60 -> 0.6545454545 | AT19: 0.1 | AU19: 9.4 | AV19: 1.001760032 | AW19: 0.6556974752 | AX19: ='base data'!tbx1_len/(AW19/60) -> 54.90336834 | AY19: 55 | AZ19: 2250 | BA19: 13500 | BB19: =AD19-'base data'!AE19 -> 5 | BC19: 5 | BD19: ='base data'!AF19 -> 0 | BE19: =IF(BC19>=6,0,VLOOKUP(BD19&"ft," & BC19 & "lns",'Gen. Data'!$R$7:$S$41,2,FALSE)) -> 0.6 | BF19: 54.6 | BG19: 55 | BH19: 1600 | BI19: 8000 | BJ19: 1 | BK19: 0.4074074074 | BL19: =AD19-'base data'!AG19 -> 1 | BM19: 1 | BN19: ='base data'!AH19 -> 0 | BO19: =IF(BM19>=6,0,VLOOKUP(BN19&"ft," & BM19 & "lns",'Gen. Data'!$R$7:$S$41,2,FALSE)) -> 3.6 | BP19: 51.6 | BQ19: 50 | BR19: 1600 | BS19: 1600 | BT19: 1 | BU19: 0.8814814815 | BV19: =AD19-'base data'!AI19 -> 5 | BW19: 5 | BX19: ='base data'!AJ19 -> 0 | BY19: =IF(BW19>=6,0,VLOOKUP(BX19&"ft," & BW19 & "lns",'Gen. Data'!$R$7:$S$41,2,FALSE)) -> 0.6 | BZ19: 54.6 | CA19: 55 | CB19: 1600 | CC19: 8000 | CD19: 1 | CE19: 0.4074074074 | CF19: =AD19-'base data'!AK19 -> 5 | CG19: 5 | CH19: ='base data'!AL19 -> 0 | CI19: =IF(CG19>=6,0,VLOOKUP(CH19&"ft," & CG19 & "lns",'Gen. Data'!$R$7:$S$41,2,FALSE)) -> 0.6 | CJ19: 54.6 | CK19: 55 | CL19: 1600 | CM19: 8000 | CN19: 1 | CO19: 0.4074074074 | CP19: =AD19-'base data'!AM19 -> 5 | CQ19: 5 | CR19: ='base data'!AN19 -> 0 | CS19: =IF(CQ19>=6,0,VLOOKUP(CR19&"ft," & CQ19 & "lns",'Gen. Data'!$R$7:$S$41,2,FALSE)) -> 0.6 | CT19: 54.6 | CU19: 55 | CV19: 1600 | CW19: 8000 | CX19: 1 | CY19: 0.4074074074 | CZ19: =AD19-'base data'!AO19 -> 5 | DA19: 5 | DB19: ='base data'!AP19 -> 0 | DC19: =IF(DA19>=6,0,VLOOKUP(DB19&"ft," & DA19 & "lns",'Gen. Data'!$R$7:$S$41,2,FALSE)) -> 0.6 | DD19: 54.6 | DE19: 55 | DF19: 1600 | DG19: 8000 | DH19: 1 | DI19: 0.4074074074 | DJ19: =AD19-'base data'!AQ19 -> 5 | DK19: 5 | DL19: ='base data'!AR19 -> 0 | DM19: =IF(DK19>=6,0,VLOOKUP(DL19&"ft," & DK19 & "lns",'Gen. Data'!$R$7:$S$41,2,FALSE)) -> 0.6 | DN19: 54.6 | DO19: 55 | DP19: 1600 | DQ19: 8000 | DR19: 1 | DS19: 0.4074074074 | DT19: =AD19-'base data'!AS19 -> 5 | DU19: 5 | DV19: ='base data'!AT19 -> 0 | DW19: =IF(DU19>=6,0,VLOOKUP(DV19&"ft," & DU19 & "lns",'Gen. Data'!$R$7:$S$41,2,FALSE)) -> 0.6 | DX19: 54.6 | DY19: 55 | DZ19: 1600 | EA19: 8000 | EB19: 1 | EC19: 0.4074074074 | ED19: =AD19-'base data'!AU19 -> 5 | EE19: 5 | EF19: ='base data'!AV19 -> 0 | EG19: =IF(EE19>=6,0,VLOOKUP(EF19&"ft," & EE19 & "lns",'Gen. Data'!$R$7:$S$41,2,FALSE)) -> 0.6 | EH19: 54.6 | EI19: 55 | EJ19: 1600 | EK19: 8000 | EL19: 1 | EM19: 0.4074074074 | EN19: ='base data'!K19/100 -> 0.05 | EO19: ='base data'!$CI$11 -> 1 | EP19: 1.7564272 | EQ19: ='base data'!L19/100 -> 0.05 | ER19: ='base data'!$CJ$11 -> 0 | ES19: 0 | ET19: ='base data'!N19/100 -> 0.05 | EU19: ='base data'!$CK$11 -> 0 | EV19: 0 | EW19: ='base data'!O19/100 -> 0.05 | EX19: ='base data'!$CL$11 -> 0 | EY19: 0 | EZ19: ='base data'!R19/100 -> 0.05 | FA19: ='base data'!$CM$11 -> 0 | FB19: 0 | FC19: ='base data'!S19/100 -> 0.05 | FD19: ='base data'!$CN$11 -> 0 | FE19: 0 | FF19: ='base data'!T19/100 -> 0.05 | FG19: ='base data'!$CO$11 -> 0 | FH19: 0 | FI19: ='base data'!U19/100 -> 0.05 | FJ19: ='base data'!$CP$11 -> 0 | FK19: 0 | FL19: ='base data'!X19/100 -> 0.05 | FM19: ='base data'!$CQ$11 -> 0 | FN19: 0 | FO19: 1.7564272
B20: 07:00:00 | C20: ='base data'!D20 -> 12150 | D20: ='base data'!E20 -> 1 | E20: ='base data'!F20/100 -> 0.02 | F20: ='base data'!G20/100 -> 0.01 | G20: =VLOOKUP('base data'!$D$6,'Gen. Data'!$U$8:$V$10,2,FALSE) -> 1.5 | H20: =VLOOKUP('base data'!$D$6,'Gen. Data'!$U$8:$W$10,3,FALSE) -> 1.2 | I20: 0.9881422925 | J20: 12295.8 | K20: 12298.25916 | L20: ='Crash Dist'!O16 -> 0.1562895666 | M20: ='Crash Dist'!P16 -> 0.07699814951 | N20: 9.254479064 | O20: =IF(cbx1_wz1=TRUE, BK20*'base data'!$CS$11*'base data'!$F$6, "") -> 2.444444444 | P20: =IF(cbx1_wz2=TRUE, BU20*'base data'!$CT$11*'base data'!$F$6, "") ->  | Q20: =IF(cbx1_wz3=TRUE, CE20*'base data'!$CU$11*'base data'!$F$6, "") ->  | R20: =IF(cbx1_wz4=TRUE, CO20*'base data'!$CV$11*'base data'!$F$6, "") ->  | S20: =IF(cbx1_wz5=TRUE, CY20*'base data'!$CX$11*'base data'!$F$6, "") ->  | T20: =IF(cbx1_wz6=TRUE, DI20*'base data'!$CY$11*'base data'!$F$6, "") ->  | U20: =IF(cbx1_wz7=TRUE, DS20*'base data'!$CZ$11*'base data'!$F$6, "") ->  | V20: =IF(cbx1_wz8=TRUE, EC20*'base data'!$DA$11*'base data'!$F$6, "") ->  | W20: =IF(cbx1_wz9=TRUE, EM20*'base data'!$DB$11*'base data'!$F$6, "") ->  | X20: 2.444444444 | Z20: 07:00:00 | AA20: ='base data'!$N$6 -> Yes | AB20: =IF('base data'!tbx1_FFS<55, 55, 'base data'!tbx1_FFS) -> 56 | AC20: 75.4 | AD20: ='base data'!AC20 -> 6 | AE20: ='base data'!comb_wid_val -> 14 | AF20: =ROUND(LEFT('base data'!comb_rsh_val, 1),0) -> 4 | AG20: ='base data'!tbx1_ipm -> 0.7 | AH20: 0 | AI20: =IF($AF20>=6,0,VLOOKUP($AF20&"ft,"&MIN($AD20,5)&"lns",'Gen. Data'!$R$7:$S$41,2,FALSE)) -> 0.2 | AJ20: 2.386372443 | AK20: 72.81362756 | AL20: 72.81362756 | AM20: 55 | AN20: 2250 | AO20: 13500 | AP20: 2049.70986 | AQ20: =AP20 -> 2049.70986 | AR20: 53.4604547 | AS20: =('base data'!tbx1_len/AM20)*60 -> 0.6545454545 | AT20: 0.1 | AU20: 9.4 | AV20: 1.041628695 | AW20: =AS20*AV20 -> 0.6817933277 | AX20: ='base data'!tbx1_len/(AW20/60) -> 52.80192477 | AY20: 53.4604547 | AZ20: 2250 | BA20: 13500 | BB20: =AD20-'base data'!AE20 -> 5 | BC20: 5 | BD20: ='base data'!AF20 -> 0 | BE20: =IF(BC20>=6,0,VLOOKUP(BD20&"ft," & BC20 & "lns",'Gen. Data'!$R$7:$S$41,2,FALSE)) -> 0.6 | BF20: 53.0604547 | BG20: 55 | BH20: 1600 | BI20: 8000 | BJ20: 1 | BK20: 0.4074074074 | BL20: =AD20-'base data'!AG20 -> 1 | BM20: 1 | BN20: ='base data'!AH20 -> 0 | BO20: =IF(BM20>=6,0,VLOOKUP(BN20&"ft," & BM20 & "lns",'Gen. Data'!$R$7:$S$41,2,FALSE)) -> 3.6 | BP20: 50.0604547 | BQ20: 50 | BR20: 1600 | BS20: 1600 | BT20: 1 | BU20: 0.8814814815 | BV20: =AD20-'base data'!AI20 -> 5 | BW20: 5 | BX20: ='base data'!AJ20 -> 0 | BY20: =IF(BW20>=6,0,VLOOKUP(BX20&"ft," & BW20 & "lns",'Gen. Data'!$R$7:$S$41,2,FALSE)) -> 0.6 | BZ20: 53.0604547 | CA20: 55 | CB20: 1600 | CC20: 8000 | CD20: 1 | CE20: 0.4074074074 | CF20: =AD20-'base data'!AK20 -> 5 | CG20: 5 | CH20: ='base data'!AL20 -> 0 | CI20: =IF(CG20>=6,0,VLOOKUP(CH20&"ft," & CG20 & "lns",'Gen. Data'!$R$7:$S$41,2,FALSE)) -> 0.6 | CJ20: 53.0604547 | CK20: 55 | CL20: 1600 | CM20: 8000 | CN20: 1 | CO20: 0.4074074074 | CP20: =AD20-'base data'!AM20 -> 5 | CQ20: 5 | CR20: ='base data'!AN20 -> 0 | CS20: =IF(CQ20>=6,0,VLOOKUP(CR20&"ft," & CQ20 & "lns",'Gen. Data'!$R$7:$S$41,2,FALSE)) -> 0.6 | CT20: 53.0604547 | CU20: 55 | CV20: 1600 | CW20: 8000 | CX20: 1 | CY20: 0.4074074074 | CZ20: =AD20-'base data'!AO20 -> 5 | DA20: 5 | DB20: ='base data'!AP20 -> 0 | DC20: =IF(DA20>=6,0,VLOOKUP(DB20&"ft," & DA20 & "lns",'Gen. Data'!$R$7:$S$41,2,FALSE)) -> 0.6 | DD20: 53.0604547 | DE20: 55 | DF20: 1600 | DG20: 8000 | DH20: 1 | DI20: 0.4074074074 | DJ20: =AD20-'base data'!AQ20 -> 5 | DK20: 5 | DL20: ='base data'!AR20 -> 0 | DM20: =IF(DK20>=6,0,VLOOKUP(DL20&"ft," & DK20 & "lns",'Gen. Data'!$R$7:$S$41,2,FALSE)) -> 0.6 | DN20: 53.0604547 | DO20: 55 | DP20: 1600 | DQ20: 8000 | DR20: 1 | DS20: 0.4074074074 | DT20: =AD20-'base data'!AS20 -> 5 | DU20: 5 | DV20: ='base data'!AT20 -> 0 | DW20: =IF(DU20>=6,0,VLOOKUP(DV20&"ft," & DU20 & "lns",'Gen. Data'!$R$7:$S$41,2,FALSE)) -> 0.6 | DX20: 53.0604547 | DY20: 55 | DZ20: 1600 | EA20: 8000 | EB20: 1 | EC20: 0.4074074074 | ED20: =AD20-'base data'!AU20 -> 5 | EE20: 5 | EF20: ='base data'!AV20 -> 0 | EG20: =IF(EE20>=6,0,VLOOKUP(EF20&"ft," & EE20 & "lns",'Gen. Data'!$R$7:$S$41,2,FALSE)) -> 0.6 | EH20: 53.0604547 | EI20: 55 | EJ20: 1600 | EK20: 8000 | EL20: 1 | EM20: 0.4074074074 | EN20: ='base data'!K20/100 -> 0.05 | EO20: ='base data'!$CI$11 -> 1 | EP20: 2.45916 | EQ20: ='base data'!L20/100 -> 0.05 | ER20: ='base data'!$CJ$11 -> 0 | ES20: 0 | ET20: ='base data'!N20/100 -> 0.05 | EU20: ='base data'!$CK$11 -> 0 | EV20: 0 | EW20: ='base data'!O20/100 -> 0.05 | EX20: ='base data'!$CL$11 -> 0 | EY20: 0 | EZ20: ='base data'!R20/100 -> 0.05 | FA20: ='base data'!$CM$11 -> 0 | FB20: 0 | FC20: ='base data'!S20/100 -> 0.05 | FD20: ='base data'!$CN$11 -> 0 | FE20: 0 | FF20: ='base data'!T20/100 -> 0.05 | FG20: ='base data'!$CO$11 -> 0 | FH20: 0 | FI20: ='base data'!U20/100 -> 0.05 | FJ20: ='base data'!$CP$11 -> 0 | FK20: 0 | FL20: ='base data'!X20/100 -> 0.05 | FM20: ='base data'!$CQ$11 -> 0 | FN20: 0 | FO20: 2.45916
B21: 08:00:00 | C21: ='base data'!D21 -> 11362 | D21: ='base data'!E21 -> 1 | E21: ='base data'!F21/100 -> 0.02 | F21: ='base data'!G21/100 -> 0.01 | G21: =VLOOKUP('base data'!$D$6,'Gen. Data'!$U$8:$V$10,2,FALSE) -> 1.5 | H21: =VLOOKUP('base data'!$D$6,'Gen. Data'!$U$8:$W$10,3,FALSE) -> 1.2 | I21: 0.9881422925 | J21: 11498.344 | K21: 11500.64367 | L21: ='Crash Dist'!O17 -> 0.1144056407 | M21: ='Crash Dist'!P17 -> 0.07200436006 | N21: 7.284239697 | O21: =IF(cbx1_wz1=TRUE, BK21*'base data'!$CS$11*'base data'!$F$6, "") -> 2.444444444 | P21: =IF(cbx1_wz2=TRUE, BU21*'base data'!$CT$11*'base data'!$F$6, "") ->  | Q21: =IF(cbx1_wz3=TRUE, CE21*'base data'!$CU$11*'base data'!$F$6, "") ->  | R21: =IF(cbx1_wz4=TRUE, CO21*'base data'!$CV$11*'base data'!$F$6, "") ->  | S21: =IF(cbx1_wz5=TRUE, CY21*'base data'!$CX$11*'base data'!$F$6, "") ->  | T21: =IF(cbx1_wz6=TRUE, DI21*'base data'!$CY$11*'base data'!$F$6, "") ->  | U21: =IF(cbx1_wz7=TRUE, DS21*'base data'!$CZ$11*'base data'!$F$6, "") ->  | V21: =IF(cbx1_wz8=TRUE, EC21*'base data'!$DA$11*'base data'!$F$6, "") ->  | W21: =IF(cbx1_wz9=TRUE, EM21*'base data'!$DB$11*'base data'!$F$6, "") ->  | X21: 2.444444444 | Z21: 08:00:00 | AA21: ='base data'!$N$6 -> Yes | AB21: =IF('base data'!tbx1_FFS<55, 55, 'base data'!tbx1_FFS) -> 56 | AC21: 75.4 | AD21: ='base data'!AC21 -> 6 | AE21: ='base data'!comb_wid_val -> 14 | AF21: =ROUND(LEFT('base data'!comb_rsh_val, 1),0) -> 4 | AG21: ='base data'!tbx1_ipm -> 0.7 | AH21: 0 | AI21: =IF($AF21>=6,0,VLOOKUP($AF21&"ft,"&MIN($AD21,5)&"lns",'Gen. Data'!$R$7:$S$41,2,FALSE)) -> 0.2 | AJ21: 2.386372443 | AK21: 72.81362756 | AL21: 72.81362756 | AM21: 55 | AN21: 2250 | AO21: =AN21*AD21 -> 13500 | AP21: =K21/AD21 -> 1916.773945 | AQ21: =AP21 -> 1916.773945 | AR21: 54.66332335 | AS21: =('base data'!tbx1_len/AM21)*60 -> 0.6545454545 | AT21: 0.1 | AU21: 9.4 | AV21: 1.022164134 | AW21: 0.6690528876 | AX21: ='base data'!tbx1_len/(AW21/60) -> 53.80740546 | AY21: 54.66332335 | AZ21: 2250 | BA21: 13500 | BB21: =AD21-'base data'!AE21 -> 5 | BC21: 5 | BD21: ='base data'!AF21 -> 0 | BE21: =IF(BC21>=6,0,VLOOKUP(BD21&"ft," & BC21 & "lns",'Gen. Data'!$R$7:$S$41,2,FALSE)) -> 0.6 | BF21: 54.26332335 | BG21: 55 | BH21: 1600 | BI21: 8000 | BJ21: 1 | BK21: =1-((BI21*BJ21)/BA21) -> 0.4074074074 | BL21: =AD21-'base data'!AG21 -> 1 | BM21: 1 | BN21: ='base data'!AH21 -> 0 | BO21: =IF(BM21>=6,0,VLOOKUP(BN21&"ft," & BM21 & "lns",'Gen. Data'!$R$7:$S$41,2,FALSE)) -> 3.6 | BP21: 51.26332335 | BQ21: 50 | BR21: 1600 | BS21: 1600 | BT21: 1 | BU21: 0.8814814815 | BV21: =AD21-'base data'!AI21 -> 5 | BW21: 5 | BX21: ='base data'!AJ21 -> 0 | BY21: =IF(BW21>=6,0,VLOOKUP(BX21&"ft," & BW21 & "lns",'Gen. Data'!$R$7:$S$41,2,FALSE)) -> 0.6 | BZ21: 54.26332335 | CA21: 55 | CB21: 1600 | CC21: 8000 | CD21: 1 | CE21: 0.4074074074 | CF21: =AD21-'base data'!AK21 -> 5 | CG21: 5 | CH21: ='base data'!AL21 -> 0 | CI21: =IF(CG21>=6,0,VLOOKUP(CH21&"ft," & CG21 & "lns",'Gen. Data'!$R$7:$S$41,2,FALSE)) -> 0.6 | CJ21: 54.26332335 | CK21: 55 | CL21: 1600 | CM21: 8000 | CN21: 1 | CO21: 0.4074074074 | CP21: =AD21-'base data'!AM21 -> 5 | CQ21: 5 | CR21: ='base data'!AN21 -> 0 | CS21: =IF(CQ21>=6,0,VLOOKUP(CR21&"ft," & CQ21 & "lns",'Gen. Data'!$R$7:$S$41,2,FALSE)) -> 0.6 | CT21: 54.26332335 | CU21: 55 | CV21: 1600 | CW21: 8000 | CX21: 1 | CY21: 0.4074074074 | CZ21: =AD21-'base data'!AO21 -> 5 | DA21: 5 | DB21: ='base data'!AP21 -> 0 | DC21: =IF(DA21>=6,0,VLOOKUP(DB21&"ft," & DA21 & "lns",'Gen. Data'!$R$7:$S$41,2,FALSE)) -> 0.6 | DD21: 54.26332335 | DE21: 55 | DF21: 1600 | DG21: 8000 | DH21: 1 | DI21: 0.4074074074 | DJ21: =AD21-'base data'!AQ21 -> 5 | DK21: 5 | DL21: ='base data'!AR21 -> 0 | DM21: =IF(DK21>=6,0,VLOOKUP(DL21&"ft," & DK21 & "lns",'Gen. Data'!$R$7:$S$41,2,FALSE)) -> 0.6 | DN21: 54.26332335 | DO21: 55 | DP21: 1600 | DQ21: 8000 | DR21: 1 | DS21: 0.4074074074 | DT21: =AD21-'base data'!AS21 -> 5 | DU21: 5 | DV21: ='base data'!AT21 -> 0 | DW21: =IF(DU21>=6,0,VLOOKUP(DV21&"ft," & DU21 & "lns",'Gen. Data'!$R$7:$S$41,2,FALSE)) -> 0.6 | DX21: 54.26332335 | DY21: 55 | DZ21: 1600 | EA21: 8000 | EB21: 1 | EC21: 0.4074074074 | ED21: =AD21-'base data'!AU21 -> 5 | EE21: 5 | EF21: ='base data'!AV21 -> 0 | EG21: =IF(EE21>=6,0,VLOOKUP(EF21&"ft," & EE21 & "lns",'Gen. Data'!$R$7:$S$41,2,FALSE)) -> 0.6 | EH21: 54.26332335 | EI21: 55 | EJ21: 1600 | EK21: 8000 | EL21: 1 | EM21: 0.4074074074 | EN21: ='base data'!K21/100 -> 0.05 | EO21: ='base data'!$CI$11 -> 1 | EP21: 2.2996688 | EQ21: ='base data'!L21/100 -> 0.05 | ER21: ='base data'!$CJ$11 -> 0 | ES21: 0 | ET21: ='base data'!N21/100 -> 0.05 | EU21: ='base data'!$CK$11 -> 0 | EV21: 0 | EW21: ='base data'!O21/100 -> 0.05 | EX21: ='base data'!$CL$11 -> 0 | EY21: 0 | EZ21: ='base data'!R21/100 -> 0.05 | FA21: ='base data'!$CM$11 -> 0 | FB21: 0 | FC21: ='base data'!S21/100 -> 0.05 | FD21: ='base data'!$CN$11 -> 0 | FE21: 0 | FF21: ='base data'!T21/100 -> 0.05 | FG21: ='base data'!$CO$11 -> 0 | FH21: 0 | FI21: ='base data'!U21/100 -> 0.05 | FJ21: ='base data'!$CP$11 -> 0 | FK21: 0 | FL21: ='base data'!X21/100 -> 0.05 | FM21: ='base data'!$CQ$11 -> 0 | FN21: 0 | FO21: 2.2996688
B22: 09:00:00 | C22: ='base data'!D22 -> 8678 | D22: ='base data'!E22 -> 1 | E22: ='base data'!F22/100 -> 0.02 | F22: ='base data'!G22/100 -> 0.01 | G22: =VLOOKUP('base data'!$D$6,'Gen. Data'!$U$8:$V$10,2,FALSE) -> 1.5 | H22: =VLOOKUP('base data'!$D$6,'Gen. Data'!$U$8:$W$10,3,FALSE) -> 1.2 | I22: 0.9881422925 | J22: 8782.136 | K22: 8783.892427 | L22: ='Crash Dist'!O18 -> 0.04228380659 | M22: ='Crash Dist'!P18 -> 0.05499505691 | N22: 3.617437067 | O22: =IF(cbx1_wz1=TRUE, BK22*'base data'!$CS$11*'base data'!$F$6, "") -> 2.444444444 | P22: =IF(cbx1_wz2=TRUE, BU22*'base data'!$CT$11*'base data'!$F$6, "") ->  | Q22: =IF(cbx1_wz3=TRUE, CE22*'base data'!$CU$11*'base data'!$F$6, "") ->  | R22: =IF(cbx1_wz4=TRUE, CO22*'base data'!$CV$11*'base data'!$F$6, "") ->  | S22: =IF(cbx1_wz5=TRUE, CY22*'base data'!$CX$11*'base data'!$F$6, "") ->  | T22: =IF(cbx1_wz6=TRUE, DI22*'base data'!$CY$11*'base data'!$F$6, "") ->  | U22: =IF(cbx1_wz7=TRUE, DS22*'base data'!$CZ$11*'base data'!$F$6, "") ->  | V22: =IF(cbx1_wz8=TRUE, EC22*'base data'!$DA$11*'base data'!$F$6, "") ->  | W22: =IF(cbx1_wz9=TRUE, EM22*'base data'!$DB$11*'base data'!$F$6, "") ->  | X22: 2.444444444 | Z22: 09:00:00 | AA22: ='base data'!$N$6 -> Yes | AB22: =IF('base data'!tbx1_FFS<55, 55, 'base data'!tbx1_FFS) -> 56 | AC22: 75.4 | AD22: ='base data'!AC22 -> 6 | AE22: ='base data'!comb_wid_val -> 14 | AF22: =ROUND(LEFT('base data'!comb_rsh_val, 1),0) -> 4 | AG22: ='base data'!tbx1_ipm -> 0.7 | AH22: 0 | AI22: =IF($AF22>=6,0,VLOOKUP($AF22&"ft,"&MIN($AD22,5)&"lns",'Gen. Data'!$R$7:$S$41,2,FALSE)) -> 0.2 | AJ22: 2.386372443 | AK22: 72.81362756 | AL22: 72.81362756 | AM22: 55 | AN22: 2250 | AO22: 13500 | AP22: 1463.982071 | AQ22: 1463.982071 | AR22: 55 | AS22: =('base data'!tbx1_len/AM22)*60 -> 0.6545454545 | AT22: 0.1 | AU22: 9.4 | AV22: 1.001760032 | AW22: 0.6556974752 | AX22: ='base data'!tbx1_len/(AW22/60) -> 54.90336834 | AY22: 55 | AZ22: 2250 | BA22: 13500 | BB22: =AD22-'base data'!AE22 -> 5 | BC22: 5 | BD22: ='base data'!AF22 -> 0 | BE22: =IF(BC22>=6,0,VLOOKUP(BD22&"ft," & BC22 & "lns",'Gen. Data'!$R$7:$S$41,2,FALSE)) -> 0.6 | BF22: 54.6 | BG22: 55 | BH22: 1600 | BI22: 8000 | BJ22: 1 | BK22: 0.4074074074 | BL22: =AD22-'base data'!AG22 -> 1 | BM22: 1 | BN22: ='base data'!AH22 -> 0 | BO22: =IF(BM22>=6,0,VLOOKUP(BN22&"ft," & BM22 & "lns",'Gen. Data'!$R$7:$S$41,2,FALSE)) -> 3.6 | BP22: 51.6 | BQ22: 50 | BR22: 1600 | BS22: 1600 | BT22: 1 | BU22: 0.8814814815 | BV22: =AD22-'base data'!AI22 -> 5 | BW22: 5 | BX22: ='base data'!AJ22 -> 0 | BY22: =IF(BW22>=6,0,VLOOKUP(BX22&"ft," & BW22 & "lns",'Gen. Data'!$R$7:$S$41,2,FALSE)) -> 0.6 | BZ22: 54.6 | CA22: 55 | CB22: 1600 | CC22: 8000 | CD22: 1 | CE22: 0.4074074074 | CF22: =AD22-'base data'!AK22 -> 5 | CG22: 5 | CH22: ='base data'!AL22 -> 0 | CI22: =IF(CG22>=6,0,VLOOKUP(CH22&"ft," & CG22 & "lns",'Gen. Data'!$R$7:$S$41,2,FALSE)) -> 0.6 | CJ22: 54.6 | CK22: 55 | CL22: 1600 | CM22: 8000 | CN22: 1 | CO22: 0.4074074074 | CP22: =AD22-'base data'!AM22 -> 5 | CQ22: 5 | CR22: ='base data'!AN22 -> 0 | CS22: =IF(CQ22>=6,0,VLOOKUP(CR22&"ft," & CQ22 & "lns",'Gen. Data'!$R$7:$S$41,2,FALSE)) -> 0.6 | CT22: 54.6 | CU22: 55 | CV22: 1600 | CW22: 8000 | CX22: 1 | CY22: 0.4074074074 | CZ22: =AD22-'base data'!AO22 -> 5 | DA22: 5 | DB22: ='base data'!AP22 -> 0 | DC22: =IF(DA22>=6,0,VLOOKUP(DB22&"ft," & DA22 & "lns",'Gen. Data'!$R$7:$S$41,2,FALSE)) -> 0.6 | DD22: 54.6 | DE22: 55 | DF22: 1600 | DG22: 8000 | DH22: 1 | DI22: 0.4074074074 | DJ22: =AD22-'base data'!AQ22 -> 5 | DK22: 5 | DL22: ='base data'!AR22 -> 0 | DM22: =IF(DK22>=6,0,VLOOKUP(DL22&"ft," & DK22 & "lns",'Gen. Data'!$R$7:$S$41,2,FALSE)) -> 0.6 | DN22: 54.6 | DO22: 55 | DP22: 1600 | DQ22: 8000 | DR22: 1 | DS22: 0.4074074074 | DT22: =AD22-'base data'!AS22 -> 5 | DU22: 5 | DV22: ='base data'!AT22 -> 0 | DW22: =IF(DU22>=6,0,VLOOKUP(DV22&"ft," & DU22 & "lns",'Gen. Data'!$R$7:$S$41,2,FALSE)) -> 0.6 | DX22: 54.6 | DY22: 55 | DZ22: 1600 | EA22: 8000 | EB22: 1 | EC22: 0.4074074074 | ED22: =AD22-'base data'!AU22 -> 5 | EE22: 5 | EF22: ='base data'!AV22 -> 0 | EG22: =IF(EE22>=6,0,VLOOKUP(EF22&"ft," & EE22 & "lns",'Gen. Data'!$R$7:$S$41,2,FALSE)) -> 0.6 | EH22: 54.6 | EI22: 55 | EJ22: 1600 | EK22: 8000 | EL22: 1 | EM22: 0.4074074074 | EN22: ='base data'!K22/100 -> 0.05 | EO22: ='base data'!$CI$11 -> 1 | EP22: 1.7564272 | EQ22: ='base data'!L22/100 -> 0.05 | ER22: ='base data'!$CJ$11 -> 0 | ES22: 0 | ET22: ='base data'!N22/100 -> 0.05 | EU22: ='base data'!$CK$11 -> 0 | EV22: 0 | EW22: ='base data'!O22/100 -> 0.05 | EX22: ='base data'!$CL$11 -> 0 | EY22: 0 | EZ22: ='base data'!R22/100 -> 0.05 | FA22: ='base data'!$CM$11 -> 0 | FB22: 0 | FC22: ='base data'!S22/100 -> 0.05 | FD22: ='base data'!$CN$11 -> 0 | FE22: 0 | FF22: ='base data'!T22/100 -> 0.05 | FG22: ='base data'!$CO$11 -> 0 | FH22: 0 | FI22: ='base data'!U22/100 -> 0.05 | FJ22: ='base data'!$CP$11 -> 0 | FK22: 0 | FL22: ='base data'!X22/100 -> 0.05 | FM22: ='base data'!$CQ$11 -> 0 | FN22: 0 | FO22: 1.7564272
B23: 10:00:00 | C23: ='base data'!D23 -> 7417 | D23: ='base data'!E23 -> 1 | E23: ='base data'!F23/100 -> 0.02 | F23: ='base data'!G23/100 -> 0.01 | G23: =VLOOKUP('base data'!$D$6,'Gen. Data'!$U$8:$V$10,2,FALSE) -> 1.5 | H23: =VLOOKUP('base data'!$D$6,'Gen. Data'!$U$8:$W$10,3,FALSE) -> 1.2 | I23: 0.9881422925 | J23: 7506.004 | K23: 7507.505201 | L23: ='Crash Dist'!O19 -> 0.02520779525 | M23: ='Crash Dist'!P19 -> 0.04700372633 | N23: 2.620040382 | O23: =IF(cbx1_wz1=TRUE, BK23*'base data'!$CS$11*'base data'!$F$6, "") -> 2.444444444 | P23: =IF(cbx1_wz2=TRUE, BU23*'base data'!$CT$11*'base data'!$F$6, "") ->  | Q23: =IF(cbx1_wz3=TRUE, CE23*'base data'!$CU$11*'base data'!$F$6, "") ->  | R23: =IF(cbx1_wz4=TRUE, CO23*'base data'!$CV$11*'base data'!$F$6, "") ->  | S23: =IF(cbx1_wz5=TRUE, CY23*'base data'!$CX$11*'base data'!$F$6, "") ->  | T23: =IF(cbx1_wz6=TRUE, DI23*'base data'!$CY$11*'base data'!$F$6, "") ->  | U23: =IF(cbx1_wz7=TRUE, DS23*'base data'!$CZ$11*'base data'!$F$6, "") ->  | V23: =IF(cbx1_wz8=TRUE, EC23*'base data'!$DA$11*'base data'!$F$6, "") ->  | W23: =IF(cbx1_wz9=TRUE, EM23*'base data'!$DB$11*'base data'!$F$6, "") ->  | X23: 2.444444444 | Z23: 10:00:00 | AA23: ='base data'!$N$6 -> Yes | AB23: =IF('base data'!tbx1_FFS<55, 55, 'base data'!tbx1_FFS) -> 56 | AC23: 75.4 | AD23: ='base data'!AC23 -> 6 | AE23: ='base data'!comb_wid_val -> 14 | AF23: =ROUND(LEFT('base data'!comb_rsh_val, 1),0) -> 4 | AG23: ='base data'!tbx1_ipm -> 0.7 | AH23: 0 | AI23: =IF($AF23>=6,0,VLOOKUP($AF23&"ft,"&MIN($AD23,5)&"lns",'Gen. Data'!$R$7:$S$41,2,FALSE)) -> 0.2 | AJ23: 2.386372443 | AK23: =IF(AC23-AH23-AI23-AJ23<55, 55, AC23-AH23-AI23-AJ23) -> 72.81362756 | AL23: 72.81362756 | AM23: 55 | AN23: 2250 | AO23: 13500 | AP23: 1251.250867 | AQ23: 1251.250867 | AR23: 55 | AS23: =('base data'!tbx1_len/AM23)*60 -> 0.6545454545 | AT23: 0.1 | AU23: 9.4 | AV23: 1.000402274 | AW23: 0.6548087609 | AX23: ='base data'!tbx1_len/(AW23/60) -> 54.97788384 | AY23: 55 | AZ23: 2250 | BA23: 13500 | BB23: =AD23-'base data'!AE23 -> 5 | BC23: 5 | BD23: ='base data'!AF23 -> 0 | BE23: =IF(BC23>=6,0,VLOOKUP(BD23&"ft," & BC23 & "lns",'Gen. Data'!$R$7:$S$41,2,FALSE)) -> 0.6 | BF23: 54.6 | BG23: 55 | BH23: 1600 | BI23: 8000 | BJ23: 1 | BK23: 0.4074074074 | BL23: =AD23-'base data'!AG23 -> 1 | BM23: 1 | BN23: ='base data'!AH23 -> 0 | BO23: =IF(BM23>=6,0,VLOOKUP(BN23&"ft," & BM23 & "lns",'Gen. Data'!$R$7:$S$41,2,FALSE)) -> 3.6 | BP23: 51.6 | BQ23: 50 | BR23: 1600 | BS23: 1600 | BT23: 1 | BU23: 0.8814814815 | BV23: =AD23-'base data'!AI23 -> 5 | BW23: 5 | BX23: ='base data'!AJ23 -> 0 | BY23: =IF(BW23>=6,0,VLOOKUP(BX23&"ft," & BW23 & "lns",'Gen. Data'!$R$7:$S$41,2,FALSE)) -> 0.6 | BZ23: 54.6 | CA23: 55 | CB23: 1600 | CC23: 8000 | CD23: 1 | CE23: 0.4074074074 | CF23: =AD23-'base data'!AK23 -> 5 | CG23: 5 | CH23: ='base data'!AL23 -> 0 | CI23: =IF(CG23>=6,0,VLOOKUP(CH23&"ft," & CG23 & "lns",'Gen. Data'!$R$7:$S$41,2,FALSE)) -> 0.6 | CJ23: 54.6 | CK23: 55 | CL23: 1600 | CM23: 8000 | CN23: 1 | CO23: 0.4074074074 | CP23: =AD23-'base data'!AM23 -> 5 | CQ23: 5 | CR23: ='base data'!AN23 -> 0 | CS23: =IF(CQ23>=6,0,VLOOKUP(CR23&"ft," & CQ23 & "lns",'Gen. Data'!$R$7:$S$41,2,FALSE)) -> 0.6 | CT23: 54.6 | CU23: 55 | CV23: 1600 | CW23: 8000 | CX23: 1 | CY23: 0.4074074074 | CZ23: =AD23-'base data'!AO23 -> 5 | DA23: 5 | DB23: ='base data'!AP23 -> 0 | DC23: =IF(DA23>=6,0,VLOOKUP(DB23&"ft," & DA23 & "lns",'Gen. Data'!$R$7:$S$41,2,FALSE)) -> 0.6 | DD23: 54.6 | DE23: 55 | DF23: 1600 | DG23: 8000 | DH23: 1 | DI23: 0.4074074074 | DJ23: =AD23-'base data'!AQ23 -> 5 | DK23: 5 | DL23: ='base data'!AR23 -> 0 | DM23: =IF(DK23>=6,0,VLOOKUP(DL23&"ft," & DK23 & "lns",'Gen. Data'!$R$7:$S$41,2,FALSE)) -> 0.6 | DN23: 54.6 | DO23: 55 | DP23: 1600 | DQ23: 8000 | DR23: 1 | DS23: 0.4074074074 | DT23: =AD23-'base data'!AS23 -> 5 | DU23: 5 | DV23: ='base data'!AT23 -> 0 | DW23: =IF(DU23>=6,0,VLOOKUP(DV23&"ft," & DU23 & "lns",'Gen. Data'!$R$7:$S$41,2,FALSE)) -> 0.6 | DX23: 54.6 | DY23: 55 | DZ23: 1600 | EA23: 8000 | EB23: 1 | EC23: 0.4074074074 | ED23: =AD23-'base data'!AU23 -> 5 | EE23: 5 | EF23: ='base data'!AV23 -> 0 | EG23: =IF(EE23>=6,0,VLOOKUP(EF23&"ft," & EE23 & "lns",'Gen. Data'!$R$7:$S$41,2,FALSE)) -> 0.6 | EH23: 54.6 | EI23: 55 | EJ23: 1600 | EK23: 8000 | EL23: 1 | EM23: 0.4074074074 | EN23: ='base data'!K23/100 -> 0.05 | EO23: ='base data'!$CI$11 -> 1 | EP23: 1.5012008 | EQ23: ='base data'!L23/100 -> 0.05 | ER23: ='base data'!$CJ$11 -> 0 | ES23: 0 | ET23: ='base data'!N23/100 -> 0.05 | EU23: ='base data'!$CK$11 -> 0 | EV23: 0 | EW23: ='base data'!O23/100 -> 0.05 | EX23: ='base data'!$CL$11 -> 0 | EY23: 0 | EZ23: ='base data'!R23/100 -> 0.05 | FA23: ='base data'!$CM$11 -> 0 | FB23: 0 | FC23: ='base data'!S23/100 -> 0.05 | FD23: ='base data'!$CN$11 -> 0 | FE23: 0 | FF23: ='base data'!T23/100 -> 0.05 | FG23: ='base data'!$CO$11 -> 0 | FH23: 0 | FI23: ='base data'!U23/100 -> 0.05 | FJ23: ='base data'!$CP$11 -> 0 | FK23: 0 | FL23: ='base data'!X23/100 -> 0.05 | FM23: ='base data'!$CQ$11 -> 0 | FN23: 0 | FO23: 1.5012008
B24: 11:00:00 | C24: ='base data'!D24 -> 8363 | D24: ='base data'!E24 -> 1 | E24: ='base data'!F24/100 -> 0.02 | F24: ='base data'!G24/100 -> 0.01 | G24: =VLOOKUP('base data'!$D$6,'Gen. Data'!$U$8:$V$10,2,FALSE) -> 1.5 | H24: =VLOOKUP('base data'!$D$6,'Gen. Data'!$U$8:$W$10,3,FALSE) -> 1.2 | I24: 0.9881422925 | J24: 8463.356 | K24: 8465.048671 | L24: ='Crash Dist'!O20 -> 0.0372422418 | M24: ='Crash Dist'!P20 -> 0.05299880859 | N24: 3.334800534 | O24: =IF(cbx1_wz1=TRUE, BK24*'base data'!$CS$11*'base data'!$F$6, "") -> 2.444444444 | P24: =IF(cbx1_wz2=TRUE, BU24*'base data'!$CT$11*'base data'!$F$6, "") ->  | Q24: =IF(cbx1_wz3=TRUE, CE24*'base data'!$CU$11*'base data'!$F$6, "") ->  | R24: =IF(cbx1_wz4=TRUE, CO24*'base data'!$CV$11*'base data'!$F$6, "") ->  | S24: =IF(cbx1_wz5=TRUE, CY24*'base data'!$CX$11*'base data'!$F$6, "") ->  | T24: =IF(cbx1_wz6=TRUE, DI24*'base data'!$CY$11*'base data'!$F$6, "") ->  | U24: =IF(cbx1_wz7=TRUE, DS24*'base data'!$CZ$11*'base data'!$F$6, "") ->  | V24: =IF(cbx1_wz8=TRUE, EC24*'base data'!$DA$11*'base data'!$F$6, "") ->  | W24: =IF(cbx1_wz9=TRUE, EM24*'base data'!$DB$11*'base data'!$F$6, "") ->  | X24: 2.444444444 | Z24: 11:00:00 | AA24: ='base data'!$N$6 -> Yes | AB24: =IF('base data'!tbx1_FFS<55, 55, 'base data'!tbx1_FFS) -> 56 | AC24: 75.4 | AD24: ='base data'!AC24 -> 6 | AE24: ='base data'!comb_wid_val -> 14 | AF24: =ROUND(LEFT('base data'!comb_rsh_val, 1),0) -> 4 | AG24: ='base data'!tbx1_ipm -> 0.7 | AH24: 0 | AI24: =IF($AF24>=6,0,VLOOKUP($AF24&"ft,"&MIN($AD24,5)&"lns",'Gen. Data'!$R$7:$S$41,2,FALSE)) -> 0.2 | AJ24: 2.386372443 | AK24: 72.81362756 | AL24: 72.81362756 | AM24: 55 | AN24: 2250 | AO24: 13500 | AP24: 1410.841445 | AQ24: 1410.841445 | AR24: 55 | AS24: =('base data'!tbx1_len/AM24)*60 -> 0.6545454545 | AT24: 0.1 | AU24: 9.4 | AV24: 1.00124331 | AW24: 0.6553592576 | AX24: ='base data'!tbx1_len/(AW24/60) -> 54.93170285 | AY24: 55 | AZ24: 2250 | BA24: 13500 | BB24: =AD24-'base data'!AE24 -> 5 | BC24: 5 | BD24: ='base data'!AF24 -> 0 | BE24: =IF(BC24>=6,0,VLOOKUP(BD24&"ft," & BC24 & "lns",'Gen. Data'!$R$7:$S$41,2,FALSE)) -> 0.6 | BF24: 54.6 | BG24: 55 | BH24: 1600 | BI24: 8000 | BJ24: 1 | BK24: 0.4074074074 | BL24: =AD24-'base data'!AG24 -> 1 | BM24: 1 | BN24: ='base data'!AH24 -> 0 | BO24: =IF(BM24>=6,0,VLOOKUP(BN24&"ft," & BM24 & "lns",'Gen. Data'!$R$7:$S$41,2,FALSE)) -> 3.6 | BP24: 51.6 | BQ24: 50 | BR24: 1600 | BS24: 1600 | BT24: 1 | BU24: 0.8814814815 | BV24: =AD24-'base data'!AI24 -> 5 | BW24: 5 | BX24: ='base data'!AJ24 -> 0 | BY24: =IF(BW24>=6,0,VLOOKUP(BX24&"ft," & BW24 & "lns",'Gen. Data'!$R$7:$S$41,2,FALSE)) -> 0.6 | BZ24: 54.6 | CA24: 55 | CB24: 1600 | CC24: 8000 | CD24: 1 | CE24: 0.4074074074 | CF24: =AD24-'base data'!AK24 -> 5 | CG24: 5 | CH24: ='base data'!AL24 -> 0 | CI24: =IF(CG24>=6,0,VLOOKUP(CH24&"ft," & CG24 & "lns",'Gen. Data'!$R$7:$S$41,2,FALSE)) -> 0.6 | CJ24: 54.6 | CK24: 55 | CL24: 1600 | CM24: 8000 | CN24: 1 | CO24: 0.4074074074 | CP24: =AD24-'base data'!AM24 -> 5 | CQ24: 5 | CR24: ='base data'!AN24 -> 0 | CS24: =IF(CQ24>=6,0,VLOOKUP(CR24&"ft," & CQ24 & "lns",'Gen. Data'!$R$7:$S$41,2,FALSE)) -> 0.6 | CT24: 54.6 | CU24: 55 | CV24: 1600 | CW24: 8000 | CX24: 1 | CY24: 0.4074074074 | CZ24: =AD24-'base data'!AO24 -> 5 | DA24: 5 | DB24: ='base data'!AP24 -> 0 | DC24: =IF(DA24>=6,0,VLOOKUP(DB24&"ft," & DA24 & "lns",'Gen. Data'!$R$7:$S$41,2,FALSE)) -> 0.6 | DD24: 54.6 | DE24: 55 | DF24: 1600 | DG24: 8000 | DH24: 1 | DI24: 0.4074074074 | DJ24: =AD24-'base data'!AQ24 -> 5 | DK24: 5 | DL24: ='base data'!AR24 -> 0 | DM24: =IF(DK24>=6,0,VLOOKUP(DL24&"ft," & DK24 & "lns",'Gen. Data'!$R$7:$S$41,2,FALSE)) -> 0.6 | DN24: 54.6 | DO24: 55 | DP24: 1600 | DQ24: 8000 | DR24: 1 | DS24: 0.4074074074 | DT24: =AD24-'base data'!AS24 -> 5 | DU24: 5 | DV24: ='base data'!AT24 -> 0 | DW24: =IF(DU24>=6,0,VLOOKUP(DV24&"ft," & DU24 & "lns",'Gen. Data'!$R$7:$S$41,2,FALSE)) -> 0.6 | DX24: 54.6 | DY24: 55 | DZ24: 1600 | EA24: 8000 | EB24: 1 | EC24: 0.4074074074 | ED24: =AD24-'base data'!AU24 -> 5 | EE24: 5 | EF24: ='base data'!AV24 -> 0 | EG24: =IF(EE24>=6,0,VLOOKUP(EF24&"ft," & EE24 & "lns",'Gen. Data'!$R$7:$S$41,2,FALSE)) -> 0.6 | EH24: 54.6 | EI24: 55 | EJ24: 1600 | EK24: 8000 | EL24: 1 | EM24: 0.4074074074 | EN24: ='base data'!K24/100 -> 0.05 | EO24: ='base data'!$CI$11 -> 1 | EP24: 1.6926712 | EQ24: ='base data'!L24/100 -> 0.05 | ER24: ='base data'!$CJ$11 -> 0 | ES24: 0 | ET24: ='base data'!N24/100 -> 0.05 | EU24: ='base data'!$CK$11 -> 0 | EV24: 0 | EW24: ='base data'!O24/100 -> 0.05 | EX24: ='base data'!$CL$11 -> 0 | EY24: 0 | EZ24: ='base data'!R24/100 -> 0.05 | FA24: ='base data'!$CM$11 -> 0 | FB24: 0 | FC24: ='base data'!S24/100 -> 0.05 | FD24: ='base data'!$CN$11 -> 0 | FE24: 0 | FF24: ='base data'!T24/100 -> 0.05 | FG24: ='base data'!$CO$11 -> 0 | FH24: 0 | FI24: ='base data'!U24/100 -> 0.05 | FJ24: ='base data'!$CP$11 -> 0 | FK24: 0 | FL24: ='base data'!X24/100 -> 0.05 | FM24: ='base data'!$CQ$11 -> 0 | FN24: 0 | FO24: 1.6926712
B25: 12:00:00 | C25: ='base data'!D25 -> 8363 | D25: ='base data'!E25 -> 1 | E25: ='base data'!F25/100 -> 0.02 | F25: ='base data'!G25/100 -> 0.01 | G25: =VLOOKUP('base data'!$D$6,'Gen. Data'!$U$8:$V$10,2,FALSE) -> 1.5 | H25: =VLOOKUP('base data'!$D$6,'Gen. Data'!$U$8:$W$10,3,FALSE) -> 1.2 | I25: 0.9881422925 | J25: 8463.356 | K25: 8465.048671 | L25: ='Crash Dist'!O21 -> 0.0372422418 | M25: ='Crash Dist'!P21 -> 0.05299880859 | N25: 3.334800534 | O25: =IF(cbx1_wz1=TRUE, BK25*'base data'!$CS$11*'base data'!$F$6, "") -> 2.444444444 | P25: =IF(cbx1_wz2=TRUE, BU25*'base data'!$CT$11*'base data'!$F$6, "") ->  | Q25: =IF(cbx1_wz3=TRUE, CE25*'base data'!$CU$11*'base data'!$F$6, "") ->  | R25: =IF(cbx1_wz4=TRUE, CO25*'base data'!$CV$11*'base data'!$F$6, "") ->  | S25: =IF(cbx1_wz5=TRUE, CY25*'base data'!$CX$11*'base data'!$F$6, "") ->  | T25: =IF(cbx1_wz6=TRUE, DI25*'base data'!$CY$11*'base data'!$F$6, "") ->  | U25: =IF(cbx1_wz7=TRUE, DS25*'base data'!$CZ$11*'base data'!$F$6, "") ->  | V25: =IF(cbx1_wz8=TRUE, EC25*'base data'!$DA$11*'base data'!$F$6, "") ->  | W25: =IF(cbx1_wz9=TRUE, EM25*'base data'!$DB$11*'base data'!$F$6, "") ->  | X25: 2.444444444 | Z25: 12:00:00 | AA25: ='base data'!$N$6 -> Yes | AB25: =IF('base data'!tbx1_FFS<55, 55, 'base data'!tbx1_FFS) -> 56 | AC25: 75.4 | AD25: ='base data'!AC25 -> 6 | AE25: ='base data'!comb_wid_val -> 14 | AF25: =ROUND(LEFT('base data'!comb_rsh_val, 1),0) -> 4 | AG25: ='base data'!tbx1_ipm -> 0.7 | AH25: 0 | AI25: =IF($AF25>=6,0,VLOOKUP($AF25&"ft,"&MIN($AD25,5)&"lns",'Gen. Data'!$R$7:$S$41,2,FALSE)) -> 0.2 | AJ25: 2.386372443 | AK25: 72.81362756 | AL25: 72.81362756 | AM25: 55 | AN25: 2250 | AO25: 13500 | AP25: 1410.841445 | AQ25: 1410.841445 | AR25: 55 | AS25: =('base data'!tbx1_len/AM25)*60 -> 0.6545454545 | AT25: 0.1 | AU25: 9.4 | AV25: 1.00124331 | AW25: 0.6553592576 | AX25: ='base data'!tbx1_len/(AW25/60) -> 54.93170285 | AY25: 55 | AZ25: 2250 | BA25: 13500 | BB25: =AD25-'base data'!AE25 -> 5 | BC25: 5 | BD25: ='base data'!AF25 -> 0 | BE25: =IF(BC25>=6,0,VLOOKUP(BD25&"ft," & BC25 & "lns",'Gen. Data'!$R$7:$S$41,2,FALSE)) -> 0.6 | BF25: 54.6 | BG25: 55 | BH25: 1600 | BI25: 8000 | BJ25: 1 | BK25: 0.4074074074 | BL25: =AD25-'base data'!AG25 -> 1 | BM25: 1 | BN25: ='base data'!AH25 -> 0 | BO25: =IF(BM25>=6,0,VLOOKUP(BN25&"ft," & BM25 & "lns",'Gen. Data'!$R$7:$S$41,2,FALSE)) -> 3.6 | BP25: 51.6 | BQ25: 50 | BR25: 1600 | BS25: 1600 | BT25: 1 | BU25: 0.8814814815 | BV25: =AD25-'base data'!AI25 -> 5 | BW25: 5 | BX25: ='base data'!AJ25 -> 0 | BY25: =IF(BW25>=6,0,VLOOKUP(BX25&"ft," & BW25 & "lns",'Gen. Data'!$R$7:$S$41,2,FALSE)) -> 0.6 | BZ25: 54.6 | CA25: 55 | CB25: 1600 | CC25: 8000 | CD25: 1 | CE25: 0.4074074074 | CF25: =AD25-'base data'!AK25 -> 5 | CG25: 5 | CH25: ='base data'!AL25 -> 0 | CI25: =IF(CG25>=6,0,VLOOKUP(CH25&"ft," & CG25 & "lns",'Gen. Data'!$R$7:$S$41,2,FALSE)) -> 0.6 | CJ25: 54.6 | CK25: 55 | CL25: 1600 | CM25: 8000 | CN25: 1 | CO25: 0.4074074074 | CP25: =AD25-'base data'!AM25 -> 5 | CQ25: 5 | CR25: ='base data'!AN25 -> 0 | CS25: =IF(CQ25>=6,0,VLOOKUP(CR25&"ft," & CQ25 & "lns",'Gen. Data'!$R$7:$S$41,2,FALSE)) -> 0.6 | CT25: 54.6 | CU25: 55 | CV25: 1600 | CW25: 8000 | CX25: 1 | CY25: 0.4074074074 | CZ25: =AD25-'base data'!AO25 -> 5 | DA25: 5 | DB25: ='base data'!AP25 -> 0 | DC25: =IF(DA25>=6,0,VLOOKUP(DB25&"ft," & DA25 & "lns",'Gen. Data'!$R$7:$S$41,2,FALSE)) -> 0.6 | DD25: 54.6 | DE25: 55 | DF25: 1600 | DG25: 8000 | DH25: 1 | DI25: 0.4074074074 | DJ25: =AD25-'base data'!AQ25 -> 5 | DK25: 5 | DL25: ='base data'!AR25 -> 0 | DM25: =IF(DK25>=6,0,VLOOKUP(DL25&"ft," & DK25 & "lns",'Gen. Data'!$R$7:$S$41,2,FALSE)) -> 0.6 | DN25: 54.6 | DO25: 55 | DP25: 1600 | DQ25: 8000 | DR25: 1 | DS25: 0.4074074074 | DT25: =AD25-'base data'!AS25 -> 5 | DU25: 5 | DV25: ='base data'!AT25 -> 0 | DW25: =IF(DU25>=6,0,VLOOKUP(DV25&"ft," & DU25 & "lns",'Gen. Data'!$R$7:$S$41,2,FALSE)) -> 0.6 | DX25: 54.6 | DY25: 55 | DZ25: 1600 | EA25: 8000 | EB25: 1 | EC25: 0.4074074074 | ED25: =AD25-'base data'!AU25 -> 5 | EE25: 5 | EF25: ='base data'!AV25 -> 0 | EG25: =IF(EE25>=6,0,VLOOKUP(EF25&"ft," & EE25 & "lns",'Gen. Data'!$R$7:$S$41,2,FALSE)) -> 0.6 | EH25: 54.6 | EI25: 55 | EJ25: 1600 | EK25: 8000 | EL25: 1 | EM25: 0.4074074074 | EN25: ='base data'!K25/100 -> 0.05 | EO25: ='base data'!$CI$11 -> 1 | EP25: 1.6926712 | EQ25: ='base data'!L25/100 -> 0.05 | ER25: ='base data'!$CJ$11 -> 0 | ES25: 0 | ET25: ='base data'!N25/100 -> 0.05 | EU25: ='base data'!$CK$11 -> 0 | EV25: 0 | EW25: ='base data'!O25/100 -> 0.05 | EX25: ='base data'!$CL$11 -> 0 | EY25: 0 | EZ25: ='base data'!R25/100 -> 0.05 | FA25: ='base data'!$CM$11 -> 0 | FB25: 0 | FC25: ='base data'!S25/100 -> 0.05 | FD25: ='base data'!$CN$11 -> 0 | FE25: 0 | FF25: ='base data'!T25/100 -> 0.05 | FG25: ='base data'!$CO$11 -> 0 | FH25: 0 | FI25: ='base data'!U25/100 -> 0.05 | FJ25: ='base data'!$CP$11 -> 0 | FK25: 0 | FL25: ='base data'!X25/100 -> 0.05 | FM25: ='base data'!$CQ$11 -> 0 | FN25: 0 | FO25: 1.6926712
B26: 13:00:00 | C26: ='base data'!D26 -> 8994 | D26: ='base data'!E26 -> 1 | E26: ='base data'!F26/100 -> 0.02 | F26: ='base data'!G26/100 -> 0.01 | G26: =VLOOKUP('base data'!$D$6,'Gen. Data'!$U$8:$V$10,2,FALSE) -> 1.5 | H26: =VLOOKUP('base data'!$D$6,'Gen. Data'!$U$8:$W$10,3,FALSE) -> 1.2 | I26: 0.9881422925 | J26: 9101.928 | K26: 9103.748386 | L26: ='Crash Dist'!O22 -> 0.04792124121 | M26: ='Crash Dist'!P22 -> 0.05699764253 | N26: 3.925994248 | O26: =IF(cbx1_wz1=TRUE, BK26*'base data'!$CS$11*'base data'!$F$6, "") -> 2.444444444 | P26: =IF(cbx1_wz2=TRUE, BU26*'base data'!$CT$11*'base data'!$F$6, "") ->  | Q26: =IF(cbx1_wz3=TRUE, CE26*'base data'!$CU$11*'base data'!$F$6, "") ->  | R26: =IF(cbx1_wz4=TRUE, CO26*'base data'!$CV$11*'base data'!$F$6, "") ->  | S26: =IF(cbx1_wz5=TRUE, CY26*'base data'!$CX$11*'base data'!$F$6, "") ->  | T26: =IF(cbx1_wz6=TRUE, DI26*'base data'!$CY$11*'base data'!$F$6, "") ->  | U26: =IF(cbx1_wz7=TRUE, DS26*'base data'!$CZ$11*'base data'!$F$6, "") ->  | V26: =IF(cbx1_wz8=TRUE, EC26*'base data'!$DA$11*'base data'!$F$6, "") ->  | W26: =IF(cbx1_wz9=TRUE, EM26*'base data'!$DB$11*'base data'!$F$6, "") ->  | X26: 2.444444444 | Z26: 13:00:00 | AA26: ='base data'!$N$6 -> Yes | AB26: =IF('base data'!tbx1_FFS<55, 55, 'base data'!tbx1_FFS) -> 56 | AC26: 75.4 | AD26: ='base data'!AC26 -> 6 | AE26: ='base data'!comb_wid_val -> 14 | AF26: =ROUND(LEFT('base data'!comb_rsh_val, 1),0) -> 4 | AG26: ='base data'!tbx1_ipm -> 0.7 | AH26: 0 | AI26: =IF($AF26>=6,0,VLOOKUP($AF26&"ft,"&MIN($AD26,5)&"lns",'Gen. Data'!$R$7:$S$41,2,FALSE)) -> 0.2 | AJ26: 2.386372443 | AK26: 72.81362756 | AL26: 72.81362756 | AM26: 55 | AN26: 2250 | AO26: 13500 | AP26: 1517.291398 | AQ26: 1517.291398 | AR26: 55 | AS26: =('base data'!tbx1_len/AM26)*60 -> 0.6545454545 | AT26: 0.1 | AU26: 9.4 | AV26: 1.002463388 | AW26: 0.6561578542 | AX26: ='base data'!tbx1_len/(AW26/60) -> 54.86484657 | AY26: 55 | AZ26: 2250 | BA26: 13500 | BB26: =AD26-'base data'!AE26 -> 5 | BC26: 5 | BD26: ='base data'!AF26 -> 0 | BE26: =IF(BC26>=6,0,VLOOKUP(BD26&"ft," & BC26 & "lns",'Gen. Data'!$R$7:$S$41,2,FALSE)) -> 0.6 | BF26: 54.6 | BG26: 55 | BH26: 1600 | BI26: 8000 | BJ26: 1 | BK26: 0.4074074074 | BL26: =AD26-'base data'!AG26 -> 1 | BM26: 1 | BN26: ='base data'!AH26 -> 0 | BO26: =IF(BM26>=6,0,VLOOKUP(BN26&"ft," & BM26 & "lns",'Gen. Data'!$R$7:$S$41,2,FALSE)) -> 3.6 | BP26: 51.6 | BQ26: 50 | BR26: 1600 | BS26: 1600 | BT26: 1 | BU26: 0.8814814815 | BV26: =AD26-'base data'!AI26 -> 5 | BW26: 5 | BX26: ='base data'!AJ26 -> 0 | BY26: =IF(BW26>=6,0,VLOOKUP(BX26&"ft," & BW26 & "lns",'Gen. Data'!$R$7:$S$41,2,FALSE)) -> 0.6 | BZ26: 54.6 | CA26: 55 | CB26: 1600 | CC26: 8000 | CD26: 1 | CE26: 0.4074074074 | CF26: =AD26-'base data'!AK26 -> 5 | CG26: 5 | CH26: ='base data'!AL26 -> 0 | CI26: =IF(CG26>=6,0,VLOOKUP(CH26&"ft," & CG26 & "lns",'Gen. Data'!$R$7:$S$41,2,FALSE)) -> 0.6 | CJ26: 54.6 | CK26: 55 | CL26: 1600 | CM26: 8000 | CN26: 1 | CO26: 0.4074074074 | CP26: =AD26-'base data'!AM26 -> 5 | CQ26: 5 | CR26: ='base data'!AN26 -> 0 | CS26: =IF(CQ26>=6,0,VLOOKUP(CR26&"ft," & CQ26 & "lns",'Gen. Data'!$R$7:$S$41,2,FALSE)) -> 0.6 | CT26: 54.6 | CU26: 55 | CV26: 1600 | CW26: 8000 | CX26: 1 | CY26: 0.4074074074 | CZ26: =AD26-'base data'!AO26 -> 5 | DA26: 5 | DB26: ='base data'!AP26 -> 0 | DC26: =IF(DA26>=6,0,VLOOKUP(DB26&"ft," & DA26 & "lns",'Gen. Data'!$R$7:$S$41,2,FALSE)) -> 0.6 | DD26: 54.6 | DE26: 55 | DF26: 1600 | DG26: 8000 | DH26: 1 | DI26: 0.4074074074 | DJ26: =AD26-'base data'!AQ26 -> 5 | DK26: 5 | DL26: ='base data'!AR26 -> 0 | DM26: =IF(DK26>=6,0,VLOOKUP(DL26&"ft," & DK26 & "lns",'Gen. Data'!$R$7:$S$41,2,FALSE)) -> 0.6 | DN26: 54.6 | DO26: 55 | DP26: 1600 | DQ26: 8000 | DR26: 1 | DS26: 0.4074074074 | DT26: =AD26-'base data'!AS26 -> 5 | DU26: 5 | DV26: ='base data'!AT26 -> 0 | DW26: =IF(DU26>=6,0,VLOOKUP(DV26&"ft," & DU26 & "lns",'Gen. Data'!$R$7:$S$41,2,FALSE)) -> 0.6 | DX26: 54.6 | DY26: 55 | DZ26: 1600 | EA26: 8000 | EB26: 1 | EC26: 0.4074074074 | ED26: =AD26-'base data'!AU26 -> 5 | EE26: 5 | EF26: ='base data'!AV26 -> 0 | EG26: =IF(EE26>=6,0,VLOOKUP(EF26&"ft," & EE26 & "lns",'Gen. Data'!$R$7:$S$41,2,FALSE)) -> 0.6 | EH26: 54.6 | EI26: 55 | EJ26: 1600 | EK26: 8000 | EL26: 1 | EM26: 0.4074074074 | EN26: ='base data'!K26/100 -> 0.05 | EO26: ='base data'!$CI$11 -> 1 | EP26: 1.8203856 | EQ26: ='base data'!L26/100 -> 0.05 | ER26: ='base data'!$CJ$11 -> 0 | ES26: 0 | ET26: ='base data'!N26/100 -> 0.05 | EU26: ='base data'!$CK$11 -> 0 | EV26: 0 | EW26: ='base data'!O26/100 -> 0.05 | EX26: ='base data'!$CL$11 -> 0 | EY26: 0 | EZ26: ='base data'!R26/100 -> 0.05 | FA26: ='base data'!$CM$11 -> 0 | FB26: 0 | FC26: ='base data'!S26/100 -> 0.05 | FD26: ='base data'!$CN$11 -> 0 | FE26: 0 | FF26: ='base data'!T26/100 -> 0.05 | FG26: ='base data'!$CO$11 -> 0 | FH26: 0 | FI26: ='base data'!U26/100 -> 0.05 | FJ26: ='base data'!$CP$11 -> 0 | FK26: 0 | FL26: ='base data'!X26/100 -> 0.05 | FM26: ='base data'!$CQ$11 -> 0 | FN26: 0 | FO26: 1.8203856
B27: 14:00:00 | C27: ='base data'!D27 -> 9310 | D27: ='base data'!E27 -> 1 | E27: ='base data'!F27/100 -> 0.02 | F27: ='base data'!G27/100 -> 0.01 | G27: =VLOOKUP('base data'!$D$6,'Gen. Data'!$U$8:$V$10,2,FALSE) -> 1.5 | H27: =VLOOKUP('base data'!$D$6,'Gen. Data'!$U$8:$W$10,3,FALSE) -> 1.2 | I27: 0.9881422925 | J27: 9421.72 | K27: 9423.604344 | L27: ='Crash Dist'!O23 -> 0.05417678507 | M27: ='Crash Dist'!P23 -> 0.05900022814 | N27: 4.26122521 | O27: =IF(cbx1_wz1=TRUE, BK27*'base data'!$CS$11*'base data'!$F$6, "") -> 2.444444444 | P27: =IF(cbx1_wz2=TRUE, BU27*'base data'!$CT$11*'base data'!$F$6, "") ->  | Q27: =IF(cbx1_wz3=TRUE, CE27*'base data'!$CU$11*'base data'!$F$6, "") ->  | R27: =IF(cbx1_wz4=TRUE, CO27*'base data'!$CV$11*'base data'!$F$6, "") ->  | S27: =IF(cbx1_wz5=TRUE, CY27*'base data'!$CX$11*'base data'!$F$6, "") ->  | T27: =IF(cbx1_wz6=TRUE, DI27*'base data'!$CY$11*'base data'!$F$6, "") ->  | U27: =IF(cbx1_wz7=TRUE, DS27*'base data'!$CZ$11*'base data'!$F$6, "") ->  | V27: =IF(cbx1_wz8=TRUE, EC27*'base data'!$DA$11*'base data'!$F$6, "") ->  | W27: =IF(cbx1_wz9=TRUE, EM27*'base data'!$DB$11*'base data'!$F$6, "") ->  | X27: 2.444444444 | Z27: 14:00:00 | AA27: ='base data'!$N$6 -> Yes | AB27: =IF('base data'!tbx1_FFS<55, 55, 'base data'!tbx1_FFS) -> 56 | AC27: 75.4 | AD27: ='base data'!AC27 -> 6 | AE27: ='base data'!comb_wid_val -> 14 | AF27: =ROUND(LEFT('base data'!comb_rsh_val, 1),0) -> 4 | AG27: ='base data'!tbx1_ipm -> 0.7 | AH27: 0 | AI27: =IF($AF27>=6,0,VLOOKUP($AF27&"ft,"&MIN($AD27,5)&"lns",'Gen. Data'!$R$7:$S$41,2,FALSE)) -> 0.2 | AJ27: 2.386372443 | AK27: 72.81362756 | AL27: 72.81362756 | AM27: 55 | AN27: 2250 | AO27: =AN27*AD27 -> 13500 | AP27: 1570.600724 | AQ27: 1570.600724 | AR27: 55 | AS27: =('base data'!tbx1_len/AM27)*60 -> 0.6545454545 | AT27: 0.1 | AU27: 9.4 | AV27: 1.003408025 | AW27: 0.6567761619 | AX27: ='base data'!tbx1_len/(AW27/60) -> 54.81319525 | AY27: 55 | AZ27: 2250 | BA27: 13500 | BB27: =AD27-'base data'!AE27 -> 5 | BC27: 5 | BD27: ='base data'!AF27 -> 0 | BE27: =IF(BC27>=6,0,VLOOKUP(BD27&"ft," & BC27 & "lns",'Gen. Data'!$R$7:$S$41,2,FALSE)) -> 0.6 | BF27: 54.6 | BG27: 55 | BH27: 1600 | BI27: 8000 | BJ27: 1 | BK27: 0.4074074074 | BL27: =AD27-'base data'!AG27 -> 1 | BM27: 1 | BN27: ='base data'!AH27 -> 0 | BO27: =IF(BM27>=6,0,VLOOKUP(BN27&"ft," & BM27 & "lns",'Gen. Data'!$R$7:$S$41,2,FALSE)) -> 3.6 | BP27: 51.6 | BQ27: 50 | BR27: 1600 | BS27: 1600 | BT27: 1 | BU27: 0.8814814815 | BV27: =AD27-'base data'!AI27 -> 5 | BW27: 5 | BX27: ='base data'!AJ27 -> 0 | BY27: =IF(BW27>=6,0,VLOOKUP(BX27&"ft," & BW27 & "lns",'Gen. Data'!$R$7:$S$41,2,FALSE)) -> 0.6 | BZ27: 54.6 | CA27: 55 | CB27: 1600 | CC27: 8000 | CD27: 1 | CE27: 0.4074074074 | CF27: =AD27-'base data'!AK27 -> 5 | CG27: 5 | CH27: ='base data'!AL27 -> 0 | CI27: =IF(CG27>=6,0,VLOOKUP(CH27&"ft," & CG27 & "lns",'Gen. Data'!$R$7:$S$41,2,FALSE)) -> 0.6 | CJ27: 54.6 | CK27: 55 | CL27: 1600 | CM27: 8000 | CN27: 1 | CO27: 0.4074074074 | CP27: =AD27-'base data'!AM27 -> 5 | CQ27: 5 | CR27: ='base data'!AN27 -> 0 | CS27: =IF(CQ27>=6,0,VLOOKUP(CR27&"ft," & CQ27 & "lns",'Gen. Data'!$R$7:$S$41,2,FALSE)) -> 0.6 | CT27: 54.6 | CU27: 55 | CV27: 1600 | CW27: 8000 | CX27: 1 | CY27: 0.4074074074 | CZ27: =AD27-'base data'!AO27 -> 5 | DA27: 5 | DB27: ='base data'!AP27 -> 0 | DC27: =IF(DA27>=6,0,VLOOKUP(DB27&"ft," & DA27 & "lns",'Gen. Data'!$R$7:$S$41,2,FALSE)) -> 0.6 | DD27: 54.6 | DE27: 55 | DF27: 1600 | DG27: 8000 | DH27: 1 | DI27: 0.4074074074 | DJ27: =AD27-'base data'!AQ27 -> 5 | DK27: 5 | DL27: ='base data'!AR27 -> 0 | DM27: =IF(DK27>=6,0,VLOOKUP(DL27&"ft," & DK27 & "lns",'Gen. Data'!$R$7:$S$41,2,FALSE)) -> 0.6 | DN27: 54.6 | DO27: 55 | DP27: 1600 | DQ27: 8000 | DR27: 1 | DS27: 0.4074074074 | DT27: =AD27-'base data'!AS27 -> 5 | DU27: 5 | DV27: ='base data'!AT27 -> 0 | DW27: =IF(DU27>=6,0,VLOOKUP(DV27&"ft," & DU27 & "lns",'Gen. Data'!$R$7:$S$41,2,FALSE)) -> 0.6 | DX27: 54.6 | DY27: 55 | DZ27: 1600 | EA27: 8000 | EB27: 1 | EC27: 0.4074074074 | ED27: =AD27-'base data'!AU27 -> 5 | EE27: 5 | EF27: ='base data'!AV27 -> 0 | EG27: =IF(EE27>=6,0,VLOOKUP(EF27&"ft," & EE27 & "lns",'Gen. Data'!$R$7:$S$41,2,FALSE)) -> 0.6 | EH27: 54.6 | EI27: 55 | EJ27: 1600 | EK27: 8000 | EL27: 1 | EM27: 0.4074074074 | EN27: ='base data'!K27/100 -> 0.05 | EO27: ='base data'!$CI$11 -> 1 | EP27: 1.884344 | EQ27: ='base data'!L27/100 -> 0.05 | ER27: ='base data'!$CJ$11 -> 0 | ES27: 0 | ET27: ='base data'!N27/100 -> 0.05 | EU27: ='base data'!$CK$11 -> 0 | EV27: 0 | EW27: ='base data'!O27/100 -> 0.05 | EX27: ='base data'!$CL$11 -> 0 | EY27: 0 | EZ27: ='base data'!R27/100 -> 0.05 | FA27: ='base data'!$CM$11 -> 0 | FB27: 0 | FC27: ='base data'!S27/100 -> 0.05 | FD27: ='base data'!$CN$11 -> 0 | FE27: 0 | FF27: ='base data'!T27/100 -> 0.05 | FG27: ='base data'!$CO$11 -> 0 | FH27: 0 | FI27: ='base data'!U27/100 -> 0.05 | FJ27: ='base data'!$CP$11 -> 0 | FK27: 0 | FL27: ='base data'!X27/100 -> 0.05 | FM27: ='base data'!$CQ$11 -> 0 | FN27: 0 | FO27: 1.884344
B28: 15:00:00 | C28: ='base data'!D28 -> 10730 | D28: ='base data'!E28 -> 1 | E28: ='base data'!F28/100 -> 0.02 | F28: ='base data'!G28/100 -> 0.01 | G28: =VLOOKUP('base data'!$D$6,'Gen. Data'!$U$8:$V$10,2,FALSE) -> 1.5 | H28: =VLOOKUP('base data'!$D$6,'Gen. Data'!$U$8:$W$10,3,FALSE) -> 1.2 | I28: 0.9881422925 | J28: 10858.76 | K28: 10860.93175 | L28: ='Crash Dist'!O24 -> 0.09095471185 | M28: ='Crash Dist'!P24 -> 0.06799918883 | N28: 6.14168173 | O28: =IF(cbx1_wz1=TRUE, BK28*'base data'!$CS$11*'base data'!$F$6, "") -> 2.444444444 | P28: =IF(cbx1_wz2=TRUE, BU28*'base data'!$CT$11*'base data'!$F$6, "") ->  | Q28: =IF(cbx1_wz3=TRUE, CE28*'base data'!$CU$11*'base data'!$F$6, "") ->  | R28: =IF(cbx1_wz4=TRUE, CO28*'base data'!$CV$11*'base data'!$F$6, "") ->  | S28: =IF(cbx1_wz5=TRUE, CY28*'base data'!$CX$11*'base data'!$F$6, "") ->  | T28: =IF(cbx1_wz6=TRUE, DI28*'base data'!$CY$11*'base data'!$F$6, "") ->  | U28: =IF(cbx1_wz7=TRUE, DS28*'base data'!$CZ$11*'base data'!$F$6, "") ->  | V28: =IF(cbx1_wz8=TRUE, EC28*'base data'!$DA$11*'base data'!$F$6, "") ->  | W28: =IF(cbx1_wz9=TRUE, EM28*'base data'!$DB$11*'base data'!$F$6, "") ->  | X28: 2.444444444 | Z28: 15:00:00 | AA28: ='base data'!$N$6 -> Yes | AB28: =IF('base data'!tbx1_FFS<55, 55, 'base data'!tbx1_FFS) -> 56 | AC28: 75.4 | AD28: ='base data'!AC28 -> 6 | AE28: ='base data'!comb_wid_val -> 14 | AF28: =ROUND(LEFT('base data'!comb_rsh_val, 1),0) -> 4 | AG28: ='base data'!tbx1_ipm -> 0.7 | AH28: 0 | AI28: =IF($AF28>=6,0,VLOOKUP($AF28&"ft,"&MIN($AD28,5)&"lns",'Gen. Data'!$R$7:$S$41,2,FALSE)) -> 0.2 | AJ28: 2.386372443 | AK28: 72.81362756 | AL28: 72.81362756 | AM28: 55 | AN28: 2250 | AO28: 13500 | AP28: 1810.155292 | AQ28: 1810.155292 | AR28: 54.99745372 | AS28: =('base data'!tbx1_len/AM28)*60 -> 0.6545454545 | AT28: 0.1 | AU28: 9.4 | AV28: 1.012942351 | AW28: 0.6630168115 | AX28: ='base data'!tbx1_len/(AW28/60) -> 54.29726573 | AY28: 54.99745372 | AZ28: 2250 | BA28: 13500 | BB28: =AD28-'base data'!AE28 -> 5 | BC28: 5 | BD28: ='base data'!AF28 -> 0 | BE28: =IF(BC28>=6,0,VLOOKUP(BD28&"ft," & BC28 & "lns",'Gen. Data'!$R$7:$S$41,2,FALSE)) -> 0.6 | BF28: 54.59745372 | BG28: 55 | BH28: 1600 | BI28: 8000 | BJ28: 1 | BK28: 0.4074074074 | BL28: =AD28-'base data'!AG28 -> 1 | BM28: 1 | BN28: ='base data'!AH28 -> 0 | BO28: =IF(BM28>=6,0,VLOOKUP(BN28&"ft," & BM28 & "lns",'Gen. Data'!$R$7:$S$41,2,FALSE)) -> 3.6 | BP28: 51.59745372 | BQ28: 50 | BR28: 1600 | BS28: 1600 | BT28: 1 | BU28: 0.8814814815 | BV28: =AD28-'base data'!AI28 -> 5 | BW28: 5 | BX28: ='base data'!AJ28 -> 0 | BY28: =IF(BW28>=6,0,VLOOKUP(BX28&"ft," & BW28 & "lns",'Gen. Data'!$R$7:$S$41,2,FALSE)) -> 0.6 | BZ28: 54.59745372 | CA28: 55 | CB28: 1600 | CC28: 8000 | CD28: 1 | CE28: 0.4074074074 | CF28: =AD28-'base data'!AK28 -> 5 | CG28: 5 | CH28: ='base data'!AL28 -> 0 | CI28: =IF(CG28>=6,0,VLOOKUP(CH28&"ft," & CG28 & "lns",'Gen. Data'!$R$7:$S$41,2,FALSE)) -> 0.6 | CJ28: 54.59745372 | CK28: 55 | CL28: 1600 | CM28: 8000 | CN28: 1 | CO28: 0.4074074074 | CP28: =AD28-'base data'!AM28 -> 5 | CQ28: 5 | CR28: ='base data'!AN28 -> 0 | CS28: =IF(CQ28>=6,0,VLOOKUP(CR28&"ft," & CQ28 & "lns",'Gen. Data'!$R$7:$S$41,2,FALSE)) -> 0.6 | CT28: 54.59745372 | CU28: 55 | CV28: 1600 | CW28: 8000 | CX28: 1 | CY28: 0.4074074074 | CZ28: =AD28-'base data'!AO28 -> 5 | DA28: 5 | DB28: ='base data'!AP28 -> 0 | DC28: =IF(DA28>=6,0,VLOOKUP(DB28&"ft," & DA28 & "lns",'Gen. Data'!$R$7:$S$41,2,FALSE)) -> 0.6 | DD28: 54.59745372 | DE28: 55 | DF28: 1600 | DG28: 8000 | DH28: 1 | DI28: 0.4074074074 | DJ28: =AD28-'base data'!AQ28 -> 5 | DK28: 5 | DL28: ='base data'!AR28 -> 0 | DM28: =IF(DK28>=6,0,VLOOKUP(DL28&"ft," & DK28 & "lns",'Gen. Data'!$R$7:$S$41,2,FALSE)) -> 0.6 | DN28: 54.59745372 | DO28: 55 | DP28: 1600 | DQ28: 8000 | DR28: 1 | DS28: 0.4074074074 | DT28: =AD28-'base data'!AS28 -> 5 | DU28: 5 | DV28: ='base data'!AT28 -> 0 | DW28: =IF(DU28>=6,0,VLOOKUP(DV28&"ft," & DU28 & "lns",'Gen. Data'!$R$7:$S$41,2,FALSE)) -> 0.6 | DX28: 54.59745372 | DY28: 55 | DZ28: 1600 | EA28: 8000 | EB28: 1 | EC28: 0.4074074074 | ED28: =AD28-'base data'!AU28 -> 5 | EE28: 5 | EF28: ='base data'!AV28 -> 0 | EG28: =IF(EE28>=6,0,VLOOKUP(EF28&"ft," & EE28 & "lns",'Gen. Data'!$R$7:$S$41,2,FALSE)) -> 0.6 | EH28: 54.59745372 | EI28: 55 | EJ28: 1600 | EK28: 8000 | EL28: 1 | EM28: 0.4074074074 | EN28: ='base data'!K28/100 -> 0.05 | EO28: ='base data'!$CI$11 -> 1 | EP28: 2.171752 | EQ28: ='base data'!L28/100 -> 0.05 | ER28: ='base data'!$CJ$11 -> 0 | ES28: 0 | ET28: ='base data'!N28/100 -> 0.05 | EU28: ='base data'!$CK$11 -> 0 | EV28: 0 | EW28: ='base data'!O28/100 -> 0.05 | EX28: ='base data'!$CL$11 -> 0 | EY28: 0 | EZ28: ='base data'!R28/100 -> 0.05 | FA28: ='base data'!$CM$11 -> 0 | FB28: 0 | FC28: ='base data'!S28/100 -> 0.05 | FD28: ='base data'!$CN$11 -> 0 | FE28: 0 | FF28: ='base data'!T28/100 -> 0.05 | FG28: ='base data'!$CO$11 -> 0 | FH28: 0 | FI28: ='base data'!U28/100 -> 0.05 | FJ28: ='base data'!$CP$11 -> 0 | FK28: 0 | FL28: ='base data'!X28/100 -> 0.05 | FM28: ='base data'!$CQ$11 -> 0 | FN28: 0 | FO28: 2.171752
B29: 16:00:00 | C29: ='base data'!D29 -> 11677 | D29: ='base data'!E29 -> 1 | E29: ='base data'!F29/100 -> 0.02 | F29: ='base data'!G29/100 -> 0.01 | G29: =VLOOKUP('base data'!$D$6,'Gen. Data'!$U$8:$V$10,2,FALSE) -> 1.5 | H29: =VLOOKUP('base data'!$D$6,'Gen. Data'!$U$8:$W$10,3,FALSE) -> 1.2 | I29: 0.9881422925 | J29: 11817.124 | K29: 11819.48742 | L29: ='Crash Dist'!O25 -> 0.1291302954 | M29: ='Crash Dist'!P25 -> 0.07400060838 | N29: 7.984738648 | O29: =IF(cbx1_wz1=TRUE, BK29*'base data'!$CS$11*'base data'!$F$6, "") -> 2.444444444 | P29: =IF(cbx1_wz2=TRUE, BU29*'base data'!$CT$11*'base data'!$F$6, "") ->  | Q29: =IF(cbx1_wz3=TRUE, CE29*'base data'!$CU$11*'base data'!$F$6, "") ->  | R29: =IF(cbx1_wz4=TRUE, CO29*'base data'!$CV$11*'base data'!$F$6, "") ->  | S29: =IF(cbx1_wz5=TRUE, CY29*'base data'!$CX$11*'base data'!$F$6, "") ->  | T29: =IF(cbx1_wz6=TRUE, DI29*'base data'!$CY$11*'base data'!$F$6, "") ->  | U29: =IF(cbx1_wz7=TRUE, DS29*'base data'!$CZ$11*'base data'!$F$6, "") ->  | V29: =IF(cbx1_wz8=TRUE, EC29*'base data'!$DA$11*'base data'!$F$6, "") ->  | W29: =IF(cbx1_wz9=TRUE, EM29*'base data'!$DB$11*'base data'!$F$6, "") ->  | X29: 2.444444444 | Z29: 16:00:00 | AA29: ='base data'!$N$6 -> Yes | AB29: =IF('base data'!tbx1_FFS<55, 55, 'base data'!tbx1_FFS) -> 56 | AC29: 75.4 | AD29: ='base data'!AC29 -> 6 | AE29: ='base data'!comb_wid_val -> 14 | AF29: =ROUND(LEFT('base data'!comb_rsh_val, 1),0) -> 4 | AG29: ='base data'!tbx1_ipm -> 0.7 | AH29: 0 | AI29: =IF($AF29>=6,0,VLOOKUP($AF29&"ft,"&MIN($AD29,5)&"lns",'Gen. Data'!$R$7:$S$41,2,FALSE)) -> 0.2 | AJ29: 2.386372443 | AK29: 72.81362756 | AL29: 72.81362756 | AM29: 55 | AN29: 2250 | AO29: 13500 | AP29: 1969.914571 | AQ29: 1969.914571 | AR29: 54.28717596 | AS29: =('base data'!tbx1_len/AM29)*60 -> 0.6545454545 | AT29: 0.1 | AU29: 9.4 | AV29: =1+(AT29*((AQ29/AN29)^(AU29))) -> 1.0286609 | AW29: 0.6733053162 | AX29: ='base data'!tbx1_len/(AW29/60) -> 53.4675713 | AY29: 54.28717596 | AZ29: 2250 | BA29: 13500 | BB29: =AD29-'base data'!AE29 -> 5 | BC29: 5 | BD29: ='base data'!AF29 -> 0 | BE29: =IF(BC29>=6,0,VLOOKUP(BD29&"ft," & BC29 & "lns",'Gen. Data'!$R$7:$S$41,2,FALSE)) -> 0.6 | BF29: 53.88717596 | BG29: 55 | BH29: 1600 | BI29: 8000 | BJ29: 1 | BK29: 0.4074074074 | BL29: =AD29-'base data'!AG29 -> 1 | BM29: 1 | BN29: ='base data'!AH29 -> 0 | BO29: =IF(BM29>=6,0,VLOOKUP(BN29&"ft," & BM29 & "lns",'Gen. Data'!$R$7:$S$41,2,FALSE)) -> 3.6 | BP29: 50.88717596 | BQ29: 50 | BR29: 1600 | BS29: 1600 | BT29: 1 | BU29: 0.8814814815 | BV29: =AD29-'base data'!AI29 -> 5 | BW29: 5 | BX29: ='base data'!AJ29 -> 0 | BY29: =IF(BW29>=6,0,VLOOKUP(BX29&"ft," & BW29 & "lns",'Gen. Data'!$R$7:$S$41,2,FALSE)) -> 0.6 | BZ29: 53.88717596 | CA29: 55 | CB29: 1600 | CC29: 8000 | CD29: 1 | CE29: 0.4074074074 | CF29: =AD29-'base data'!AK29 -> 5 | CG29: 5 | CH29: ='base data'!AL29 -> 0 | CI29: =IF(CG29>=6,0,VLOOKUP(CH29&"ft," & CG29 & "lns",'Gen. Data'!$R$7:$S$41,2,FALSE)) -> 0.6 | CJ29: 53.88717596 | CK29: 55 | CL29: 1600 | CM29: 8000 | CN29: 1 | CO29: 0.4074074074 | CP29: =AD29-'base data'!AM29 -> 5 | CQ29: 5 | CR29: ='base data'!AN29 -> 0 | CS29: =IF(CQ29>=6,0,VLOOKUP(CR29&"ft," & CQ29 & "lns",'Gen. Data'!$R$7:$S$41,2,FALSE)) -> 0.6 | CT29: 53.88717596 | CU29: 55 | CV29: 1600 | CW29: 8000 | CX29: 1 | CY29: 0.4074074074 | CZ29: =AD29-'base data'!AO29 -> 5 | DA29: 5 | DB29: ='base data'!AP29 -> 0 | DC29: =IF(DA29>=6,0,VLOOKUP(DB29&"ft," & DA29 & "lns",'Gen. Data'!$R$7:$S$41,2,FALSE)) -> 0.6 | DD29: 53.88717596 | DE29: 55 | DF29: 1600 | DG29: 8000 | DH29: 1 | DI29: 0.4074074074 | DJ29: =AD29-'base data'!AQ29 -> 5 | DK29: 5 | DL29: ='base data'!AR29 -> 0 | DM29: =IF(DK29>=6,0,VLOOKUP(DL29&"ft," & DK29 & "lns",'Gen. Data'!$R$7:$S$41,2,FALSE)) -> 0.6 | DN29: 53.88717596 | DO29: 55 | DP29: 1600 | DQ29: =DP29*DJ29 -> 8000 | DR29: 1 | DS29: 0.4074074074 | DT29: =AD29-'base data'!AS29 -> 5 | DU29: 5 | DV29: ='base data'!AT29 -> 0 | DW29: =IF(DU29>=6,0,VLOOKUP(DV29&"ft," & DU29 & "lns",'Gen. Data'!$R$7:$S$41,2,FALSE)) -> 0.6 | DX29: 53.88717596 | DY29: 55 | DZ29: 1600 | EA29: 8000 | EB29: 1 | EC29: 0.4074074074 | ED29: =AD29-'base data'!AU29 -> 5 | EE29: 5 | EF29: ='base data'!AV29 -> 0 | EG29: =IF(EE29>=6,0,VLOOKUP(EF29&"ft," & EE29 & "lns",'Gen. Data'!$R$7:$S$41,2,FALSE)) -> 0.6 | EH29: 53.88717596 | EI29: 55 | EJ29: 1600 | EK29: 8000 | EL29: 1 | EM29: 0.4074074074 | EN29: ='base data'!K29/100 -> 0.05 | EO29: ='base data'!$CI$11 -> 1 | EP29: 2.3634248 | EQ29: ='base data'!L29/100 -> 0.05 | ER29: ='base data'!$CJ$11 -> 0 | ES29: 0 | ET29: ='base data'!N29/100 -> 0.05 | EU29: ='base data'!$CK$11 -> 0 | EV29: 0 | EW29: ='base data'!O29/100 -> 0.05 | EX29: ='base data'!$CL$11 -> 0 | EY29: 0 | EZ29: ='base data'!R29/100 -> 0.05 | FA29: ='base data'!$CM$11 -> 0 | FB29: 0 | FC29: ='base data'!S29/100 -> 0.05 | FD29: ='base data'!$CN$11 -> 0 | FE29: 0 | FF29: ='base data'!T29/100 -> 0.05 | FG29: ='base data'!$CO$11 -> 0 | FH29: 0 | FI29: ='base data'!U29/100 -> 0.05 | FJ29: ='base data'!$CP$11 -> 0 | FK29: 0 | FL29: ='base data'!X29/100 -> 0.05 | FM29: ='base data'!$CQ$11 -> 0 | FN29: 0 | FO29: 2.3634248
B30: 17:00:00 | C30: ='base data'!D30 -> 11835 | D30: ='base data'!E30 -> 1 | E30: ='base data'!F30/100 -> 0.02 | F30: ='base data'!G30/100 -> 0.01 | G30: =VLOOKUP('base data'!$D$6,'Gen. Data'!$U$8:$V$10,2,FALSE) -> 1.5 | H30: =VLOOKUP('base data'!$D$6,'Gen. Data'!$U$8:$W$10,3,FALSE) -> 1.2 | I30: 0.9881422925 | J30: 11977.02 | K30: 11979.4154 | L30: ='Crash Dist'!O26 -> 0.1374608255 | M30: ='Crash Dist'!P26 -> 0.07500190119 | N30: 8.37687307 | O30: =IF(cbx1_wz1=TRUE, BK30*'base data'!$CS$11*'base data'!$F$6, "") -> 2.444444444 | P30: =IF(cbx1_wz2=TRUE, BU30*'base data'!$CT$11*'base data'!$F$6, "") ->  | Q30: =IF(cbx1_wz3=TRUE, CE30*'base data'!$CU$11*'base data'!$F$6, "") ->  | R30: =IF(cbx1_wz4=TRUE, CO30*'base data'!$CV$11*'base data'!$F$6, "") ->  | S30: =IF(cbx1_wz5=TRUE, CY30*'base data'!$CX$11*'base data'!$F$6, "") ->  | T30: =IF(cbx1_wz6=TRUE, DI30*'base data'!$CY$11*'base data'!$F$6, "") ->  | U30: =IF(cbx1_wz7=TRUE, DS30*'base data'!$CZ$11*'base data'!$F$6, "") ->  | V30: =IF(cbx1_wz8=TRUE, EC30*'base data'!$DA$11*'base data'!$F$6, "") ->  | W30: =IF(cbx1_wz9=TRUE, EM30*'base data'!$DB$11*'base data'!$F$6, "") ->  | X30: 2.444444444 | Z30: 17:00:00 | AA30: ='base data'!$N$6 -> Yes | AB30: =IF('base data'!tbx1_FFS<55, 55, 'base data'!tbx1_FFS) -> 56 | AC30: 75.4 | AD30: ='base data'!AC30 -> 6 | AE30: ='base data'!comb_wid_val -> 14 | AF30: =ROUND(LEFT('base data'!comb_rsh_val, 1),0) -> 4 | AG30: ='base data'!tbx1_ipm -> 0.7 | AH30: 0 | AI30: =IF($AF30>=6,0,VLOOKUP($AF30&"ft,"&MIN($AD30,5)&"lns",'Gen. Data'!$R$7:$S$41,2,FALSE)) -> 0.2 | AJ30: 2.386372443 | AK30: 72.81362756 | AL30: 72.81362756 | AM30: 55 | AN30: 2250 | AO30: 13500 | AP30: 1996.569234 | AQ30: 1996.569234 | AR30: 54.04599164 | AS30: =('base data'!tbx1_len/AM30)*60 -> 0.6545454545 | AT30: 0.1 | AU30: 9.4 | AV30: 1.032520518 | AW30: 0.6758316116 | AX30: ='base data'!tbx1_len/(AW30/60) -> 53.2677066 | AY30: 54.04599164 | AZ30: 2250 | BA30: 13500 | BB30: =AD30-'base data'!AE30 -> 5 | BC30: 5 | BD30: ='base data'!AF30 -> 0 | BE30: =IF(BC30>=6,0,VLOOKUP(BD30&"ft," & BC30 & "lns",'Gen. Data'!$R$7:$S$41,2,FALSE)) -> 0.6 | BF30: 53.64599164 | BG30: 55 | BH30: 1600 | BI30: 8000 | BJ30: 1 | BK30: 0.4074074074 | BL30: =AD30-'base data'!AG30 -> 1 | BM30: 1 | BN30: ='base data'!AH30 -> 0 | BO30: =IF(BM30>=6,0,VLOOKUP(BN30&"ft," & BM30 & "lns",'Gen. Data'!$R$7:$S$41,2,FALSE)) -> 3.6 | BP30: 50.64599164 | BQ30: 50 | BR30: 1600 | BS30: 1600 | BT30: 1 | BU30: 0.8814814815 | BV30: =AD30-'base data'!AI30 -> 5 | BW30: 5 | BX30: ='base data'!AJ30 -> 0 | BY30: =IF(BW30>=6,0,VLOOKUP(BX30&"ft," & BW30 & "lns",'Gen. Data'!$R$7:$S$41,2,FALSE)) -> 0.6 | BZ30: 53.64599164 | CA30: 55 | CB30: 1600 | CC30: 8000 | CD30: 1 | CE30: 0.4074074074 | CF30: =AD30-'base data'!AK30 -> 5 | CG30: 5 | CH30: ='base data'!AL30 -> 0 | CI30: =IF(CG30>=6,0,VLOOKUP(CH30&"ft," & CG30 & "lns",'Gen. Data'!$R$7:$S$41,2,FALSE)) -> 0.6 | CJ30: 53.64599164 | CK30: 55 | CL30: 1600 | CM30: 8000 | CN30: 1 | CO30: 0.4074074074 | CP30: =AD30-'base data'!AM30 -> 5 | CQ30: 5 | CR30: ='base data'!AN30 -> 0 | CS30: =IF(CQ30>=6,0,VLOOKUP(CR30&"ft," & CQ30 & "lns",'Gen. Data'!$R$7:$S$41,2,FALSE)) -> 0.6 | CT30: 53.64599164 | CU30: 55 | CV30: 1600 | CW30: 8000 | CX30: 1 | CY30: 0.4074074074 | CZ30: =AD30-'base data'!AO30 -> 5 | DA30: 5 | DB30: ='base data'!AP30 -> 0 | DC30: =IF(DA30>=6,0,VLOOKUP(DB30&"ft," & DA30 & "lns",'Gen. Data'!$R$7:$S$41,2,FALSE)) -> 0.6 | DD30: 53.64599164 | DE30: 55 | DF30: 1600 | DG30: 8000 | DH30: 1 | DI30: 0.4074074074 | DJ30: =AD30-'base data'!AQ30 -> 5 | DK30: 5 | DL30: ='base data'!AR30 -> 0 | DM30: =IF(DK30>=6,0,VLOOKUP(DL30&"ft," & DK30 & "lns",'Gen. Data'!$R$7:$S$41,2,FALSE)) -> 0.6 | DN30: 53.64599164 | DO30: 55 | DP30: 1600 | DQ30: 8000 | DR30: 1 | DS30: 0.4074074074 | DT30: =AD30-'base data'!AS30 -> 5 | DU30: 5 | DV30: ='base data'!AT30 -> 0 | DW30: =IF(DU30>=6,0,VLOOKUP(DV30&"ft," & DU30 & "lns",'Gen. Data'!$R$7:$S$41,2,FALSE)) -> 0.6 | DX30: 53.64599164 | DY30: 55 | DZ30: 1600 | EA30: 8000 | EB30: 1 | EC30: 0.4074074074 | ED30: =AD30-'base data'!AU30 -> 5 | EE30: 5 | EF30: ='base data'!AV30 -> 0 | EG30: =IF(EE30>=6,0,VLOOKUP(EF30&"ft," & EE30 & "lns",'Gen. Data'!$R$7:$S$41,2,FALSE)) -> 0.6 | EH30: 53.64599164 | EI30: 55 | EJ30: 1600 | EK30: 8000 | EL30: 1 | EM30: 0.4074074074 | EN30: ='base data'!K30/100 -> 0.05 | EO30: ='base data'!$CI$11 -> 1 | EP30: 2.395404 | EQ30: ='base data'!L30/100 -> 0.05 | ER30: ='base data'!$CJ$11 -> 0 | ES30: 0 | ET30: ='base data'!N30/100 -> 0.05 | EU30: ='base data'!$CK$11 -> 0 | EV30: 0 | EW30: ='base data'!O30/100 -> 0.05 | EX30: ='base data'!$CL$11 -> 0 | EY30: 0 | EZ30: ='base data'!R30/100 -> 0.05 | FA30: ='base data'!$CM$11 -> 0 | FB30: 0 | FC30: ='base data'!S30/100 -> 0.05 | FD30: ='base data'!$CN$11 -> 0 | FE30: 0 | FF30: ='base data'!T30/100 -> 0.05 | FG30: ='base data'!$CO$11 -> 0 | FH30: 0 | FI30: ='base data'!U30/100 -> 0.05 | FJ30: ='base data'!$CP$11 -> 0 | FK30: 0 | FL30: ='base data'!X30/100 -> 0.05 | FM30: ='base data'!$CQ$11 -> 0 | FN30: 0 | FO30: 2.395404
B31: 18:00:00 | C31: ='base data'!D31 -> 8678 | D31: ='base data'!E31 -> 1 | E31: ='base data'!F31/100 -> 0.02 | F31: ='base data'!G31/100 -> 0.01 | G31: =VLOOKUP('base data'!$D$6,'Gen. Data'!$U$8:$V$10,2,FALSE) -> 1.5 | H31: =VLOOKUP('base data'!$D$6,'Gen. Data'!$U$8:$W$10,3,FALSE) -> 1.2 | I31: 0.9881422925 | J31: 8782.136 | K31: 8783.892427 | L31: ='Crash Dist'!O27 -> 0.04228380659 | M31: ='Crash Dist'!P27 -> 0.05499505691 | N31: 3.617437067 | O31: =IF(cbx1_wz1=TRUE, BK31*'base data'!$CS$11*'base data'!$F$6, "") -> 2.444444444 | P31: =IF(cbx1_wz2=TRUE, BU31*'base data'!$CT$11*'base data'!$F$6, "") ->  | Q31: =IF(cbx1_wz3=TRUE, CE31*'base data'!$CU$11*'base data'!$F$6, "") ->  | R31: =IF(cbx1_wz4=TRUE, CO31*'base data'!$CV$11*'base data'!$F$6, "") ->  | S31: =IF(cbx1_wz5=TRUE, CY31*'base data'!$CX$11*'base data'!$F$6, "") ->  | T31: =IF(cbx1_wz6=TRUE, DI31*'base data'!$CY$11*'base data'!$F$6, "") ->  | U31: =IF(cbx1_wz7=TRUE, DS31*'base data'!$CZ$11*'base data'!$F$6, "") ->  | V31: =IF(cbx1_wz8=TRUE, EC31*'base data'!$DA$11*'base data'!$F$6, "") ->  | W31: =IF(cbx1_wz9=TRUE, EM31*'base data'!$DB$11*'base data'!$F$6, "") ->  | X31: 2.444444444 | Z31: 18:00:00 | AA31: ='base data'!$N$6 -> Yes | AB31: =IF('base data'!tbx1_FFS<55, 55, 'base data'!tbx1_FFS) -> 56 | AC31: 75.4 | AD31: ='base data'!AC31 -> 6 | AE31: ='base data'!comb_wid_val -> 14 | AF31: =ROUND(LEFT('base data'!comb_rsh_val, 1),0) -> 4 | AG31: ='base data'!tbx1_ipm -> 0.7 | AH31: 0 | AI31: =IF($AF31>=6,0,VLOOKUP($AF31&"ft,"&MIN($AD31,5)&"lns",'Gen. Data'!$R$7:$S$41,2,FALSE)) -> 0.2 | AJ31: 2.386372443 | AK31: 72.81362756 | AL31: 72.81362756 | AM31: 55 | AN31: 2250 | AO31: 13500 | AP31: 1463.982071 | AQ31: 1463.982071 | AR31: 55 | AS31: =('base data'!tbx1_len/AM31)*60 -> 0.6545454545 | AT31: 0.1 | AU31: 9.4 | AV31: 1.001760032 | AW31: 0.6556974752 | AX31: ='base data'!tbx1_len/(AW31/60) -> 54.90336834 | AY31: 55 | AZ31: 2250 | BA31: 13500 | BB31: =AD31-'base data'!AE31 -> 5 | BC31: 5 | BD31: ='base data'!AF31 -> 0 | BE31: =IF(BC31>=6,0,VLOOKUP(BD31&"ft," & BC31 & "lns",'Gen. Data'!$R$7:$S$41,2,FALSE)) -> 0.6 | BF31: 54.6 | BG31: 55 | BH31: 1600 | BI31: 8000 | BJ31: 1 | BK31: 0.4074074074 | BL31: =AD31-'base data'!AG31 -> 1 | BM31: 1 | BN31: ='base data'!AH31 -> 0 | BO31: =IF(BM31>=6,0,VLOOKUP(BN31&"ft," & BM31 & "lns",'Gen. Data'!$R$7:$S$41,2,FALSE)) -> 3.6 | BP31: 51.6 | BQ31: 50 | BR31: 1600 | BS31: 1600 | BT31: 1 | BU31: 0.8814814815 | BV31: =AD31-'base data'!AI31 -> 5 | BW31: 5 | BX31: ='base data'!AJ31 -> 0 | BY31: =IF(BW31>=6,0,VLOOKUP(BX31&"ft," & BW31 & "lns",'Gen. Data'!$R$7:$S$41,2,FALSE)) -> 0.6 | BZ31: 54.6 | CA31: 55 | CB31: 1600 | CC31: 8000 | CD31: 1 | CE31: 0.4074074074 | CF31: =AD31-'base data'!AK31 -> 5 | CG31: 5 | CH31: ='base data'!AL31 -> 0 | CI31: =IF(CG31>=6,0,VLOOKUP(CH31&"ft," & CG31 & "lns",'Gen. Data'!$R$7:$S$41,2,FALSE)) -> 0.6 | CJ31: 54.6 | CK31: 55 | CL31: 1600 | CM31: 8000 | CN31: 1 | CO31: 0.4074074074 | CP31: =AD31-'base data'!AM31 -> 5 | CQ31: 5 | CR31: ='base data'!AN31 -> 0 | CS31: =IF(CQ31>=6,0,VLOOKUP(CR31&"ft," & CQ31 & "lns",'Gen. Data'!$R$7:$S$41,2,FALSE)) -> 0.6 | CT31: 54.6 | CU31: 55 | CV31: 1600 | CW31: 8000 | CX31: 1 | CY31: 0.4074074074 | CZ31: =AD31-'base data'!AO31 -> 5 | DA31: 5 | DB31: ='base data'!AP31 -> 0 | DC31: =IF(DA31>=6,0,VLOOKUP(DB31&"ft," & DA31 & "lns",'Gen. Data'!$R$7:$S$41,2,FALSE)) -> 0.6 | DD31: 54.6 | DE31: 55 | DF31: 1600 | DG31: 8000 | DH31: 1 | DI31: 0.4074074074 | DJ31: =AD31-'base data'!AQ31 -> 5 | DK31: 5 | DL31: ='base data'!AR31 -> 0 | DM31: =IF(DK31>=6,0,VLOOKUP(DL31&"ft," & DK31 & "lns",'Gen. Data'!$R$7:$S$41,2,FALSE)) -> 0.6 | DN31: 54.6 | DO31: 55 | DP31: 1600 | DQ31: 8000 | DR31: 1 | DS31: 0.4074074074 | DT31: =AD31-'base data'!AS31 -> 5 | DU31: 5 | DV31: ='base data'!AT31 -> 0 | DW31: =IF(DU31>=6,0,VLOOKUP(DV31&"ft," & DU31 & "lns",'Gen. Data'!$R$7:$S$41,2,FALSE)) -> 0.6 | DX31: 54.6 | DY31: 55 | DZ31: 1600 | EA31: 8000 | EB31: 1 | EC31: 0.4074074074 | ED31: =AD31-'base data'!AU31 -> 5 | EE31: 5 | EF31: ='base data'!AV31 -> 0 | EG31: =IF(EE31>=6,0,VLOOKUP(EF31&"ft," & EE31 & "lns",'Gen. Data'!$R$7:$S$41,2,FALSE)) -> 0.6 | EH31: 54.6 | EI31: 55 | EJ31: 1600 | EK31: 8000 | EL31: 1 | EM31: 0.4074074074 | EN31: ='base data'!K31/100 -> 0.05 | EO31: ='base data'!$CI$11 -> 1 | EP31: 1.7564272 | EQ31: ='base data'!L31/100 -> 0.05 | ER31: ='base data'!$CJ$11 -> 0 | ES31: 0 | ET31: ='base data'!N31/100 -> 0.05 | EU31: ='base data'!$CK$11 -> 0 | EV31: 0 | EW31: ='base data'!O31/100 -> 0.05 | EX31: ='base data'!$CL$11 -> 0 | EY31: 0 | EZ31: ='base data'!R31/100 -> 0.05 | FA31: ='base data'!$CM$11 -> 0 | FB31: 0 | FC31: ='base data'!S31/100 -> 0.05 | FD31: ='base data'!$CN$11 -> 0 | FE31: 0 | FF31: ='base data'!T31/100 -> 0.05 | FG31: ='base data'!$CO$11 -> 0 | FH31: 0 | FI31: ='base data'!U31/100 -> 0.05 | FJ31: ='base data'!$CP$11 -> 0 | FK31: 0 | FL31: ='base data'!X31/100 -> 0.05 | FM31: ='base data'!$CQ$11 -> 0 | FN31: 0 | FO31: 1.7564272
B32: 19:00:00 | C32: ='base data'!D32 -> 6153 | D32: ='base data'!E32 -> 1 | E32: ='base data'!F32/100 -> 0.02 | F32: ='base data'!G32/100 -> 0.01 | G32: =VLOOKUP('base data'!$D$6,'Gen. Data'!$U$8:$V$10,2,FALSE) -> 1.5 | H32: =VLOOKUP('base data'!$D$6,'Gen. Data'!$U$8:$W$10,3,FALSE) -> 1.2 | I32: 0.9881422925 | J32: 6226.836 | K32: 6228.081367 | L32: ='Crash Dist'!O28 -> 0.008405955063 | M32: ='Crash Dist'!P28 -> 0.03899338386 | N32: 1.633855483 | O32: =IF(cbx1_wz1=TRUE, BK32*'base data'!$CS$11*'base data'!$F$6, "") -> 2.444444444 | P32: =IF(cbx1_wz2=TRUE, BU32*'base data'!$CT$11*'base data'!$F$6, "") ->  | Q32: =IF(cbx1_wz3=TRUE, CE32*'base data'!$CU$11*'base data'!$F$6, "") ->  | R32: =IF(cbx1_wz4=TRUE, CO32*'base data'!$CV$11*'base data'!$F$6, "") ->  | S32: =IF(cbx1_wz5=TRUE, CY32*'base data'!$CX$11*'base data'!$F$6, "") ->  | T32: =IF(cbx1_wz6=TRUE, DI32*'base data'!$CY$11*'base data'!$F$6, "") ->  | U32: =IF(cbx1_wz7=TRUE, DS32*'base data'!$CZ$11*'base data'!$F$6, "") ->  | V32: =IF(cbx1_wz8=TRUE, EC32*'base data'!$DA$11*'base data'!$F$6, "") ->  | W32: =IF(cbx1_wz9=TRUE, EM32*'base data'!$DB$11*'base data'!$F$6, "") ->  | X32: 2.444444444 | Z32: 19:00:00 | AA32: ='base data'!$N$6 -> Yes | AB32: =IF('base data'!tbx1_FFS<55, 55, 'base data'!tbx1_FFS) -> 56 | AC32: 75.4 | AD32: ='base data'!AC32 -> 6 | AE32: ='base data'!comb_wid_val -> 14 | AF32: =ROUND(LEFT('base data'!comb_rsh_val, 1),0) -> 4 | AG32: ='base data'!tbx1_ipm -> 0.7 | AH32: 0 | AI32: =IF($AF32>=6,0,VLOOKUP($AF32&"ft,"&MIN($AD32,5)&"lns",'Gen. Data'!$R$7:$S$41,2,FALSE)) -> 0.2 | AJ32: 2.386372443 | AK32: 72.81362756 | AL32: 72.81362756 | AM32: 55 | AN32: 2250 | AO32: 13500 | AP32: 1038.013561 | AQ32: 1038.013561 | AR32: 55 | AS32: =('base data'!tbx1_len/AM32)*60 -> 0.6545454545 | AT32: 0.1 | AU32: 9.4 | AV32: 1.000069469 | AW32: 0.6545909253 | AX32: ='base data'!tbx1_len/(AW32/60) -> 54.99617946 | AY32: 55 | AZ32: 2250 | BA32: 13500 | BB32: =AD32-'base data'!AE32 -> 5 | BC32: 5 | BD32: ='base data'!AF32 -> 0 | BE32: =IF(BC32>=6,0,VLOOKUP(BD32&"ft," & BC32 & "lns",'Gen. Data'!$R$7:$S$41,2,FALSE)) -> 0.6 | BF32: 54.6 | BG32: 55 | BH32: 1600 | BI32: 8000 | BJ32: 1 | BK32: 0.4074074074 | BL32: =AD32-'base data'!AG32 -> 1 | BM32: 1 | BN32: ='base data'!AH32 -> 0 | BO32: =IF(BM32>=6,0,VLOOKUP(BN32&"ft," & BM32 & "lns",'Gen. Data'!$R$7:$S$41,2,FALSE)) -> 3.6 | BP32: 51.6 | BQ32: 50 | BR32: 1600 | BS32: 1600 | BT32: 1 | BU32: 0.8814814815 | BV32: =AD32-'base data'!AI32 -> 5 | BW32: 5 | BX32: ='base data'!AJ32 -> 0 | BY32: =IF(BW32>=6,0,VLOOKUP(BX32&"ft," & BW32 & "lns",'Gen. Data'!$R$7:$S$41,2,FALSE)) -> 0.6 | BZ32: 54.6 | CA32: 55 | CB32: 1600 | CC32: 8000 | CD32: 1 | CE32: 0.4074074074 | CF32: =AD32-'base data'!AK32 -> 5 | CG32: 5 | CH32: ='base data'!AL32 -> 0 | CI32: =IF(CG32>=6,0,VLOOKUP(CH32&"ft," & CG32 & "lns",'Gen. Data'!$R$7:$S$41,2,FALSE)) -> 0.6 | CJ32: 54.6 | CK32: 55 | CL32: 1600 | CM32: 8000 | CN32: 1 | CO32: 0.4074074074 | CP32: =AD32-'base data'!AM32 -> 5 | CQ32: 5 | CR32: ='base data'!AN32 -> 0 | CS32: =IF(CQ32>=6,0,VLOOKUP(CR32&"ft," & CQ32 & "lns",'Gen. Data'!$R$7:$S$41,2,FALSE)) -> 0.6 | CT32: 54.6 | CU32: 55 | CV32: 1600 | CW32: 8000 | CX32: 1 | CY32: 0.4074074074 | CZ32: =AD32-'base data'!AO32 -> 5 | DA32: 5 | DB32: ='base data'!AP32 -> 0 | DC32: =IF(DA32>=6,0,VLOOKUP(DB32&"ft," & DA32 & "lns",'Gen. Data'!$R$7:$S$41,2,FALSE)) -> 0.6 | DD32: 54.6 | DE32: 55 | DF32: 1600 | DG32: 8000 | DH32: 1 | DI32: 0.4074074074 | DJ32: =AD32-'base data'!AQ32 -> 5 | DK32: 5 | DL32: ='base data'!AR32 -> 0 | DM32: =IF(DK32>=6,0,VLOOKUP(DL32&"ft," & DK32 & "lns",'Gen. Data'!$R$7:$S$41,2,FALSE)) -> 0.6 | DN32: 54.6 | DO32: 55 | DP32: 1600 | DQ32: 8000 | DR32: 1 | DS32: 0.4074074074 | DT32: =AD32-'base data'!AS32 -> 5 | DU32: 5 | DV32: ='base data'!AT32 -> 0 | DW32: =IF(DU32>=6,0,VLOOKUP(DV32&"ft," & DU32 & "lns",'Gen. Data'!$R$7:$S$41,2,FALSE)) -> 0.6 | DX32: 54.6 | DY32: 55 | DZ32: 1600 | EA32: 8000 | EB32: 1 | EC32: 0.4074074074 | ED32: =AD32-'base data'!AU32 -> 5 | EE32: 5 | EF32: ='base data'!AV32 -> 0 | EG32: =IF(EE32>=6,0,VLOOKUP(EF32&"ft," & EE32 & "lns",'Gen. Data'!$R$7:$S$41,2,FALSE)) -> 0.6 | EH32: 54.6 | EI32: 55 | EJ32: 1600 | EK32: 8000 | EL32: 1 | EM32: 0.4074074074 | EN32: ='base data'!K32/100 -> 0.05 | EO32: ='base data'!$CI$11 -> 1 | EP32: 1.2453672 | EQ32: ='base data'!L32/100 -> 0.05 | ER32: ='base data'!$CJ$11 -> 0 | ES32: 0 | ET32: ='base data'!N32/100 -> 0.05 | EU32: ='base data'!$CK$11 -> 0 | EV32: 0 | EW32: ='base data'!O32/100 -> 0.05 | EX32: ='base data'!$CL$11 -> 0 | EY32: 0 | EZ32: ='base data'!R32/100 -> 0.05 | FA32: ='base data'!$CM$11 -> 0 | FB32: 0 | FC32: ='base data'!S32/100 -> 0.05 | FD32: ='base data'!$CN$11 -> 0 | FE32: 0 | FF32: ='base data'!T32/100 -> 0.05 | FG32: ='base data'!$CO$11 -> 0 | FH32: 0 | FI32: ='base data'!U32/100 -> 0.05 | FJ32: ='base data'!$CP$11 -> 0 | FK32: 0 | FL32: ='base data'!X32/100 -> 0.05 | FM32: ='base data'!$CQ$11 -> 0 | FN32: 0 | FO32: 1.2453672
B33: 20:00:00 | C33: ='base data'!D33 -> 5207 | D33: ='base data'!E33 -> 1 | E33: ='base data'!F33/100 -> 0.02 | F33: ='base data'!G33/100 -> 0.01 | G33: =VLOOKUP('base data'!$D$6,'Gen. Data'!$U$8:$V$10,2,FALSE) -> 1.5 | H33: =VLOOKUP('base data'!$D$6,'Gen. Data'!$U$8:$W$10,3,FALSE) -> 1.2 | I33: 0.9881422925 | J33: 5269.484 | K33: 5270.537897 | L33: ='Crash Dist'!O29 -> 0.007113571918 | M33: ='Crash Dist'!P29 -> 0.0329983016 | N33: 1.382656509 | O33: =IF(cbx1_wz1=TRUE, BK33*'base data'!$CS$11*'base data'!$F$6, "") -> 2.444444444 | P33: =IF(cbx1_wz2=TRUE, BU33*'base data'!$CT$11*'base data'!$F$6, "") ->  | Q33: =IF(cbx1_wz3=TRUE, CE33*'base data'!$CU$11*'base data'!$F$6, "") ->  | R33: =IF(cbx1_wz4=TRUE, CO33*'base data'!$CV$11*'base data'!$F$6, "") ->  | S33: =IF(cbx1_wz5=TRUE, CY33*'base data'!$CX$11*'base data'!$F$6, "") ->  | T33: =IF(cbx1_wz6=TRUE, DI33*'base data'!$CY$11*'base data'!$F$6, "") ->  | U33: =IF(cbx1_wz7=TRUE, DS33*'base data'!$CZ$11*'base data'!$F$6, "") ->  | V33: =IF(cbx1_wz8=TRUE, EC33*'base data'!$DA$11*'base data'!$F$6, "") ->  | W33: =IF(cbx1_wz9=TRUE, EM33*'base data'!$DB$11*'base data'!$F$6, "") ->  | X33: 2.444444444 | Z33: 20:00:00 | AA33: ='base data'!$N$6 -> Yes | AB33: =IF('base data'!tbx1_FFS<55, 55, 'base data'!tbx1_FFS) -> 56 | AC33: 75.4 | AD33: ='base data'!AC33 -> 6 | AE33: ='base data'!comb_wid_val -> 14 | AF33: =ROUND(LEFT('base data'!comb_rsh_val, 1),0) -> 4 | AG33: ='base data'!tbx1_ipm -> 0.7 | AH33: 0 | AI33: =IF($AF33>=6,0,VLOOKUP($AF33&"ft,"&MIN($AD33,5)&"lns",'Gen. Data'!$R$7:$S$41,2,FALSE)) -> 0.2 | AJ33: 2.386372443 | AK33: 72.81362756 | AL33: 72.81362756 | AM33: 55 | AN33: 2250 | AO33: 13500 | AP33: 878.4229828 | AQ33: 878.4229828 | AR33: 55 | AS33: =('base data'!tbx1_len/AM33)*60 -> 0.6545454545 | AT33: 0.1 | AU33: 9.4 | AV33: 1.000014464 | AW33: 0.6545549221 | AX33: ='base data'!tbx1_len/(AW33/60) -> 54.99920447 | AY33: 55 | AZ33: 2250 | BA33: 13500 | BB33: =AD33-'base data'!AE33 -> 5 | BC33: 5 | BD33: ='base data'!AF33 -> 0 | BE33: =IF(BC33>=6,0,VLOOKUP(BD33&"ft," & BC33 & "lns",'Gen. Data'!$R$7:$S$41,2,FALSE)) -> 0.6 | BF33: 54.6 | BG33: 55 | BH33: 1600 | BI33: 8000 | BJ33: 1 | BK33: 0.4074074074 | BL33: =AD33-'base data'!AG33 -> 1 | BM33: 1 | BN33: ='base data'!AH33 -> 0 | BO33: =IF(BM33>=6,0,VLOOKUP(BN33&"ft," & BM33 & "lns",'Gen. Data'!$R$7:$S$41,2,FALSE)) -> 3.6 | BP33: 51.6 | BQ33: 50 | BR33: 1600 | BS33: 1600 | BT33: 1 | BU33: 0.8814814815 | BV33: =AD33-'base data'!AI33 -> 5 | BW33: 5 | BX33: ='base data'!AJ33 -> 0 | BY33: =IF(BW33>=6,0,VLOOKUP(BX33&"ft," & BW33 & "lns",'Gen. Data'!$R$7:$S$41,2,FALSE)) -> 0.6 | BZ33: 54.6 | CA33: 55 | CB33: 1600 | CC33: 8000 | CD33: 1 | CE33: 0.4074074074 | CF33: =AD33-'base data'!AK33 -> 5 | CG33: 5 | CH33: ='base data'!AL33 -> 0 | CI33: =IF(CG33>=6,0,VLOOKUP(CH33&"ft," & CG33 & "lns",'Gen. Data'!$R$7:$S$41,2,FALSE)) -> 0.6 | CJ33: 54.6 | CK33: 55 | CL33: 1600 | CM33: 8000 | CN33: 1 | CO33: 0.4074074074 | CP33: =AD33-'base data'!AM33 -> 5 | CQ33: 5 | CR33: ='base data'!AN33 -> 0 | CS33: =IF(CQ33>=6,0,VLOOKUP(CR33&"ft," & CQ33 & "lns",'Gen. Data'!$R$7:$S$41,2,FALSE)) -> 0.6 | CT33: 54.6 | CU33: 55 | CV33: 1600 | CW33: 8000 | CX33: 1 | CY33: 0.4074074074 | CZ33: =AD33-'base data'!AO33 -> 5 | DA33: 5 | DB33: ='base data'!AP33 -> 0 | DC33: =IF(DA33>=6,0,VLOOKUP(DB33&"ft," & DA33 & "lns",'Gen. Data'!$R$7:$S$41,2,FALSE)) -> 0.6 | DD33: 54.6 | DE33: 55 | DF33: 1600 | DG33: 8000 | DH33: 1 | DI33: 0.4074074074 | DJ33: =AD33-'base data'!AQ33 -> 5 | DK33: 5 | DL33: ='base data'!AR33 -> 0 | DM33: =IF(DK33>=6,0,VLOOKUP(DL33&"ft," & DK33 & "lns",'Gen. Data'!$R$7:$S$41,2,FALSE)) -> 0.6 | DN33: 54.6 | DO33: 55 | DP33: 1600 | DQ33: 8000 | DR33: 1 | DS33: 0.4074074074 | DT33: =AD33-'base data'!AS33 -> 5 | DU33: 5 | DV33: ='base data'!AT33 -> 0 | DW33: =IF(DU33>=6,0,VLOOKUP(DV33&"ft," & DU33 & "lns",'Gen. Data'!$R$7:$S$41,2,FALSE)) -> 0.6 | DX33: 54.6 | DY33: 55 | DZ33: 1600 | EA33: 8000 | EB33: 1 | EC33: 0.4074074074 | ED33: =AD33-'base data'!AU33 -> 5 | EE33: 5 | EF33: ='base data'!AV33 -> 0 | EG33: =IF(EE33>=6,0,VLOOKUP(EF33&"ft," & EE33 & "lns",'Gen. Data'!$R$7:$S$41,2,FALSE)) -> 0.6 | EH33: 54.6 | EI33: 55 | EJ33: 1600 | EK33: 8000 | EL33: 1 | EM33: 0.4074074074 | EN33: ='base data'!K33/100 -> 0.05 | EO33: ='base data'!$CI$11 -> 1 | EP33: 1.0538968 | EQ33: ='base data'!L33/100 -> 0.05 | ER33: ='base data'!$CJ$11 -> 0 | ES33: 0 | ET33: ='base data'!N33/100 -> 0.05 | EU33: ='base data'!$CK$11 -> 0 | EV33: 0 | EW33: ='base data'!O33/100 -> 0.05 | EX33: ='base data'!$CL$11 -> 0 | EY33: 0 | EZ33: ='base data'!R33/100 -> 0.05 | FA33: ='base data'!$CM$11 -> 0 | FB33: 0 | FC33: ='base data'!S33/100 -> 0.05 | FD33: ='base data'!$CN$11 -> 0 | FE33: 0 | FF33: ='base data'!T33/100 -> 0.05 | FG33: ='base data'!$CO$11 -> 0 | FH33: 0 | FI33: ='base data'!U33/100 -> 0.05 | FJ33: ='base data'!$CP$11 -> 0 | FK33: 0 | FL33: ='base data'!X33/100 -> 0.05 | FM33: ='base data'!$CQ$11 -> 0 | FN33: 0 | FO33: 1.0538968
B34: 21:00:00 | C34: ='base data'!D34 -> 4892 | D34: ='base data'!E34 -> 1 | E34: ='base data'!F34/100 -> 0.02 | F34: ='base data'!G34/100 -> 0.01 | G34: =VLOOKUP('base data'!$D$6,'Gen. Data'!$U$8:$V$10,2,FALSE) -> 1.5 | H34: =VLOOKUP('base data'!$D$6,'Gen. Data'!$U$8:$W$10,3,FALSE) -> 1.2 | I34: 0.9881422925 | J34: 4950.704 | K34: 4951.694141 | L34: ='Crash Dist'!O30 -> 0.006683232922 | M34: ='Crash Dist'!P30 -> 0.03100205328 | N34: 1.29901203 | O34: =IF(cbx1_wz1=TRUE, BK34*'base data'!$CS$11*'base data'!$F$6, "") -> 2.444444444 | P34: =IF(cbx1_wz2=TRUE, BU34*'base data'!$CT$11*'base data'!$F$6, "") ->  | Q34: =IF(cbx1_wz3=TRUE, CE34*'base data'!$CU$11*'base data'!$F$6, "") ->  | R34: =IF(cbx1_wz4=TRUE, CO34*'base data'!$CV$11*'base data'!$F$6, "") ->  | S34: =IF(cbx1_wz5=TRUE, CY34*'base data'!$CX$11*'base data'!$F$6, "") ->  | T34: =IF(cbx1_wz6=TRUE, DI34*'base data'!$CY$11*'base data'!$F$6, "") ->  | U34: =IF(cbx1_wz7=TRUE, DS34*'base data'!$CZ$11*'base data'!$F$6, "") ->  | V34: =IF(cbx1_wz8=TRUE, EC34*'base data'!$DA$11*'base data'!$F$6, "") ->  | W34: =IF(cbx1_wz9=TRUE, EM34*'base data'!$DB$11*'base data'!$F$6, "") ->  | X34: 2.444444444 | Z34: 21:00:00 | AA34: ='base data'!$N$6 -> Yes | AB34: =IF('base data'!tbx1_FFS<55, 55, 'base data'!tbx1_FFS) -> 56 | AC34: 75.4 | AD34: ='base data'!AC34 -> 6 | AE34: ='base data'!comb_wid_val -> 14 | AF34: =ROUND(LEFT('base data'!comb_rsh_val, 1),0) -> 4 | AG34: ='base data'!tbx1_ipm -> 0.7 | AH34: 0 | AI34: =IF($AF34>=6,0,VLOOKUP($AF34&"ft,"&MIN($AD34,5)&"lns",'Gen. Data'!$R$7:$S$41,2,FALSE)) -> 0.2 | AJ34: 2.386372443 | AK34: 72.81362756 | AL34: 72.81362756 | AM34: 55 | AN34: 2250 | AO34: 13500 | AP34: 825.2823568 | AQ34: 825.2823568 | AR34: 55 | AS34: =('base data'!tbx1_len/AM34)*60 -> 0.6545454545 | AT34: 0.1 | AU34: 9.4 | AV34: 1.000008045 | AW34: 0.6545507206 | AX34: ='base data'!tbx1_len/(AW34/60) -> 54.99955751 | AY34: 55 | AZ34: 2250 | BA34: 13500 | BB34: =AD34-'base data'!AE34 -> 5 | BC34: 5 | BD34: ='base data'!AF34 -> 0 | BE34: =IF(BC34>=6,0,VLOOKUP(BD34&"ft," & BC34 & "lns",'Gen. Data'!$R$7:$S$41,2,FALSE)) -> 0.6 | BF34: 54.6 | BG34: 55 | BH34: 1600 | BI34: 8000 | BJ34: 1 | BK34: 0.4074074074 | BL34: =AD34-'base data'!AG34 -> 1 | BM34: 1 | BN34: ='base data'!AH34 -> 0 | BO34: =IF(BM34>=6,0,VLOOKUP(BN34&"ft," & BM34 & "lns",'Gen. Data'!$R$7:$S$41,2,FALSE)) -> 3.6 | BP34: 51.6 | BQ34: 50 | BR34: 1600 | BS34: 1600 | BT34: 1 | BU34: 0.8814814815 | BV34: =AD34-'base data'!AI34 -> 5 | BW34: 5 | BX34: ='base data'!AJ34 -> 0 | BY34: =IF(BW34>=6,0,VLOOKUP(BX34&"ft," & BW34 & "lns",'Gen. Data'!$R$7:$S$41,2,FALSE)) -> 0.6 | BZ34: 54.6 | CA34: 55 | CB34: 1600 | CC34: 8000 | CD34: 1 | CE34: 0.4074074074 | CF34: =AD34-'base data'!AK34 -> 5 | CG34: 5 | CH34: ='base data'!AL34 -> 0 | CI34: =IF(CG34>=6,0,VLOOKUP(CH34&"ft," & CG34 & "lns",'Gen. Data'!$R$7:$S$41,2,FALSE)) -> 0.6 | CJ34: 54.6 | CK34: 55 | CL34: 1600 | CM34: 8000 | CN34: 1 | CO34: 0.4074074074 | CP34: =AD34-'base data'!AM34 -> 5 | CQ34: 5 | CR34: ='base data'!AN34 -> 0 | CS34: =IF(CQ34>=6,0,VLOOKUP(CR34&"ft," & CQ34 & "lns",'Gen. Data'!$R$7:$S$41,2,FALSE)) -> 0.6 | CT34: 54.6 | CU34: 55 | CV34: 1600 | CW34: 8000 | CX34: 1 | CY34: 0.4074074074 | CZ34: =AD34-'base data'!AO34 -> 5 | DA34: 5 | DB34: ='base data'!AP34 -> 0 | DC34: =IF(DA34>=6,0,VLOOKUP(DB34&"ft," & DA34 & "lns",'Gen. Data'!$R$7:$S$41,2,FALSE)) -> 0.6 | DD34: 54.6 | DE34: 55 | DF34: 1600 | DG34: 8000 | DH34: 1 | DI34: 0.4074074074 | DJ34: =AD34-'base data'!AQ34 -> 5 | DK34: 5 | DL34: ='base data'!AR34 -> 0 | DM34: =IF(DK34>=6,0,VLOOKUP(DL34&"ft," & DK34 & "lns",'Gen. Data'!$R$7:$S$41,2,FALSE)) -> 0.6 | DN34: 54.6 | DO34: 55 | DP34: 1600 | DQ34: 8000 | DR34: 1 | DS34: 0.4074074074 | DT34: =AD34-'base data'!AS34 -> 5 | DU34: 5 | DV34: ='base data'!AT34 -> 0 | DW34: =IF(DU34>=6,0,VLOOKUP(DV34&"ft," & DU34 & "lns",'Gen. Data'!$R$7:$S$41,2,FALSE)) -> 0.6 | DX34: 54.6 | DY34: 55 | DZ34: 1600 | EA34: 8000 | EB34: 1 | EC34: 0.4074074074 | ED34: =AD34-'base data'!AU34 -> 5 | EE34: 5 | EF34: ='base data'!AV34 -> 0 | EG34: =IF(EE34>=6,0,VLOOKUP(EF34&"ft," & EE34 & "lns",'Gen. Data'!$R$7:$S$41,2,FALSE)) -> 0.6 | EH34: 54.6 | EI34: 55 | EJ34: 1600 | EK34: 8000 | EL34: 1 | EM34: 0.4074074074 | EN34: ='base data'!K34/100 -> 0.05 | EO34: ='base data'!$CI$11 -> 1 | EP34: 0.9901408 | EQ34: ='base data'!L34/100 -> 0.05 | ER34: ='base data'!$CJ$11 -> 0 | ES34: 0 | ET34: ='base data'!N34/100 -> 0.05 | EU34: ='base data'!$CK$11 -> 0 | EV34: 0 | EW34: ='base data'!O34/100 -> 0.05 | EX34: ='base data'!$CL$11 -> 0 | EY34: 0 | EZ34: ='base data'!R34/100 -> 0.05 | FA34: ='base data'!$CM$11 -> 0 | FB34: 0 | FC34: ='base data'!S34/100 -> 0.05 | FD34: ='base data'!$CN$11 -> 0 | FE34: 0 | FF34: ='base data'!T34/100 -> 0.05 | FG34: ='base data'!$CO$11 -> 0 | FH34: 0 | FI34: ='base data'!U34/100 -> 0.05 | FJ34: ='base data'!$CP$11 -> 0 | FK34: 0 | FL34: ='base data'!X34/100 -> 0.05 | FM34: ='base data'!$CQ$11 -> 0 | FN34: 0 | FO34: 0.9901408
B35: 22:00:00 | C35: ='base data'!D35 -> 3472 | D35: ='base data'!E35 -> 1 | E35: ='base data'!F35/100 -> 0.02 | F35: ='base data'!G35/100 -> 0.01 | G35: =VLOOKUP('base data'!$D$6,'Gen. Data'!$U$8:$V$10,2,FALSE) -> 1.5 | H35: =VLOOKUP('base data'!$D$6,'Gen. Data'!$U$8:$W$10,3,FALSE) -> 1.2 | I35: 0.9881422925 | J35: 3513.664 | K35: 3514.366733 | L35: ='Crash Dist'!O31 -> 0.004743292049 | M35: ='Crash Dist'!P31 -> 0.0220030926 | N35: 0.9219480313 | O35: =IF(cbx1_wz1=TRUE, BK35*'base data'!$CS$11*'base data'!$F$6, "") -> 2.444444444 | P35: =IF(cbx1_wz2=TRUE, BU35*'base data'!$CT$11*'base data'!$F$6, "") ->  | Q35: =IF(cbx1_wz3=TRUE, CE35*'base data'!$CU$11*'base data'!$F$6, "") ->  | R35: =IF(cbx1_wz4=TRUE, CO35*'base data'!$CV$11*'base data'!$F$6, "") ->  | S35: =IF(cbx1_wz5=TRUE, CY35*'base data'!$CX$11*'base data'!$F$6, "") ->  | T35: =IF(cbx1_wz6=TRUE, DI35*'base data'!$CY$11*'base data'!$F$6, "") ->  | U35: =IF(cbx1_wz7=TRUE, DS35*'base data'!$CZ$11*'base data'!$F$6, "") ->  | V35: =IF(cbx1_wz8=TRUE, EC35*'base data'!$DA$11*'base data'!$F$6, "") ->  | W35: =IF(cbx1_wz9=TRUE, EM35*'base data'!$DB$11*'base data'!$F$6, "") ->  | X35: 2.444444444 | Z35: 22:00:00 | AA35: ='base data'!$N$6 -> Yes | AB35: =IF('base data'!tbx1_FFS<55, 55, 'base data'!tbx1_FFS) -> 56 | AC35: 75.4 | AD35: ='base data'!AC35 -> 6 | AE35: ='base data'!comb_wid_val -> 14 | AF35: =ROUND(LEFT('base data'!comb_rsh_val, 1),0) -> 4 | AG35: ='base data'!tbx1_ipm -> 0.7 | AH35: 0 | AI35: =IF($AF35>=6,0,VLOOKUP($AF35&"ft,"&MIN($AD35,5)&"lns",'Gen. Data'!$R$7:$S$41,2,FALSE)) -> 0.2 | AJ35: 2.386372443 | AK35: 72.81362756 | AL35: 72.81362756 | AM35: 55 | AN35: 2250 | AO35: 13500 | AP35: 585.7277888 | AQ35: 585.7277888 | AR35: 55 | AS35: =('base data'!tbx1_len/AM35)*60 -> 0.6545454545 | AT35: 0.1 | AU35: 9.4 | AV35: 1.00000032 | AW35: 0.6545456643 | AX35: ='base data'!tbx1_len/(AW35/60) -> 54.99998237 | AY35: 55 | AZ35: 2250 | BA35: 13500 | BB35: =AD35-'base data'!AE35 -> 5 | BC35: 5 | BD35: ='base data'!AF35 -> 0 | BE35: =IF(BC35>=6,0,VLOOKUP(BD35&"ft," & BC35 & "lns",'Gen. Data'!$R$7:$S$41,2,FALSE)) -> 0.6 | BF35: 54.6 | BG35: 55 | BH35: 1600 | BI35: 8000 | BJ35: 1 | BK35: 0.4074074074 | BL35: =AD35-'base data'!AG35 -> 1 | BM35: 1 | BN35: ='base data'!AH35 -> 0 | BO35: =IF(BM35>=6,0,VLOOKUP(BN35&"ft," & BM35 & "lns",'Gen. Data'!$R$7:$S$41,2,FALSE)) -> 3.6 | BP35: 51.6 | BQ35: 50 | BR35: 1600 | BS35: 1600 | BT35: 1 | BU35: 0.8814814815 | BV35: =AD35-'base data'!AI35 -> 5 | BW35: 5 | BX35: ='base data'!AJ35 -> 0 | BY35: =IF(BW35>=6,0,VLOOKUP(BX35&"ft," & BW35 & "lns",'Gen. Data'!$R$7:$S$41,2,FALSE)) -> 0.6 | BZ35: 54.6 | CA35: 55 | CB35: 1600 | CC35: 8000 | CD35: 1 | CE35: 0.4074074074 | CF35: =AD35-'base data'!AK35 -> 5 | CG35: 5 | CH35: ='base data'!AL35 -> 0 | CI35: =IF(CG35>=6,0,VLOOKUP(CH35&"ft," & CG35 & "lns",'Gen. Data'!$R$7:$S$41,2,FALSE)) -> 0.6 | CJ35: 54.6 | CK35: 55 | CL35: 1600 | CM35: 8000 | CN35: 1 | CO35: 0.4074074074 | CP35: =AD35-'base data'!AM35 -> 5 | CQ35: 5 | CR35: ='base data'!AN35 -> 0 | CS35: =IF(CQ35>=6,0,VLOOKUP(CR35&"ft," & CQ35 & "lns",'Gen. Data'!$R$7:$S$41,2,FALSE)) -> 0.6 | CT35: 54.6 | CU35: 55 | CV35: 1600 | CW35: 8000 | CX35: 1 | CY35: 0.4074074074 | CZ35: =AD35-'base data'!AO35 -> 5 | DA35: 5 | DB35: ='base data'!AP35 -> 0 | DC35: =IF(DA35>=6,0,VLOOKUP(DB35&"ft," & DA35 & "lns",'Gen. Data'!$R$7:$S$41,2,FALSE)) -> 0.6 | DD35: 54.6 | DE35: 55 | DF35: 1600 | DG35: 8000 | DH35: 1 | DI35: 0.4074074074 | DJ35: =AD35-'base data'!AQ35 -> 5 | DK35: 5 | DL35: ='base data'!AR35 -> 0 | DM35: =IF(DK35>=6,0,VLOOKUP(DL35&"ft," & DK35 & "lns",'Gen. Data'!$R$7:$S$41,2,FALSE)) -> 0.6 | DN35: 54.6 | DO35: 55 | DP35: 1600 | DQ35: 8000 | DR35: 1 | DS35: 0.4074074074 | DT35: =AD35-'base data'!AS35 -> 5 | DU35: 5 | DV35: ='base data'!AT35 -> 0 | DW35: =IF(DU35>=6,0,VLOOKUP(DV35&"ft," & DU35 & "lns",'Gen. Data'!$R$7:$S$41,2,FALSE)) -> 0.6 | DX35: 54.6 | DY35: 55 | DZ35: 1600 | EA35: 8000 | EB35: 1 | EC35: 0.4074074074 | ED35: =AD35-'base data'!AU35 -> 5 | EE35: 5 | EF35: ='base data'!AV35 -> 0 | EG35: =IF(EE35>=6,0,VLOOKUP(EF35&"ft," & EE35 & "lns",'Gen. Data'!$R$7:$S$41,2,FALSE)) -> 0.6 | EH35: 54.6 | EI35: 55 | EJ35: 1600 | EK35: 8000 | EL35: 1 | EM35: 0.4074074074 | EN35: ='base data'!K35/100 -> 0.05 | EO35: ='base data'!$CI$11 -> 1 | EP35: 0.7027328 | EQ35: ='base data'!L35/100 -> 0.05 | ER35: ='base data'!$CJ$11 -> 0 | ES35: 0 | ET35: ='base data'!N35/100 -> 0.05 | EU35: ='base data'!$CK$11 -> 0 | EV35: 0 | EW35: ='base data'!O35/100 -> 0.05 | EX35: ='base data'!$CL$11 -> 0 | EY35: 0 | EZ35: ='base data'!R35/100 -> 0.05 | FA35: ='base data'!$CM$11 -> 0 | FB35: 0 | FC35: ='base data'!S35/100 -> 0.05 | FD35: ='base data'!$CN$11 -> 0 | FE35: 0 | FF35: ='base data'!T35/100 -> 0.05 | FG35: ='base data'!$CO$11 -> 0 | FH35: 0 | FI35: ='base data'!U35/100 -> 0.05 | FJ35: ='base data'!$CP$11 -> 0 | FK35: 0 | FL35: ='base data'!X35/100 -> 0.05 | FM35: ='base data'!$CQ$11 -> 0 | FN35: 0 | FO35: 0.7027328
B36: 23:00:00 | C36: ='base data'!D36 -> 2052 | D36: ='base data'!E36 -> 1 | E36: ='base data'!F36/100 -> 0.02 | F36: ='base data'!G36/100 -> 0.01 | G36: =VLOOKUP('base data'!$D$6,'Gen. Data'!$U$8:$V$10,2,FALSE) -> 1.5 | H36: =VLOOKUP('base data'!$D$6,'Gen. Data'!$U$8:$W$10,3,FALSE) -> 1.2 | I36: 0.9881422925 | J36: 2076.624 | K36: 2077.039325 | L36: ='Crash Dist'!O32 -> 0.002803351177 | M36: ='Crash Dist'!P32 -> 0.01300413192 | N36: 0.5448840323 | O36: =IF(cbx1_wz1=TRUE, BK36*'base data'!$CS$11*'base data'!$F$6, "") -> 2.444444444 | P36: =IF(cbx1_wz2=TRUE, BU36*'base data'!$CT$11*'base data'!$F$6, "") ->  | Q36: =IF(cbx1_wz3=TRUE, CE36*'base data'!$CU$11*'base data'!$F$6, "") ->  | R36: =IF(cbx1_wz4=TRUE, CO36*'base data'!$CV$11*'base data'!$F$6, "") ->  | S36: =IF(cbx1_wz5=TRUE, CY36*'base data'!$CX$11*'base data'!$F$6, "") ->  | T36: =IF(cbx1_wz6=TRUE, DI36*'base data'!$CY$11*'base data'!$F$6, "") ->  | U36: =IF(cbx1_wz7=TRUE, DS36*'base data'!$CZ$11*'base data'!$F$6, "") ->  | V36: =IF(cbx1_wz8=TRUE, EC36*'base data'!$DA$11*'base data'!$F$6, "") ->  | W36: =IF(cbx1_wz9=TRUE, EM36*'base data'!$DB$11*'base data'!$F$6, "") ->  | X36: 2.444444444 | Z36: 23:00:00 | AA36: ='base data'!$N$6 -> Yes | AB36: =IF('base data'!tbx1_FFS<55, 55, 'base data'!tbx1_FFS) -> 56 | AC36: 75.4 | AD36: ='base data'!AC36 -> 6 | AE36: ='base data'!comb_wid_val -> 14 | AF36: =ROUND(LEFT('base data'!comb_rsh_val, 1),0) -> 4 | AG36: ='base data'!tbx1_ipm -> 0.7 | AH36: 0 | AI36: =IF($AF36>=6,0,VLOOKUP($AF36&"ft,"&MIN($AD36,5)&"lns",'Gen. Data'!$R$7:$S$41,2,FALSE)) -> 0.2 | AJ36: 2.386372443 | AK36: 72.81362756 | AL36: 72.81362756 | AM36: 55 | AN36: 2250 | AO36: 13500 | AP36: 346.1732208 | AQ36: 346.1732208 | AR36: 55 | AS36: =('base data'!tbx1_len/AM36)*60 -> 0.6545454545 | AT36: 0.1 | AU36: 9.4 | AV36: 1.000000002 | AW36: 0.654545456 | AX36: ='base data'!tbx1_len/(AW36/60) -> 54.99999987 | AY36: 55 | AZ36: 2250 | BA36: 13500 | BB36: =AD36-'base data'!AE36 -> 5 | BC36: 5 | BD36: ='base data'!AF36 -> 0 | BE36: =IF(BC36>=6,0,VLOOKUP(BD36&"ft," & BC36 & "lns",'Gen. Data'!$R$7:$S$41,2,FALSE)) -> 0.6 | BF36: 54.6 | BG36: 55 | BH36: 1600 | BI36: 8000 | BJ36: 1 | BK36: 0.4074074074 | BL36: =AD36-'base data'!AG36 -> 1 | BM36: 1 | BN36: ='base data'!AH36 -> 0 | BO36: =IF(BM36>=6,0,VLOOKUP(BN36&"ft," & BM36 & "lns",'Gen. Data'!$R$7:$S$41,2,FALSE)) -> 3.6 | BP36: 51.6 | BQ36: 50 | BR36: 1600 | BS36: 1600 | BT36: 1 | BU36: 0.8814814815 | BV36: =AD36-'base data'!AI36 -> 5 | BW36: 5 | BX36: ='base data'!AJ36 -> 0 | BY36: =IF(BW36>=6,0,VLOOKUP(BX36&"ft," & BW36 & "lns",'Gen. Data'!$R$7:$S$41,2,FALSE)) -> 0.6 | BZ36: 54.6 | CA36: 55 | CB36: 1600 | CC36: 8000 | CD36: 1 | CE36: 0.4074074074 | CF36: =AD36-'base data'!AK36 -> 5 | CG36: 5 | CH36: ='base data'!AL36 -> 0 | CI36: =IF(CG36>=6,0,VLOOKUP(CH36&"ft," & CG36 & "lns",'Gen. Data'!$R$7:$S$41,2,FALSE)) -> 0.6 | CJ36: 54.6 | CK36: 55 | CL36: 1600 | CM36: 8000 | CN36: 1 | CO36: 0.4074074074 | CP36: =AD36-'base data'!AM36 -> 5 | CQ36: 5 | CR36: ='base data'!AN36 -> 0 | CS36: =IF(CQ36>=6,0,VLOOKUP(CR36&"ft," & CQ36 & "lns",'Gen. Data'!$R$7:$S$41,2,FALSE)) -> 0.6 | CT36: 54.6 | CU36: 55 | CV36: 1600 | CW36: 8000 | CX36: 1 | CY36: 0.4074074074 | CZ36: =AD36-'base data'!AO36 -> 5 | DA36: 5 | DB36: ='base data'!AP36 -> 0 | DC36: =IF(DA36>=6,0,VLOOKUP(DB36&"ft," & DA36 & "lns",'Gen. Data'!$R$7:$S$41,2,FALSE)) -> 0.6 | DD36: 54.6 | DE36: 55 | DF36: 1600 | DG36: 8000 | DH36: 1 | DI36: 0.4074074074 | DJ36: =AD36-'base data'!AQ36 -> 5 | DK36: 5 | DL36: ='base data'!AR36 -> 0 | DM36: =IF(DK36>=6,0,VLOOKUP(DL36&"ft," & DK36 & "lns",'Gen. Data'!$R$7:$S$41,2,FALSE)) -> 0.6 | DN36: 54.6 | DO36: 55 | DP36: 1600 | DQ36: 8000 | DR36: 1 | DS36: 0.4074074074 | DT36: =AD36-'base data'!AS36 -> 5 | DU36: 5 | DV36: ='base data'!AT36 -> 0 | DW36: =IF(DU36>=6,0,VLOOKUP(DV36&"ft," & DU36 & "lns",'Gen. Data'!$R$7:$S$41,2,FALSE)) -> 0.6 | DX36: 54.6 | DY36: 55 | DZ36: 1600 | EA36: 8000 | EB36: 1 | EC36: 0.4074074074 | ED36: =AD36-'base data'!AU36 -> 5 | EE36: 5 | EF36: ='base data'!AV36 -> 0 | EG36: =IF(EE36>=6,0,VLOOKUP(EF36&"ft," & EE36 & "lns",'Gen. Data'!$R$7:$S$41,2,FALSE)) -> 0.6 | EH36: 54.6 | EI36: 55 | EJ36: 1600 | EK36: 8000 | EL36: 1 | EM36: 0.4074074074 | EN36: ='base data'!K36/100 -> 0.05 | EO36: ='base data'!$CI$11 -> 1 | EP36: 0.4153248 | EQ36: ='base data'!L36/100 -> 0.05 | ER36: ='base data'!$CJ$11 -> 0 | ES36: 0 | ET36: ='base data'!N36/100 -> 0.05 | EU36: ='base data'!$CK$11 -> 0 | EV36: 0 | EW36: ='base data'!O36/100 -> 0.05 | EX36: ='base data'!$CL$11 -> 0 | EY36: 0 | EZ36: ='base data'!R36/100 -> 0.05 | FA36: ='base data'!$CM$11 -> 0 | FB36: 0 | FC36: ='base data'!S36/100 -> 0.05 | FD36: ='base data'!$CN$11 -> 0 | FE36: 0 | FF36: ='base data'!T36/100 -> 0.05 | FG36: ='base data'!$CO$11 -> 0 | FH36: 0 | FI36: ='base data'!U36/100 -> 0.05 | FJ36: ='base data'!$CP$11 -> 0 | FK36: 0 | FL36: ='base data'!X36/100 -> 0.05 | FM36: ='base data'!$CQ$11 -> 0 | FN36: 0 | FO36: 0.4153248
L37: =SUM(L13:L36) -> 1 | M37: 1 | N37: 75.75183 | O37: 58.66666667 | P37: 0 | Q37: 0 | R37: 0 | S37: 0 | T37: 0 | U37: 0 | V37: 0 | W37: 0 | X37: =SUM(X13:X36) -> 58.66666667 | AN37: =SUM(AN13:AN36)/COUNT(AN13:AN36) -> 2250 | AO37: Total Volume | AP37: =SUM(AP13:AP36) -> 26620.24832 | AQ37: =SUM(AQ13:AQ36) -> 26620.24832 | BH37: *1600 pc/ln/hr is from HCM 2010, pg. 11-26
B38: Conversion to Hourly L07 Coefficients | AH38: right now these input variables are constant, but they can be revised to change by hour
AO39: HCM 2010 | AU39: NCHRP 716 MODIFIED - matching speed of HCM 2010 at a V/C of 1.0 then making all speeds go through 10 mph at V/C of 1.5
AO40: FFS (mi/h) | AP40: Breakpoint (pc/h/ln) | AQ40: Constant | AR40: Capacity | AU40: FFS (mi/h) | AV40: Alpha | AW40: Beta
C41: Crash and Incident LHL | D41: WZLHL Total | E41: Total LHL
B42: Start Hour | AO42: 75 | AP42: 1000 | AQ42: 1.107e-05 | AR42: 75 - 0.00001107 (VP – 1,000)2 | AU42: 75 | AV42: 0.407 | AW42: 6.82
C43: Untreated | D43: Untreated | E43: Untreated | AO43: 70 | AP43: 1200 | AQ43: 1.16e-05 | AR43: 70 - 0.00001160 (VP – 1,200)2 | AU43: 70 | AV43: 0.313 | AW43: 7.28
B44: 00:00:00 | C44: =N13 -> 0.251464512 | D44: =X13 -> 2.444444444 | E44: =D44+C44 -> 2.695908956 | AO44: 65 | AP44: 1400 | AQ44: 1.418e-05 | AR44: 65 - 0.00001418 (VP – 1,400)2 | AU44: 65 | AV44: 0.245 | AW44: 7.68
B45: 01:00:00 | C45: =N14 -> 0.1678200334 | D45: 2.444444444 | E45: =D45+C45 -> 2.612264478 | AO45: 60 | AP45: 1600 | AQ45: 1.816e-05 | AR45: 60 - 0.00001816 (VP – 1,600)2 | AU45: 60 | AV45: 0.174 | AW45: 8.27
B46: 02:00:00 | C46: 0.125599487 | D46: 2.444444444 | E46: 2.570043931 | AO46: 55 | AP46: 1800 | AQ46: 2.469e-05 | AR46: 55 - 0.00002469 (VP – 1,800)2 | AU46: 55 | AV46: 0.1 | AW46: 9.4
B47: 03:00:00 | C47: 0.1678200334 | D47: 2.444444444 | E47: 2.612264478 | AU47: 50 | AV47: 0.56 | AW47: 3.6
B48: 04:00:00 | C48: 0.4190190073 | D48: 2.444444444 | E48: 2.863463452
B49: 05:00:00 | C49: 1.466566526 | D49: 2.444444444 | E49: 3.91101097
B50: 06:00:00 | C50: 3.617437067 | D50: 2.444444444 | E50: 6.061881511
B51: 07:00:00 | C51: 9.254479064 | D51: 2.444444444 | E51: 11.69892351
B52: 08:00:00 | C52: =N21 -> 7.284239697 | D52: 2.444444444 | E52: 9.728684142
B53: 09:00:00 | C53: 3.617437067 | D53: 2.444444444 | E53: 6.061881511
B54: 10:00:00 | C54: 2.620040382 | D54: 2.444444444 | E54: 5.064484826
B55: 11:00:00 | C55: 3.334800534 | D55: 2.444444444 | E55: 5.779244978
B56: 12:00:00 | C56: 3.334800534 | D56: 2.444444444 | E56: 5.779244978
B57: 13:00:00 | C57: 3.925994248 | D57: 2.444444444 | E57: 6.370438692
B58: 14:00:00 | C58: 4.26122521 | D58: 2.444444444 | E58: 6.705669654
B59: 15:00:00 | C59: 6.14168173 | D59: 2.444444444 | E59: 8.586126175
B60: 16:00:00 | C60: 7.984738648 | D60: 2.444444444 | E60: 10.42918309
B61: 17:00:00 | C61: 8.37687307 | D61: 2.444444444 | E61: 10.82131751
B62: 18:00:00 | C62: 3.617437067 | D62: 2.444444444 | E62: 6.061881511
B63: 19:00:00 | C63: 1.633855483 | D63: 2.444444444 | E63: 4.078299927
B64: 20:00:00 | C64: 1.382656509 | D64: 2.444444444 | E64: 3.827100953
B65: 21:00:00 | C65: 1.29901203 | D65: 2.444444444 | E65: 3.743456475
B66: 22:00:00 | C66: 0.9219480313 | D66: 2.444444444 | E66: 3.366392476
B67: 23:00:00 | C67: 0.5448840323 | D67: 2.444444444 | E67: 2.989328477
B68: TOTAL | C68: =SUM(C44:C67) -> 75.75183 | D68: =SUM(D44:D67) -> 58.66666667 | E68: =SUM(E44:E67) -> 134.4184967
B70: Primary Direction L07 Calculations
Q71: Start Hour
I72: =COLUMNS($B:I) -> 8 | J72: =COLUMNS($B:J) -> 9 | K72: =COLUMNS($B:K) -> 10 | L72: =COLUMNS($B:L) -> 11 | M72: =COLUMNS($B:M) -> 12 | N72: =COLUMNS($B:N) -> 13
I73: Calculated TTI by Percentile (L07 Eq'ns) | V73: Area btwn TTI curves | W73: Delay (veh-hrs) | X73: Interpolated TTI %iles | Z73: Reliability MOEs | ET73: Calculated TTI by Percentile (L07 Dc<0.8) | EZ73: Calculated TTI by Percentile (L07 Dc>0.8) | FG73: Calculated TTI by Percentile (L07 Dc>0.8)
B74: Start Hour | D74: Capacity | E74: D/Ccrit | F74: LHL | G74: Rain05Hrs | H74: Snow01Hrs | R74: std dev , treated, unitless | T74: std dev , treated, secs | U74: csk calc | FG74: 0.1 | FN74: 0.5 | FU74: 0.8 | GB74: 0.95 | GI74: 0.99 | GP74: Mean | HG74: Y | HJ74: Y
C75: Volume | I75: Mean | J75: 0.99 | K75: 0.95 | L75: 0.8 | M75: 0.5 | N75: 0.1 | P75: 0 | X75: 0.9 | Y75: 0.975 | Z75: Buffer Index - Mean | AA75: Buffer Index - 50%ile | AB75: Planning Time Index | AC75: Misery Index | AD75: Skew Statistic | ET75: Mean | EU75: 0.99 | EV75: 0.95 | EW75: 0.8 | EX75: 0.5 | EY75: 0.1 | EZ75: Mean | FA75: 0.99 | FB75: 0.95 | FC75: 0.8 | FD75: 0.5 | FE75: 0.1 | FG75: TTINP | FH75: VNP | FI75: VR | FJ75: VS | FK75: TTIR | FL75: TTIS | FM75: TTI | FN75: TTINP | FO75: VNP | FP75: VR | FQ75: VS | FR75: TTIR | FS75: TTIS | FT75: TTI | FU75: TTINP | FV75: VNP | FW75: VR | FX75: VS | FY75: TTIR | FZ75: TTIS | GA75: TTI | GB75: TTINP | GC75: VNP | GD75: VR | GE75: VS | GF75: TTIR | GG75: TTIS | GH75: TTI | GI75: TTINP | GJ75: VNP | GK75: VR | GL75: VS | GM75: TTIR | GN75: TTIS | GO75: TTI | GP75: TTINP | GQ75: VNP | GR75: VR | GS75: VS | GT75: TTIR | GU75: TTIS | GV75: TTI | HF75: Buffer Index - Mean | HG75: Buffer Index - 50%ile | HH75: Planning Time Index | HI75: Misery Index | HJ75: Skew Statistic
A76: 0 | B76: 00:00:00 | C76: ='Untreated L07 bd'!K13 -> 958.5556728 | D76: =BA13 -> 13500 | E76: =C76/D76 -> 0.07100412391 | F76: =E44 -> 2.695908956 | G76: ='base data'!AX13 -> 7.9 | H76: ='base data'!AY13 -> 0 | I76: =IF($E76<0.8,ET76,EZ76) -> 1.032823803 | J76: =IF($E76<0.8,EU76,FA76) -> 1.184939328 | K76: =IF($E76<0.8,EV76,FB76) -> 1.074194252 | L76: 1.03958434 | M76: 1.024536216 | N76: 1.004859778 | P76: 1 | Q76: =B76 -> 00:00:00 | R76: =SQRT((0.3*(N76-I76)^2+0.35*(M76-I76)^2+0.225*(L76-I76)^2+0.095*(K76-I76)^2+0.02*(J76-I76)^2)) -> 0.02990477433 | T76: ='Primary Graph Data'!$O$18*R76*3600 -> 1.174442047 | U76: =0.2*N76+0.35*M76+0.225*L76+0.095*K76+0.02*J76 -> 0.9192133483 | V76: =U76 -> 0.9192133483 | W76: =C76*'Primary Graph Data'!$O$18*V76 -> 9.612187304 | X76: =((X$75-L$75)/(K$75-L$75))*(K76-L76)+L76 -> 1.062657615 | Y76: =((Y$75-K$75)/(J$75-K$75))*(J76-K76)+K76 -> 1.143409925 | Z76: =(K76-I76)/I76 -> 0.04005566946 | AA76: =(K76-M76)/M76 -> 0.0484687951 | AB76: =K76 -> 1.074194252 | AC76: =Y76 -> 1.143409925 | AD76: =(X76-M76)/(M76-N76) -> 1.937413626 | ET76: =EXP($E76*HLOOKUP(ET$75,'L07 Coefs'!$D$6:$I$10,2,FALSE)+$F76*HLOOKUP(ET$75,'L07 Coefs'!$D$6:$I$10,3,FALSE)+$G76*HLOOKUP(ET$75,'L07 Coefs'!$D$6:$I$10,4,FALSE)+$H76*HLOOKUP(ET$75,'L07 Coefs'!$D$6:$I$10,5,FALSE)) -> 1.032823803 | EU76: =EXP($E76*HLOOKUP(EU$75,'L07 Coefs'!$D$6:$I$10,2,FALSE)+$F76*HLOOKUP(EU$75,'L07 Coefs'!$D$6:$I$10,3,FALSE)+$G76*HLOOKUP(EU$75,'L07 Coefs'!$D$6:$I$10,4,FALSE)+$H76*HLOOKUP(EU$75,'L07 Coefs'!$D$6:$I$10,5,FALSE)) -> 1.184939328 | EV76: =EXP($E76*HLOOKUP(EV$75,'L07 Coefs'!$D$6:$I$10,2,FALSE)+$F76*HLOOKUP(EV$75,'L07 Coefs'!$D$6:$I$10,3,FALSE)+$G76*HLOOKUP(EV$75,'L07 Coefs'!$D$6:$I$10,4,FALSE)+$H76*HLOOKUP(EV$75,'L07 Coefs'!$D$6:$I$10,5,FALSE)) -> 1.074194252 | EW76: =EXP($E76*HLOOKUP(EW$75,'L07 Coefs'!$D$6:$I$10,2,FALSE)+$F76*HLOOKUP(EW$75,'L07 Coefs'!$D$6:$I$10,3,FALSE)+$G76*HLOOKUP(EW$75,'L07 Coefs'!$D$6:$I$10,4,FALSE)+$H76*HLOOKUP(EW$75,'L07 Coefs'!$D$6:$I$10,5,FALSE)) -> 1.03958434 | EX76: =EXP($E76*HLOOKUP(EX$75,'L07 Coefs'!$D$6:$I$10,2,FALSE)+$F76*HLOOKUP(EX$75,'L07 Coefs'!$D$6:$I$10,3,FALSE)+$G76*HLOOKUP(EX$75,'L07 Coefs'!$D$6:$I$10,4,FALSE)+$H76*HLOOKUP(EX$75,'L07 Coefs'!$D$6:$I$10,5,FALSE)) -> 1.024536216 | EY76: =EXP($E76*HLOOKUP(EY$75,'L07 Coefs'!$D$6:$I$10,2,FALSE)+$F76*HLOOKUP(EY$75,'L07 Coefs'!$D$6:$I$10,3,FALSE)+$G76*HLOOKUP(EY$75,'L07 Coefs'!$D$6:$I$10,4,FALSE)+$H76*HLOOKUP(EY$75,'L07 Coefs'!$D$6:$I$10,5,FALSE)) -> 1.004859778 | EZ76: =EXP($E76*HLOOKUP(EZ$75,'L07 Coefs'!$D$13:$I$19,2,FALSE)+$F76*HLOOKUP(EZ$75,'L07 Coefs'!$D$13:$I$19,3,FALSE))*(1-($G76/365)-($H76/365)+$AK$13*(($G76/365)/(HLOOKUP(EZ$75,'L07 Coefs'!$D$13:$I$19,4,FALSE)*$AK$13+HLOOKUP(EZ$75,'L07 Coefs'!$D$13:$I$19,5,FALSE)*EXP($E76*HLOOKUP(EZ$75,'L07 Coefs'!$D$13:$I$19,2,FALSE)+$F76*HLOOKUP(EZ$75,'L07 Coefs'!$D$13:$I$19,3,FALSE)))+($H76/365)/(HLOOKUP(EZ$75,'L07 Coefs'!$D$13:$I$19,6,FALSE)*$AK$13+HLOOKUP(EZ$75,'L07 Coefs'!$D$13:$I$19,7,FALSE)*EXP($E76*HLOOKUP(EZ$75,'L07 Coefs'!$D$13:$I$19,2,FALSE)+$F76*HLOOKUP(EZ$75,'L07 Coefs'!$D$13:$I$19,3,FALSE))))) -> 1.069867109 | FA76: =EXP($E76*HLOOKUP(FA$75,'L07 Coefs'!$D$13:$I$19,2,FALSE)+$F76*HLOOKUP(FA$75,'L07 Coefs'!$D$13:$I$19,3,FALSE))*(1-($G76/365)-($H76/365)+$AK$13*(($G76/365)/(HLOOKUP(FA$75,'L07 Coefs'!$D$13:$I$19,4,FALSE)*$AK$13+HLOOKUP(FA$75,'L07 Coefs'!$D$13:$I$19,5,FALSE)*EXP($E76*HLOOKUP(FA$75,'L07 Coefs'!$D$13:$I$19,2,FALSE)+$F76*HLOOKUP(FA$75,'L07 Coefs'!$D$13:$I$19,3,FALSE)))+($H76/365)/(HLOOKUP(FA$75,'L07 Coefs'!$D$13:$I$19,6,FALSE)*$AK$13+HLOOKUP(FA$75,'L07 Coefs'!$D$13:$I$19,7,FALSE)*EXP($E76*HLOOKUP(FA$75,'L07 Coefs'!$D$13:$I$19,2,FALSE)+$F76*HLOOKUP(FA$75,'L07 Coefs'!$D$13:$I$19,3,FALSE))))) -> 1.13147813 | FB76: =EXP($E76*HLOOKUP(FB$75,'L07 Coefs'!$D$13:$I$19,2,FALSE)+$F76*HLOOKUP(FB$75,'L07 Coefs'!$D$13:$I$19,3,FALSE))*(1-($G76/365)-($H76/365)+$AK$13*(($G76/365)/(HLOOKUP(FB$75,'L07 Coefs'!$D$13:$I$19,4,FALSE)*$AK$13+HLOOKUP(FB$75,'L07 Coefs'!$D$13:$I$19,5,FALSE)*EXP($E76*HLOOKUP(FB$75,'L07 Coefs'!$D$13:$I$19,2,FALSE)+$F76*HLOOKUP(FB$75,'L07 Coefs'!$D$13:$I$19,3,FALSE)))+($H76/365)/(HLOOKUP(FB$75,'L07 Coefs'!$D$13:$I$19,6,FALSE)*$AK$13+HLOOKUP(FB$75,'L07 Coefs'!$D$13:$I$19,7,FALSE)*EXP($E76*HLOOKUP(FB$75,'L07 Coefs'!$D$13:$I$19,2,FALSE)+$F76*HLOOKUP(FB$75,'L07 Coefs'!$D$13:$I$19,3,FALSE))))) -> 1.090118693 | FC76: =EXP($E76*HLOOKUP(FC$75,'L07 Coefs'!$D$13:$I$19,2,FALSE)+$F76*HLOOKUP(FC$75,'L07 Coefs'!$D$13:$I$19,3,FALSE))*(1-($G76/365)-($H76/365)+$AK$13*(($G76/365)/(HLOOKUP(FC$75,'L07 Coefs'!$D$13:$I$19,4,FALSE)*$AK$13+HLOOKUP(FC$75,'L07 Coefs'!$D$13:$I$19,5,FALSE)*EXP($E76*HLOOKUP(FC$75,'L07 Coefs'!$D$13:$I$19,2,FALSE)+$F76*HLOOKUP(FC$75,'L07 Coefs'!$D$13:$I$19,3,FALSE)))+($H76/365)/(HLOOKUP(FC$75,'L07 Coefs'!$D$13:$I$19,6,FALSE)*$AK$13+HLOOKUP(FC$75,'L07 Coefs'!$D$13:$I$19,7,FALSE)*EXP($E76*HLOOKUP(FC$75,'L07 Coefs'!$D$13:$I$19,2,FALSE)+$F76*HLOOKUP(FC$75,'L07 Coefs'!$D$13:$I$19,3,FALSE))))) -> 1.082366523 | FD76: =EXP($E76*HLOOKUP(FD$75,'L07 Coefs'!$D$13:$I$19,2,FALSE)+$F76*HLOOKUP(FD$75,'L07 Coefs'!$D$13:$I$19,3,FALSE))*(1-($G76/365)-($H76/365)+$AK$13*(($G76/365)/(HLOOKUP(FD$75,'L07 Coefs'!$D$13:$I$19,4,FALSE)*$AK$13+HLOOKUP(FD$75,'L07 Coefs'!$D$13:$I$19,5,FALSE)*EXP($E76*HLOOKUP(FD$75,'L07 Coefs'!$D$13:$I$19,2,FALSE)+$F76*HLOOKUP(FD$75,'L07 Coefs'!$D$13:$I$19,3,FALSE)))+($H76/365)/(HLOOKUP(FD$75,'L07 Coefs'!$D$13:$I$19,6,FALSE)*$AK$13+HLOOKUP(FD$75,'L07 Coefs'!$D$13:$I$19,7,FALSE)*EXP($E76*HLOOKUP(FD$75,'L07 Coefs'!$D$13:$I$19,2,FALSE)+$F76*HLOOKUP(FD$75,'L07 Coefs'!$D$13:$I$19,3,FALSE))))) -> 1.063060419 | FE76: =EXP($E76*HLOOKUP(FE$75,'L07 Coefs'!$D$13:$I$19,2,FALSE)+$F76*HLOOKUP(FE$75,'L07 Coefs'!$D$13:$I$19,3,FALSE))*(1-($G76/365)-($H76/365)+$AK$13*(($G76/365)/(HLOOKUP(FE$75,'L07 Coefs'!$D$13:$I$19,4,FALSE)*$AK$13+HLOOKUP(FE$75,'L07 Coefs'!$D$13:$I$19,5,FALSE)*EXP($E76*HLOOKUP(FE$75,'L07 Coefs'!$D$13:$I$19,2,FALSE)+$F76*HLOOKUP(FE$75,'L07 Coefs'!$D$13:$I$19,3,FALSE)))+($H76/365)/(HLOOKUP(FE$75,'L07 Coefs'!$D$13:$I$19,6,FALSE)*$AK$13+HLOOKUP(FE$75,'L07 Coefs'!$D$13:$I$19,7,FALSE)*EXP($E76*HLOOKUP(FE$75,'L07 Coefs'!$D$13:$I$19,2,FALSE)+$F76*HLOOKUP(FE$75,'L07 Coefs'!$D$13:$I$19,3,FALSE))))) -> 1.017198125 | FG76: =EXP($E76*HLOOKUP(OFFSET(FG$75,-1,0),'L07 Coefs'!$D$13:$I$19,2,FALSE)+$F76*HLOOKUP(OFFSET(FG$75,-1,0),'L07 Coefs'!$D$13:$I$19,3,FALSE)) -> 1.016479591 | FH76: ='Untreated L07 bd'!$AK13/FG76 -> 71.63314264 | FI76: =HLOOKUP(OFFSET(FG$75,-1,0),'L07 Coefs'!$D$13:$I$19,4,FALSE)*FH76+HLOOKUP(OFFSET(FG$75,-1,0),'L07 Coefs'!$D$13:$I$19,5,FALSE) -> 69.36760656 | FJ76: =HLOOKUP(OFFSET(FG$75,-1,0),'L07 Coefs'!$D$13:$I$19,6,FALSE)*FH76+HLOOKUP(OFFSET(FG$75,-1,0),'L07 Coefs'!$D$13:$I$19,7,FALSE) -> 28.30069939 | FK76: ='Untreated L07 bd'!$AK13/FI76 -> 1.049677669 | FL76: ='Untreated L07 bd'!$AK13/FJ76 -> 2.572856118 | FM76: =($G76/365)*FK76+($H76/365)*FL76+(1-($G76/365)-($H76/365))*FG76 -> 1.017198125 | FN76: =EXP($E76*HLOOKUP(OFFSET(FN$75,-1,0),'L07 Coefs'!$D$13:$I$19,2,FALSE)+$F76*HLOOKUP(OFFSET(FN$75,-1,0),'L07 Coefs'!$D$13:$I$19,3,FALSE)) -> 1.059570475 | FO76: ='Untreated L07 bd'!$AK13/FN76 -> 68.71994765 | FP76: =HLOOKUP(OFFSET(FN$75,-1,0),'L07 Coefs'!$D$13:$I$19,4,FALSE)*FO76+HLOOKUP(OFFSET(FN$75,-1,0),'L07 Coefs'!$D$13:$I$19,5,FALSE) -> 59.64346943 | FQ76: =HLOOKUP(OFFSET(FN$75,-1,0),'L07 Coefs'!$D$13:$I$19,6,FALSE)*FO76+HLOOKUP(OFFSET(FN$75,-1,0),'L07 Coefs'!$D$13:$I$19,7,FALSE) -> 26.97838194 | FR76: ='Untreated L07 bd'!$AK13/FP76 -> 1.220814756 | FS76: ='Untreated L07 bd'!$AK13/FQ76 -> 2.698961996 | FT76: =($G76/365)*FR76+($H76/365)*FS76+(1-($G76/365)-($H76/365))*FN76 -> 1.063060419 | FU76: =EXP($E76*HLOOKUP(OFFSET(FU$75,-1,0),'L07 Coefs'!$D$13:$I$19,2,FALSE)+$F76*HLOOKUP(OFFSET(FU$75,-1,0),'L07 Coefs'!$D$13:$I$19,3,FALSE)) -> 1.073840323 | FV76: ='Untreated L07 bd'!$AK13/FU76 -> 67.8067549 | FW76: =HLOOKUP(OFFSET(FU$75,-1,0),'L07 Coefs'!$D$13:$I$19,4,FALSE)*FV76+HLOOKUP(OFFSET(FU$75,-1,0),'L07 Coefs'!$D$13:$I$19,5,FALSE) -> 49.60825559 | FX76: =HLOOKUP(OFFSET(FU$75,-1,0),'L07 Coefs'!$D$13:$I$19,6,FALSE)*FV76+HLOOKUP(OFFSET(FU$75,-1,0),'L07 Coefs'!$D$13:$I$19,7,FALSE) -> 21.03897389 | FY76: ='Untreated L07 bd'!$AK13/FW76 -> 1.467772384 | FZ76: ='Untreated L07 bd'!$AK13/FX76 -> 3.460892529 | GA76: =($G76/365)*FY76+($H76/365)*FZ76+(1-($G76/365)-($H76/365))*FU76 -> 1.082366523 | GB76: =EXP($E76*HLOOKUP(OFFSET(GB$75,-1,0),'L07 Coefs'!$D$13:$I$19,2,FALSE)+$F76*HLOOKUP(OFFSET(GB$75,-1,0),'L07 Coefs'!$D$13:$I$19,3,FALSE)) -> 1.080740162 | GC76: ='Untreated L07 bd'!$AK13/GB76 -> 67.37385187 | GD76: =HLOOKUP(OFFSET(GB$75,-1,0),'L07 Coefs'!$D$13:$I$19,4,FALSE)*GC76+HLOOKUP(OFFSET(GB$75,-1,0),'L07 Coefs'!$D$13:$I$19,5,FALSE) -> 48.09189135 | GE76: =HLOOKUP(OFFSET(GB$75,-1,0),'L07 Coefs'!$D$13:$I$19,6,FALSE)*GC76+HLOOKUP(OFFSET(GB$75,-1,0),'L07 Coefs'!$D$13:$I$19,7,FALSE) -> 20.93892164 | GF76: ='Untreated L07 bd'!$AK13/GD76 -> 1.514052068 | GG76: ='Untreated L07 bd'!$AK13/GE76 -> 3.47742968 | GH76: =($G76/365)*GF76+($H76/365)*GG76+(1-($G76/365)-($H76/365))*GB76 -> 1.090118693 | GI76: =EXP($E76*HLOOKUP(OFFSET(GI$75,-1,0),'L07 Coefs'!$D$13:$I$19,2,FALSE)+$F76*HLOOKUP(OFFSET(GI$75,-1,0),'L07 Coefs'!$D$13:$I$19,3,FALSE)) -> 1.120485274 | GJ76: ='Untreated L07 bd'!$AK13/GI76 -> 64.98401117 | GK76: =HLOOKUP(OFFSET(GI$75,-1,0),'L07 Coefs'!$D$13:$I$19,4,FALSE)*GJ76+HLOOKUP(OFFSET(GI$75,-1,0),'L07 Coefs'!$D$13:$I$19,5,FALSE) -> 44.71529478 | GL76: =HLOOKUP(OFFSET(GI$75,-1,0),'L07 Coefs'!$D$13:$I$19,6,FALSE)*GJ76+HLOOKUP(OFFSET(GI$75,-1,0),'L07 Coefs'!$D$13:$I$19,7,FALSE) -> 21.60954781 | GM76: ='Untreated L07 bd'!$AK13/GK76 -> 1.628383038 | GN76: ='Untreated L07 bd'!$AK13/GL76 -> 3.369511857 | GO76: =($G76/365)*GM76+($H76/365)*GN76+(1-($G76/365)-($H76/365))*GI76 -> 1.13147813 | GP76: =EXP($E76*HLOOKUP(OFFSET(GP$75,-1,0),'L07 Coefs'!$D$13:$I$19,2,FALSE)+$F76*HLOOKUP(OFFSET(GP$75,-1,0),'L07 Coefs'!$D$13:$I$19,3,FALSE)) -> 1.065221187 | GQ76: ='Untreated L07 bd'!$AK13/GP76 -> 68.35540681 | GR76: =HLOOKUP(OFFSET(GP$75,-1,0),'L07 Coefs'!$D$13:$I$19,4,FALSE)*GQ76+HLOOKUP(OFFSET(GP$75,-1,0),'L07 Coefs'!$D$13:$I$19,5,FALSE) -> 56.89122156 | GS76: =HLOOKUP(OFFSET(GP$75,-1,0),'L07 Coefs'!$D$13:$I$19,6,FALSE)*GQ76+HLOOKUP(OFFSET(GP$75,-1,0),'L07 Coefs'!$D$13:$I$19,7,FALSE) -> 25.39112868 | GT76: ='Untreated L07 bd'!$AK13/GR76 -> 1.279874567 | GU76: ='Untreated L07 bd'!$AK13/GS76 -> 2.867679829 | GV76: =($G76/365)*GT76+($H76/365)*GU76+(1-($G76/365)-($H76/365))*GP76 -> 1.069867109 | GX76: dccrit | GY76: min | GZ76: =MIN(E76:E99) -> 0.03546457298 | HA76: =OFFSET(B74,MATCH(GZ76,E76:E99,0)+1,0) -> 02:00:00 | HF76: =IF(HF$74="Y", Z76, NA()) ->  | HG76: 0.0484687951 | HJ76: 1.937413626
A77: 1 | B77: 01:00:00 | C77: ='Untreated L07 bd'!K14 -> 639.7119168 | D77: 13500 | E77: =C77/D77 -> 0.04738606791 | F77: =E45 -> 2.612264478 | G77: ='base data'!AX14 -> 8.2 | H77: ='base data'!AY14 -> 0 | I77: 1.030214147 | J77: 1.168751996 | K77: 1.068431694 | L77: 1.036520189 | M77: 1.022650446 | N77: 1.004489595 | P77: 1 | Q77: =B77 -> 01:00:00 | R77: 0.0273880705 | T77: ='Primary Graph Data'!$O$18*R77*3600 -> 1.075604223 | U77: =0.2*N77+0.35*M77+0.225*L77+0.095*K77+0.02*J77 -> 0.9169186686 | V77: =U77 -> 0.9169186686 | W77: =C77*'Primary Graph Data'!$O$18*V77 -> 6.398877808 | X77: 1.057794526 | Y77: 1.131131883 | Z77: 0.03709670143 | AA77: 0.04476724923 | AB77: 1.068431694 | AC77: =Y77 -> 1.131131883 | AD77: 1.935155926 | ET77: =EXP($E77*HLOOKUP(ET$75,'L07 Coefs'!$D$6:$I$10,2,FALSE)+$F77*HLOOKUP(ET$75,'L07 Coefs'!$D$6:$I$10,3,FALSE)+$G77*HLOOKUP(ET$75,'L07 Coefs'!$D$6:$I$10,4,FALSE)+$H77*HLOOKUP(ET$75,'L07 Coefs'!$D$6:$I$10,5,FALSE)) -> 1.030214147 | EU77: =EXP($E77*HLOOKUP(EU$75,'L07 Coefs'!$D$6:$I$10,2,FALSE)+$F77*HLOOKUP(EU$75,'L07 Coefs'!$D$6:$I$10,3,FALSE)+$G77*HLOOKUP(EU$75,'L07 Coefs'!$D$6:$I$10,4,FALSE)+$H77*HLOOKUP(EU$75,'L07 Coefs'!$D$6:$I$10,5,FALSE)) -> 1.168751996 | EV77: =EXP($E77*HLOOKUP(EV$75,'L07 Coefs'!$D$6:$I$10,2,FALSE)+$F77*HLOOKUP(EV$75,'L07 Coefs'!$D$6:$I$10,3,FALSE)+$G77*HLOOKUP(EV$75,'L07 Coefs'!$D$6:$I$10,4,FALSE)+$H77*HLOOKUP(EV$75,'L07 Coefs'!$D$6:$I$10,5,FALSE)) -> 1.068431694 | EW77: =EXP($E77*HLOOKUP(EW$75,'L07 Coefs'!$D$6:$I$10,2,FALSE)+$F77*HLOOKUP(EW$75,'L07 Coefs'!$D$6:$I$10,3,FALSE)+$G77*HLOOKUP(EW$75,'L07 Coefs'!$D$6:$I$10,4,FALSE)+$H77*HLOOKUP(EW$75,'L07 Coefs'!$D$6:$I$10,5,FALSE)) -> 1.036520189 | EX77: =EXP($E77*HLOOKUP(EX$75,'L07 Coefs'!$D$6:$I$10,2,FALSE)+$F77*HLOOKUP(EX$75,'L07 Coefs'!$D$6:$I$10,3,FALSE)+$G77*HLOOKUP(EX$75,'L07 Coefs'!$D$6:$I$10,4,FALSE)+$H77*HLOOKUP(EX$75,'L07 Coefs'!$D$6:$I$10,5,FALSE)) -> 1.022650446 | EY77: =EXP($E77*HLOOKUP(EY$75,'L07 Coefs'!$D$6:$I$10,2,FALSE)+$F77*HLOOKUP(EY$75,'L07 Coefs'!$D$6:$I$10,3,FALSE)+$G77*HLOOKUP(EY$75,'L07 Coefs'!$D$6:$I$10,4,FALSE)+$H77*HLOOKUP(EY$75,'L07 Coefs'!$D$6:$I$10,5,FALSE)) -> 1.004489595 | EZ77: =EXP($E77*HLOOKUP(EZ$75,'L07 Coefs'!$D$13:$I$19,2,FALSE)+$F77*HLOOKUP(EZ$75,'L07 Coefs'!$D$13:$I$19,3,FALSE))*(1-($G77/365)-($H77/365)+$AK$13*(($G77/365)/(HLOOKUP(EZ$75,'L07 Coefs'!$D$13:$I$19,4,FALSE)*$AK$13+HLOOKUP(EZ$75,'L07 Coefs'!$D$13:$I$19,5,FALSE)*EXP($E77*HLOOKUP(EZ$75,'L07 Coefs'!$D$13:$I$19,2,FALSE)+$F77*HLOOKUP(EZ$75,'L07 Coefs'!$D$13:$I$19,3,FALSE)))+($H77/365)/(HLOOKUP(EZ$75,'L07 Coefs'!$D$13:$I$19,6,FALSE)*$AK$13+HLOOKUP(EZ$75,'L07 Coefs'!$D$13:$I$19,7,FALSE)*EXP($E77*HLOOKUP(EZ$75,'L07 Coefs'!$D$13:$I$19,2,FALSE)+$F77*HLOOKUP(EZ$75,'L07 Coefs'!$D$13:$I$19,3,FALSE))))) -> 1.059960956 | FA77: =EXP($E77*HLOOKUP(FA$75,'L07 Coefs'!$D$13:$I$19,2,FALSE)+$F77*HLOOKUP(FA$75,'L07 Coefs'!$D$13:$I$19,3,FALSE))*(1-($G77/365)-($H77/365)+$AK$13*(($G77/365)/(HLOOKUP(FA$75,'L07 Coefs'!$D$13:$I$19,4,FALSE)*$AK$13+HLOOKUP(FA$75,'L07 Coefs'!$D$13:$I$19,5,FALSE)*EXP($E77*HLOOKUP(FA$75,'L07 Coefs'!$D$13:$I$19,2,FALSE)+$F77*HLOOKUP(FA$75,'L07 Coefs'!$D$13:$I$19,3,FALSE)))+($H77/365)/(HLOOKUP(FA$75,'L07 Coefs'!$D$13:$I$19,6,FALSE)*$AK$13+HLOOKUP(FA$75,'L07 Coefs'!$D$13:$I$19,7,FALSE)*EXP($E77*HLOOKUP(FA$75,'L07 Coefs'!$D$13:$I$19,2,FALSE)+$F77*HLOOKUP(FA$75,'L07 Coefs'!$D$13:$I$19,3,FALSE))))) -> 1.101041305 | FB77: =EXP($E77*HLOOKUP(FB$75,'L07 Coefs'!$D$13:$I$19,2,FALSE)+$F77*HLOOKUP(FB$75,'L07 Coefs'!$D$13:$I$19,3,FALSE))*(1-($G77/365)-($H77/365)+$AK$13*(($G77/365)/(HLOOKUP(FB$75,'L07 Coefs'!$D$13:$I$19,4,FALSE)*$AK$13+HLOOKUP(FB$75,'L07 Coefs'!$D$13:$I$19,5,FALSE)*EXP($E77*HLOOKUP(FB$75,'L07 Coefs'!$D$13:$I$19,2,FALSE)+$F77*HLOOKUP(FB$75,'L07 Coefs'!$D$13:$I$19,3,FALSE)))+($H77/365)/(HLOOKUP(FB$75,'L07 Coefs'!$D$13:$I$19,6,FALSE)*$AK$13+HLOOKUP(FB$75,'L07 Coefs'!$D$13:$I$19,7,FALSE)*EXP($E77*HLOOKUP(FB$75,'L07 Coefs'!$D$13:$I$19,2,FALSE)+$F77*HLOOKUP(FB$75,'L07 Coefs'!$D$13:$I$19,3,FALSE))))) -> 1.073311967 | FC77: =EXP($E77*HLOOKUP(FC$75,'L07 Coefs'!$D$13:$I$19,2,FALSE)+$F77*HLOOKUP(FC$75,'L07 Coefs'!$D$13:$I$19,3,FALSE))*(1-($G77/365)-($H77/365)+$AK$13*(($G77/365)/(HLOOKUP(FC$75,'L07 Coefs'!$D$13:$I$19,4,FALSE)*$AK$13+HLOOKUP(FC$75,'L07 Coefs'!$D$13:$I$19,5,FALSE)*EXP($E77*HLOOKUP(FC$75,'L07 Coefs'!$D$13:$I$19,2,FALSE)+$F77*HLOOKUP(FC$75,'L07 Coefs'!$D$13:$I$19,3,FALSE)))+($H77/365)/(HLOOKUP(FC$75,'L07 Coefs'!$D$13:$I$19,6,FALSE)*$AK$13+HLOOKUP(FC$75,'L07 Coefs'!$D$13:$I$19,7,FALSE)*EXP($E77*HLOOKUP(FC$75,'L07 Coefs'!$D$13:$I$19,2,FALSE)+$F77*HLOOKUP(FC$75,'L07 Coefs'!$D$13:$I$19,3,FALSE))))) -> 1.068393569 | FD77: =EXP($E77*HLOOKUP(FD$75,'L07 Coefs'!$D$13:$I$19,2,FALSE)+$F77*HLOOKUP(FD$75,'L07 Coefs'!$D$13:$I$19,3,FALSE))*(1-($G77/365)-($H77/365)+$AK$13*(($G77/365)/(HLOOKUP(FD$75,'L07 Coefs'!$D$13:$I$19,4,FALSE)*$AK$13+HLOOKUP(FD$75,'L07 Coefs'!$D$13:$I$19,5,FALSE)*EXP($E77*HLOOKUP(FD$75,'L07 Coefs'!$D$13:$I$19,2,FALSE)+$F77*HLOOKUP(FD$75,'L07 Coefs'!$D$13:$I$19,3,FALSE)))+($H77/365)/(HLOOKUP(FD$75,'L07 Coefs'!$D$13:$I$19,6,FALSE)*$AK$13+HLOOKUP(FD$75,'L07 Coefs'!$D$13:$I$19,7,FALSE)*EXP($E77*HLOOKUP(FD$75,'L07 Coefs'!$D$13:$I$19,2,FALSE)+$F77*HLOOKUP(FD$75,'L07 Coefs'!$D$13:$I$19,3,FALSE))))) -> 1.054668894 | FE77: =EXP($E77*HLOOKUP(FE$75,'L07 Coefs'!$D$13:$I$19,2,FALSE)+$F77*HLOOKUP(FE$75,'L07 Coefs'!$D$13:$I$19,3,FALSE))*(1-($G77/365)-($H77/365)+$AK$13*(($G77/365)/(HLOOKUP(FE$75,'L07 Coefs'!$D$13:$I$19,4,FALSE)*$AK$13+HLOOKUP(FE$75,'L07 Coefs'!$D$13:$I$19,5,FALSE)*EXP($E77*HLOOKUP(FE$75,'L07 Coefs'!$D$13:$I$19,2,FALSE)+$F77*HLOOKUP(FE$75,'L07 Coefs'!$D$13:$I$19,3,FALSE)))+($H77/365)/(HLOOKUP(FE$75,'L07 Coefs'!$D$13:$I$19,6,FALSE)*$AK$13+HLOOKUP(FE$75,'L07 Coefs'!$D$13:$I$19,7,FALSE)*EXP($E77*HLOOKUP(FE$75,'L07 Coefs'!$D$13:$I$19,2,FALSE)+$F77*HLOOKUP(FE$75,'L07 Coefs'!$D$13:$I$19,3,FALSE))))) -> 1.015026359 | FG77: =EXP($E77*HLOOKUP(OFFSET(FG$75,-1,0),'L07 Coefs'!$D$13:$I$19,2,FALSE)+$F77*HLOOKUP(OFFSET(FG$75,-1,0),'L07 Coefs'!$D$13:$I$19,3,FALSE)) -> 1.014302707 | FH77: ='Untreated L07 bd'!$AK14/FG77 -> 71.78688083 | FI77: =HLOOKUP(OFFSET(FG$75,-1,0),'L07 Coefs'!$D$13:$I$19,4,FALSE)*FH77+HLOOKUP(OFFSET(FG$75,-1,0),'L07 Coefs'!$D$13:$I$19,5,FALSE) -> 69.57730545 | FJ77: =HLOOKUP(OFFSET(FG$75,-1,0),'L07 Coefs'!$D$13:$I$19,6,FALSE)*FH77+HLOOKUP(OFFSET(FG$75,-1,0),'L07 Coefs'!$D$13:$I$19,7,FALSE) -> 28.32806479 | FK77: ='Untreated L07 bd'!$AK14/FI77 -> 1.046514048 | FL77: ='Untreated L07 bd'!$AK14/FJ77 -> 2.570370694 | FM77: =($G77/365)*FK77+($H77/365)*FL77+(1-($G77/365)-($H77/365))*FG77 -> 1.015026359 | FN77: =EXP($E77*HLOOKUP(OFFSET(FN$75,-1,0),'L07 Coefs'!$D$13:$I$19,2,FALSE)+$F77*HLOOKUP(OFFSET(FN$75,-1,0),'L07 Coefs'!$D$13:$I$19,3,FALSE)) -> 1.051099936 | FO77: ='Untreated L07 bd'!$AK14/FN77 -> 69.27374369 | FP77: =HLOOKUP(OFFSET(FN$75,-1,0),'L07 Coefs'!$D$13:$I$19,4,FALSE)*FO77+HLOOKUP(OFFSET(FN$75,-1,0),'L07 Coefs'!$D$13:$I$19,5,FALSE) -> 60.1784364 | FQ77: =HLOOKUP(OFFSET(FN$75,-1,0),'L07 Coefs'!$D$13:$I$19,6,FALSE)*FO77+HLOOKUP(OFFSET(FN$75,-1,0),'L07 Coefs'!$D$13:$I$19,7,FALSE) -> 27.16944157 | FR77: ='Untreated L07 bd'!$AK14/FP77 -> 1.209962105 | FS77: ='Untreated L07 bd'!$AK14/FQ77 -> 2.679982486 | FT77: =($G77/365)*FR77+($H77/365)*FS77+(1-($G77/365)-($H77/365))*FN77 -> 1.054668894 | FU77: =EXP($E77*HLOOKUP(OFFSET(FU$75,-1,0),'L07 Coefs'!$D$13:$I$19,2,FALSE)+$F77*HLOOKUP(OFFSET(FU$75,-1,0),'L07 Coefs'!$D$13:$I$19,3,FALSE)) -> 1.059600907 | FV77: ='Untreated L07 bd'!$AK14/FU77 -> 68.71797396 | FW77: =HLOOKUP(OFFSET(FU$75,-1,0),'L07 Coefs'!$D$13:$I$19,4,FALSE)*FV77+HLOOKUP(OFFSET(FU$75,-1,0),'L07 Coefs'!$D$13:$I$19,5,FALSE) -> 50.18232359 | FX77: =HLOOKUP(OFFSET(FU$75,-1,0),'L07 Coefs'!$D$13:$I$19,6,FALSE)*FV77+HLOOKUP(OFFSET(FU$75,-1,0),'L07 Coefs'!$D$13:$I$19,7,FALSE) -> 21.25128793 | FY77: ='Untreated L07 bd'!$AK14/FW77 -> 1.450981588 | FZ77: ='Untreated L07 bd'!$AK14/FX77 -> 3.426315986 | GA77: =($G77/365)*FY77+($H77/365)*FZ77+(1-($G77/365)-($H77/365))*FU77 -> 1.068393569 | GB77: =EXP($E77*HLOOKUP(OFFSET(GB$75,-1,0),'L07 Coefs'!$D$13:$I$19,2,FALSE)+$F77*HLOOKUP(OFFSET(GB$75,-1,0),'L07 Coefs'!$D$13:$I$19,3,FALSE)) -> 1.063675508 | GC77: ='Untreated L07 bd'!$AK14/GB77 -> 68.45473737 | GD77: =HLOOKUP(OFFSET(GB$75,-1,0),'L07 Coefs'!$D$13:$I$19,4,FALSE)*GC77+HLOOKUP(OFFSET(GB$75,-1,0),'L07 Coefs'!$D$13:$I$19,5,FALSE) -> 48.78257718 | GE77: =HLOOKUP(OFFSET(GB$75,-1,0),'L07 Coefs'!$D$13:$I$19,6,FALSE)*GC77+HLOOKUP(OFFSET(GB$75,-1,0),'L07 Coefs'!$D$13:$I$19,7,FALSE) -> 21.24805489 | GF77: ='Untreated L07 bd'!$AK14/GD77 -> 1.492615433 | GG77: ='Untreated L07 bd'!$AK14/GE77 -> 3.426837324 | GH77: =($G77/365)*GF77+($H77/365)*GG77+(1-($G77/365)-($H77/365))*GB77 -> 1.073311967 | GI77: =EXP($E77*HLOOKUP(OFFSET(GI$75,-1,0),'L07 Coefs'!$D$13:$I$19,2,FALSE)+$F77*HLOOKUP(OFFSET(GI$75,-1,0),'L07 Coefs'!$D$13:$I$19,3,FALSE)) -> 1.089828082 | GJ77: ='Untreated L07 bd'!$AK14/GI77 -> 66.81203096 | GK77: =HLOOKUP(OFFSET(GI$75,-1,0),'L07 Coefs'!$D$13:$I$19,4,FALSE)*GJ77+HLOOKUP(OFFSET(GI$75,-1,0),'L07 Coefs'!$D$13:$I$19,5,FALSE) -> 45.82490279 | GL77: =HLOOKUP(OFFSET(GI$75,-1,0),'L07 Coefs'!$D$13:$I$19,6,FALSE)*GJ77+HLOOKUP(OFFSET(GI$75,-1,0),'L07 Coefs'!$D$13:$I$19,7,FALSE) -> 22.23290256 | GM77: ='Untreated L07 bd'!$AK14/GK77 -> 1.588953236 | GN77: ='Untreated L07 bd'!$AK14/GL77 -> 3.275039207 | GO77: =($G77/365)*GM77+($H77/365)*GN77+(1-($G77/365)-($H77/365))*GI77 -> 1.101041305 | GP77: =EXP($E77*HLOOKUP(OFFSET(GP$75,-1,0),'L07 Coefs'!$D$13:$I$19,2,FALSE)+$F77*HLOOKUP(OFFSET(GP$75,-1,0),'L07 Coefs'!$D$13:$I$19,3,FALSE)) -> 1.055199213 | GQ77: ='Untreated L07 bd'!$AK14/GP77 -> 69.00462646 | GR77: =HLOOKUP(OFFSET(GP$75,-1,0),'L07 Coefs'!$D$13:$I$19,4,FALSE)*GQ77+HLOOKUP(OFFSET(GP$75,-1,0),'L07 Coefs'!$D$13:$I$19,5,FALSE) -> 57.46229733 | GS77: =HLOOKUP(OFFSET(GP$75,-1,0),'L07 Coefs'!$D$13:$I$19,6,FALSE)*GQ77+HLOOKUP(OFFSET(GP$75,-1,0),'L07 Coefs'!$D$13:$I$19,7,FALSE) -> 25.59641932 | GT77: ='Untreated L07 bd'!$AK14/GR77 -> 1.267154829 | GU77: ='Untreated L07 bd'!$AK14/GS77 -> 2.844680212 | GV77: =($G77/365)*GT77+($H77/365)*GU77+(1-($G77/365)-($H77/365))*GP77 -> 1.059960956 | GY77: max | GZ77: =MAX(E76:E99) -> 0.91098216 | HA77: =OFFSET(B74,MATCH(GZ77,E76:E99,0)+1,0) -> 07:00:00 | HG77: 0.04476724923 | HJ77: 1.935155926
A78: 2 | B78: 02:00:00 | C78: ='Untreated L07 bd'!K15 -> 478.7717352 | D78: 13500 | E78: 0.03546457298 | F78: 2.570043931 | G78: ='base data'!AX15 -> 7.4 | H78: ='base data'!AY15 -> 0 | I78: 1.027920939 | J78: 1.157357271 | K78: 1.063539448 | L78: 1.03379598 | M78: 1.020971104 | N78: 1.004159474 | P78: 1 | Q78: 02:00:00 | R78: 0.02548829269 | T78: ='Primary Graph Data'!$O$18*R78*3600 -> 1.000994768 | U78: 0.91495927 | V78: 0.91495927 | W78: =C78*'Primary Graph Data'!$O$18*V78 -> 4.77879968 | X78: 1.053624959 | Y78: 1.122175587 | Z78: 0.03465102024 | AA78: 0.04169397482 | AB78: 1.063539448 | AC78: 1.122175587 | AD78: 1.94233717 | ET78: =EXP($E78*HLOOKUP(ET$75,'L07 Coefs'!$D$6:$I$10,2,FALSE)+$F78*HLOOKUP(ET$75,'L07 Coefs'!$D$6:$I$10,3,FALSE)+$G78*HLOOKUP(ET$75,'L07 Coefs'!$D$6:$I$10,4,FALSE)+$H78*HLOOKUP(ET$75,'L07 Coefs'!$D$6:$I$10,5,FALSE)) -> 1.027920939 | EU78: =EXP($E78*HLOOKUP(EU$75,'L07 Coefs'!$D$6:$I$10,2,FALSE)+$F78*HLOOKUP(EU$75,'L07 Coefs'!$D$6:$I$10,3,FALSE)+$G78*HLOOKUP(EU$75,'L07 Coefs'!$D$6:$I$10,4,FALSE)+$H78*HLOOKUP(EU$75,'L07 Coefs'!$D$6:$I$10,5,FALSE)) -> 1.157357271 | EV78: =EXP($E78*HLOOKUP(EV$75,'L07 Coefs'!$D$6:$I$10,2,FALSE)+$F78*HLOOKUP(EV$75,'L07 Coefs'!$D$6:$I$10,3,FALSE)+$G78*HLOOKUP(EV$75,'L07 Coefs'!$D$6:$I$10,4,FALSE)+$H78*HLOOKUP(EV$75,'L07 Coefs'!$D$6:$I$10,5,FALSE)) -> 1.063539448 | EW78: =EXP($E78*HLOOKUP(EW$75,'L07 Coefs'!$D$6:$I$10,2,FALSE)+$F78*HLOOKUP(EW$75,'L07 Coefs'!$D$6:$I$10,3,FALSE)+$G78*HLOOKUP(EW$75,'L07 Coefs'!$D$6:$I$10,4,FALSE)+$H78*HLOOKUP(EW$75,'L07 Coefs'!$D$6:$I$10,5,FALSE)) -> 1.03379598 | EX78: =EXP($E78*HLOOKUP(EX$75,'L07 Coefs'!$D$6:$I$10,2,FALSE)+$F78*HLOOKUP(EX$75,'L07 Coefs'!$D$6:$I$10,3,FALSE)+$G78*HLOOKUP(EX$75,'L07 Coefs'!$D$6:$I$10,4,FALSE)+$H78*HLOOKUP(EX$75,'L07 Coefs'!$D$6:$I$10,5,FALSE)) -> 1.020971104 | EY78: =EXP($E78*HLOOKUP(EY$75,'L07 Coefs'!$D$6:$I$10,2,FALSE)+$F78*HLOOKUP(EY$75,'L07 Coefs'!$D$6:$I$10,3,FALSE)+$G78*HLOOKUP(EY$75,'L07 Coefs'!$D$6:$I$10,4,FALSE)+$H78*HLOOKUP(EY$75,'L07 Coefs'!$D$6:$I$10,5,FALSE)) -> 1.004159474 | EZ78: =EXP($E78*HLOOKUP(EZ$75,'L07 Coefs'!$D$13:$I$19,2,FALSE)+$F78*HLOOKUP(EZ$75,'L07 Coefs'!$D$13:$I$19,3,FALSE))*(1-($G78/365)-($H78/365)+$AK$13*(($G78/365)/(HLOOKUP(EZ$75,'L07 Coefs'!$D$13:$I$19,4,FALSE)*$AK$13+HLOOKUP(EZ$75,'L07 Coefs'!$D$13:$I$19,5,FALSE)*EXP($E78*HLOOKUP(EZ$75,'L07 Coefs'!$D$13:$I$19,2,FALSE)+$F78*HLOOKUP(EZ$75,'L07 Coefs'!$D$13:$I$19,3,FALSE)))+($H78/365)/(HLOOKUP(EZ$75,'L07 Coefs'!$D$13:$I$19,6,FALSE)*$AK$13+HLOOKUP(EZ$75,'L07 Coefs'!$D$13:$I$19,7,FALSE)*EXP($E78*HLOOKUP(EZ$75,'L07 Coefs'!$D$13:$I$19,2,FALSE)+$F78*HLOOKUP(EZ$75,'L07 Coefs'!$D$13:$I$19,3,FALSE))))) -> 1.054446242 | FA78: =EXP($E78*HLOOKUP(FA$75,'L07 Coefs'!$D$13:$I$19,2,FALSE)+$F78*HLOOKUP(FA$75,'L07 Coefs'!$D$13:$I$19,3,FALSE))*(1-($G78/365)-($H78/365)+$AK$13*(($G78/365)/(HLOOKUP(FA$75,'L07 Coefs'!$D$13:$I$19,4,FALSE)*$AK$13+HLOOKUP(FA$75,'L07 Coefs'!$D$13:$I$19,5,FALSE)*EXP($E78*HLOOKUP(FA$75,'L07 Coefs'!$D$13:$I$19,2,FALSE)+$F78*HLOOKUP(FA$75,'L07 Coefs'!$D$13:$I$19,3,FALSE)))+($H78/365)/(HLOOKUP(FA$75,'L07 Coefs'!$D$13:$I$19,6,FALSE)*$AK$13+HLOOKUP(FA$75,'L07 Coefs'!$D$13:$I$19,7,FALSE)*EXP($E78*HLOOKUP(FA$75,'L07 Coefs'!$D$13:$I$19,2,FALSE)+$F78*HLOOKUP(FA$75,'L07 Coefs'!$D$13:$I$19,3,FALSE))))) -> 1.084702925 | FB78: =EXP($E78*HLOOKUP(FB$75,'L07 Coefs'!$D$13:$I$19,2,FALSE)+$F78*HLOOKUP(FB$75,'L07 Coefs'!$D$13:$I$19,3,FALSE))*(1-($G78/365)-($H78/365)+$AK$13*(($G78/365)/(HLOOKUP(FB$75,'L07 Coefs'!$D$13:$I$19,4,FALSE)*$AK$13+HLOOKUP(FB$75,'L07 Coefs'!$D$13:$I$19,5,FALSE)*EXP($E78*HLOOKUP(FB$75,'L07 Coefs'!$D$13:$I$19,2,FALSE)+$F78*HLOOKUP(FB$75,'L07 Coefs'!$D$13:$I$19,3,FALSE)))+($H78/365)/(HLOOKUP(FB$75,'L07 Coefs'!$D$13:$I$19,6,FALSE)*$AK$13+HLOOKUP(FB$75,'L07 Coefs'!$D$13:$I$19,7,FALSE)*EXP($E78*HLOOKUP(FB$75,'L07 Coefs'!$D$13:$I$19,2,FALSE)+$F78*HLOOKUP(FB$75,'L07 Coefs'!$D$13:$I$19,3,FALSE))))) -> 1.063816088 | FC78: =EXP($E78*HLOOKUP(FC$75,'L07 Coefs'!$D$13:$I$19,2,FALSE)+$F78*HLOOKUP(FC$75,'L07 Coefs'!$D$13:$I$19,3,FALSE))*(1-($G78/365)-($H78/365)+$AK$13*(($G78/365)/(HLOOKUP(FC$75,'L07 Coefs'!$D$13:$I$19,4,FALSE)*$AK$13+HLOOKUP(FC$75,'L07 Coefs'!$D$13:$I$19,5,FALSE)*EXP($E78*HLOOKUP(FC$75,'L07 Coefs'!$D$13:$I$19,2,FALSE)+$F78*HLOOKUP(FC$75,'L07 Coefs'!$D$13:$I$19,3,FALSE)))+($H78/365)/(HLOOKUP(FC$75,'L07 Coefs'!$D$13:$I$19,6,FALSE)*$AK$13+HLOOKUP(FC$75,'L07 Coefs'!$D$13:$I$19,7,FALSE)*EXP($E78*HLOOKUP(FC$75,'L07 Coefs'!$D$13:$I$19,2,FALSE)+$F78*HLOOKUP(FC$75,'L07 Coefs'!$D$13:$I$19,3,FALSE))))) -> 1.06039378 | FD78: =EXP($E78*HLOOKUP(FD$75,'L07 Coefs'!$D$13:$I$19,2,FALSE)+$F78*HLOOKUP(FD$75,'L07 Coefs'!$D$13:$I$19,3,FALSE))*(1-($G78/365)-($H78/365)+$AK$13*(($G78/365)/(HLOOKUP(FD$75,'L07 Coefs'!$D$13:$I$19,4,FALSE)*$AK$13+HLOOKUP(FD$75,'L07 Coefs'!$D$13:$I$19,5,FALSE)*EXP($E78*HLOOKUP(FD$75,'L07 Coefs'!$D$13:$I$19,2,FALSE)+$F78*HLOOKUP(FD$75,'L07 Coefs'!$D$13:$I$19,3,FALSE)))+($H78/365)/(HLOOKUP(FD$75,'L07 Coefs'!$D$13:$I$19,6,FALSE)*$AK$13+HLOOKUP(FD$75,'L07 Coefs'!$D$13:$I$19,7,FALSE)*EXP($E78*HLOOKUP(FD$75,'L07 Coefs'!$D$13:$I$19,2,FALSE)+$F78*HLOOKUP(FD$75,'L07 Coefs'!$D$13:$I$19,3,FALSE))))) -> 1.050046768 | FE78: =EXP($E78*HLOOKUP(FE$75,'L07 Coefs'!$D$13:$I$19,2,FALSE)+$F78*HLOOKUP(FE$75,'L07 Coefs'!$D$13:$I$19,3,FALSE))*(1-($G78/365)-($H78/365)+$AK$13*(($G78/365)/(HLOOKUP(FE$75,'L07 Coefs'!$D$13:$I$19,4,FALSE)*$AK$13+HLOOKUP(FE$75,'L07 Coefs'!$D$13:$I$19,5,FALSE)*EXP($E78*HLOOKUP(FE$75,'L07 Coefs'!$D$13:$I$19,2,FALSE)+$F78*HLOOKUP(FE$75,'L07 Coefs'!$D$13:$I$19,3,FALSE)))+($H78/365)/(HLOOKUP(FE$75,'L07 Coefs'!$D$13:$I$19,6,FALSE)*$AK$13+HLOOKUP(FE$75,'L07 Coefs'!$D$13:$I$19,7,FALSE)*EXP($E78*HLOOKUP(FE$75,'L07 Coefs'!$D$13:$I$19,2,FALSE)+$F78*HLOOKUP(FE$75,'L07 Coefs'!$D$13:$I$19,3,FALSE))))) -> 1.013848683 | FG78: =EXP($E78*HLOOKUP(OFFSET(FG$75,-1,0),'L07 Coefs'!$D$13:$I$19,2,FALSE)+$F78*HLOOKUP(OFFSET(FG$75,-1,0),'L07 Coefs'!$D$13:$I$19,3,FALSE)) -> 1.01320567 | FH78: ='Untreated L07 bd'!$AK15/FG78 -> 71.86460727 | FI78: =HLOOKUP(OFFSET(FG$75,-1,0),'L07 Coefs'!$D$13:$I$19,4,FALSE)*FH78+HLOOKUP(OFFSET(FG$75,-1,0),'L07 Coefs'!$D$13:$I$19,5,FALSE) -> 69.68332432 | FJ78: =HLOOKUP(OFFSET(FG$75,-1,0),'L07 Coefs'!$D$13:$I$19,6,FALSE)*FH78+HLOOKUP(OFFSET(FG$75,-1,0),'L07 Coefs'!$D$13:$I$19,7,FALSE) -> 28.34190009 | FK78: ='Untreated L07 bd'!$AK15/FI78 -> 1.044921841 | FL78: ='Untreated L07 bd'!$AK15/FJ78 -> 2.569115949 | FM78: 1.013848683 | FN78: =EXP($E78*HLOOKUP(OFFSET(FN$75,-1,0),'L07 Coefs'!$D$13:$I$19,2,FALSE)+$F78*HLOOKUP(OFFSET(FN$75,-1,0),'L07 Coefs'!$D$13:$I$19,3,FALSE)) -> 1.046850082 | FO78: ='Untreated L07 bd'!$AK15/FN78 -> 69.55497147 | FP78: =HLOOKUP(OFFSET(FN$75,-1,0),'L07 Coefs'!$D$13:$I$19,4,FALSE)*FO78+HLOOKUP(OFFSET(FN$75,-1,0),'L07 Coefs'!$D$13:$I$19,5,FALSE) -> 60.45010244 | FQ78: =HLOOKUP(OFFSET(FN$75,-1,0),'L07 Coefs'!$D$13:$I$19,6,FALSE)*FO78+HLOOKUP(OFFSET(FN$75,-1,0),'L07 Coefs'!$D$13:$I$19,7,FALSE) -> 27.26646516 | FR78: ='Untreated L07 bd'!$AK15/FP78 -> 1.204524469 | FS78: ='Untreated L07 bd'!$AK15/FQ78 -> 2.670446174 | FT78: 1.050046768 | FU78: =EXP($E78*HLOOKUP(OFFSET(FU$75,-1,0),'L07 Coefs'!$D$13:$I$19,2,FALSE)+$F78*HLOOKUP(OFFSET(FU$75,-1,0),'L07 Coefs'!$D$13:$I$19,3,FALSE)) -> 1.052485259 | FV78: ='Untreated L07 bd'!$AK15/FU78 -> 69.18256283 | FW78: =HLOOKUP(OFFSET(FU$75,-1,0),'L07 Coefs'!$D$13:$I$19,4,FALSE)*FV78+HLOOKUP(OFFSET(FU$75,-1,0),'L07 Coefs'!$D$13:$I$19,5,FALSE) -> 50.47501458 | FX78: =HLOOKUP(OFFSET(FU$75,-1,0),'L07 Coefs'!$D$13:$I$19,6,FALSE)*FV78+HLOOKUP(OFFSET(FU$75,-1,0),'L07 Coefs'!$D$13:$I$19,7,FALSE) -> 21.35953714 | FY78: ='Untreated L07 bd'!$AK15/FW78 -> 1.442567737 | FZ78: ='Untreated L07 bd'!$AK15/FX78 -> 3.408951565 | GA78: 1.06039378 | GB78: =EXP($E78*HLOOKUP(OFFSET(GB$75,-1,0),'L07 Coefs'!$D$13:$I$19,2,FALSE)+$F78*HLOOKUP(OFFSET(GB$75,-1,0),'L07 Coefs'!$D$13:$I$19,3,FALSE)) -> 1.055164518 | GC78: ='Untreated L07 bd'!$AK15/GB78 -> 69.00689541 | GD78: =HLOOKUP(OFFSET(GB$75,-1,0),'L07 Coefs'!$D$13:$I$19,4,FALSE)*GC78+HLOOKUP(OFFSET(GB$75,-1,0),'L07 Coefs'!$D$13:$I$19,5,FALSE) -> 49.13540617 | GE78: =HLOOKUP(OFFSET(GB$75,-1,0),'L07 Coefs'!$D$13:$I$19,6,FALSE)*GC78+HLOOKUP(OFFSET(GB$75,-1,0),'L07 Coefs'!$D$13:$I$19,7,FALSE) -> 21.40597209 | GF78: ='Untreated L07 bd'!$AK15/GD78 -> 1.481897337 | GG78: ='Untreated L07 bd'!$AK15/GE78 -> 3.40155669 | GH78: 1.063816088 | GI78: =EXP($E78*HLOOKUP(OFFSET(GI$75,-1,0),'L07 Coefs'!$D$13:$I$19,2,FALSE)+$F78*HLOOKUP(OFFSET(GI$75,-1,0),'L07 Coefs'!$D$13:$I$19,3,FALSE)) -> 1.074673507 | GJ78: ='Untreated L07 bd'!$AK15/GI78 -> 67.75418495 | GK78: =HLOOKUP(OFFSET(GI$75,-1,0),'L07 Coefs'!$D$13:$I$19,4,FALSE)*GJ78+HLOOKUP(OFFSET(GI$75,-1,0),'L07 Coefs'!$D$13:$I$19,5,FALSE) -> 46.39679026 | GL78: =HLOOKUP(OFFSET(GI$75,-1,0),'L07 Coefs'!$D$13:$I$19,6,FALSE)*GJ78+HLOOKUP(OFFSET(GI$75,-1,0),'L07 Coefs'!$D$13:$I$19,7,FALSE) -> 22.55417707 | GM78: ='Untreated L07 bd'!$AK15/GK78 -> 1.569367776 | GN78: ='Untreated L07 bd'!$AK15/GL78 -> 3.228387688 | GO78: 1.084702925 | GP78: =EXP($E78*HLOOKUP(OFFSET(GP$75,-1,0),'L07 Coefs'!$D$13:$I$19,2,FALSE)+$F78*HLOOKUP(OFFSET(GP$75,-1,0),'L07 Coefs'!$D$13:$I$19,3,FALSE)) -> 1.050176368 | GQ78: ='Untreated L07 bd'!$AK15/GP78 -> 69.33466587 | GR78: =HLOOKUP(OFFSET(GP$75,-1,0),'L07 Coefs'!$D$13:$I$19,4,FALSE)*GQ78+HLOOKUP(OFFSET(GP$75,-1,0),'L07 Coefs'!$D$13:$I$19,5,FALSE) -> 57.75261125 | GS78: =HLOOKUP(OFFSET(GP$75,-1,0),'L07 Coefs'!$D$13:$I$19,6,FALSE)*GQ78+HLOOKUP(OFFSET(GP$75,-1,0),'L07 Coefs'!$D$13:$I$19,7,FALSE) -> 25.70078154 | GT78: ='Untreated L07 bd'!$AK15/GR78 -> 1.260785027 | GU78: ='Untreated L07 bd'!$AK15/GS78 -> 2.833128924 | GV78: 1.054446242 | GX78: LHL | GY78: min | GZ78: =MIN(F76:F99) -> 2.570043931 | HA78: =OFFSET(B74,MATCH(GZ78,F76:F99,0)+1,0) -> 02:00:00 | HG78: 0.04169397482 | HJ78: 1.94233717
A79: 3 | B79: 03:00:00 | C79: ='Untreated L07 bd'!K16 -> 639.7119168 | D79: 13500 | E79: 0.04738606791 | F79: 2.612264478 | G79: ='base data'!AX16 -> 7.8 | H79: ='base data'!AY16 -> 0 | I79: 1.029802144 | J79: 1.167350335 | K79: 1.067590101 | L79: 1.036022779 | M79: 1.022343697 | N79: 1.004429327 | P79: 1 | Q79: 03:00:00 | R79: 0.02711741103 | T79: ='Primary Graph Data'!$O$18*R79*3600 -> 1.064974688 | U79: 0.9165793511 | V79: 0.9165793511 | W79: =C79*'Primary Graph Data'!$O$18*V79 -> 6.396509821 | X79: 1.05706766 | Y79: 1.129940247 | Z79: 0.03669438597 | AA79: 0.0442575272 | AB79: 1.067590101 | AC79: 1.129940247 | AD79: 1.93833015 | ET79: =EXP($E79*HLOOKUP(ET$75,'L07 Coefs'!$D$6:$I$10,2,FALSE)+$F79*HLOOKUP(ET$75,'L07 Coefs'!$D$6:$I$10,3,FALSE)+$G79*HLOOKUP(ET$75,'L07 Coefs'!$D$6:$I$10,4,FALSE)+$H79*HLOOKUP(ET$75,'L07 Coefs'!$D$6:$I$10,5,FALSE)) -> 1.029802144 | EU79: =EXP($E79*HLOOKUP(EU$75,'L07 Coefs'!$D$6:$I$10,2,FALSE)+$F79*HLOOKUP(EU$75,'L07 Coefs'!$D$6:$I$10,3,FALSE)+$G79*HLOOKUP(EU$75,'L07 Coefs'!$D$6:$I$10,4,FALSE)+$H79*HLOOKUP(EU$75,'L07 Coefs'!$D$6:$I$10,5,FALSE)) -> 1.167350335 | EV79: =EXP($E79*HLOOKUP(EV$75,'L07 Coefs'!$D$6:$I$10,2,FALSE)+$F79*HLOOKUP(EV$75,'L07 Coefs'!$D$6:$I$10,3,FALSE)+$G79*HLOOKUP(EV$75,'L07 Coefs'!$D$6:$I$10,4,FALSE)+$H79*HLOOKUP(EV$75,'L07 Coefs'!$D$6:$I$10,5,FALSE)) -> 1.067590101 | EW79: =EXP($E79*HLOOKUP(EW$75,'L07 Coefs'!$D$6:$I$10,2,FALSE)+$F79*HLOOKUP(EW$75,'L07 Coefs'!$D$6:$I$10,3,FALSE)+$G79*HLOOKUP(EW$75,'L07 Coefs'!$D$6:$I$10,4,FALSE)+$H79*HLOOKUP(EW$75,'L07 Coefs'!$D$6:$I$10,5,FALSE)) -> 1.036022779 | EX79: =EXP($E79*HLOOKUP(EX$75,'L07 Coefs'!$D$6:$I$10,2,FALSE)+$F79*HLOOKUP(EX$75,'L07 Coefs'!$D$6:$I$10,3,FALSE)+$G79*HLOOKUP(EX$75,'L07 Coefs'!$D$6:$I$10,4,FALSE)+$H79*HLOOKUP(EX$75,'L07 Coefs'!$D$6:$I$10,5,FALSE)) -> 1.022343697 | EY79: =EXP($E79*HLOOKUP(EY$75,'L07 Coefs'!$D$6:$I$10,2,FALSE)+$F79*HLOOKUP(EY$75,'L07 Coefs'!$D$6:$I$10,3,FALSE)+$G79*HLOOKUP(EY$75,'L07 Coefs'!$D$6:$I$10,4,FALSE)+$H79*HLOOKUP(EY$75,'L07 Coefs'!$D$6:$I$10,5,FALSE)) -> 1.004429327 | EZ79: =EXP($E79*HLOOKUP(EZ$75,'L07 Coefs'!$D$13:$I$19,2,FALSE)+$F79*HLOOKUP(EZ$75,'L07 Coefs'!$D$13:$I$19,3,FALSE))*(1-($G79/365)-($H79/365)+$AK$13*(($G79/365)/(HLOOKUP(EZ$75,'L07 Coefs'!$D$13:$I$19,4,FALSE)*$AK$13+HLOOKUP(EZ$75,'L07 Coefs'!$D$13:$I$19,5,FALSE)*EXP($E79*HLOOKUP(EZ$75,'L07 Coefs'!$D$13:$I$19,2,FALSE)+$F79*HLOOKUP(EZ$75,'L07 Coefs'!$D$13:$I$19,3,FALSE)))+($H79/365)/(HLOOKUP(EZ$75,'L07 Coefs'!$D$13:$I$19,6,FALSE)*$AK$13+HLOOKUP(EZ$75,'L07 Coefs'!$D$13:$I$19,7,FALSE)*EXP($E79*HLOOKUP(EZ$75,'L07 Coefs'!$D$13:$I$19,2,FALSE)+$F79*HLOOKUP(EZ$75,'L07 Coefs'!$D$13:$I$19,3,FALSE))))) -> 1.059728676 | FA79: =EXP($E79*HLOOKUP(FA$75,'L07 Coefs'!$D$13:$I$19,2,FALSE)+$F79*HLOOKUP(FA$75,'L07 Coefs'!$D$13:$I$19,3,FALSE))*(1-($G79/365)-($H79/365)+$AK$13*(($G79/365)/(HLOOKUP(FA$75,'L07 Coefs'!$D$13:$I$19,4,FALSE)*$AK$13+HLOOKUP(FA$75,'L07 Coefs'!$D$13:$I$19,5,FALSE)*EXP($E79*HLOOKUP(FA$75,'L07 Coefs'!$D$13:$I$19,2,FALSE)+$F79*HLOOKUP(FA$75,'L07 Coefs'!$D$13:$I$19,3,FALSE)))+($H79/365)/(HLOOKUP(FA$75,'L07 Coefs'!$D$13:$I$19,6,FALSE)*$AK$13+HLOOKUP(FA$75,'L07 Coefs'!$D$13:$I$19,7,FALSE)*EXP($E79*HLOOKUP(FA$75,'L07 Coefs'!$D$13:$I$19,2,FALSE)+$F79*HLOOKUP(FA$75,'L07 Coefs'!$D$13:$I$19,3,FALSE))))) -> 1.100494318 | FB79: =EXP($E79*HLOOKUP(FB$75,'L07 Coefs'!$D$13:$I$19,2,FALSE)+$F79*HLOOKUP(FB$75,'L07 Coefs'!$D$13:$I$19,3,FALSE))*(1-($G79/365)-($H79/365)+$AK$13*(($G79/365)/(HLOOKUP(FB$75,'L07 Coefs'!$D$13:$I$19,4,FALSE)*$AK$13+HLOOKUP(FB$75,'L07 Coefs'!$D$13:$I$19,5,FALSE)*EXP($E79*HLOOKUP(FB$75,'L07 Coefs'!$D$13:$I$19,2,FALSE)+$F79*HLOOKUP(FB$75,'L07 Coefs'!$D$13:$I$19,3,FALSE)))+($H79/365)/(HLOOKUP(FB$75,'L07 Coefs'!$D$13:$I$19,6,FALSE)*$AK$13+HLOOKUP(FB$75,'L07 Coefs'!$D$13:$I$19,7,FALSE)*EXP($E79*HLOOKUP(FB$75,'L07 Coefs'!$D$13:$I$19,2,FALSE)+$F79*HLOOKUP(FB$75,'L07 Coefs'!$D$13:$I$19,3,FALSE))))) -> 1.072841896 | FC79: =EXP($E79*HLOOKUP(FC$75,'L07 Coefs'!$D$13:$I$19,2,FALSE)+$F79*HLOOKUP(FC$75,'L07 Coefs'!$D$13:$I$19,3,FALSE))*(1-($G79/365)-($H79/365)+$AK$13*(($G79/365)/(HLOOKUP(FC$75,'L07 Coefs'!$D$13:$I$19,4,FALSE)*$AK$13+HLOOKUP(FC$75,'L07 Coefs'!$D$13:$I$19,5,FALSE)*EXP($E79*HLOOKUP(FC$75,'L07 Coefs'!$D$13:$I$19,2,FALSE)+$F79*HLOOKUP(FC$75,'L07 Coefs'!$D$13:$I$19,3,FALSE)))+($H79/365)/(HLOOKUP(FC$75,'L07 Coefs'!$D$13:$I$19,6,FALSE)*$AK$13+HLOOKUP(FC$75,'L07 Coefs'!$D$13:$I$19,7,FALSE)*EXP($E79*HLOOKUP(FC$75,'L07 Coefs'!$D$13:$I$19,2,FALSE)+$F79*HLOOKUP(FC$75,'L07 Coefs'!$D$13:$I$19,3,FALSE))))) -> 1.067964659 | FD79: =EXP($E79*HLOOKUP(FD$75,'L07 Coefs'!$D$13:$I$19,2,FALSE)+$F79*HLOOKUP(FD$75,'L07 Coefs'!$D$13:$I$19,3,FALSE))*(1-($G79/365)-($H79/365)+$AK$13*(($G79/365)/(HLOOKUP(FD$75,'L07 Coefs'!$D$13:$I$19,4,FALSE)*$AK$13+HLOOKUP(FD$75,'L07 Coefs'!$D$13:$I$19,5,FALSE)*EXP($E79*HLOOKUP(FD$75,'L07 Coefs'!$D$13:$I$19,2,FALSE)+$F79*HLOOKUP(FD$75,'L07 Coefs'!$D$13:$I$19,3,FALSE)))+($H79/365)/(HLOOKUP(FD$75,'L07 Coefs'!$D$13:$I$19,6,FALSE)*$AK$13+HLOOKUP(FD$75,'L07 Coefs'!$D$13:$I$19,7,FALSE)*EXP($E79*HLOOKUP(FD$75,'L07 Coefs'!$D$13:$I$19,2,FALSE)+$F79*HLOOKUP(FD$75,'L07 Coefs'!$D$13:$I$19,3,FALSE))))) -> 1.054494799 | FE79: =EXP($E79*HLOOKUP(FE$75,'L07 Coefs'!$D$13:$I$19,2,FALSE)+$F79*HLOOKUP(FE$75,'L07 Coefs'!$D$13:$I$19,3,FALSE))*(1-($G79/365)-($H79/365)+$AK$13*(($G79/365)/(HLOOKUP(FE$75,'L07 Coefs'!$D$13:$I$19,4,FALSE)*$AK$13+HLOOKUP(FE$75,'L07 Coefs'!$D$13:$I$19,5,FALSE)*EXP($E79*HLOOKUP(FE$75,'L07 Coefs'!$D$13:$I$19,2,FALSE)+$F79*HLOOKUP(FE$75,'L07 Coefs'!$D$13:$I$19,3,FALSE)))+($H79/365)/(HLOOKUP(FE$75,'L07 Coefs'!$D$13:$I$19,6,FALSE)*$AK$13+HLOOKUP(FE$75,'L07 Coefs'!$D$13:$I$19,7,FALSE)*EXP($E79*HLOOKUP(FE$75,'L07 Coefs'!$D$13:$I$19,2,FALSE)+$F79*HLOOKUP(FE$75,'L07 Coefs'!$D$13:$I$19,3,FALSE))))) -> 1.014991059 | FG79: =EXP($E79*HLOOKUP(OFFSET(FG$75,-1,0),'L07 Coefs'!$D$13:$I$19,2,FALSE)+$F79*HLOOKUP(OFFSET(FG$75,-1,0),'L07 Coefs'!$D$13:$I$19,3,FALSE)) -> 1.014302707 | FH79: ='Untreated L07 bd'!$AK16/FG79 -> 71.78688083 | FI79: =HLOOKUP(OFFSET(FG$75,-1,0),'L07 Coefs'!$D$13:$I$19,4,FALSE)*FH79+HLOOKUP(OFFSET(FG$75,-1,0),'L07 Coefs'!$D$13:$I$19,5,FALSE) -> 69.57730545 | FJ79: =HLOOKUP(OFFSET(FG$75,-1,0),'L07 Coefs'!$D$13:$I$19,6,FALSE)*FH79+HLOOKUP(OFFSET(FG$75,-1,0),'L07 Coefs'!$D$13:$I$19,7,FALSE) -> 28.32806479 | FK79: ='Untreated L07 bd'!$AK16/FI79 -> 1.046514048 | FL79: ='Untreated L07 bd'!$AK16/FJ79 -> 2.570370694 | FM79: 1.014991059 | FN79: =EXP($E79*HLOOKUP(OFFSET(FN$75,-1,0),'L07 Coefs'!$D$13:$I$19,2,FALSE)+$F79*HLOOKUP(OFFSET(FN$75,-1,0),'L07 Coefs'!$D$13:$I$19,3,FALSE)) -> 1.051099936 | FO79: ='Untreated L07 bd'!$AK16/FN79 -> 69.27374369 | FP79: =HLOOKUP(OFFSET(FN$75,-1,0),'L07 Coefs'!$D$13:$I$19,4,FALSE)*FO79+HLOOKUP(OFFSET(FN$75,-1,0),'L07 Coefs'!$D$13:$I$19,5,FALSE) -> 60.1784364 | FQ79: =HLOOKUP(OFFSET(FN$75,-1,0),'L07 Coefs'!$D$13:$I$19,6,FALSE)*FO79+HLOOKUP(OFFSET(FN$75,-1,0),'L07 Coefs'!$D$13:$I$19,7,FALSE) -> 27.16944157 | FR79: ='Untreated L07 bd'!$AK16/FP79 -> 1.209962105 | FS79: ='Untreated L07 bd'!$AK16/FQ79 -> 2.679982486 | FT79: 1.054494799 | FU79: =EXP($E79*HLOOKUP(OFFSET(FU$75,-1,0),'L07 Coefs'!$D$13:$I$19,2,FALSE)+$F79*HLOOKUP(OFFSET(FU$75,-1,0),'L07 Coefs'!$D$13:$I$19,3,FALSE)) -> 1.059600907 | FV79: ='Untreated L07 bd'!$AK16/FU79 -> 68.71797396 | FW79: =HLOOKUP(OFFSET(FU$75,-1,0),'L07 Coefs'!$D$13:$I$19,4,FALSE)*FV79+HLOOKUP(OFFSET(FU$75,-1,0),'L07 Coefs'!$D$13:$I$19,5,FALSE) -> 50.18232359 | FX79: =HLOOKUP(OFFSET(FU$75,-1,0),'L07 Coefs'!$D$13:$I$19,6,FALSE)*FV79+HLOOKUP(OFFSET(FU$75,-1,0),'L07 Coefs'!$D$13:$I$19,7,FALSE) -> 21.25128793 | FY79: ='Untreated L07 bd'!$AK16/FW79 -> 1.450981588 | FZ79: ='Untreated L07 bd'!$AK16/FX79 -> 3.426315986 | GA79: 1.067964659 | GB79: =EXP($E79*HLOOKUP(OFFSET(GB$75,-1,0),'L07 Coefs'!$D$13:$I$19,2,FALSE)+$F79*HLOOKUP(OFFSET(GB$75,-1,0),'L07 Coefs'!$D$13:$I$19,3,FALSE)) -> 1.063675508 | GC79: ='Untreated L07 bd'!$AK16/GB79 -> 68.45473737 | GD79: =HLOOKUP(OFFSET(GB$75,-1,0),'L07 Coefs'!$D$13:$I$19,4,FALSE)*GC79+HLOOKUP(OFFSET(GB$75,-1,0),'L07 Coefs'!$D$13:$I$19,5,FALSE) -> 48.78257718 | GE79: =HLOOKUP(OFFSET(GB$75,-1,0),'L07 Coefs'!$D$13:$I$19,6,FALSE)*GC79+HLOOKUP(OFFSET(GB$75,-1,0),'L07 Coefs'!$D$13:$I$19,7,FALSE) -> 21.24805489 | GF79: ='Untreated L07 bd'!$AK16/GD79 -> 1.492615433 | GG79: ='Untreated L07 bd'!$AK16/GE79 -> 3.426837324 | GH79: 1.072841896 | GI79: =EXP($E79*HLOOKUP(OFFSET(GI$75,-1,0),'L07 Coefs'!$D$13:$I$19,2,FALSE)+$F79*HLOOKUP(OFFSET(GI$75,-1,0),'L07 Coefs'!$D$13:$I$19,3,FALSE)) -> 1.089828082 | GJ79: ='Untreated L07 bd'!$AK16/GI79 -> 66.81203096 | GK79: =HLOOKUP(OFFSET(GI$75,-1,0),'L07 Coefs'!$D$13:$I$19,4,FALSE)*GJ79+HLOOKUP(OFFSET(GI$75,-1,0),'L07 Coefs'!$D$13:$I$19,5,FALSE) -> 45.82490279 | GL79: =HLOOKUP(OFFSET(GI$75,-1,0),'L07 Coefs'!$D$13:$I$19,6,FALSE)*GJ79+HLOOKUP(OFFSET(GI$75,-1,0),'L07 Coefs'!$D$13:$I$19,7,FALSE) -> 22.23290256 | GM79: ='Untreated L07 bd'!$AK16/GK79 -> 1.588953236 | GN79: ='Untreated L07 bd'!$AK16/GL79 -> 3.275039207 | GO79: 1.100494318 | GP79: =EXP($E79*HLOOKUP(OFFSET(GP$75,-1,0),'L07 Coefs'!$D$13:$I$19,2,FALSE)+$F79*HLOOKUP(OFFSET(GP$75,-1,0),'L07 Coefs'!$D$13:$I$19,3,FALSE)) -> 1.055199213 | GQ79: ='Untreated L07 bd'!$AK16/GP79 -> 69.00462646 | GR79: =HLOOKUP(OFFSET(GP$75,-1,0),'L07 Coefs'!$D$13:$I$19,4,FALSE)*GQ79+HLOOKUP(OFFSET(GP$75,-1,0),'L07 Coefs'!$D$13:$I$19,5,FALSE) -> 57.46229733 | GS79: =HLOOKUP(OFFSET(GP$75,-1,0),'L07 Coefs'!$D$13:$I$19,6,FALSE)*GQ79+HLOOKUP(OFFSET(GP$75,-1,0),'L07 Coefs'!$D$13:$I$19,7,FALSE) -> 25.59641932 | GT79: ='Untreated L07 bd'!$AK16/GR79 -> 1.267154829 | GU79: ='Untreated L07 bd'!$AK16/GS79 -> 2.844680212 | GV79: 1.059728676 | GY79: max | GZ79: =MAX(F76:F99) -> 11.69892351 | HA79: =OFFSET(B74,MATCH(GZ79,F76:F99,0)+1,0) -> 07:00:00 | HG79: 0.0442575272 | HJ79: 1.93833015
A80: 4 | B80: 04:00:00 | C80: ='Untreated L07 bd'!K17 -> 1597.255387 | D80: 13500 | E80: 0.1183152139 | F80: 2.863463452 | G80: ='base data'!AX17 -> 8.2 | H80: ='base data'!AY17 -> 1 | I80: 1.041607742 | J80: 1.249668387 | K80: 1.099307858 | L80: 1.050131226 | M80: 1.030914435 | N80: 1.006109831 | P80: 1 | Q80: 04:00:00 | R80: 0.04020530494 | T80: ='Primary Graph Data'!$O$18*R80*3600 -> 1.578971976 | U80: 0.9277491584 | V80: 0.9277491584 | W80: =C80*'Primary Graph Data'!$O$18*V80 -> 16.1656619 | X80: 1.082915647 | Y80: 1.193283188 | Z80: 0.05539524494 | AA80: 0.06634248284 | AB80: 1.099307858 | AC80: 1.193283188 | AD80: 2.096433929 | ET80: =EXP($E80*HLOOKUP(ET$75,'L07 Coefs'!$D$6:$I$10,2,FALSE)+$F80*HLOOKUP(ET$75,'L07 Coefs'!$D$6:$I$10,3,FALSE)+$G80*HLOOKUP(ET$75,'L07 Coefs'!$D$6:$I$10,4,FALSE)+$H80*HLOOKUP(ET$75,'L07 Coefs'!$D$6:$I$10,5,FALSE)) -> 1.041607742 | EU80: =EXP($E80*HLOOKUP(EU$75,'L07 Coefs'!$D$6:$I$10,2,FALSE)+$F80*HLOOKUP(EU$75,'L07 Coefs'!$D$6:$I$10,3,FALSE)+$G80*HLOOKUP(EU$75,'L07 Coefs'!$D$6:$I$10,4,FALSE)+$H80*HLOOKUP(EU$75,'L07 Coefs'!$D$6:$I$10,5,FALSE)) -> 1.249668387 | EV80: =EXP($E80*HLOOKUP(EV$75,'L07 Coefs'!$D$6:$I$10,2,FALSE)+$F80*HLOOKUP(EV$75,'L07 Coefs'!$D$6:$I$10,3,FALSE)+$G80*HLOOKUP(EV$75,'L07 Coefs'!$D$6:$I$10,4,FALSE)+$H80*HLOOKUP(EV$75,'L07 Coefs'!$D$6:$I$10,5,FALSE)) -> 1.099307858 | EW80: =EXP($E80*HLOOKUP(EW$75,'L07 Coefs'!$D$6:$I$10,2,FALSE)+$F80*HLOOKUP(EW$75,'L07 Coefs'!$D$6:$I$10,3,FALSE)+$G80*HLOOKUP(EW$75,'L07 Coefs'!$D$6:$I$10,4,FALSE)+$H80*HLOOKUP(EW$75,'L07 Coefs'!$D$6:$I$10,5,FALSE)) -> 1.050131226 | EX80: =EXP($E80*HLOOKUP(EX$75,'L07 Coefs'!$D$6:$I$10,2,FALSE)+$F80*HLOOKUP(EX$75,'L07 Coefs'!$D$6:$I$10,3,FALSE)+$G80*HLOOKUP(EX$75,'L07 Coefs'!$D$6:$I$10,4,FALSE)+$H80*HLOOKUP(EX$75,'L07 Coefs'!$D$6:$I$10,5,FALSE)) -> 1.030914435 | EY80: =EXP($E80*HLOOKUP(EY$75,'L07 Coefs'!$D$6:$I$10,2,FALSE)+$F80*HLOOKUP(EY$75,'L07 Coefs'!$D$6:$I$10,3,FALSE)+$G80*HLOOKUP(EY$75,'L07 Coefs'!$D$6:$I$10,4,FALSE)+$H80*HLOOKUP(EY$75,'L07 Coefs'!$D$6:$I$10,5,FALSE)) -> 1.006109831 | EZ80: =EXP($E80*HLOOKUP(EZ$75,'L07 Coefs'!$D$13:$I$19,2,FALSE)+$F80*HLOOKUP(EZ$75,'L07 Coefs'!$D$13:$I$19,3,FALSE))*(1-($G80/365)-($H80/365)+$AK$13*(($G80/365)/(HLOOKUP(EZ$75,'L07 Coefs'!$D$13:$I$19,4,FALSE)*$AK$13+HLOOKUP(EZ$75,'L07 Coefs'!$D$13:$I$19,5,FALSE)*EXP($E80*HLOOKUP(EZ$75,'L07 Coefs'!$D$13:$I$19,2,FALSE)+$F80*HLOOKUP(EZ$75,'L07 Coefs'!$D$13:$I$19,3,FALSE)))+($H80/365)/(HLOOKUP(EZ$75,'L07 Coefs'!$D$13:$I$19,6,FALSE)*$AK$13+HLOOKUP(EZ$75,'L07 Coefs'!$D$13:$I$19,7,FALSE)*EXP($E80*HLOOKUP(EZ$75,'L07 Coefs'!$D$13:$I$19,2,FALSE)+$F80*HLOOKUP(EZ$75,'L07 Coefs'!$D$13:$I$19,3,FALSE))))) -> 1.095540552 | FA80: =EXP($E80*HLOOKUP(FA$75,'L07 Coefs'!$D$13:$I$19,2,FALSE)+$F80*HLOOKUP(FA$75,'L07 Coefs'!$D$13:$I$19,3,FALSE))*(1-($G80/365)-($H80/365)+$AK$13*(($G80/365)/(HLOOKUP(FA$75,'L07 Coefs'!$D$13:$I$19,4,FALSE)*$AK$13+HLOOKUP(FA$75,'L07 Coefs'!$D$13:$I$19,5,FALSE)*EXP($E80*HLOOKUP(FA$75,'L07 Coefs'!$D$13:$I$19,2,FALSE)+$F80*HLOOKUP(FA$75,'L07 Coefs'!$D$13:$I$19,3,FALSE)))+($H80/365)/(HLOOKUP(FA$75,'L07 Coefs'!$D$13:$I$19,6,FALSE)*$AK$13+HLOOKUP(FA$75,'L07 Coefs'!$D$13:$I$19,7,FALSE)*EXP($E80*HLOOKUP(FA$75,'L07 Coefs'!$D$13:$I$19,2,FALSE)+$F80*HLOOKUP(FA$75,'L07 Coefs'!$D$13:$I$19,3,FALSE))))) -> 1.202847091 | FB80: =EXP($E80*HLOOKUP(FB$75,'L07 Coefs'!$D$13:$I$19,2,FALSE)+$F80*HLOOKUP(FB$75,'L07 Coefs'!$D$13:$I$19,3,FALSE))*(1-($G80/365)-($H80/365)+$AK$13*(($G80/365)/(HLOOKUP(FB$75,'L07 Coefs'!$D$13:$I$19,4,FALSE)*$AK$13+HLOOKUP(FB$75,'L07 Coefs'!$D$13:$I$19,5,FALSE)*EXP($E80*HLOOKUP(FB$75,'L07 Coefs'!$D$13:$I$19,2,FALSE)+$F80*HLOOKUP(FB$75,'L07 Coefs'!$D$13:$I$19,3,FALSE)))+($H80/365)/(HLOOKUP(FB$75,'L07 Coefs'!$D$13:$I$19,6,FALSE)*$AK$13+HLOOKUP(FB$75,'L07 Coefs'!$D$13:$I$19,7,FALSE)*EXP($E80*HLOOKUP(FB$75,'L07 Coefs'!$D$13:$I$19,2,FALSE)+$F80*HLOOKUP(FB$75,'L07 Coefs'!$D$13:$I$19,3,FALSE))))) -> 1.13243641 | FC80: =EXP($E80*HLOOKUP(FC$75,'L07 Coefs'!$D$13:$I$19,2,FALSE)+$F80*HLOOKUP(FC$75,'L07 Coefs'!$D$13:$I$19,3,FALSE))*(1-($G80/365)-($H80/365)+$AK$13*(($G80/365)/(HLOOKUP(FC$75,'L07 Coefs'!$D$13:$I$19,4,FALSE)*$AK$13+HLOOKUP(FC$75,'L07 Coefs'!$D$13:$I$19,5,FALSE)*EXP($E80*HLOOKUP(FC$75,'L07 Coefs'!$D$13:$I$19,2,FALSE)+$F80*HLOOKUP(FC$75,'L07 Coefs'!$D$13:$I$19,3,FALSE)))+($H80/365)/(HLOOKUP(FC$75,'L07 Coefs'!$D$13:$I$19,6,FALSE)*$AK$13+HLOOKUP(FC$75,'L07 Coefs'!$D$13:$I$19,7,FALSE)*EXP($E80*HLOOKUP(FC$75,'L07 Coefs'!$D$13:$I$19,2,FALSE)+$F80*HLOOKUP(FC$75,'L07 Coefs'!$D$13:$I$19,3,FALSE))))) -> 1.118557165 | FD80: =EXP($E80*HLOOKUP(FD$75,'L07 Coefs'!$D$13:$I$19,2,FALSE)+$F80*HLOOKUP(FD$75,'L07 Coefs'!$D$13:$I$19,3,FALSE))*(1-($G80/365)-($H80/365)+$AK$13*(($G80/365)/(HLOOKUP(FD$75,'L07 Coefs'!$D$13:$I$19,4,FALSE)*$AK$13+HLOOKUP(FD$75,'L07 Coefs'!$D$13:$I$19,5,FALSE)*EXP($E80*HLOOKUP(FD$75,'L07 Coefs'!$D$13:$I$19,2,FALSE)+$F80*HLOOKUP(FD$75,'L07 Coefs'!$D$13:$I$19,3,FALSE)))+($H80/365)/(HLOOKUP(FD$75,'L07 Coefs'!$D$13:$I$19,6,FALSE)*$AK$13+HLOOKUP(FD$75,'L07 Coefs'!$D$13:$I$19,7,FALSE)*EXP($E80*HLOOKUP(FD$75,'L07 Coefs'!$D$13:$I$19,2,FALSE)+$F80*HLOOKUP(FD$75,'L07 Coefs'!$D$13:$I$19,3,FALSE))))) -> 1.085026205 | FE80: =EXP($E80*HLOOKUP(FE$75,'L07 Coefs'!$D$13:$I$19,2,FALSE)+$F80*HLOOKUP(FE$75,'L07 Coefs'!$D$13:$I$19,3,FALSE))*(1-($G80/365)-($H80/365)+$AK$13*(($G80/365)/(HLOOKUP(FE$75,'L07 Coefs'!$D$13:$I$19,4,FALSE)*$AK$13+HLOOKUP(FE$75,'L07 Coefs'!$D$13:$I$19,5,FALSE)*EXP($E80*HLOOKUP(FE$75,'L07 Coefs'!$D$13:$I$19,2,FALSE)+$F80*HLOOKUP(FE$75,'L07 Coefs'!$D$13:$I$19,3,FALSE)))+($H80/365)/(HLOOKUP(FE$75,'L07 Coefs'!$D$13:$I$19,6,FALSE)*$AK$13+HLOOKUP(FE$75,'L07 Coefs'!$D$13:$I$19,7,FALSE)*EXP($E80*HLOOKUP(FE$75,'L07 Coefs'!$D$13:$I$19,2,FALSE)+$F80*HLOOKUP(FE$75,'L07 Coefs'!$D$13:$I$19,3,FALSE))))) -> 1.025910775 | FG80: =EXP($E80*HLOOKUP(OFFSET(FG$75,-1,0),'L07 Coefs'!$D$13:$I$19,2,FALSE)+$F80*HLOOKUP(OFFSET(FG$75,-1,0),'L07 Coefs'!$D$13:$I$19,3,FALSE)) -> 1.020854334 | FH80: ='Untreated L07 bd'!$AK17/FG80 -> 71.32616785 | FI80: =HLOOKUP(OFFSET(FG$75,-1,0),'L07 Coefs'!$D$13:$I$19,4,FALSE)*FH80+HLOOKUP(OFFSET(FG$75,-1,0),'L07 Coefs'!$D$13:$I$19,5,FALSE) -> 68.94889295 | FJ80: =HLOOKUP(OFFSET(FG$75,-1,0),'L07 Coefs'!$D$13:$I$19,6,FALSE)*FH80+HLOOKUP(OFFSET(FG$75,-1,0),'L07 Coefs'!$D$13:$I$19,7,FALSE) -> 28.24605788 | FK80: ='Untreated L07 bd'!$AK17/FI80 -> 1.056052163 | FL80: ='Untreated L07 bd'!$AK17/FJ80 -> 2.577833263 | FM80: 1.025910775 | FN80: =EXP($E80*HLOOKUP(OFFSET(FN$75,-1,0),'L07 Coefs'!$D$13:$I$19,2,FALSE)+$F80*HLOOKUP(OFFSET(FN$75,-1,0),'L07 Coefs'!$D$13:$I$19,3,FALSE)) -> 1.076744324 | FO80: ='Untreated L07 bd'!$AK17/FN80 -> 67.62387871 | FP80: =HLOOKUP(OFFSET(FN$75,-1,0),'L07 Coefs'!$D$13:$I$19,4,FALSE)*FO80+HLOOKUP(OFFSET(FN$75,-1,0),'L07 Coefs'!$D$13:$I$19,5,FALSE) -> 58.58466683 | FQ80: =HLOOKUP(OFFSET(FN$75,-1,0),'L07 Coefs'!$D$13:$I$19,6,FALSE)*FO80+HLOOKUP(OFFSET(FN$75,-1,0),'L07 Coefs'!$D$13:$I$19,7,FALSE) -> 26.60023815 | FR80: ='Untreated L07 bd'!$AK17/FP80 -> 1.242878581 | FS80: ='Untreated L07 bd'!$AK17/FQ80 -> 2.737329912 | FT80: 1.085026205 | FU80: =EXP($E80*HLOOKUP(OFFSET(FU$75,-1,0),'L07 Coefs'!$D$13:$I$19,2,FALSE)+$F80*HLOOKUP(OFFSET(FU$75,-1,0),'L07 Coefs'!$D$13:$I$19,3,FALSE)) -> 1.102942532 | FV80: ='Untreated L07 bd'!$AK17/FU80 -> 66.01760787 | FW80: =HLOOKUP(OFFSET(FU$75,-1,0),'L07 Coefs'!$D$13:$I$19,4,FALSE)*FV80+HLOOKUP(OFFSET(FU$75,-1,0),'L07 Coefs'!$D$13:$I$19,5,FALSE) -> 48.48109296 | FX80: =HLOOKUP(OFFSET(FU$75,-1,0),'L07 Coefs'!$D$13:$I$19,6,FALSE)*FV80+HLOOKUP(OFFSET(FU$75,-1,0),'L07 Coefs'!$D$13:$I$19,7,FALSE) -> 20.62210263 | FY80: ='Untreated L07 bd'!$AK17/FW80 -> 1.501897402 | FZ80: ='Untreated L07 bd'!$AK17/FX80 -> 3.530853708 | GA80: 1.118557165 | GB80: =EXP($E80*HLOOKUP(OFFSET(GB$75,-1,0),'L07 Coefs'!$D$13:$I$19,2,FALSE)+$F80*HLOOKUP(OFFSET(GB$75,-1,0),'L07 Coefs'!$D$13:$I$19,3,FALSE)) -> 1.115751544 | GC80: ='Untreated L07 bd'!$AK17/GB80 -> 65.25971483 | GD80: =HLOOKUP(OFFSET(GB$75,-1,0),'L07 Coefs'!$D$13:$I$19,4,FALSE)*GC80+HLOOKUP(OFFSET(GB$75,-1,0),'L07 Coefs'!$D$13:$I$19,5,FALSE) -> 46.74095778 | GE80: =HLOOKUP(OFFSET(GB$75,-1,0),'L07 Coefs'!$D$13:$I$19,6,FALSE)*GC80+HLOOKUP(OFFSET(GB$75,-1,0),'L07 Coefs'!$D$13:$I$19,7,FALSE) -> 20.33427844 | GF80: ='Untreated L07 bd'!$AK17/GD80 -> 1.557812057 | GG80: ='Untreated L07 bd'!$AK17/GE80 -> 3.580831637 | GH80: 1.13243641 | GI80: =EXP($E80*HLOOKUP(OFFSET(GI$75,-1,0),'L07 Coefs'!$D$13:$I$19,2,FALSE)+$F80*HLOOKUP(OFFSET(GI$75,-1,0),'L07 Coefs'!$D$13:$I$19,3,FALSE)) -> 1.184515421 | GJ80: ='Untreated L07 bd'!$AK17/GI80 -> 61.4712365 | GK80: =HLOOKUP(OFFSET(GI$75,-1,0),'L07 Coefs'!$D$13:$I$19,4,FALSE)*GJ80+HLOOKUP(OFFSET(GI$75,-1,0),'L07 Coefs'!$D$13:$I$19,5,FALSE) -> 42.58304056 | GL80: =HLOOKUP(OFFSET(GI$75,-1,0),'L07 Coefs'!$D$13:$I$19,6,FALSE)*GJ80+HLOOKUP(OFFSET(GI$75,-1,0),'L07 Coefs'!$D$13:$I$19,7,FALSE) -> 20.41169165 | GM80: ='Untreated L07 bd'!$AK17/GK80 -> 1.709920818 | GN80: ='Untreated L07 bd'!$AK17/GL80 -> 3.567251006 | GO80: 1.202847091 | GP80: =EXP($E80*HLOOKUP(OFFSET(GP$75,-1,0),'L07 Coefs'!$D$13:$I$19,2,FALSE)+$F80*HLOOKUP(OFFSET(GP$75,-1,0),'L07 Coefs'!$D$13:$I$19,3,FALSE)) -> 1.085584172 | GQ80: ='Untreated L07 bd'!$AK17/GP80 -> 67.07322146 | GR80: =HLOOKUP(OFFSET(GP$75,-1,0),'L07 Coefs'!$D$13:$I$19,4,FALSE)*GQ80+HLOOKUP(OFFSET(GP$75,-1,0),'L07 Coefs'!$D$13:$I$19,5,FALSE) -> 55.76336756 | GS80: =HLOOKUP(OFFSET(GP$75,-1,0),'L07 Coefs'!$D$13:$I$19,6,FALSE)*GQ80+HLOOKUP(OFFSET(GP$75,-1,0),'L07 Coefs'!$D$13:$I$19,7,FALSE) -> 24.98568709 | GT80: ='Untreated L07 bd'!$AK17/GR80 -> 1.305760946 | GU80: ='Untreated L07 bd'!$AK17/GS80 -> 2.914213538 | GV80: 1.095540552 | GX80: Rain05 | GY80: min | GZ80: =MIN(G76:G99) -> 4.9 | HA80: =OFFSET(B74,MATCH(GZ80,G76:G99,0)+1,0) -> 23:00:00 | HG80: 0.06634248284 | HJ80: 2.096433929
A81: 5 | B81: 05:00:00 | C81: ='Untreated L07 bd'!K18 -> 5590.393855 | D81: 13500 | E81: 0.4141032485 | F81: 3.91101097 | G81: ='base data'!AX18 -> 9 | H81: ='base data'!AY18 -> 0 | I81: 1.077352633 | J81: 1.470916176 | K81: 1.174055114 | L81: 1.09226318 | M81: 1.056642821 | N81: 1.011080283 | P81: 1 | Q81: 05:00:00 | R81: 0.07418874168 | T81: ='Primary Graph Data'!$O$18*R81*3600 -> 2.913594219 | U81: 0.9587538186 | V81: 0.9587538186 | W81: =C81*'Primary Graph Data'!$O$18*V81 -> 58.47067043 | X81: 1.146791136 | Y81: 1.359593278 | Z81: 0.08975935872 | AA81: 0.1111182428 | AB81: 1.174055114 | AC81: 1.359593278 | AD81: 1.978562214 | ET81: =EXP($E81*HLOOKUP(ET$75,'L07 Coefs'!$D$6:$I$10,2,FALSE)+$F81*HLOOKUP(ET$75,'L07 Coefs'!$D$6:$I$10,3,FALSE)+$G81*HLOOKUP(ET$75,'L07 Coefs'!$D$6:$I$10,4,FALSE)+$H81*HLOOKUP(ET$75,'L07 Coefs'!$D$6:$I$10,5,FALSE)) -> 1.077352633 | EU81: =EXP($E81*HLOOKUP(EU$75,'L07 Coefs'!$D$6:$I$10,2,FALSE)+$F81*HLOOKUP(EU$75,'L07 Coefs'!$D$6:$I$10,3,FALSE)+$G81*HLOOKUP(EU$75,'L07 Coefs'!$D$6:$I$10,4,FALSE)+$H81*HLOOKUP(EU$75,'L07 Coefs'!$D$6:$I$10,5,FALSE)) -> 1.470916176 | EV81: =EXP($E81*HLOOKUP(EV$75,'L07 Coefs'!$D$6:$I$10,2,FALSE)+$F81*HLOOKUP(EV$75,'L07 Coefs'!$D$6:$I$10,3,FALSE)+$G81*HLOOKUP(EV$75,'L07 Coefs'!$D$6:$I$10,4,FALSE)+$H81*HLOOKUP(EV$75,'L07 Coefs'!$D$6:$I$10,5,FALSE)) -> 1.174055114 | EW81: =EXP($E81*HLOOKUP(EW$75,'L07 Coefs'!$D$6:$I$10,2,FALSE)+$F81*HLOOKUP(EW$75,'L07 Coefs'!$D$6:$I$10,3,FALSE)+$G81*HLOOKUP(EW$75,'L07 Coefs'!$D$6:$I$10,4,FALSE)+$H81*HLOOKUP(EW$75,'L07 Coefs'!$D$6:$I$10,5,FALSE)) -> 1.09226318 | EX81: =EXP($E81*HLOOKUP(EX$75,'L07 Coefs'!$D$6:$I$10,2,FALSE)+$F81*HLOOKUP(EX$75,'L07 Coefs'!$D$6:$I$10,3,FALSE)+$G81*HLOOKUP(EX$75,'L07 Coefs'!$D$6:$I$10,4,FALSE)+$H81*HLOOKUP(EX$75,'L07 Coefs'!$D$6:$I$10,5,FALSE)) -> 1.056642821 | EY81: =EXP($E81*HLOOKUP(EY$75,'L07 Coefs'!$D$6:$I$10,2,FALSE)+$F81*HLOOKUP(EY$75,'L07 Coefs'!$D$6:$I$10,3,FALSE)+$G81*HLOOKUP(EY$75,'L07 Coefs'!$D$6:$I$10,4,FALSE)+$H81*HLOOKUP(EY$75,'L07 Coefs'!$D$6:$I$10,5,FALSE)) -> 1.011080283 | EZ81: =EXP($E81*HLOOKUP(EZ$75,'L07 Coefs'!$D$13:$I$19,2,FALSE)+$F81*HLOOKUP(EZ$75,'L07 Coefs'!$D$13:$I$19,3,FALSE))*(1-($G81/365)-($H81/365)+$AK$13*(($G81/365)/(HLOOKUP(EZ$75,'L07 Coefs'!$D$13:$I$19,4,FALSE)*$AK$13+HLOOKUP(EZ$75,'L07 Coefs'!$D$13:$I$19,5,FALSE)*EXP($E81*HLOOKUP(EZ$75,'L07 Coefs'!$D$13:$I$19,2,FALSE)+$F81*HLOOKUP(EZ$75,'L07 Coefs'!$D$13:$I$19,3,FALSE)))+($H81/365)/(HLOOKUP(EZ$75,'L07 Coefs'!$D$13:$I$19,6,FALSE)*$AK$13+HLOOKUP(EZ$75,'L07 Coefs'!$D$13:$I$19,7,FALSE)*EXP($E81*HLOOKUP(EZ$75,'L07 Coefs'!$D$13:$I$19,2,FALSE)+$F81*HLOOKUP(EZ$75,'L07 Coefs'!$D$13:$I$19,3,FALSE))))) -> 1.228396651 | FA81: =EXP($E81*HLOOKUP(FA$75,'L07 Coefs'!$D$13:$I$19,2,FALSE)+$F81*HLOOKUP(FA$75,'L07 Coefs'!$D$13:$I$19,3,FALSE))*(1-($G81/365)-($H81/365)+$AK$13*(($G81/365)/(HLOOKUP(FA$75,'L07 Coefs'!$D$13:$I$19,4,FALSE)*$AK$13+HLOOKUP(FA$75,'L07 Coefs'!$D$13:$I$19,5,FALSE)*EXP($E81*HLOOKUP(FA$75,'L07 Coefs'!$D$13:$I$19,2,FALSE)+$F81*HLOOKUP(FA$75,'L07 Coefs'!$D$13:$I$19,3,FALSE)))+($H81/365)/(HLOOKUP(FA$75,'L07 Coefs'!$D$13:$I$19,6,FALSE)*$AK$13+HLOOKUP(FA$75,'L07 Coefs'!$D$13:$I$19,7,FALSE)*EXP($E81*HLOOKUP(FA$75,'L07 Coefs'!$D$13:$I$19,2,FALSE)+$F81*HLOOKUP(FA$75,'L07 Coefs'!$D$13:$I$19,3,FALSE))))) -> 1.692019403 | FB81: =EXP($E81*HLOOKUP(FB$75,'L07 Coefs'!$D$13:$I$19,2,FALSE)+$F81*HLOOKUP(FB$75,'L07 Coefs'!$D$13:$I$19,3,FALSE))*(1-($G81/365)-($H81/365)+$AK$13*(($G81/365)/(HLOOKUP(FB$75,'L07 Coefs'!$D$13:$I$19,4,FALSE)*$AK$13+HLOOKUP(FB$75,'L07 Coefs'!$D$13:$I$19,5,FALSE)*EXP($E81*HLOOKUP(FB$75,'L07 Coefs'!$D$13:$I$19,2,FALSE)+$F81*HLOOKUP(FB$75,'L07 Coefs'!$D$13:$I$19,3,FALSE)))+($H81/365)/(HLOOKUP(FB$75,'L07 Coefs'!$D$13:$I$19,6,FALSE)*$AK$13+HLOOKUP(FB$75,'L07 Coefs'!$D$13:$I$19,7,FALSE)*EXP($E81*HLOOKUP(FB$75,'L07 Coefs'!$D$13:$I$19,2,FALSE)+$F81*HLOOKUP(FB$75,'L07 Coefs'!$D$13:$I$19,3,FALSE))))) -> 1.374079146 | FC81: =EXP($E81*HLOOKUP(FC$75,'L07 Coefs'!$D$13:$I$19,2,FALSE)+$F81*HLOOKUP(FC$75,'L07 Coefs'!$D$13:$I$19,3,FALSE))*(1-($G81/365)-($H81/365)+$AK$13*(($G81/365)/(HLOOKUP(FC$75,'L07 Coefs'!$D$13:$I$19,4,FALSE)*$AK$13+HLOOKUP(FC$75,'L07 Coefs'!$D$13:$I$19,5,FALSE)*EXP($E81*HLOOKUP(FC$75,'L07 Coefs'!$D$13:$I$19,2,FALSE)+$F81*HLOOKUP(FC$75,'L07 Coefs'!$D$13:$I$19,3,FALSE)))+($H81/365)/(HLOOKUP(FC$75,'L07 Coefs'!$D$13:$I$19,6,FALSE)*$AK$13+HLOOKUP(FC$75,'L07 Coefs'!$D$13:$I$19,7,FALSE)*EXP($E81*HLOOKUP(FC$75,'L07 Coefs'!$D$13:$I$19,2,FALSE)+$F81*HLOOKUP(FC$75,'L07 Coefs'!$D$13:$I$19,3,FALSE))))) -> 1.314165563 | FD81: =EXP($E81*HLOOKUP(FD$75,'L07 Coefs'!$D$13:$I$19,2,FALSE)+$F81*HLOOKUP(FD$75,'L07 Coefs'!$D$13:$I$19,3,FALSE))*(1-($G81/365)-($H81/365)+$AK$13*(($G81/365)/(HLOOKUP(FD$75,'L07 Coefs'!$D$13:$I$19,4,FALSE)*$AK$13+HLOOKUP(FD$75,'L07 Coefs'!$D$13:$I$19,5,FALSE)*EXP($E81*HLOOKUP(FD$75,'L07 Coefs'!$D$13:$I$19,2,FALSE)+$F81*HLOOKUP(FD$75,'L07 Coefs'!$D$13:$I$19,3,FALSE)))+($H81/365)/(HLOOKUP(FD$75,'L07 Coefs'!$D$13:$I$19,6,FALSE)*$AK$13+HLOOKUP(FD$75,'L07 Coefs'!$D$13:$I$19,7,FALSE)*EXP($E81*HLOOKUP(FD$75,'L07 Coefs'!$D$13:$I$19,2,FALSE)+$F81*HLOOKUP(FD$75,'L07 Coefs'!$D$13:$I$19,3,FALSE))))) -> 1.19555437 | FE81: =EXP($E81*HLOOKUP(FE$75,'L07 Coefs'!$D$13:$I$19,2,FALSE)+$F81*HLOOKUP(FE$75,'L07 Coefs'!$D$13:$I$19,3,FALSE))*(1-($G81/365)-($H81/365)+$AK$13*(($G81/365)/(HLOOKUP(FE$75,'L07 Coefs'!$D$13:$I$19,4,FALSE)*$AK$13+HLOOKUP(FE$75,'L07 Coefs'!$D$13:$I$19,5,FALSE)*EXP($E81*HLOOKUP(FE$75,'L07 Coefs'!$D$13:$I$19,2,FALSE)+$F81*HLOOKUP(FE$75,'L07 Coefs'!$D$13:$I$19,3,FALSE)))+($H81/365)/(HLOOKUP(FE$75,'L07 Coefs'!$D$13:$I$19,6,FALSE)*$AK$13+HLOOKUP(FE$75,'L07 Coefs'!$D$13:$I$19,7,FALSE)*EXP($E81*HLOOKUP(FE$75,'L07 Coefs'!$D$13:$I$19,2,FALSE)+$F81*HLOOKUP(FE$75,'L07 Coefs'!$D$13:$I$19,3,FALSE))))) -> 1.049829283 | FG81: =EXP($E81*HLOOKUP(OFFSET(FG$75,-1,0),'L07 Coefs'!$D$13:$I$19,2,FALSE)+$F81*HLOOKUP(OFFSET(FG$75,-1,0),'L07 Coefs'!$D$13:$I$19,3,FALSE)) -> 1.048635196 | FH81: ='Untreated L07 bd'!$AK18/FG81 -> 69.43656651 | FI81: =HLOOKUP(OFFSET(FG$75,-1,0),'L07 Coefs'!$D$13:$I$19,4,FALSE)*FH81+HLOOKUP(OFFSET(FG$75,-1,0),'L07 Coefs'!$D$13:$I$19,5,FALSE) -> 66.37147672 | FJ81: =HLOOKUP(OFFSET(FG$75,-1,0),'L07 Coefs'!$D$13:$I$19,6,FALSE)*FH81+HLOOKUP(OFFSET(FG$75,-1,0),'L07 Coefs'!$D$13:$I$19,7,FALSE) -> 27.90970884 | FK81: ='Untreated L07 bd'!$AK18/FI81 -> 1.097062039 | FL81: ='Untreated L07 bd'!$AK18/FJ81 -> 2.608899576 | FM81: 1.049829283 | FN81: =EXP($E81*HLOOKUP(OFFSET(FN$75,-1,0),'L07 Coefs'!$D$13:$I$19,2,FALSE)+$F81*HLOOKUP(OFFSET(FN$75,-1,0),'L07 Coefs'!$D$13:$I$19,3,FALSE)) -> 1.190607372 | FO81: ='Untreated L07 bd'!$AK18/FN81 -> 61.15670813 | FP81: =HLOOKUP(OFFSET(FN$75,-1,0),'L07 Coefs'!$D$13:$I$19,4,FALSE)*FO81+HLOOKUP(OFFSET(FN$75,-1,0),'L07 Coefs'!$D$13:$I$19,5,FALSE) -> 52.33738006 | FQ81: =HLOOKUP(OFFSET(FN$75,-1,0),'L07 Coefs'!$D$13:$I$19,6,FALSE)*FO81+HLOOKUP(OFFSET(FN$75,-1,0),'L07 Coefs'!$D$13:$I$19,7,FALSE) -> 24.36906431 | FR81: ='Untreated L07 bd'!$AK18/FP81 -> 1.391235623 | FS81: ='Untreated L07 bd'!$AK18/FQ81 -> 2.987953359 | FT81: 1.19555437 | FU81: =EXP($E81*HLOOKUP(OFFSET(FU$75,-1,0),'L07 Coefs'!$D$13:$I$19,2,FALSE)+$F81*HLOOKUP(OFFSET(FU$75,-1,0),'L07 Coefs'!$D$13:$I$19,3,FALSE)) -> 1.3036417 | FV81: ='Untreated L07 bd'!$AK18/FU81 -> 55.85401846 | FW81: =HLOOKUP(OFFSET(FU$75,-1,0),'L07 Coefs'!$D$13:$I$19,4,FALSE)*FV81+HLOOKUP(OFFSET(FU$75,-1,0),'L07 Coefs'!$D$13:$I$19,5,FALSE) -> 42.07803163 | FX81: =HLOOKUP(OFFSET(FU$75,-1,0),'L07 Coefs'!$D$13:$I$19,6,FALSE)*FV81+HLOOKUP(OFFSET(FU$75,-1,0),'L07 Coefs'!$D$13:$I$19,7,FALSE) -> 18.2539863 | FY81: ='Untreated L07 bd'!$AK18/FW81 -> 1.730442816 | FZ81: ='Untreated L07 bd'!$AK18/FX81 -> 3.988916523 | GA81: 1.314165563 | GB81: =EXP($E81*HLOOKUP(OFFSET(GB$75,-1,0),'L07 Coefs'!$D$13:$I$19,2,FALSE)+$F81*HLOOKUP(OFFSET(GB$75,-1,0),'L07 Coefs'!$D$13:$I$19,3,FALSE)) -> 1.36186391 | GC81: ='Untreated L07 bd'!$AK18/GB81 -> 53.46615548 | GD81: =HLOOKUP(OFFSET(GB$75,-1,0),'L07 Coefs'!$D$13:$I$19,4,FALSE)*GC81+HLOOKUP(OFFSET(GB$75,-1,0),'L07 Coefs'!$D$13:$I$19,5,FALSE) -> 39.20487335 | GE81: =HLOOKUP(OFFSET(GB$75,-1,0),'L07 Coefs'!$D$13:$I$19,6,FALSE)*GC81+HLOOKUP(OFFSET(GB$75,-1,0),'L07 Coefs'!$D$13:$I$19,7,FALSE) -> 16.96132047 | GF81: ='Untreated L07 bd'!$AK18/GD81 -> 1.857259604 | GG81: ='Untreated L07 bd'!$AK18/GE81 -> 4.292922105 | GH81: 1.374079146 | GI81: =EXP($E81*HLOOKUP(OFFSET(GI$75,-1,0),'L07 Coefs'!$D$13:$I$19,2,FALSE)+$F81*HLOOKUP(OFFSET(GI$75,-1,0),'L07 Coefs'!$D$13:$I$19,3,FALSE)) -> 1.676600399 | GJ81: ='Untreated L07 bd'!$AK18/GI81 -> 43.42932735 | GK81: =HLOOKUP(OFFSET(GI$75,-1,0),'L07 Coefs'!$D$13:$I$19,4,FALSE)*GJ81+HLOOKUP(OFFSET(GI$75,-1,0),'L07 Coefs'!$D$13:$I$19,5,FALSE) -> 31.6316017 | GL81: =HLOOKUP(OFFSET(GI$75,-1,0),'L07 Coefs'!$D$13:$I$19,6,FALSE)*GJ81+HLOOKUP(OFFSET(GI$75,-1,0),'L07 Coefs'!$D$13:$I$19,7,FALSE) -> 14.25940063 | GM81: ='Untreated L07 bd'!$AK18/GK81 -> 2.30192667 | GN81: ='Untreated L07 bd'!$AK18/GL81 -> 5.106359619 | GO81: 1.692019403 | GP81: =EXP($E81*HLOOKUP(OFFSET(GP$75,-1,0),'L07 Coefs'!$D$13:$I$19,2,FALSE)+$F81*HLOOKUP(OFFSET(GP$75,-1,0),'L07 Coefs'!$D$13:$I$19,3,FALSE)) -> 1.222019006 | GQ81: ='Untreated L07 bd'!$AK18/GP81 -> 59.58469321 | GR81: =HLOOKUP(OFFSET(GP$75,-1,0),'L07 Coefs'!$D$13:$I$19,4,FALSE)*GQ81+HLOOKUP(OFFSET(GP$75,-1,0),'L07 Coefs'!$D$13:$I$19,5,FALSE) -> 49.17620249 | GS81: =HLOOKUP(OFFSET(GP$75,-1,0),'L07 Coefs'!$D$13:$I$19,6,FALSE)*GQ81+HLOOKUP(OFFSET(GP$75,-1,0),'L07 Coefs'!$D$13:$I$19,7,FALSE) -> 22.61772925 | GT81: ='Untreated L07 bd'!$AK18/GR81 -> 1.480667963 | GU81: ='Untreated L07 bd'!$AK18/GS81 -> 3.219316438 | GV81: 1.228396651 | GY81: max | GZ81: =MAX(G76:G99) -> 9.1 | HA81: =OFFSET(B74,MATCH(GZ81,G76:G99,0)+1,0) -> 13:00:00 | HG81: 0.1111182428 | HJ81: 1.978562214
A82: 6 | B82: 06:00:00 | C82: ='Untreated L07 bd'!K19 -> 8783.892427 | D82: 13500 | E82: 0.6506586983 | F82: 6.061881511 | G82: ='base data'!AX19 -> 8.9 | H82: ='base data'!AY19 -> 0 | I82: 1.117714518 | J82: 1.798809226 | K82: 1.271892786 | L82: 1.140783819 | M82: 1.085702695 | N82: 1.016581456 | P82: 1 | Q82: 06:00:00 | R82: 0.1228121178 | T82: ='Primary Graph Data'!$O$18*R82*3600 -> 4.823166809 | U82: 0.9967945929 | V82: 0.9967945929 | W82: =C82*'Primary Graph Data'!$O$18*V82 -> 95.51712519 | X82: 1.228189797 | Y82: 1.601215561 | Z82: 0.1379406505 | AA82: 0.1714927043 | AB82: 1.271892786 | AC82: 1.601215561 | AD82: 2.061408393 | ET82: =EXP($E82*HLOOKUP(ET$75,'L07 Coefs'!$D$6:$I$10,2,FALSE)+$F82*HLOOKUP(ET$75,'L07 Coefs'!$D$6:$I$10,3,FALSE)+$G82*HLOOKUP(ET$75,'L07 Coefs'!$D$6:$I$10,4,FALSE)+$H82*HLOOKUP(ET$75,'L07 Coefs'!$D$6:$I$10,5,FALSE)) -> 1.117714518 | EU82: =EXP($E82*HLOOKUP(EU$75,'L07 Coefs'!$D$6:$I$10,2,FALSE)+$F82*HLOOKUP(EU$75,'L07 Coefs'!$D$6:$I$10,3,FALSE)+$G82*HLOOKUP(EU$75,'L07 Coefs'!$D$6:$I$10,4,FALSE)+$H82*HLOOKUP(EU$75,'L07 Coefs'!$D$6:$I$10,5,FALSE)) -> 1.798809226 | EV82: =EXP($E82*HLOOKUP(EV$75,'L07 Coefs'!$D$6:$I$10,2,FALSE)+$F82*HLOOKUP(EV$75,'L07 Coefs'!$D$6:$I$10,3,FALSE)+$G82*HLOOKUP(EV$75,'L07 Coefs'!$D$6:$I$10,4,FALSE)+$H82*HLOOKUP(EV$75,'L07 Coefs'!$D$6:$I$10,5,FALSE)) -> 1.271892786 | EW82: =EXP($E82*HLOOKUP(EW$75,'L07 Coefs'!$D$6:$I$10,2,FALSE)+$F82*HLOOKUP(EW$75,'L07 Coefs'!$D$6:$I$10,3,FALSE)+$G82*HLOOKUP(EW$75,'L07 Coefs'!$D$6:$I$10,4,FALSE)+$H82*HLOOKUP(EW$75,'L07 Coefs'!$D$6:$I$10,5,FALSE)) -> 1.140783819 | EX82: =EXP($E82*HLOOKUP(EX$75,'L07 Coefs'!$D$6:$I$10,2,FALSE)+$F82*HLOOKUP(EX$75,'L07 Coefs'!$D$6:$I$10,3,FALSE)+$G82*HLOOKUP(EX$75,'L07 Coefs'!$D$6:$I$10,4,FALSE)+$H82*HLOOKUP(EX$75,'L07 Coefs'!$D$6:$I$10,5,FALSE)) -> 1.085702695 | EY82: =EXP($E82*HLOOKUP(EY$75,'L07 Coefs'!$D$6:$I$10,2,FALSE)+$F82*HLOOKUP(EY$75,'L07 Coefs'!$D$6:$I$10,3,FALSE)+$G82*HLOOKUP(EY$75,'L07 Coefs'!$D$6:$I$10,4,FALSE)+$H82*HLOOKUP(EY$75,'L07 Coefs'!$D$6:$I$10,5,FALSE)) -> 1.016581456 | EZ82: =EXP($E82*HLOOKUP(EZ$75,'L07 Coefs'!$D$13:$I$19,2,FALSE)+$F82*HLOOKUP(EZ$75,'L07 Coefs'!$D$13:$I$19,3,FALSE))*(1-($G82/365)-($H82/365)+$AK$13*(($G82/365)/(HLOOKUP(EZ$75,'L07 Coefs'!$D$13:$I$19,4,FALSE)*$AK$13+HLOOKUP(EZ$75,'L07 Coefs'!$D$13:$I$19,5,FALSE)*EXP($E82*HLOOKUP(EZ$75,'L07 Coefs'!$D$13:$I$19,2,FALSE)+$F82*HLOOKUP(EZ$75,'L07 Coefs'!$D$13:$I$19,3,FALSE)))+($H82/365)/(HLOOKUP(EZ$75,'L07 Coefs'!$D$13:$I$19,6,FALSE)*$AK$13+HLOOKUP(EZ$75,'L07 Coefs'!$D$13:$I$19,7,FALSE)*EXP($E82*HLOOKUP(EZ$75,'L07 Coefs'!$D$13:$I$19,2,FALSE)+$F82*HLOOKUP(EZ$75,'L07 Coefs'!$D$13:$I$19,3,FALSE))))) -> 1.376080605 | FA82: =EXP($E82*HLOOKUP(FA$75,'L07 Coefs'!$D$13:$I$19,2,FALSE)+$F82*HLOOKUP(FA$75,'L07 Coefs'!$D$13:$I$19,3,FALSE))*(1-($G82/365)-($H82/365)+$AK$13*(($G82/365)/(HLOOKUP(FA$75,'L07 Coefs'!$D$13:$I$19,4,FALSE)*$AK$13+HLOOKUP(FA$75,'L07 Coefs'!$D$13:$I$19,5,FALSE)*EXP($E82*HLOOKUP(FA$75,'L07 Coefs'!$D$13:$I$19,2,FALSE)+$F82*HLOOKUP(FA$75,'L07 Coefs'!$D$13:$I$19,3,FALSE)))+($H82/365)/(HLOOKUP(FA$75,'L07 Coefs'!$D$13:$I$19,6,FALSE)*$AK$13+HLOOKUP(FA$75,'L07 Coefs'!$D$13:$I$19,7,FALSE)*EXP($E82*HLOOKUP(FA$75,'L07 Coefs'!$D$13:$I$19,2,FALSE)+$F82*HLOOKUP(FA$75,'L07 Coefs'!$D$13:$I$19,3,FALSE))))) -> 2.266415499 | FB82: =EXP($E82*HLOOKUP(FB$75,'L07 Coefs'!$D$13:$I$19,2,FALSE)+$F82*HLOOKUP(FB$75,'L07 Coefs'!$D$13:$I$19,3,FALSE))*(1-($G82/365)-($H82/365)+$AK$13*(($G82/365)/(HLOOKUP(FB$75,'L07 Coefs'!$D$13:$I$19,4,FALSE)*$AK$13+HLOOKUP(FB$75,'L07 Coefs'!$D$13:$I$19,5,FALSE)*EXP($E82*HLOOKUP(FB$75,'L07 Coefs'!$D$13:$I$19,2,FALSE)+$F82*HLOOKUP(FB$75,'L07 Coefs'!$D$13:$I$19,3,FALSE)))+($H82/365)/(HLOOKUP(FB$75,'L07 Coefs'!$D$13:$I$19,6,FALSE)*$AK$13+HLOOKUP(FB$75,'L07 Coefs'!$D$13:$I$19,7,FALSE)*EXP($E82*HLOOKUP(FB$75,'L07 Coefs'!$D$13:$I$19,2,FALSE)+$F82*HLOOKUP(FB$75,'L07 Coefs'!$D$13:$I$19,3,FALSE))))) -> 1.636089214 | FC82: =EXP($E82*HLOOKUP(FC$75,'L07 Coefs'!$D$13:$I$19,2,FALSE)+$F82*HLOOKUP(FC$75,'L07 Coefs'!$D$13:$I$19,3,FALSE))*(1-($G82/365)-($H82/365)+$AK$13*(($G82/365)/(HLOOKUP(FC$75,'L07 Coefs'!$D$13:$I$19,4,FALSE)*$AK$13+HLOOKUP(FC$75,'L07 Coefs'!$D$13:$I$19,5,FALSE)*EXP($E82*HLOOKUP(FC$75,'L07 Coefs'!$D$13:$I$19,2,FALSE)+$F82*HLOOKUP(FC$75,'L07 Coefs'!$D$13:$I$19,3,FALSE)))+($H82/365)/(HLOOKUP(FC$75,'L07 Coefs'!$D$13:$I$19,6,FALSE)*$AK$13+HLOOKUP(FC$75,'L07 Coefs'!$D$13:$I$19,7,FALSE)*EXP($E82*HLOOKUP(FC$75,'L07 Coefs'!$D$13:$I$19,2,FALSE)+$F82*HLOOKUP(FC$75,'L07 Coefs'!$D$13:$I$19,3,FALSE))))) -> 1.526067639 | FD82: =EXP($E82*HLOOKUP(FD$75,'L07 Coefs'!$D$13:$I$19,2,FALSE)+$F82*HLOOKUP(FD$75,'L07 Coefs'!$D$13:$I$19,3,FALSE))*(1-($G82/365)-($H82/365)+$AK$13*(($G82/365)/(HLOOKUP(FD$75,'L07 Coefs'!$D$13:$I$19,4,FALSE)*$AK$13+HLOOKUP(FD$75,'L07 Coefs'!$D$13:$I$19,5,FALSE)*EXP($E82*HLOOKUP(FD$75,'L07 Coefs'!$D$13:$I$19,2,FALSE)+$F82*HLOOKUP(FD$75,'L07 Coefs'!$D$13:$I$19,3,FALSE)))+($H82/365)/(HLOOKUP(FD$75,'L07 Coefs'!$D$13:$I$19,6,FALSE)*$AK$13+HLOOKUP(FD$75,'L07 Coefs'!$D$13:$I$19,7,FALSE)*EXP($E82*HLOOKUP(FD$75,'L07 Coefs'!$D$13:$I$19,2,FALSE)+$F82*HLOOKUP(FD$75,'L07 Coefs'!$D$13:$I$19,3,FALSE))))) -> 1.319773217 | FE82: =EXP($E82*HLOOKUP(FE$75,'L07 Coefs'!$D$13:$I$19,2,FALSE)+$F82*HLOOKUP(FE$75,'L07 Coefs'!$D$13:$I$19,3,FALSE))*(1-($G82/365)-($H82/365)+$AK$13*(($G82/365)/(HLOOKUP(FE$75,'L07 Coefs'!$D$13:$I$19,4,FALSE)*$AK$13+HLOOKUP(FE$75,'L07 Coefs'!$D$13:$I$19,5,FALSE)*EXP($E82*HLOOKUP(FE$75,'L07 Coefs'!$D$13:$I$19,2,FALSE)+$F82*HLOOKUP(FE$75,'L07 Coefs'!$D$13:$I$19,3,FALSE)))+($H82/365)/(HLOOKUP(FE$75,'L07 Coefs'!$D$13:$I$19,6,FALSE)*$AK$13+HLOOKUP(FE$75,'L07 Coefs'!$D$13:$I$19,7,FALSE)*EXP($E82*HLOOKUP(FE$75,'L07 Coefs'!$D$13:$I$19,2,FALSE)+$F82*HLOOKUP(FE$75,'L07 Coefs'!$D$13:$I$19,3,FALSE))))) -> 1.078644039 | FG82: =EXP($E82*HLOOKUP(OFFSET(FG$75,-1,0),'L07 Coefs'!$D$13:$I$19,2,FALSE)+$F82*HLOOKUP(OFFSET(FG$75,-1,0),'L07 Coefs'!$D$13:$I$19,3,FALSE)) -> 1.077108854 | FH82: ='Untreated L07 bd'!$AK19/FG82 -> 67.60099251 | FI82: =HLOOKUP(OFFSET(FG$75,-1,0),'L07 Coefs'!$D$13:$I$19,4,FALSE)*FH82+HLOOKUP(OFFSET(FG$75,-1,0),'L07 Coefs'!$D$13:$I$19,5,FALSE) -> 63.86775378 | FJ82: =HLOOKUP(OFFSET(FG$75,-1,0),'L07 Coefs'!$D$13:$I$19,6,FALSE)*FH82+HLOOKUP(OFFSET(FG$75,-1,0),'L07 Coefs'!$D$13:$I$19,7,FALSE) -> 27.58297667 | FK82: ='Untreated L07 bd'!$AK19/FI82 -> 1.140068708 | FL82: ='Untreated L07 bd'!$AK19/FJ82 -> 2.639803109 | FM82: 1.078644039 | FN82: =EXP($E82*HLOOKUP(OFFSET(FN$75,-1,0),'L07 Coefs'!$D$13:$I$19,2,FALSE)+$F82*HLOOKUP(OFFSET(FN$75,-1,0),'L07 Coefs'!$D$13:$I$19,3,FALSE)) -> 1.313868878 | FO82: ='Untreated L07 bd'!$AK19/FN82 -> 55.41924982 | FP82: =HLOOKUP(OFFSET(FN$75,-1,0),'L07 Coefs'!$D$13:$I$19,4,FALSE)*FO82+HLOOKUP(OFFSET(FN$75,-1,0),'L07 Coefs'!$D$13:$I$19,5,FALSE) -> 46.79499533 | FQ82: =HLOOKUP(OFFSET(FN$75,-1,0),'L07 Coefs'!$D$13:$I$19,6,FALSE)*FO82+HLOOKUP(OFFSET(FN$75,-1,0),'L07 Coefs'!$D$13:$I$19,7,FALSE) -> 22.38964119 | FR82: ='Untreated L07 bd'!$AK19/FP82 -> 1.556013139 | FS82: ='Untreated L07 bd'!$AK19/FQ82 -> 3.252112302 | FT82: 1.319773217 | FU82: =EXP($E82*HLOOKUP(OFFSET(FU$75,-1,0),'L07 Coefs'!$D$13:$I$19,2,FALSE)+$F82*HLOOKUP(OFFSET(FU$75,-1,0),'L07 Coefs'!$D$13:$I$19,3,FALSE)) -> 1.51524123 | FV82: ='Untreated L07 bd'!$AK19/FU82 -> 48.05414881 | FW82: =HLOOKUP(OFFSET(FU$75,-1,0),'L07 Coefs'!$D$13:$I$19,4,FALSE)*FV82+HLOOKUP(OFFSET(FU$75,-1,0),'L07 Coefs'!$D$13:$I$19,5,FALSE) -> 37.16411375 | FX82: =HLOOKUP(OFFSET(FU$75,-1,0),'L07 Coefs'!$D$13:$I$19,6,FALSE)*FV82+HLOOKUP(OFFSET(FU$75,-1,0),'L07 Coefs'!$D$13:$I$19,7,FALSE) -> 16.43661667 | FY82: ='Untreated L07 bd'!$AK19/FW82 -> 1.959245633 | FZ82: ='Untreated L07 bd'!$AK19/FX82 -> 4.429964451 | GA82: 1.526067639 | GB82: =EXP($E82*HLOOKUP(OFFSET(GB$75,-1,0),'L07 Coefs'!$D$13:$I$19,2,FALSE)+$F82*HLOOKUP(OFFSET(GB$75,-1,0),'L07 Coefs'!$D$13:$I$19,3,FALSE)) -> 1.622991876 | GC82: ='Untreated L07 bd'!$AK19/GB82 -> 44.86382749 | GD82: =HLOOKUP(OFFSET(GB$75,-1,0),'L07 Coefs'!$D$13:$I$19,4,FALSE)*GC82+HLOOKUP(OFFSET(GB$75,-1,0),'L07 Coefs'!$D$13:$I$19,5,FALSE) -> 33.70798576 | GE82: =HLOOKUP(OFFSET(GB$75,-1,0),'L07 Coefs'!$D$13:$I$19,6,FALSE)*GC82+HLOOKUP(OFFSET(GB$75,-1,0),'L07 Coefs'!$D$13:$I$19,7,FALSE) -> 14.50105466 | GF82: ='Untreated L07 bd'!$AK19/GD82 -> 2.160129889 | GG82: ='Untreated L07 bd'!$AK19/GE82 -> 5.021264264 | GH82: 1.636089214 | GI82: =EXP($E82*HLOOKUP(OFFSET(GI$75,-1,0),'L07 Coefs'!$D$13:$I$19,2,FALSE)+$F82*HLOOKUP(OFFSET(GI$75,-1,0),'L07 Coefs'!$D$13:$I$19,3,FALSE)) -> 2.250013702 | GJ82: ='Untreated L07 bd'!$AK19/GI82 -> 32.36141518 | GK82: =HLOOKUP(OFFSET(GI$75,-1,0),'L07 Coefs'!$D$13:$I$19,4,FALSE)*GJ82+HLOOKUP(OFFSET(GI$75,-1,0),'L07 Coefs'!$D$13:$I$19,5,FALSE) -> 24.91337901 | GL82: =HLOOKUP(OFFSET(GI$75,-1,0),'L07 Coefs'!$D$13:$I$19,6,FALSE)*GJ82+HLOOKUP(OFFSET(GI$75,-1,0),'L07 Coefs'!$D$13:$I$19,7,FALSE) -> 10.48524258 | GM82: ='Untreated L07 bd'!$AK19/GK82 -> 2.922671691 | GN82: ='Untreated L07 bd'!$AK19/GL82 -> 6.944391323 | GO82: 2.266415499 | GP82: =EXP($E82*HLOOKUP(OFFSET(GP$75,-1,0),'L07 Coefs'!$D$13:$I$19,2,FALSE)+$F82*HLOOKUP(OFFSET(GP$75,-1,0),'L07 Coefs'!$D$13:$I$19,3,FALSE)) -> 1.368694852 | GQ82: ='Untreated L07 bd'!$AK19/GP82 -> 53.19931426 | GR82: =HLOOKUP(OFFSET(GP$75,-1,0),'L07 Coefs'!$D$13:$I$19,4,FALSE)*GQ82+HLOOKUP(OFFSET(GP$75,-1,0),'L07 Coefs'!$D$13:$I$19,5,FALSE) -> 43.55940521 | GS82: =HLOOKUP(OFFSET(GP$75,-1,0),'L07 Coefs'!$D$13:$I$19,6,FALSE)*GQ82+HLOOKUP(OFFSET(GP$75,-1,0),'L07 Coefs'!$D$13:$I$19,7,FALSE) -> 20.59859977 | GT82: ='Untreated L07 bd'!$AK19/GR82 -> 1.671593705 | GU82: ='Untreated L07 bd'!$AK19/GS82 -> 3.534882388 | GV82: 1.376080605 | GX82: Snow01 | GY82: min | GZ82: =MIN(H76:H99) -> 0 | HA82: =OFFSET(B74,MATCH(GZ82,H76:H99,0)+1,0) -> 00:00:00 | HG82: 0.1714927043 | HJ82: 2.061408393
A83: 7 | B83: 07:00:00 | C83: ='Untreated L07 bd'!K20 -> 12298.25916 | D83: 13500 | E83: 0.91098216 | F83: 11.69892351 | G83: ='base data'!AX20 -> 8.4 | H83: ='base data'!AY20 -> 0 | I83: 1.633261584 | J83: 3.253082136 | K83: 2.061874214 | L83: 1.874286515 | M83: 1.539427237 | N83: 1.126180368 | P83: 1 | Q83: 07:00:00 | R83: 0.4040058833 | T83: ='Primary Graph Data'!$O$18*R83*3600 -> 15.86641287 | U83: 1.446689766 | V83: 1.446689766 | W83: =C83*'Primary Graph Data'!$O$18*V83 -> 194.091989 | X83: 1.999344981 | Y83: 2.806379165 | Z83: 0.2624274236 | AA83: 0.339377506 | AB83: 2.061874214 | AC83: =Y83 -> 2.806379165 | AD83: 1.11293703 | ET83: =EXP($E83*HLOOKUP(ET$75,'L07 Coefs'!$D$6:$I$10,2,FALSE)+$F83*HLOOKUP(ET$75,'L07 Coefs'!$D$6:$I$10,3,FALSE)+$G83*HLOOKUP(ET$75,'L07 Coefs'!$D$6:$I$10,4,FALSE)+$H83*HLOOKUP(ET$75,'L07 Coefs'!$D$6:$I$10,5,FALSE)) -> 1.188421642 | EU83: =EXP($E83*HLOOKUP(EU$75,'L07 Coefs'!$D$6:$I$10,2,FALSE)+$F83*HLOOKUP(EU$75,'L07 Coefs'!$D$6:$I$10,3,FALSE)+$G83*HLOOKUP(EU$75,'L07 Coefs'!$D$6:$I$10,4,FALSE)+$H83*HLOOKUP(EU$75,'L07 Coefs'!$D$6:$I$10,5,FALSE)) -> 2.569665398 | EV83: =EXP($E83*HLOOKUP(EV$75,'L07 Coefs'!$D$6:$I$10,2,FALSE)+$F83*HLOOKUP(EV$75,'L07 Coefs'!$D$6:$I$10,3,FALSE)+$G83*HLOOKUP(EV$75,'L07 Coefs'!$D$6:$I$10,4,FALSE)+$H83*HLOOKUP(EV$75,'L07 Coefs'!$D$6:$I$10,5,FALSE)) -> 1.460439829 | EW83: =EXP($E83*HLOOKUP(EW$75,'L07 Coefs'!$D$6:$I$10,2,FALSE)+$F83*HLOOKUP(EW$75,'L07 Coefs'!$D$6:$I$10,3,FALSE)+$G83*HLOOKUP(EW$75,'L07 Coefs'!$D$6:$I$10,4,FALSE)+$H83*HLOOKUP(EW$75,'L07 Coefs'!$D$6:$I$10,5,FALSE)) -> 1.227537344 | EX83: =EXP($E83*HLOOKUP(EX$75,'L07 Coefs'!$D$6:$I$10,2,FALSE)+$F83*HLOOKUP(EX$75,'L07 Coefs'!$D$6:$I$10,3,FALSE)+$G83*HLOOKUP(EX$75,'L07 Coefs'!$D$6:$I$10,4,FALSE)+$H83*HLOOKUP(EX$75,'L07 Coefs'!$D$6:$I$10,5,FALSE)) -> 1.136528479 | EY83: =EXP($E83*HLOOKUP(EY$75,'L07 Coefs'!$D$6:$I$10,2,FALSE)+$F83*HLOOKUP(EY$75,'L07 Coefs'!$D$6:$I$10,3,FALSE)+$G83*HLOOKUP(EY$75,'L07 Coefs'!$D$6:$I$10,4,FALSE)+$H83*HLOOKUP(EY$75,'L07 Coefs'!$D$6:$I$10,5,FALSE)) -> 1.025926067 | EZ83: =EXP($E83*HLOOKUP(EZ$75,'L07 Coefs'!$D$13:$I$19,2,FALSE)+$F83*HLOOKUP(EZ$75,'L07 Coefs'!$D$13:$I$19,3,FALSE))*(1-($G83/365)-($H83/365)+$AK$13*(($G83/365)/(HLOOKUP(EZ$75,'L07 Coefs'!$D$13:$I$19,4,FALSE)*$AK$13+HLOOKUP(EZ$75,'L07 Coefs'!$D$13:$I$19,5,FALSE)*EXP($E83*HLOOKUP(EZ$75,'L07 Coefs'!$D$13:$I$19,2,FALSE)+$F83*HLOOKUP(EZ$75,'L07 Coefs'!$D$13:$I$19,3,FALSE)))+($H83/365)/(HLOOKUP(EZ$75,'L07 Coefs'!$D$13:$I$19,6,FALSE)*$AK$13+HLOOKUP(EZ$75,'L07 Coefs'!$D$13:$I$19,7,FALSE)*EXP($E83*HLOOKUP(EZ$75,'L07 Coefs'!$D$13:$I$19,2,FALSE)+$F83*HLOOKUP(EZ$75,'L07 Coefs'!$D$13:$I$19,3,FALSE))))) -> 1.633261584 | FA83: =EXP($E83*HLOOKUP(FA$75,'L07 Coefs'!$D$13:$I$19,2,FALSE)+$F83*HLOOKUP(FA$75,'L07 Coefs'!$D$13:$I$19,3,FALSE))*(1-($G83/365)-($H83/365)+$AK$13*(($G83/365)/(HLOOKUP(FA$75,'L07 Coefs'!$D$13:$I$19,4,FALSE)*$AK$13+HLOOKUP(FA$75,'L07 Coefs'!$D$13:$I$19,5,FALSE)*EXP($E83*HLOOKUP(FA$75,'L07 Coefs'!$D$13:$I$19,2,FALSE)+$F83*HLOOKUP(FA$75,'L07 Coefs'!$D$13:$I$19,3,FALSE)))+($H83/365)/(HLOOKUP(FA$75,'L07 Coefs'!$D$13:$I$19,6,FALSE)*$AK$13+HLOOKUP(FA$75,'L07 Coefs'!$D$13:$I$19,7,FALSE)*EXP($E83*HLOOKUP(FA$75,'L07 Coefs'!$D$13:$I$19,2,FALSE)+$F83*HLOOKUP(FA$75,'L07 Coefs'!$D$13:$I$19,3,FALSE))))) -> 3.253082136 | FB83: =EXP($E83*HLOOKUP(FB$75,'L07 Coefs'!$D$13:$I$19,2,FALSE)+$F83*HLOOKUP(FB$75,'L07 Coefs'!$D$13:$I$19,3,FALSE))*(1-($G83/365)-($H83/365)+$AK$13*(($G83/365)/(HLOOKUP(FB$75,'L07 Coefs'!$D$13:$I$19,4,FALSE)*$AK$13+HLOOKUP(FB$75,'L07 Coefs'!$D$13:$I$19,5,FALSE)*EXP($E83*HLOOKUP(FB$75,'L07 Coefs'!$D$13:$I$19,2,FALSE)+$F83*HLOOKUP(FB$75,'L07 Coefs'!$D$13:$I$19,3,FALSE)))+($H83/365)/(HLOOKUP(FB$75,'L07 Coefs'!$D$13:$I$19,6,FALSE)*$AK$13+HLOOKUP(FB$75,'L07 Coefs'!$D$13:$I$19,7,FALSE)*EXP($E83*HLOOKUP(FB$75,'L07 Coefs'!$D$13:$I$19,2,FALSE)+$F83*HLOOKUP(FB$75,'L07 Coefs'!$D$13:$I$19,3,FALSE))))) -> 2.061874214 | FC83: =EXP($E83*HLOOKUP(FC$75,'L07 Coefs'!$D$13:$I$19,2,FALSE)+$F83*HLOOKUP(FC$75,'L07 Coefs'!$D$13:$I$19,3,FALSE))*(1-($G83/365)-($H83/365)+$AK$13*(($G83/365)/(HLOOKUP(FC$75,'L07 Coefs'!$D$13:$I$19,4,FALSE)*$AK$13+HLOOKUP(FC$75,'L07 Coefs'!$D$13:$I$19,5,FALSE)*EXP($E83*HLOOKUP(FC$75,'L07 Coefs'!$D$13:$I$19,2,FALSE)+$F83*HLOOKUP(FC$75,'L07 Coefs'!$D$13:$I$19,3,FALSE)))+($H83/365)/(HLOOKUP(FC$75,'L07 Coefs'!$D$13:$I$19,6,FALSE)*$AK$13+HLOOKUP(FC$75,'L07 Coefs'!$D$13:$I$19,7,FALSE)*EXP($E83*HLOOKUP(FC$75,'L07 Coefs'!$D$13:$I$19,2,FALSE)+$F83*HLOOKUP(FC$75,'L07 Coefs'!$D$13:$I$19,3,FALSE))))) -> 1.874286515 | FD83: =EXP($E83*HLOOKUP(FD$75,'L07 Coefs'!$D$13:$I$19,2,FALSE)+$F83*HLOOKUP(FD$75,'L07 Coefs'!$D$13:$I$19,3,FALSE))*(1-($G83/365)-($H83/365)+$AK$13*(($G83/365)/(HLOOKUP(FD$75,'L07 Coefs'!$D$13:$I$19,4,FALSE)*$AK$13+HLOOKUP(FD$75,'L07 Coefs'!$D$13:$I$19,5,FALSE)*EXP($E83*HLOOKUP(FD$75,'L07 Coefs'!$D$13:$I$19,2,FALSE)+$F83*HLOOKUP(FD$75,'L07 Coefs'!$D$13:$I$19,3,FALSE)))+($H83/365)/(HLOOKUP(FD$75,'L07 Coefs'!$D$13:$I$19,6,FALSE)*$AK$13+HLOOKUP(FD$75,'L07 Coefs'!$D$13:$I$19,7,FALSE)*EXP($E83*HLOOKUP(FD$75,'L07 Coefs'!$D$13:$I$19,2,FALSE)+$F83*HLOOKUP(FD$75,'L07 Coefs'!$D$13:$I$19,3,FALSE))))) -> 1.539427237 | FE83: =EXP($E83*HLOOKUP(FE$75,'L07 Coefs'!$D$13:$I$19,2,FALSE)+$F83*HLOOKUP(FE$75,'L07 Coefs'!$D$13:$I$19,3,FALSE))*(1-($G83/365)-($H83/365)+$AK$13*(($G83/365)/(HLOOKUP(FE$75,'L07 Coefs'!$D$13:$I$19,4,FALSE)*$AK$13+HLOOKUP(FE$75,'L07 Coefs'!$D$13:$I$19,5,FALSE)*EXP($E83*HLOOKUP(FE$75,'L07 Coefs'!$D$13:$I$19,2,FALSE)+$F83*HLOOKUP(FE$75,'L07 Coefs'!$D$13:$I$19,3,FALSE)))+($H83/365)/(HLOOKUP(FE$75,'L07 Coefs'!$D$13:$I$19,6,FALSE)*$AK$13+HLOOKUP(FE$75,'L07 Coefs'!$D$13:$I$19,7,FALSE)*EXP($E83*HLOOKUP(FE$75,'L07 Coefs'!$D$13:$I$19,2,FALSE)+$F83*HLOOKUP(FE$75,'L07 Coefs'!$D$13:$I$19,3,FALSE))))) -> 1.126180368 | FG83: =EXP($E83*HLOOKUP(OFFSET(FG$75,-1,0),'L07 Coefs'!$D$13:$I$19,2,FALSE)+$F83*HLOOKUP(OFFSET(FG$75,-1,0),'L07 Coefs'!$D$13:$I$19,3,FALSE)) -> 1.124127306 | FH83: ='Untreated L07 bd'!$AK20/FG83 -> 64.77347109 | FI83: =HLOOKUP(OFFSET(FG$75,-1,0),'L07 Coefs'!$D$13:$I$19,4,FALSE)*FH83+HLOOKUP(OFFSET(FG$75,-1,0),'L07 Coefs'!$D$13:$I$19,5,FALSE) -> 60.01101456 | FJ83: =HLOOKUP(OFFSET(FG$75,-1,0),'L07 Coefs'!$D$13:$I$19,6,FALSE)*FH83+HLOOKUP(OFFSET(FG$75,-1,0),'L07 Coefs'!$D$13:$I$19,7,FALSE) -> 27.07967785 | FK83: ='Untreated L07 bd'!$AK20/FI83 -> 1.21333772 | FL83: ='Untreated L07 bd'!$AK20/FJ83 -> 2.688866092 | FM83: 1.126180368 | FN83: =EXP($E83*HLOOKUP(OFFSET(FN$75,-1,0),'L07 Coefs'!$D$13:$I$19,2,FALSE)+$F83*HLOOKUP(OFFSET(FN$75,-1,0),'L07 Coefs'!$D$13:$I$19,3,FALSE)) -> 1.531907397 | FO83: ='Untreated L07 bd'!$AK20/FN83 -> 47.5313506 | FP83: =HLOOKUP(OFFSET(FN$75,-1,0),'L07 Coefs'!$D$13:$I$19,4,FALSE)*FO83+HLOOKUP(OFFSET(FN$75,-1,0),'L07 Coefs'!$D$13:$I$19,5,FALSE) -> 39.17528468 | FQ83: =HLOOKUP(OFFSET(FN$75,-1,0),'L07 Coefs'!$D$13:$I$19,6,FALSE)*FO83+HLOOKUP(OFFSET(FN$75,-1,0),'L07 Coefs'!$D$13:$I$19,7,FALSE) -> 19.66831596 | FR83: ='Untreated L07 bd'!$AK20/FP83 -> 1.858662372 | FS83: ='Untreated L07 bd'!$AK20/FQ83 -> 3.702077378 | FT83: 1.539427237 | FU83: =EXP($E83*HLOOKUP(OFFSET(FU$75,-1,0),'L07 Coefs'!$D$13:$I$19,2,FALSE)+$F83*HLOOKUP(OFFSET(FU$75,-1,0),'L07 Coefs'!$D$13:$I$19,3,FALSE)) -> 1.863986457 | FV83: ='Untreated L07 bd'!$AK20/FU83 -> 39.06338873 | FW83: =HLOOKUP(OFFSET(FU$75,-1,0),'L07 Coefs'!$D$13:$I$19,4,FALSE)*FV83+HLOOKUP(OFFSET(FU$75,-1,0),'L07 Coefs'!$D$13:$I$19,5,FALSE) -> 31.4999349 | FX83: =HLOOKUP(OFFSET(FU$75,-1,0),'L07 Coefs'!$D$13:$I$19,6,FALSE)*FV83+HLOOKUP(OFFSET(FU$75,-1,0),'L07 Coefs'!$D$13:$I$19,7,FALSE) -> 14.34176957 | FY83: ='Untreated L07 bd'!$AK20/FW83 -> 2.311548509 | FZ83: ='Untreated L07 bd'!$AK20/FX83 -> 5.077032313 | GA83: 1.874286515 | GB83: =EXP($E83*HLOOKUP(OFFSET(GB$75,-1,0),'L07 Coefs'!$D$13:$I$19,2,FALSE)+$F83*HLOOKUP(OFFSET(GB$75,-1,0),'L07 Coefs'!$D$13:$I$19,3,FALSE)) -> 2.04863852 | GC83: ='Untreated L07 bd'!$AK20/GB83 -> 35.54244776 | GD83: =HLOOKUP(OFFSET(GB$75,-1,0),'L07 Coefs'!$D$13:$I$19,4,FALSE)*GC83+HLOOKUP(OFFSET(GB$75,-1,0),'L07 Coefs'!$D$13:$I$19,5,FALSE) -> 27.75162412 | GE83: =HLOOKUP(OFFSET(GB$75,-1,0),'L07 Coefs'!$D$13:$I$19,6,FALSE)*GC83+HLOOKUP(OFFSET(GB$75,-1,0),'L07 Coefs'!$D$13:$I$19,7,FALSE) -> 11.83514006 | GF83: ='Untreated L07 bd'!$AK20/GD83 -> 2.623760946 | GG83: ='Untreated L07 bd'!$AK20/GE83 -> 6.152324957 | GH83: 2.061874214 | GI83: =EXP($E83*HLOOKUP(OFFSET(GI$75,-1,0),'L07 Coefs'!$D$13:$I$19,2,FALSE)+$F83*HLOOKUP(OFFSET(GI$75,-1,0),'L07 Coefs'!$D$13:$I$19,3,FALSE)) -> 3.239034462 | GJ83: ='Untreated L07 bd'!$AK20/GI83 -> 22.48004102 | GK83: =HLOOKUP(OFFSET(GI$75,-1,0),'L07 Coefs'!$D$13:$I$19,4,FALSE)*GJ83+HLOOKUP(OFFSET(GI$75,-1,0),'L07 Coefs'!$D$13:$I$19,5,FALSE) -> 18.9153849 | GL83: =HLOOKUP(OFFSET(GI$75,-1,0),'L07 Coefs'!$D$13:$I$19,6,FALSE)*GJ83+HLOOKUP(OFFSET(GI$75,-1,0),'L07 Coefs'!$D$13:$I$19,7,FALSE) -> 7.115693987 | GM83: ='Untreated L07 bd'!$AK20/GK83 -> 3.849439382 | GN83: ='Untreated L07 bd'!$AK20/GL83 -> 10.23282166 | GO83: 3.253082136 | GP83: =EXP($E83*HLOOKUP(OFFSET(GP$75,-1,0),'L07 Coefs'!$D$13:$I$19,2,FALSE)+$F83*HLOOKUP(OFFSET(GP$75,-1,0),'L07 Coefs'!$D$13:$I$19,3,FALSE)) -> 1.624346182 | GQ83: ='Untreated L07 bd'!$AK20/GP83 -> 44.82642208 | GR83: =HLOOKUP(OFFSET(GP$75,-1,0),'L07 Coefs'!$D$13:$I$19,4,FALSE)*GQ83+HLOOKUP(OFFSET(GP$75,-1,0),'L07 Coefs'!$D$13:$I$19,5,FALSE) -> 36.19432345 | GS83: =HLOOKUP(OFFSET(GP$75,-1,0),'L07 Coefs'!$D$13:$I$19,6,FALSE)*GQ83+HLOOKUP(OFFSET(GP$75,-1,0),'L07 Coefs'!$D$13:$I$19,7,FALSE) -> 17.950996 | GT83: ='Untreated L07 bd'!$AK20/GR83 -> 2.011741638 | GU83: ='Untreated L07 bd'!$AK20/GS83 -> 4.056244432 | GV83: 1.633261584 | GY83: max | GZ83: =MAX(H76:H99) -> 1 | HA83: =OFFSET(B74,MATCH(GZ83,H76:H99,0)+1,0) -> 04:00:00 | HG83: 0.339377506 | HJ83: 1.11293703
